Workbook

Sheet Verbraucher
A1: =Text!C2 -> QM Chauffages au bois - Relevée de situation
A3: =Text!C3 -> Projet/Variante: | B3: =Text!C5 -> Exemple modèle (ligne 1)
B4: =Text!C6 -> Exemple modèle (ligne 2)
B5: =Text!C7 -> Exemple modèle (ligne 3)
A6: =Text!C4 -> Saisi par: | B6: =Text!C8 -> Concepteur modèle
A7: =Text!C20 -> Date: | B7: 2022-02-18
A9: =Text!C9 -> Données planificateur principale
A11: =Text!C10 -> Généralités | B11: =Text!C11 -> Numéro | C11: 1 | D11: =IF(AND(ISBLANK(C23)=TRUE,ISBLANK(C24)=TRUE,ISBLANK(C27)=TRUE,ISBLANK(C28)=TRUE,ISBLANK(C29)=TRUE,ISBLANK(C30)=TRUE),"",C11+1) -> 2 | E11: =IF(AND(ISBLANK(D23)=TRUE,ISBLANK(D24)=TRUE,ISBLANK(D27)=TRUE,ISBLANK(D28)=TRUE,ISBLANK(D29)=TRUE,ISBLANK(D30)=TRUE),"",D11+1) -> 3 | F11: 4 | G11: 5 | BQ11: =IF(AND(ISBLANK(BP23)=TRUE,ISBLANK(BP24)=TRUE,ISBLANK(BP27)=TRUE,ISBLANK(BP28)=TRUE,ISBLANK(BP29)=TRUE,ISBLANK(BP30)=TRUE),"",BP11+1) ->  | EC11: =IF(AND(ISBLANK(EB23)=TRUE,ISBLANK(EB24)=TRUE,ISBLANK(EB27)=TRUE,ISBLANK(EB28)=TRUE,ISBLANK(EB29)=TRUE,ISBLANK(EB30)=TRUE),"",EB11+1) ->  | GO11: =IF(AND(ISBLANK(GN23)=TRUE,ISBLANK(GN24)=TRUE,ISBLANK(GN27)=TRUE,ISBLANK(GN28)=TRUE,ISBLANK(GN29)=TRUE,ISBLANK(GN30)=TRUE),"",GN11+1) -> 
B12: =Text!C12 -> Indication | C12: =Text!C114 -> Bâtiment ancien | D12: =Text!C119 -> Ecole existente | E12: =Text!C122 -> Chaleur industrielle | F12: =Text!C116 -> Nouveau bâtiment
B19: =Text!C21 -> Détermination du besoin de chaleur au moyen de | C19: =Text!C115 -> Livraison de mazout | D19: =Text!C120 -> Décompte | E19: =Text!C123 -> Mesure | F19: =Text!C117 -> Norme SIA
B20: =Text!C22 -> Surface de référence énergétique [m²] | C20: 20000 | D20: 10000 | F20: 400
B21: =Text!C23 -> Température aller max. [°C] | C21: 70 | D21: 75 | E21: 80 | F21: 65
B22: =Text!C24 -> Température retour max. [°C] | C22: 50 | D22: 55 | E22: 60 | F22: 30
A23: =Text!C25 -> Chaleur ambiante | B23: =Text!C26 -> Besoin de chaleur [MWh/a] | C23: 2000 | D23: 780 | F23: 12
B24: =Text!C27 -> Puissance thermique requise chaleur ambiante max. [kW] | C24: 870 | D24: 470 | F24: 10
B25: =Text!C28 -> Facteur de correction besoin de chaleur [-] | C25: 1 | D25: 0.85 | F25: 0.7
B26: =Text!C29 -> Facteur de correction pointe de préchauffage [-] | C26: 1 | D26: 1 | F26: 1
A27: =Text!C30 -> Eau chaude | B27: =Text!C31 -> Besoin de chaleur annuel eau chaude [MWh/a]* | C27: 560 | D27: 70 | F27: 11
B28: =Text!C32 -> Puissance thermique requise eau chaude max. [kW] | C28: 130 | D28: 130 | F28: 2.5
A29: =Text!C33 -> Chaleur industrielle | B29: =Text!C34 -> Besoins de chaleur annuel chaleur industrielle [MWh/a]* | E29: 500
B30: =Text!C35 -> Puissance thermique requise chaleur industrielle max. [kW] | E30: 110
A33: =Text!C38 -> Données caractéristiques calculées
A35: =Text!C90 -> Besoin de chaleur globale [MWh/a] | C35: =C23+C27+C29 -> 2560 | D35: =D23+D27+D29 -> 850 | E35: 500 | F35: 23 | G35: 0 | H35: 0 | I35: 0 | J35: 0 | K35: 0 | L35: 0 | M35: 0 | N35: 0 | O35: 0 | P35: 0 | Q35: 0 | R35: 0 | S35: 0 | T35: 0 | U35: 0 | V35: 0 | W35: 0 | X35: 0 | Y35: 0 | Z35: 0 | AA35: 0 | AB35: 0 | AC35: 0 | AD35: 0 | AE35: 0 | AF35: 0 | AG35: 0 | AH35: 0 | AI35: 0 | AJ35: 0 | AK35: 0 | AL35: 0 | AM35: 0 | AN35: 0 | AO35: 0 | AP35: 0 | AQ35: 0 | AR35: 0 | AS35: 0 | AT35: 0 | AU35: 0 | AV35: 0 | AW35: 0 | AX35: 0 | AY35: 0 | AZ35: 0 | BA35: 0 | BB35: 0 | BC35: 0 | BD35: 0 | BE35: 0 | BF35: 0 | BG35: 0 | BH35: 0 | BI35: 0 | BJ35: 0 | BK35: 0 | BL35: 0 | BM35: 0 | BN35: 0 | BO35: 0 | BP35: =BP23+BP27+BP29 -> 0 | BQ35: 0 | BR35: 0 | BS35: 0 | BT35: 0 | BU35: 0 | BV35: 0 | BW35: 0 | BX35: 0 | BY35: 0 | BZ35: 0 | CA35: 0 | CB35: 0 | CC35: 0 | CD35: 0 | CE35: 0 | CF35: 0 | CG35: 0 | CH35: 0 | CI35: 0 | CJ35: 0 | CK35: 0 | CL35: 0 | CM35: 0 | CN35: 0 | CO35: 0 | CP35: 0 | CQ35: 0 | CR35: 0 | CS35: 0 | CT35: 0 | CU35: 0 | CV35: 0 | CW35: 0 | CX35: 0 | CY35: 0 | CZ35: 0 | DA35: 0 | DB35: 0 | DC35: 0 | DD35: 0 | DE35: 0 | DF35: 0 | DG35: 0 | DH35: 0 | DI35: 0 | DJ35: 0 | DK35: 0 | DL35: 0 | DM35: 0 | DN35: 0 | DO35: 0 | DP35: 0 | DQ35: 0 | DR35: 0 | DS35: 0 | DT35: 0 | DU35: 0 | DV35: 0 | DW35: 0 | DX35: 0 | DY35: 0 | DZ35: 0 | EA35: 0 | EB35: =EB23+EB27+EB29 -> 0 | EC35: 0 | ED35: 0 | EE35: 0 | EF35: 0 | EG35: 0 | EH35: 0 | EI35: 0 | EJ35: 0 | EK35: 0 | EL35: 0 | EM35: 0 | EN35: 0 | EO35: 0 | EP35: 0 | EQ35: 0 | ER35: 0 | ES35: 0 | ET35: 0 | EU35: 0 | EV35: 0 | EW35: 0 | EX35: 0 | EY35: 0 | EZ35: 0 | FA35: 0 | FB35: 0 | FC35: 0 | FD35: 0 | FE35: 0 | FF35: 0 | FG35: 0 | FH35: 0 | FI35: 0 | FJ35: 0 | FK35: 0 | FL35: 0 | FM35: 0 | FN35: 0 | FO35: 0 | FP35: 0 | FQ35: 0 | FR35: 0 | FS35: 0 | FT35: 0 | FU35: 0 | FV35: 0 | FW35: 0 | FX35: 0 | FY35: 0 | FZ35: 0 | GA35: 0 | GB35: 0 | GC35: 0 | GD35: 0 | GE35: 0 | GF35: 0 | GG35: 0 | GH35: 0 | GI35: 0 | GJ35: 0 | GK35: 0 | GL35: 0 | GM35: 0 | GN35: =GN23+GN27+GN29 -> 0 | GO35: 0 | GP35: 0 | GQ35: 0 | GR35: 0 | GS35: 0 | GT35: 0 | GU35: 0 | GV35: 0 | GW35: 0 | GX35: 0 | GY35: 0 | GZ35: 0 | HA35: 0 | HB35: 0 | HC35: 0 | HD35: 0 | HE35: 0 | HF35: 0 | HG35: 0 | HH35: 0 | HI35: 0 | HJ35: 0 | HK35: 0 | HL35: 0 | HM35: 0 | HN35: 0 | HO35: 0 | HP35: 0 | HQ35: 0 | HR35: 0 | HS35: 0 | HT35: 0 | HU35: 0 | HV35: 0 | HW35: 0 | HX35: 0 | HY35: 0 | HZ35: 0 | IA35: 0 | IB35: 0 | IC35: 0 | ID35: 0 | IE35: 0 | IF35: 0 | IG35: 0 | IH35: 0 | II35: 0 | IJ35: 0 | IK35: 0 | IL35: 0 | IM35: 0 | IN35: 0 | IO35: 0 | IP35: 0 | IQ35: 0 | IR35: 0 | IS35: 0 | IT35: 0 | IU35: 0 | IV35: 0
A36: =Text!C39 -> Chaleur ambiante | B36: =Text!C40 -> Heures de marche à pleine charge chaleur ambiante [h/a] | C36: =IF(C24="","",ROUND(C23*1000/C24,2)) -> 2298.85 | D36: 1659.57 | F36: 1200 | BO36: =IF(BO24="","",ROUND(BO23*1000/BO24,2)) ->  | EA36: =IF(EA24="","",ROUND(EA23*1000/EA24,2)) ->  | GM36: =IF(GM24="","",ROUND(GM23*1000/GM24,2)) -> 
B37: =Text!C41 -> Besoin de chaleur spécifique [kWh/m²a] | C37: =IF(C20="","",ROUND(C23*1000/C20,3)) -> 100 | D37: =IF(D20="","",ROUND(D23*1000/D20,3)) -> 78 | E37: =IF(E20="","",ROUND(E23*1000/E20,3)) ->  | F37: 30 | BQ37: =IF(BQ20="","",ROUND(BQ23*1000/BQ20,3)) ->  | EC37: =IF(EC20="","",ROUND(EC23*1000/EC20,3)) ->  | GO37: =IF(GO20="","",ROUND(GO23*1000/GO20,3)) -> 
B38: =Text!C42 -> Puissance thermique spécifique requise [W/m²] | C38: =IF(C20="","",ROUND(C24*1000/C20,3)) -> 43.5 | D38: =IF(D20="","",ROUND(D24*1000/D20,3)) -> 47 | E38: =IF(E20="","",ROUND(E24*1000/E20,3)) ->  | F38: 25 | BQ38: =IF(BQ20="","",ROUND(BQ24*1000/BQ20,3)) ->  | EC38: =IF(EC20="","",ROUND(EC24*1000/EC20,3)) ->  | GO38: =IF(GO20="","",ROUND(GO24*1000/GO20,3)) -> 
A39: =Text!C43 -> Eau chaude | B39: =Text!C44 -> Heures de marche à pleine charge eau chaude [h/a] | C39: =IF(C28="","",ROUND(C27*1000/C28,2)) -> 4307.69 | D39: =IF(D28="","",ROUND(D27*1000/D28,2)) -> 538.46 | F39: 4400 | BP39: =IF(BP28="","",ROUND(BP27*1000/BP28,2)) ->  | EB39: =IF(EB28="","",ROUND(EB27*1000/EB28,2)) ->  | GN39: =IF(GN28="","",ROUND(GN27*1000/GN28,2)) -> 
B40: =Text!C45 -> Besoin d'énergie spécifique eau chaude [kWh/m²a] | C40: =IF(C20="","",ROUND(C27*1000/C20,3)) -> 28 | D40: =IF(D20="","",ROUND(D27*1000/D20,3)) -> 7 | F40: 27.5 | BP40: =IF(BP20="","",ROUND(BP27*1000/BP20,3)) ->  | EB40: =IF(EB20="","",ROUND(EB27*1000/EB20,3)) ->  | GN40: =IF(GN20="","",ROUND(GN27*1000/GN20,3)) -> 
A41: =Text!C46 -> Chaleur industrielle | B41: =Text!C47 -> Heures de marche à pleine charge chaleur industrielle [h/a] | C41: =IF(C30="","",ROUND(C29*1000/C30,2)) ->  | D41: =IF(D30="","",ROUND(D29*1000/D30,2)) ->  | E41: 4545.45 | BP41: =IF(BP30="","",ROUND(BP29*1000/BP30,2)) ->  | EB41: =IF(EB30="","",ROUND(EB29*1000/EB30,2)) ->  | GN41: =IF(GN30="","",ROUND(GN29*1000/GN30,2)) -> 
A43: =Text!C49 -> * Le besoin de chaleur annuel pour 365 jours doit être indiqué
A44: =Text!C50 -> (besoin de chaleur hiver = besoin de chaleur annuel x jours chauffées / 365 jours)
B45: =B46 -> Relevé de situation V37
A46: =Text!C52 -> Champs a remplir | B46: =Text!C36 -> Relevé de situation V37
B47: =Text!C37 -> Format de fichier: .xlsm
A49: =Text!C19 -> Langue
A52: Hilfswerte | C52: =IF(C22="","",ROUND((C24+C28+C30)/('Allgemeine Angaben'!$C$15-Verbraucher!C22),3)) -> 28.571 | D52: =IF(D22="","",ROUND((D24+D28+D30)/('Allgemeine Angaben'!$C$15-Verbraucher!D22),3)) -> 20 | E52: =IF(E22="","",ROUND((E24+E28+E30)/('Allgemeine Angaben'!$C$15-Verbraucher!E22),3)) -> 4.4 | F52: =IF(F22="","",ROUND((F24+F28+F30)/('Allgemeine Angaben'!$C$15-Verbraucher!F22),3)) -> 0.227 | G52: =IF(G22="","",ROUND((G24+G28+G30)/('Allgemeine Angaben'!$C$15-Verbraucher!G22),3)) ->  | H52: =IF(H22="","",ROUND((H24+H28+H30)/('Allgemeine Angaben'!$C$15-Verbraucher!H22),3)) ->  | I52: =IF(I22="","",ROUND((I24+I28+I30)/('Allgemeine Angaben'!$C$15-Verbraucher!I22),3)) ->  | J52: =IF(J22="","",ROUND((J24+J28+J30)/('Allgemeine Angaben'!$C$15-Verbraucher!J22),3)) ->  | K52: =IF(K22="","",ROUND((K24+K28+K30)/('Allgemeine Angaben'!$C$15-Verbraucher!K22),3)) ->  | L52: =IF(L22="","",ROUND((L24+L28+L30)/('Allgemeine Angaben'!$C$15-Verbraucher!L22),3)) ->  | M52: =IF(M22="","",ROUND((M24+M28+M30)/('Allgemeine Angaben'!$C$15-Verbraucher!M22),3)) ->  | N52: =IF(N22="","",ROUND((N24+N28+N30)/('Allgemeine Angaben'!$C$15-Verbraucher!N22),3)) ->  | O52: =IF(O22="","",ROUND((O24+O28+O30)/('Allgemeine Angaben'!$C$15-Verbraucher!O22),3)) ->  | P52: =IF(P22="","",ROUND((P24+P28+P30)/('Allgemeine Angaben'!$C$15-Verbraucher!P22),3)) ->  | Q52: =IF(Q22="","",ROUND((Q24+Q28+Q30)/('Allgemeine Angaben'!$C$15-Verbraucher!Q22),3)) ->  | R52: =IF(R22="","",ROUND((R24+R28+R30)/('Allgemeine Angaben'!$C$15-Verbraucher!R22),3)) ->  | S52: =IF(S22="","",ROUND((S24+S28+S30)/('Allgemeine Angaben'!$C$15-Verbraucher!S22),3)) ->  | T52: =IF(T22="","",ROUND((T24+T28+T30)/('Allgemeine Angaben'!$C$15-Verbraucher!T22),3)) ->  | U52: =IF(U22="","",ROUND((U24+U28+U30)/('Allgemeine Angaben'!$C$15-Verbraucher!U22),3)) ->  | V52: =IF(V22="","",ROUND((V24+V28+V30)/('Allgemeine Angaben'!$C$15-Verbraucher!V22),3)) ->  | W52: =IF(W22="","",ROUND((W24+W28+W30)/('Allgemeine Angaben'!$C$15-Verbraucher!W22),3)) ->  | X52: =IF(X22="","",ROUND((X24+X28+X30)/('Allgemeine Angaben'!$C$15-Verbraucher!X22),3)) ->  | Y52: =IF(Y22="","",ROUND((Y24+Y28+Y30)/('Allgemeine Angaben'!$C$15-Verbraucher!Y22),3)) ->  | Z52: =IF(Z22="","",ROUND((Z24+Z28+Z30)/('Allgemeine Angaben'!$C$15-Verbraucher!Z22),3)) ->  | AA52: =IF(AA22="","",ROUND((AA24+AA28+AA30)/('Allgemeine Angaben'!$C$15-Verbraucher!AA22),3)) ->  | AB52: =IF(AB22="","",ROUND((AB24+AB28+AB30)/('Allgemeine Angaben'!$C$15-Verbraucher!AB22),3)) ->  | AC52: =IF(AC22="","",ROUND((AC24+AC28+AC30)/('Allgemeine Angaben'!$C$15-Verbraucher!AC22),3)) ->  | AD52: =IF(AD22="","",ROUND((AD24+AD28+AD30)/('Allgemeine Angaben'!$C$15-Verbraucher!AD22),3)) ->  | AE52: =IF(AE22="","",ROUND((AE24+AE28+AE30)/('Allgemeine Angaben'!$C$15-Verbraucher!AE22),3)) ->  | AF52: =IF(AF22="","",ROUND((AF24+AF28+AF30)/('Allgemeine Angaben'!$C$15-Verbraucher!AF22),3)) ->  | AG52: =IF(AG22="","",ROUND((AG24+AG28+AG30)/('Allgemeine Angaben'!$C$15-Verbraucher!AG22),3)) ->  | AH52: =IF(AH22="","",ROUND((AH24+AH28+AH30)/('Allgemeine Angaben'!$C$15-Verbraucher!AH22),3)) ->  | AI52: =IF(AI22="","",ROUND((AI24+AI28+AI30)/('Allgemeine Angaben'!$C$15-Verbraucher!AI22),3)) ->  | AJ52: =IF(AJ22="","",ROUND((AJ24+AJ28+AJ30)/('Allgemeine Angaben'!$C$15-Verbraucher!AJ22),3)) ->  | AK52: =IF(AK22="","",ROUND((AK24+AK28+AK30)/('Allgemeine Angaben'!$C$15-Verbraucher!AK22),3)) ->  | AL52: =IF(AL22="","",ROUND((AL24+AL28+AL30)/('Allgemeine Angaben'!$C$15-Verbraucher!AL22),3)) ->  | AM52: =IF(AM22="","",ROUND((AM24+AM28+AM30)/('Allgemeine Angaben'!$C$15-Verbraucher!AM22),3)) ->  | AN52: =IF(AN22="","",ROUND((AN24+AN28+AN30)/('Allgemeine Angaben'!$C$15-Verbraucher!AN22),3)) ->  | AO52: =IF(AO22="","",ROUND((AO24+AO28+AO30)/('Allgemeine Angaben'!$C$15-Verbraucher!AO22),3)) ->  | AP52: =IF(AP22="","",ROUND((AP24+AP28+AP30)/('Allgemeine Angaben'!$C$15-Verbraucher!AP22),3)) ->  | AQ52: =IF(AQ22="","",ROUND((AQ24+AQ28+AQ30)/('Allgemeine Angaben'!$C$15-Verbraucher!AQ22),3)) ->  | AR52: =IF(AR22="","",ROUND((AR24+AR28+AR30)/('Allgemeine Angaben'!$C$15-Verbraucher!AR22),3)) ->  | AS52: =IF(AS22="","",ROUND((AS24+AS28+AS30)/('Allgemeine Angaben'!$C$15-Verbraucher!AS22),3)) ->  | AT52: =IF(AT22="","",ROUND((AT24+AT28+AT30)/('Allgemeine Angaben'!$C$15-Verbraucher!AT22),3)) ->  | AU52: =IF(AU22="","",ROUND((AU24+AU28+AU30)/('Allgemeine Angaben'!$C$15-Verbraucher!AU22),3)) ->  | AV52: =IF(AV22="","",ROUND((AV24+AV28+AV30)/('Allgemeine Angaben'!$C$15-Verbraucher!AV22),3)) ->  | AW52: =IF(AW22="","",ROUND((AW24+AW28+AW30)/('Allgemeine Angaben'!$C$15-Verbraucher!AW22),3)) ->  | AX52: =IF(AX22="","",ROUND((AX24+AX28+AX30)/('Allgemeine Angaben'!$C$15-Verbraucher!AX22),3)) ->  | AY52: =IF(AY22="","",ROUND((AY24+AY28+AY30)/('Allgemeine Angaben'!$C$15-Verbraucher!AY22),3)) ->  | AZ52: =IF(AZ22="","",ROUND((AZ24+AZ28+AZ30)/('Allgemeine Angaben'!$C$15-Verbraucher!AZ22),3)) ->  | BA52: =IF(BA22="","",ROUND((BA24+BA28+BA30)/('Allgemeine Angaben'!$C$15-Verbraucher!BA22),3)) ->  | BB52: =IF(BB22="","",ROUND((BB24+BB28+BB30)/('Allgemeine Angaben'!$C$15-Verbraucher!BB22),3)) ->  | BC52: =IF(BC22="","",ROUND((BC24+BC28+BC30)/('Allgemeine Angaben'!$C$15-Verbraucher!BC22),3)) ->  | BD52: =IF(BD22="","",ROUND((BD24+BD28+BD30)/('Allgemeine Angaben'!$C$15-Verbraucher!BD22),3)) ->  | BE52: =IF(BE22="","",ROUND((BE24+BE28+BE30)/('Allgemeine Angaben'!$C$15-Verbraucher!BE22),3)) ->  | BF52: =IF(BF22="","",ROUND((BF24+BF28+BF30)/('Allgemeine Angaben'!$C$15-Verbraucher!BF22),3)) ->  | BG52: =IF(BG22="","",ROUND((BG24+BG28+BG30)/('Allgemeine Angaben'!$C$15-Verbraucher!BG22),3)) ->  | BH52: =IF(BH22="","",ROUND((BH24+BH28+BH30)/('Allgemeine Angaben'!$C$15-Verbraucher!BH22),3)) ->  | BI52: =IF(BI22="","",ROUND((BI24+BI28+BI30)/('Allgemeine Angaben'!$C$15-Verbraucher!BI22),3)) ->  | BJ52: =IF(BJ22="","",ROUND((BJ24+BJ28+BJ30)/('Allgemeine Angaben'!$C$15-Verbraucher!BJ22),3)) ->  | BK52: =IF(BK22="","",ROUND((BK24+BK28+BK30)/('Allgemeine Angaben'!$C$15-Verbraucher!BK22),3)) ->  | BL52: =IF(BL22="","",ROUND((BL24+BL28+BL30)/('Allgemeine Angaben'!$C$15-Verbraucher!BL22),3)) ->  | BM52: =IF(BM22="","",ROUND((BM24+BM28+BM30)/('Allgemeine Angaben'!$C$15-Verbraucher!BM22),3)) ->  | BN52: =IF(BN22="","",ROUND((BN24+BN28+BN30)/('Allgemeine Angaben'!$C$15-Verbraucher!BN22),3)) ->  | BO52: =IF(BO22="","",ROUND((BO24+BO28+BO30)/('Allgemeine Angaben'!$C$15-Verbraucher!BO22),3)) ->  | BP52: =IF(BP22="","",ROUND((BP24+BP28+BP30)/('Allgemeine Angaben'!$C$15-Verbraucher!BP22),3)) ->  | BQ52: =IF(BQ22="","",ROUND((BQ24+BQ28+BQ30)/('Allgemeine Angaben'!$C$15-Verbraucher!BQ22),3)) ->  | BR52: =IF(BR22="","",ROUND((BR24+BR28+BR30)/('Allgemeine Angaben'!$C$15-Verbraucher!BR22),3)) ->  | BS52: =IF(BS22="","",ROUND((BS24+BS28+BS30)/('Allgemeine Angaben'!$C$15-Verbraucher!BS22),3)) ->  | BT52: =IF(BT22="","",ROUND((BT24+BT28+BT30)/('Allgemeine Angaben'!$C$15-Verbraucher!BT22),3)) ->  | BU52: =IF(BU22="","",ROUND((BU24+BU28+BU30)/('Allgemeine Angaben'!$C$15-Verbraucher!BU22),3)) ->  | BV52: =IF(BV22="","",ROUND((BV24+BV28+BV30)/('Allgemeine Angaben'!$C$15-Verbraucher!BV22),3)) ->  | BW52: =IF(BW22="","",ROUND((BW24+BW28+BW30)/('Allgemeine Angaben'!$C$15-Verbraucher!BW22),3)) ->  | BX52: =IF(BX22="","",ROUND((BX24+BX28+BX30)/('Allgemeine Angaben'!$C$15-Verbraucher!BX22),3)) ->  | BY52: =IF(BY22="","",ROUND((BY24+BY28+BY30)/('Allgemeine Angaben'!$C$15-Verbraucher!BY22),3)) ->  | BZ52: =IF(BZ22="","",ROUND((BZ24+BZ28+BZ30)/('Allgemeine Angaben'!$C$15-Verbraucher!BZ22),3)) ->  | CA52: =IF(CA22="","",ROUND((CA24+CA28+CA30)/('Allgemeine Angaben'!$C$15-Verbraucher!CA22),3)) ->  | CB52: =IF(CB22="","",ROUND((CB24+CB28+CB30)/('Allgemeine Angaben'!$C$15-Verbraucher!CB22),3)) ->  | CC52: =IF(CC22="","",ROUND((CC24+CC28+CC30)/('Allgemeine Angaben'!$C$15-Verbraucher!CC22),3)) ->  | CD52: =IF(CD22="","",ROUND((CD24+CD28+CD30)/('Allgemeine Angaben'!$C$15-Verbraucher!CD22),3)) ->  | CE52: =IF(CE22="","",ROUND((CE24+CE28+CE30)/('Allgemeine Angaben'!$C$15-Verbraucher!CE22),3)) ->  | CF52: =IF(CF22="","",ROUND((CF24+CF28+CF30)/('Allgemeine Angaben'!$C$15-Verbraucher!CF22),3)) ->  | CG52: =IF(CG22="","",ROUND((CG24+CG28+CG30)/('Allgemeine Angaben'!$C$15-Verbraucher!CG22),3)) ->  | CH52: =IF(CH22="","",ROUND((CH24+CH28+CH30)/('Allgemeine Angaben'!$C$15-Verbraucher!CH22),3)) ->  | CI52: =IF(CI22="","",ROUND((CI24+CI28+CI30)/('Allgemeine Angaben'!$C$15-Verbraucher!CI22),3)) ->  | CJ52: =IF(CJ22="","",ROUND((CJ24+CJ28+CJ30)/('Allgemeine Angaben'!$C$15-Verbraucher!CJ22),3)) ->  | CK52: =IF(CK22="","",ROUND((CK24+CK28+CK30)/('Allgemeine Angaben'!$C$15-Verbraucher!CK22),3)) ->  | CL52: =IF(CL22="","",ROUND((CL24+CL28+CL30)/('Allgemeine Angaben'!$C$15-Verbraucher!CL22),3)) ->  | CM52: =IF(CM22="","",ROUND((CM24+CM28+CM30)/('Allgemeine Angaben'!$C$15-Verbraucher!CM22),3)) ->  | CN52: =IF(CN22="","",ROUND((CN24+CN28+CN30)/('Allgemeine Angaben'!$C$15-Verbraucher!CN22),3)) ->  | CO52: =IF(CO22="","",ROUND((CO24+CO28+CO30)/('Allgemeine Angaben'!$C$15-Verbraucher!CO22),3)) ->  | CP52: =IF(CP22="","",ROUND((CP24+CP28+CP30)/('Allgemeine Angaben'!$C$15-Verbraucher!CP22),3)) ->  | CQ52: =IF(CQ22="","",ROUND((CQ24+CQ28+CQ30)/('Allgemeine Angaben'!$C$15-Verbraucher!CQ22),3)) ->  | CR52: =IF(CR22="","",ROUND((CR24+CR28+CR30)/('Allgemeine Angaben'!$C$15-Verbraucher!CR22),3)) ->  | CS52: =IF(CS22="","",ROUND((CS24+CS28+CS30)/('Allgemeine Angaben'!$C$15-Verbraucher!CS22),3)) ->  | CT52: =IF(CT22="","",ROUND((CT24+CT28+CT30)/('Allgemeine Angaben'!$C$15-Verbraucher!CT22),3)) ->  | CU52: =IF(CU22="","",ROUND((CU24+CU28+CU30)/('Allgemeine Angaben'!$C$15-Verbraucher!CU22),3)) ->  | CV52: =IF(CV22="","",ROUND((CV24+CV28+CV30)/('Allgemeine Angaben'!$C$15-Verbraucher!CV22),3)) ->  | CW52: =IF(CW22="","",ROUND((CW24+CW28+CW30)/('Allgemeine Angaben'!$C$15-Verbraucher!CW22),3)) ->  | CX52: =IF(CX22="","",ROUND((CX24+CX28+CX30)/('Allgemeine Angaben'!$C$15-Verbraucher!CX22),3)) ->  | CY52: =IF(CY22="","",ROUND((CY24+CY28+CY30)/('Allgemeine Angaben'!$C$15-Verbraucher!CY22),3)) ->  | CZ52: =IF(CZ22="","",ROUND((CZ24+CZ28+CZ30)/('Allgemeine Angaben'!$C$15-Verbraucher!CZ22),3)) ->  | DA52: =IF(DA22="","",ROUND((DA24+DA28+DA30)/('Allgemeine Angaben'!$C$15-Verbraucher!DA22),3)) ->  | DB52: =IF(DB22="","",ROUND((DB24+DB28+DB30)/('Allgemeine Angaben'!$C$15-Verbraucher!DB22),3)) ->  | DC52: =IF(DC22="","",ROUND((DC24+DC28+DC30)/('Allgemeine Angaben'!$C$15-Verbraucher!DC22),3)) ->  | DD52: =IF(DD22="","",ROUND((DD24+DD28+DD30)/('Allgemeine Angaben'!$C$15-Verbraucher!DD22),3)) ->  | DE52: =IF(DE22="","",ROUND((DE24+DE28+DE30)/('Allgemeine Angaben'!$C$15-Verbraucher!DE22),3)) ->  | DF52: =IF(DF22="","",ROUND((DF24+DF28+DF30)/('Allgemeine Angaben'!$C$15-Verbraucher!DF22),3)) ->  | DG52: =IF(DG22="","",ROUND((DG24+DG28+DG30)/('Allgemeine Angaben'!$C$15-Verbraucher!DG22),3)) ->  | DH52: =IF(DH22="","",ROUND((DH24+DH28+DH30)/('Allgemeine Angaben'!$C$15-Verbraucher!DH22),3)) ->  | DI52: =IF(DI22="","",ROUND((DI24+DI28+DI30)/('Allgemeine Angaben'!$C$15-Verbraucher!DI22),3)) ->  | DJ52: =IF(DJ22="","",ROUND((DJ24+DJ28+DJ30)/('Allgemeine Angaben'!$C$15-Verbraucher!DJ22),3)) ->  | DK52: =IF(DK22="","",ROUND((DK24+DK28+DK30)/('Allgemeine Angaben'!$C$15-Verbraucher!DK22),3)) ->  | DL52: =IF(DL22="","",ROUND((DL24+DL28+DL30)/('Allgemeine Angaben'!$C$15-Verbraucher!DL22),3)) ->  | DM52: =IF(DM22="","",ROUND((DM24+DM28+DM30)/('Allgemeine Angaben'!$C$15-Verbraucher!DM22),3)) ->  | DN52: =IF(DN22="","",ROUND((DN24+DN28+DN30)/('Allgemeine Angaben'!$C$15-Verbraucher!DN22),3)) ->  | DO52: =IF(DO22="","",ROUND((DO24+DO28+DO30)/('Allgemeine Angaben'!$C$15-Verbraucher!DO22),3)) ->  | DP52: =IF(DP22="","",ROUND((DP24+DP28+DP30)/('Allgemeine Angaben'!$C$15-Verbraucher!DP22),3)) ->  | DQ52: =IF(DQ22="","",ROUND((DQ24+DQ28+DQ30)/('Allgemeine Angaben'!$C$15-Verbraucher!DQ22),3)) ->  | DR52: =IF(DR22="","",ROUND((DR24+DR28+DR30)/('Allgemeine Angaben'!$C$15-Verbraucher!DR22),3)) ->  | DS52: =IF(DS22="","",ROUND((DS24+DS28+DS30)/('Allgemeine Angaben'!$C$15-Verbraucher!DS22),3)) ->  | DT52: =IF(DT22="","",ROUND((DT24+DT28+DT30)/('Allgemeine Angaben'!$C$15-Verbraucher!DT22),3)) ->  | DU52: =IF(DU22="","",ROUND((DU24+DU28+DU30)/('Allgemeine Angaben'!$C$15-Verbraucher!DU22),3)) ->  | DV52: =IF(DV22="","",ROUND((DV24+DV28+DV30)/('Allgemeine Angaben'!$C$15-Verbraucher!DV22),3)) ->  | DW52: =IF(DW22="","",ROUND((DW24+DW28+DW30)/('Allgemeine Angaben'!$C$15-Verbraucher!DW22),3)) ->  | DX52: =IF(DX22="","",ROUND((DX24+DX28+DX30)/('Allgemeine Angaben'!$C$15-Verbraucher!DX22),3)) ->  | DY52: =IF(DY22="","",ROUND((DY24+DY28+DY30)/('Allgemeine Angaben'!$C$15-Verbraucher!DY22),3)) ->  | DZ52: =IF(DZ22="","",ROUND((DZ24+DZ28+DZ30)/('Allgemeine Angaben'!$C$15-Verbraucher!DZ22),3)) ->  | EA52: =IF(EA22="","",ROUND((EA24+EA28+EA30)/('Allgemeine Angaben'!$C$15-Verbraucher!EA22),3)) ->  | EB52: =IF(EB22="","",ROUND((EB24+EB28+EB30)/('Allgemeine Angaben'!$C$15-Verbraucher!EB22),3)) ->  | EC52: =IF(EC22="","",ROUND((EC24+EC28+EC30)/('Allgemeine Angaben'!$C$15-Verbraucher!EC22),3)) ->  | ED52: =IF(ED22="","",ROUND((ED24+ED28+ED30)/('Allgemeine Angaben'!$C$15-Verbraucher!ED22),3)) ->  | EE52: =IF(EE22="","",ROUND((EE24+EE28+EE30)/('Allgemeine Angaben'!$C$15-Verbraucher!EE22),3)) ->  | EF52: =IF(EF22="","",ROUND((EF24+EF28+EF30)/('Allgemeine Angaben'!$C$15-Verbraucher!EF22),3)) ->  | EG52: =IF(EG22="","",ROUND((EG24+EG28+EG30)/('Allgemeine Angaben'!$C$15-Verbraucher!EG22),3)) ->  | EH52: =IF(EH22="","",ROUND((EH24+EH28+EH30)/('Allgemeine Angaben'!$C$15-Verbraucher!EH22),3)) ->  | EI52: =IF(EI22="","",ROUND((EI24+EI28+EI30)/('Allgemeine Angaben'!$C$15-Verbraucher!EI22),3)) ->  | EJ52: =IF(EJ22="","",ROUND((EJ24+EJ28+EJ30)/('Allgemeine Angaben'!$C$15-Verbraucher!EJ22),3)) ->  | EK52: =IF(EK22="","",ROUND((EK24+EK28+EK30)/('Allgemeine Angaben'!$C$15-Verbraucher!EK22),3)) ->  | EL52: =IF(EL22="","",ROUND((EL24+EL28+EL30)/('Allgemeine Angaben'!$C$15-Verbraucher!EL22),3)) ->  | EM52: =IF(EM22="","",ROUND((EM24+EM28+EM30)/('Allgemeine Angaben'!$C$15-Verbraucher!EM22),3)) ->  | EN52: =IF(EN22="","",ROUND((EN24+EN28+EN30)/('Allgemeine Angaben'!$C$15-Verbraucher!EN22),3)) ->  | EO52: =IF(EO22="","",ROUND((EO24+EO28+EO30)/('Allgemeine Angaben'!$C$15-Verbraucher!EO22),3)) ->  | EP52: =IF(EP22="","",ROUND((EP24+EP28+EP30)/('Allgemeine Angaben'!$C$15-Verbraucher!EP22),3)) ->  | EQ52: =IF(EQ22="","",ROUND((EQ24+EQ28+EQ30)/('Allgemeine Angaben'!$C$15-Verbraucher!EQ22),3)) ->  | ER52: =IF(ER22="","",ROUND((ER24+ER28+ER30)/('Allgemeine Angaben'!$C$15-Verbraucher!ER22),3)) ->  | ES52: =IF(ES22="","",ROUND((ES24+ES28+ES30)/('Allgemeine Angaben'!$C$15-Verbraucher!ES22),3)) ->  | ET52: =IF(ET22="","",ROUND((ET24+ET28+ET30)/('Allgemeine Angaben'!$C$15-Verbraucher!ET22),3)) ->  | EU52: =IF(EU22="","",ROUND((EU24+EU28+EU30)/('Allgemeine Angaben'!$C$15-Verbraucher!EU22),3)) ->  | EV52: =IF(EV22="","",ROUND((EV24+EV28+EV30)/('Allgemeine Angaben'!$C$15-Verbraucher!EV22),3)) ->  | EW52: =IF(EW22="","",ROUND((EW24+EW28+EW30)/('Allgemeine Angaben'!$C$15-Verbraucher!EW22),3)) ->  | EX52: =IF(EX22="","",ROUND((EX24+EX28+EX30)/('Allgemeine Angaben'!$C$15-Verbraucher!EX22),3)) ->  | EY52: =IF(EY22="","",ROUND((EY24+EY28+EY30)/('Allgemeine Angaben'!$C$15-Verbraucher!EY22),3)) ->  | EZ52: =IF(EZ22="","",ROUND((EZ24+EZ28+EZ30)/('Allgemeine Angaben'!$C$15-Verbraucher!EZ22),3)) ->  | FA52: =IF(FA22="","",ROUND((FA24+FA28+FA30)/('Allgemeine Angaben'!$C$15-Verbraucher!FA22),3)) ->  | FB52: =IF(FB22="","",ROUND((FB24+FB28+FB30)/('Allgemeine Angaben'!$C$15-Verbraucher!FB22),3)) ->  | FC52: =IF(FC22="","",ROUND((FC24+FC28+FC30)/('Allgemeine Angaben'!$C$15-Verbraucher!FC22),3)) ->  | FD52: =IF(FD22="","",ROUND((FD24+FD28+FD30)/('Allgemeine Angaben'!$C$15-Verbraucher!FD22),3)) ->  | FE52: =IF(FE22="","",ROUND((FE24+FE28+FE30)/('Allgemeine Angaben'!$C$15-Verbraucher!FE22),3)) ->  | FF52: =IF(FF22="","",ROUND((FF24+FF28+FF30)/('Allgemeine Angaben'!$C$15-Verbraucher!FF22),3)) ->  | FG52: =IF(FG22="","",ROUND((FG24+FG28+FG30)/('Allgemeine Angaben'!$C$15-Verbraucher!FG22),3)) ->  | FH52: =IF(FH22="","",ROUND((FH24+FH28+FH30)/('Allgemeine Angaben'!$C$15-Verbraucher!FH22),3)) ->  | FI52: =IF(FI22="","",ROUND((FI24+FI28+FI30)/('Allgemeine Angaben'!$C$15-Verbraucher!FI22),3)) ->  | FJ52: =IF(FJ22="","",ROUND((FJ24+FJ28+FJ30)/('Allgemeine Angaben'!$C$15-Verbraucher!FJ22),3)) ->  | FK52: =IF(FK22="","",ROUND((FK24+FK28+FK30)/('Allgemeine Angaben'!$C$15-Verbraucher!FK22),3)) ->  | FL52: =IF(FL22="","",ROUND((FL24+FL28+FL30)/('Allgemeine Angaben'!$C$15-Verbraucher!FL22),3)) ->  | FM52: =IF(FM22="","",ROUND((FM24+FM28+FM30)/('Allgemeine Angaben'!$C$15-Verbraucher!FM22),3)) ->  | FN52: =IF(FN22="","",ROUND((FN24+FN28+FN30)/('Allgemeine Angaben'!$C$15-Verbraucher!FN22),3)) ->  | FO52: =IF(FO22="","",ROUND((FO24+FO28+FO30)/('Allgemeine Angaben'!$C$15-Verbraucher!FO22),3)) ->  | FP52: =IF(FP22="","",ROUND((FP24+FP28+FP30)/('Allgemeine Angaben'!$C$15-Verbraucher!FP22),3)) ->  | FQ52: =IF(FQ22="","",ROUND((FQ24+FQ28+FQ30)/('Allgemeine Angaben'!$C$15-Verbraucher!FQ22),3)) ->  | FR52: =IF(FR22="","",ROUND((FR24+FR28+FR30)/('Allgemeine Angaben'!$C$15-Verbraucher!FR22),3)) ->  | FS52: =IF(FS22="","",ROUND((FS24+FS28+FS30)/('Allgemeine Angaben'!$C$15-Verbraucher!FS22),3)) ->  | FT52: =IF(FT22="","",ROUND((FT24+FT28+FT30)/('Allgemeine Angaben'!$C$15-Verbraucher!FT22),3)) ->  | FU52: =IF(FU22="","",ROUND((FU24+FU28+FU30)/('Allgemeine Angaben'!$C$15-Verbraucher!FU22),3)) ->  | FV52: =IF(FV22="","",ROUND((FV24+FV28+FV30)/('Allgemeine Angaben'!$C$15-Verbraucher!FV22),3)) ->  | FW52: =IF(FW22="","",ROUND((FW24+FW28+FW30)/('Allgemeine Angaben'!$C$15-Verbraucher!FW22),3)) ->  | FX52: =IF(FX22="","",ROUND((FX24+FX28+FX30)/('Allgemeine Angaben'!$C$15-Verbraucher!FX22),3)) ->  | FY52: =IF(FY22="","",ROUND((FY24+FY28+FY30)/('Allgemeine Angaben'!$C$15-Verbraucher!FY22),3)) ->  | FZ52: =IF(FZ22="","",ROUND((FZ24+FZ28+FZ30)/('Allgemeine Angaben'!$C$15-Verbraucher!FZ22),3)) ->  | GA52: =IF(GA22="","",ROUND((GA24+GA28+GA30)/('Allgemeine Angaben'!$C$15-Verbraucher!GA22),3)) ->  | GB52: =IF(GB22="","",ROUND((GB24+GB28+GB30)/('Allgemeine Angaben'!$C$15-Verbraucher!GB22),3)) ->  | GC52: =IF(GC22="","",ROUND((GC24+GC28+GC30)/('Allgemeine Angaben'!$C$15-Verbraucher!GC22),3)) ->  | GD52: =IF(GD22="","",ROUND((GD24+GD28+GD30)/('Allgemeine Angaben'!$C$15-Verbraucher!GD22),3)) ->  | GE52: =IF(GE22="","",ROUND((GE24+GE28+GE30)/('Allgemeine Angaben'!$C$15-Verbraucher!GE22),3)) ->  | GF52: =IF(GF22="","",ROUND((GF24+GF28+GF30)/('Allgemeine Angaben'!$C$15-Verbraucher!GF22),3)) ->  | GG52: =IF(GG22="","",ROUND((GG24+GG28+GG30)/('Allgemeine Angaben'!$C$15-Verbraucher!GG22),3)) ->  | GH52: =IF(GH22="","",ROUND((GH24+GH28+GH30)/('Allgemeine Angaben'!$C$15-Verbraucher!GH22),3)) ->  | GI52: =IF(GI22="","",ROUND((GI24+GI28+GI30)/('Allgemeine Angaben'!$C$15-Verbraucher!GI22),3)) ->  | GJ52: =IF(GJ22="","",ROUND((GJ24+GJ28+GJ30)/('Allgemeine Angaben'!$C$15-Verbraucher!GJ22),3)) ->  | GK52: =IF(GK22="","",ROUND((GK24+GK28+GK30)/('Allgemeine Angaben'!$C$15-Verbraucher!GK22),3)) ->  | GL52: =IF(GL22="","",ROUND((GL24+GL28+GL30)/('Allgemeine Angaben'!$C$15-Verbraucher!GL22),3)) ->  | GM52: =IF(GM22="","",ROUND((GM24+GM28+GM30)/('Allgemeine Angaben'!$C$15-Verbraucher!GM22),3)) ->  | GN52: =IF(GN22="","",ROUND((GN24+GN28+GN30)/('Allgemeine Angaben'!$C$15-Verbraucher!GN22),3)) ->  | GO52: =IF(GO22="","",ROUND((GO24+GO28+GO30)/('Allgemeine Angaben'!$C$15-Verbraucher!GO22),3)) ->  | GP52: =IF(GP22="","",ROUND((GP24+GP28+GP30)/('Allgemeine Angaben'!$C$15-Verbraucher!GP22),3)) ->  | GQ52: =IF(GQ22="","",ROUND((GQ24+GQ28+GQ30)/('Allgemeine Angaben'!$C$15-Verbraucher!GQ22),3)) ->  | GR52: =IF(GR22="","",ROUND((GR24+GR28+GR30)/('Allgemeine Angaben'!$C$15-Verbraucher!GR22),3)) ->  | GS52: =IF(GS22="","",ROUND((GS24+GS28+GS30)/('Allgemeine Angaben'!$C$15-Verbraucher!GS22),3)) ->  | GT52: =IF(GT22="","",ROUND((GT24+GT28+GT30)/('Allgemeine Angaben'!$C$15-Verbraucher!GT22),3)) ->  | GU52: =IF(GU22="","",ROUND((GU24+GU28+GU30)/('Allgemeine Angaben'!$C$15-Verbraucher!GU22),3)) ->  | GV52: =IF(GV22="","",ROUND((GV24+GV28+GV30)/('Allgemeine Angaben'!$C$15-Verbraucher!GV22),3)) ->  | GW52: =IF(GW22="","",ROUND((GW24+GW28+GW30)/('Allgemeine Angaben'!$C$15-Verbraucher!GW22),3)) ->  | GX52: =IF(GX22="","",ROUND((GX24+GX28+GX30)/('Allgemeine Angaben'!$C$15-Verbraucher!GX22),3)) ->  | GY52: =IF(GY22="","",ROUND((GY24+GY28+GY30)/('Allgemeine Angaben'!$C$15-Verbraucher!GY22),3)) ->  | GZ52: =IF(GZ22="","",ROUND((GZ24+GZ28+GZ30)/('Allgemeine Angaben'!$C$15-Verbraucher!GZ22),3)) ->  | HA52: =IF(HA22="","",ROUND((HA24+HA28+HA30)/('Allgemeine Angaben'!$C$15-Verbraucher!HA22),3)) ->  | HB52: =IF(HB22="","",ROUND((HB24+HB28+HB30)/('Allgemeine Angaben'!$C$15-Verbraucher!HB22),3)) ->  | HC52: =IF(HC22="","",ROUND((HC24+HC28+HC30)/('Allgemeine Angaben'!$C$15-Verbraucher!HC22),3)) ->  | HD52: =IF(HD22="","",ROUND((HD24+HD28+HD30)/('Allgemeine Angaben'!$C$15-Verbraucher!HD22),3)) ->  | HE52: =IF(HE22="","",ROUND((HE24+HE28+HE30)/('Allgemeine Angaben'!$C$15-Verbraucher!HE22),3)) ->  | HF52: =IF(HF22="","",ROUND((HF24+HF28+HF30)/('Allgemeine Angaben'!$C$15-Verbraucher!HF22),3)) ->  | HG52: =IF(HG22="","",ROUND((HG24+HG28+HG30)/('Allgemeine Angaben'!$C$15-Verbraucher!HG22),3)) ->  | HH52: =IF(HH22="","",ROUND((HH24+HH28+HH30)/('Allgemeine Angaben'!$C$15-Verbraucher!HH22),3)) ->  | HI52: =IF(HI22="","",ROUND((HI24+HI28+HI30)/('Allgemeine Angaben'!$C$15-Verbraucher!HI22),3)) ->  | HJ52: =IF(HJ22="","",ROUND((HJ24+HJ28+HJ30)/('Allgemeine Angaben'!$C$15-Verbraucher!HJ22),3)) ->  | HK52: =IF(HK22="","",ROUND((HK24+HK28+HK30)/('Allgemeine Angaben'!$C$15-Verbraucher!HK22),3)) ->  | HL52: =IF(HL22="","",ROUND((HL24+HL28+HL30)/('Allgemeine Angaben'!$C$15-Verbraucher!HL22),3)) ->  | HM52: =IF(HM22="","",ROUND((HM24+HM28+HM30)/('Allgemeine Angaben'!$C$15-Verbraucher!HM22),3)) ->  | HN52: =IF(HN22="","",ROUND((HN24+HN28+HN30)/('Allgemeine Angaben'!$C$15-Verbraucher!HN22),3)) ->  | HO52: =IF(HO22="","",ROUND((HO24+HO28+HO30)/('Allgemeine Angaben'!$C$15-Verbraucher!HO22),3)) ->  | HP52: =IF(HP22="","",ROUND((HP24+HP28+HP30)/('Allgemeine Angaben'!$C$15-Verbraucher!HP22),3)) ->  | HQ52: =IF(HQ22="","",ROUND((HQ24+HQ28+HQ30)/('Allgemeine Angaben'!$C$15-Verbraucher!HQ22),3)) ->  | HR52: =IF(HR22="","",ROUND((HR24+HR28+HR30)/('Allgemeine Angaben'!$C$15-Verbraucher!HR22),3)) ->  | HS52: =IF(HS22="","",ROUND((HS24+HS28+HS30)/('Allgemeine Angaben'!$C$15-Verbraucher!HS22),3)) ->  | HT52: =IF(HT22="","",ROUND((HT24+HT28+HT30)/('Allgemeine Angaben'!$C$15-Verbraucher!HT22),3)) ->  | HU52: =IF(HU22="","",ROUND((HU24+HU28+HU30)/('Allgemeine Angaben'!$C$15-Verbraucher!HU22),3)) ->  | HV52: =IF(HV22="","",ROUND((HV24+HV28+HV30)/('Allgemeine Angaben'!$C$15-Verbraucher!HV22),3)) ->  | HW52: =IF(HW22="","",ROUND((HW24+HW28+HW30)/('Allgemeine Angaben'!$C$15-Verbraucher!HW22),3)) ->  | HX52: =IF(HX22="","",ROUND((HX24+HX28+HX30)/('Allgemeine Angaben'!$C$15-Verbraucher!HX22),3)) ->  | HY52: =IF(HY22="","",ROUND((HY24+HY28+HY30)/('Allgemeine Angaben'!$C$15-Verbraucher!HY22),3)) ->  | HZ52: =IF(HZ22="","",ROUND((HZ24+HZ28+HZ30)/('Allgemeine Angaben'!$C$15-Verbraucher!HZ22),3)) ->  | IA52: =IF(IA22="","",ROUND((IA24+IA28+IA30)/('Allgemeine Angaben'!$C$15-Verbraucher!IA22),3)) ->  | IB52: =IF(IB22="","",ROUND((IB24+IB28+IB30)/('Allgemeine Angaben'!$C$15-Verbraucher!IB22),3)) ->  | IC52: =IF(IC22="","",ROUND((IC24+IC28+IC30)/('Allgemeine Angaben'!$C$15-Verbraucher!IC22),3)) ->  | ID52: =IF(ID22="","",ROUND((ID24+ID28+ID30)/('Allgemeine Angaben'!$C$15-Verbraucher!ID22),3)) ->  | IE52: =IF(IE22="","",ROUND((IE24+IE28+IE30)/('Allgemeine Angaben'!$C$15-Verbraucher!IE22),3)) ->  | IF52: =IF(IF22="","",ROUND((IF24+IF28+IF30)/('Allgemeine Angaben'!$C$15-Verbraucher!IF22),3)) ->  | IG52: =IF(IG22="","",ROUND((IG24+IG28+IG30)/('Allgemeine Angaben'!$C$15-Verbraucher!IG22),3)) ->  | IH52: =IF(IH22="","",ROUND((IH24+IH28+IH30)/('Allgemeine Angaben'!$C$15-Verbraucher!IH22),3)) ->  | II52: =IF(II22="","",ROUND((II24+II28+II30)/('Allgemeine Angaben'!$C$15-Verbraucher!II22),3)) ->  | IJ52: =IF(IJ22="","",ROUND((IJ24+IJ28+IJ30)/('Allgemeine Angaben'!$C$15-Verbraucher!IJ22),3)) ->  | IK52: =IF(IK22="","",ROUND((IK24+IK28+IK30)/('Allgemeine Angaben'!$C$15-Verbraucher!IK22),3)) ->  | IL52: =IF(IL22="","",ROUND((IL24+IL28+IL30)/('Allgemeine Angaben'!$C$15-Verbraucher!IL22),3)) ->  | IM52: =IF(IM22="","",ROUND((IM24+IM28+IM30)/('Allgemeine Angaben'!$C$15-Verbraucher!IM22),3)) ->  | IN52: =IF(IN22="","",ROUND((IN24+IN28+IN30)/('Allgemeine Angaben'!$C$15-Verbraucher!IN22),3)) ->  | IO52: =IF(IO22="","",ROUND((IO24+IO28+IO30)/('Allgemeine Angaben'!$C$15-Verbraucher!IO22),3)) ->  | IP52: =IF(IP22="","",ROUND((IP24+IP28+IP30)/('Allgemeine Angaben'!$C$15-Verbraucher!IP22),3)) ->  | IQ52: =IF(IQ22="","",ROUND((IQ24+IQ28+IQ30)/('Allgemeine Angaben'!$C$15-Verbraucher!IQ22),3)) ->  | IR52: =IF(IR22="","",ROUND((IR24+IR28+IR30)/('Allgemeine Angaben'!$C$15-Verbraucher!IR22),3)) ->  | IS52: =IF(IS22="","",ROUND((IS24+IS28+IS30)/('Allgemeine Angaben'!$C$15-Verbraucher!IS22),3)) ->  | IT52: =IF(IT22="","",ROUND((IT24+IT28+IT30)/('Allgemeine Angaben'!$C$15-Verbraucher!IT22),3)) ->  | IU52: =IF(IU22="","",ROUND((IU24+IU28+IU30)/('Allgemeine Angaben'!$C$15-Verbraucher!IU22),3)) ->  | IV52: =IF(IV22="","",ROUND((IV24+IV28+IV30)/('Allgemeine Angaben'!$C$15-Verbraucher!IV22),3)) -> 
C53: =IF(C$24="","",ROUND(C$24*C$25,3)) -> 870 | D53: =IF(D$24="","",ROUND(D$24*D$25,3)) -> 399.5 | F53: 7 | BP53: =IF(BP$24="","",ROUND(BP$24*BP$25,3)) ->  | EB53: =IF(EB$24="","",ROUND(EB$24*EB$25,3)) ->  | GN53: =IF(GN$24="","",ROUND(GN$24*GN$25,3)) -> 
C54: =IF(C$24="","",ROUND(C$24*C$26,3)) -> 870 | D54: =IF(D$24="","",ROUND(D$24*D$26,3)) -> 470 | F54: 10 | BP54: =IF(BP$24="","",ROUND(BP$24*BP$26,3)) ->  | EB54: =IF(EB$24="","",ROUND(EB$24*EB$26,3)) ->  | GN54: =IF(GN$24="","",ROUND(GN$24*GN$26,3)) -> 

Sheet Allgemeine Angaben
A1: =Verbraucher!A1 -> QM Chauffages au bois - Relevée de situation
A2: =Verbraucher!A3 -> Projet/Variante: | B2: =IF(Verbraucher!B3="","",Verbraucher!B3) -> Exemple modèle (ligne 1)
B3: =IF(Verbraucher!B4="","",Verbraucher!B4) -> Exemple modèle (ligne 2)
B4: =IF(Verbraucher!B5="","",Verbraucher!B5) -> Exemple modèle (ligne 3)
A5: =Verbraucher!A6 -> Saisi par: | B5: =IF(Verbraucher!B6="","",Verbraucher!B6) -> Concepteur modèle
A6: =Verbraucher!A7 -> Date: | B6: =IF(Verbraucher!B7="","",Verbraucher!B7) -> 2022-02-18
A8: =Text!C54 -> Données planificateur principale
A10: =Text!C55 -> Généralités | B10: =Text!C56 -> Pays
B11: =Text!C57 -> Station climatologique
B12: =Text!C58 -> Température extérieure plus basse [°C] | C12: =D12 -> -7 | D12: =Hilfsblatt!C31 -> -7 | E12: =IF(Hilfsblatt!AL1=4,Text!C59,IF(Hilfsblatt!AL1=5,Text!C60,Text!C61)) -> °C = valeur moyenne 10 ans (2002 - 2011)
B13: =Text!C62 -> Température ambiante [°C] | C13: 21
B14: =Text!C63 -> Limite de chauffage [°C] | C14: 15
B15: =Text!C64 -> Température aller principale max. [°C] | C15: 85
B16: =Text!C65 -> Exploitation estivale
A17: =Text!C66 -> Chaleur ambiante | B17: =Text!C67 -> Part de la puissance thermique requise chaleur ambiante non dépendante de la température extérieure [%] | C17: 5
B18: =Text!C68 -> Facteur de simultanéité chaleur ambiante [-] | C18: 1
A19: =Text!C69 -> Eau chaude | B19: =Text!C70 -> Facteur de simultanéité eau chaude [-] | C19: 1
A20: =Text!C71 -> Chaleur industrielle | B20: =Text!C72 -> Facteur de simultanéité chaleur industrielle [-] | C20: 0.56
A21: =Text!C73 -> Conduite à distance | B21: =Text!C74 -> Perte de chaleur annuelle conduite à distance [MWh/a] | C21: =ROUND(C33*0.11,1) -> 432.6
B22: =Text!C75 -> Perte de puissance conduite à distance [kW] | C22: =ROUND(C21*1000/8760,1) -> 49.4
A24: =Text!C77 -> Valeurs cumulées calculées
A26: =Text!C78 -> Généralités | B26: =Text!C79 -> Surface de référence énergétique totale [m²] | C26: =SUM(Verbraucher!C20:IV20) -> 30400
A27: =Text!C66 -> Chaleur ambiante | B27: =Text!C81 -> Besoin de chaleur total [MWh/a] | C27: =SUM(Verbraucher!C23:IV23) -> 2792
B28: =Text!C82 -> Puissance thermique totale requise chaleur ambiante max. [kW] | C28: =SUM(Verbraucher!C24:IV24) -> 1350
A29: =Text!C83 -> Eau chaude | B29: =Text!C84 -> Besoin de chaleur annuel total eau chaude [MWh/a] | C29: =SUM(Verbraucher!C27:IV27) -> 641
B30: =Text!C85 -> Puissance thermique totale requise eau chaude max. [kW] | C30: =SUM(Verbraucher!C28:IV28) -> 262.5
A31: =Text!C86 -> Chaleur industrielle | B31: =Text!C87 -> Besoin de chaleur annuel total chaleur industrielle [MWh/a] | C31: =SUM(Verbraucher!C29:IV29) -> 500
B32: =Text!C88 -> Puissance thermique totale requise chaleur industrielle max. [kW] | C32: =SUM(Verbraucher!C30:IV30) -> 110
A33: =Text!C89 -> ∑ des consommateurs | B33: =Text!C90 -> Besoin de chaleur globale [MWh/a] | C33: =C27+C29+C31 -> 3933
B34: =Text!C91 -> Puissance thermique à installer globale [kW] | C34: =C28+C30+C32 -> 1722.5
A36: =Text!C93 -> Données caractéristiques calculées
A38: =Text!C94 -> Généralités | B38: =Text!C95 -> Température aller consommateurs max. [°C] | C38: =MAX(Verbraucher!C21:IV21) -> 80
B39: =Text!C96 -> Température retour principale max. [°C] | C39: =ROUND(C15-(C28+C30+C32)/SUM(Verbraucher!C52:IV52),3) -> 52.621
A40: =Text!C66 -> Chaleur ambiante | B40: =Text!C98 -> Heures de marche à pleine charge chaleur ambiante [h/a] | C40: =ROUND(C27*1000/C28,2) -> 2068.15
B41: =Text!C99 -> Besoin de chaleur spécifique [kWh/m²a] | C41: =ROUND(C27*1000/C$26,3) -> 91.842
B42: =Text!C100 -> Puissance thermique spécifique requise [W/m²] | C42: =ROUND(C28*1000/C$26,3) -> 44.408
A43: =Text!C101 -> Eau chaude | B43: =Text!C102 -> Heures de marche à pleine charge eau chaude [h/a] | C43: =ROUND(C29*1000/C30,2) -> 2441.9
B44: =Text!C103 -> Besoin d'énergie spécifique eau chaude [kWh/m²a] | C44: =ROUND(C29*1000/C$26,3) -> 21.086
A45: =Text!C104 -> Chaleur industrielle | B45: =Text!C105 -> Heures de marche à pleine charge chaleur industrielle [h/a] | C45: =ROUND(C31*1000/C32,2) -> 4545.45
B46: =Verbraucher!B46 -> Relevé de situation V37
A47: =Verbraucher!A46 -> Champs a remplir | B47: =Verbraucher!B47 -> Format de fichier: .xlsm

Sheet Wärmezentrale
A1: =Verbraucher!A1 -> QM Chauffages au bois - Relevée de situation
A2: =Verbraucher!A3 -> Projet/Variante: | B2: =IF(Verbraucher!B3="","",Verbraucher!B3) -> Exemple modèle (ligne 1)
B3: =IF(Verbraucher!B4="","",Verbraucher!B4) -> Exemple modèle (ligne 2)
B4: =IF(Verbraucher!B5="","",Verbraucher!B5) -> Exemple modèle (ligne 3)
A5: =Verbraucher!A6 -> Saisi par: | B5: =IF(Verbraucher!B6="","",Verbraucher!B6) -> Concepteur modèle
A6: =Verbraucher!A7 -> Date: | B6: =IF(Verbraucher!B7="","",Verbraucher!B7) -> 2022-02-18
A8: =Text!C200 -> Données planificateur principale
A10: =Text!C205 -> Centrale de chauffage | B10: =Text!C206 -> Solution Standard de QM | K10: WE6 | L10: =IF(K10=Text!C238,Text!C246,IF(K10=Text!C239,Text!C247,IF(K10=Text!C240,Text!C248,IF(K10=Text!C241,Text!C249,IF(K10=Text!C242,Text!C250,IF(K10=Text!C243,Text!C251,IF(K10=Text!C244,Text!C252,IF(K10=Text!C245,Text!C253,Text!C233)))))))) -> 2 chaudières à bois avec accumulateur
B11: =Text!C207 -> Puissance nominale chaudière à bois 1 (petit chaudière WE1 – WE8) [kW] | K11: 450 | L11: =IF(ISBLANK(K11),Text!C234,"") -> 
B12: =Text!C208 -> Puissance nominale chaudière à bois 2 (grande chaudière WE1 – WE8) [kW] | K12: 1000 | L12: =IF(AND(ISBLANK(K12),OR(K10=Text!C242,K10=Text!C243,K10=Text!C244,K10=Text!C245,K10=Text!C204)),Text!C234,IF(AND(ISBLANK(K12)=FALSE,OR(K10=Text!C238,K10=Text!C239,K10=Text!C240,K10=Text!C241)),Text!C235,"")) -> 
B13: =Text!C209 -> Puissance nominale plus chaudière à bois totale [kW] | L13: =IF(AND(ISBLANK(K13),K10=Text!C204),Text!C234,IF(AND(ISBLANK(K13)=FALSE,OR(K10=Text!C238,K10=Text!C239,K10=Text!C240,K10=Text!C241,K10=Text!C242,K10=Text!C243,K10=Text!C244,K10=Text!C245)),Text!C235,"")) -> 
B14: =Text!C210 -> Nombre de chaudière à bois installé dans les systèmes à plusieurs chaudières à bois | L14: =IF(AND(ISBLANK(K14),K10=Text!C204),Text!C234,IF(AND(ISBLANK(K14)=FALSE,OR(K10=Text!C238,K10=Text!C239,K10=Text!C240,K10=Text!C241,K10=Text!C242,K10=Text!C243,K10=Text!C244,K10=Text!C245)),Text!C235,"")) -> 
B15: =Text!C211 -> Puissance nominale chaudière à bois totale [kW] | K15: =K11+K12+K13 -> 1450
B16: =Text!C212 -> Puissance chaudière mazout/gaz totale [kW] | L16: =IF(AND(ISBLANK(K16),OR(K10=Text!C240,K10=Text!C241,K10=Text!C244,K10=Text!C245)),Text!C234,IF(AND(ISBLANK(K16)=FALSE,OR(K10=Text!C238,K10=Text!C239,K10=Text!C242,K10=Text!C243)),Text!C235,"")) -> 
B18: =Text!C213 -> Volume de l'accumulateur installée [m3] | K18: 30 | L18: =IF(AND(ISBLANK(K18),OR(K10=Text!C239,K10=Text!C241,K10=Text!C243,K10=Text!C245,K10=Text!C204)),Text!C234,IF(AND(ISBLANK(K18)=FALSE,OR(K10=Text!C238,K10=Text!C240,K10=Text!C242,K10=Text!C244)),Text!C235,"")) -> 
B19: =Text!C214 -> Le différentiel de température à travers l'accumulateur (départ – retour) [K] | J19: =IF(OR(K10=Text!C239,K10=Text!C241,K10=Text!C243,K10=Text!C245,K10=Text!C204),"*"&ROUND('Allgemeine Angaben'!C15-'Allgemeine Angaben'!C39,1)&" K","") -> *32.4 K | K19: 30 | L19: =IF(AND(ISBLANK(K19),OR(K10=Text!C239,K10=Text!C241,K10=Text!C243,K10=Text!C245,K10=Text!C204)),Text!C234,IF(AND(ISBLANK(K19)=FALSE,OR(K10=Text!C238,K10=Text!C240,K10=Text!C242,K10=Text!C244)),Text!C235,"")) -> 
B20: =Text!C215 -> Moyenne de charge de chauffe journalière minimale en cas de fonctionnement à faible charge (voir tableau ci-dessous) [kW] | K20: 0.15 | L20: =IF(ISBLANK(K20),Text!C236,"") -> 
B21: =Text!C216 -> Performance journalière moyenne maximale de la chaudière à bois (valeur de 70% à 100%) | K21: 0.9 | L21: =IF(ISBLANK(K21),Text!C237,"") -> 
B22: =Text!C256 -> Performance journalière moyenne maximale de la source de puissance de base [kW] | K22: 0
B23: ="* "&Text!C255 -> * Écart de température calcul des données d'entrée
A25: =Text!C201 -> Données caractéristiques calculées | K25: =Text!C230 -> Résultat | L25: =Text!C231 -> Valeur de comparaison
A27: =Text!C205 -> Centrale de chauffage | B27: =Text!C217 -> Nombre d'heures de fonctionnement à pleine charge (chaudière à bois) [h/a] | K27: =Hilfsblatt!I11*1000/Wärmezentrale!K15*(Hilfsblatt!L15/100) -> 3010.763806 | L27: =IF(K10=Text!C238,1500,IF(K10=Text!C239,2000,IF(K10=Text!C240,2500,IF(K10=Text!C241,3500,IF(K10=Text!C242,1500,IF(K10=Text!C243,2000,IF(K10=Text!C244,2500,IF(K10=Text!C245,3000,"–")))))))) -> 2000 | M27: =Text!C227 -> Résultat ≥ une valeur de comparaison
B28: =Text!C218 -> Nombre d'heures de fonctionnement à pleine charge (chaudière mazout/gaz) [h/a] | K28: =IF(OR(ISNUMBER(K16)=FALSE,K16=0),"–",(Hilfsblatt!L11-Hilfsblatt!L12-Hilfsblatt!L13)*1000/Wärmezentrale!K16) -> – | L28: –
B29: =Text!C219 -> Production annuelle de chaleur avec du bois [%] | K29: =ROUND(Hilfsblatt!L15/100,3) -> 1 | L29: =IF(K10=Text!C238,1,IF(K10=Text!C239,1,IF(K10=Text!C240,0.8,IF(K10=Text!C241,0.8,IF(K10=Text!C242,1,IF(K10=Text!C243,1,IF(K10=Text!C244,0.8,IF(K10=Text!C245,0.8,1)))))))) -> 1 | M29: =Text!C227 -> Résultat ≥ une valeur de comparaison
B30: =Text!C220 -> Volume de l'accumulateur [m3] | K30: =IF(ISBLANK(K18),"–",ROUND(K18,1)) -> 30 | L30: =IF(K10=Text!C238,"–",IF(K10=Text!C239,K11/(1.14*K19),IF(K10=Text!C240,"–",IF(K10=Text!C241,K11/(1.14*K19),IF(K10=Text!C242,"–",IF(K10=Text!C243,2*K15/(3*1.14*K19),IF(K10=Text!C244,"–",IF(K10=Text!C245,2*K15/(3*1.14*K19),2*K15/(3*1.14*K19))))))))) -> 28.26510721 | M30: =Text!C227 -> Résultat ≥ une valeur de comparaison
B31: =Text!C221 -> Cas de fonctionnement à faible charge [kW] | K31: =ROUND(K20*K11,1) -> 67.5 | L31: =IF(Hilfsblatt!S1="Nein",Hilfsblatt!F19-Hilfsblatt!AA31,Hilfsblatt!F20-Hilfsblatt!AA31) -> 179.652 | M31: =Text!C228 -> Résultat ≤ une valeur de comparaison (valeur cible) | O31: Untere Grenze | P31: Obere Grenze | Q31: zur Beurteilung
B32: =IF(K10=Text!C238,Text!C222,IF(K10=Text!C239,Text!C222,IF(K10=Text!C240,Text!C222,IF(K10=Text!C241,Text!C222,IF(K10=Text!C242,Text!C223,IF(K10=Text!C243,Text!C223,IF(K10=Text!C244,Text!C223,IF(K10=Text!C245,Text!C223,Text!C222)))))))) -> Dimensionnement de la puissance de la chaudière à bois 1 | K32: =IF(K10=Text!C238,K11/Hilfsblatt!F5,IF(K10=Text!C239,K11/Hilfsblatt!F18,IF(K10=Text!C240,K11/Hilfsblatt!F5,IF(K10=Text!C241,K11/Hilfsblatt!F5,IF(K10=Text!C242,K11/Hilfsblatt!F5,IF(K10=Text!C243,K11/Hilfsblatt!F18,IF(K10=Text!C244,K11/Hilfsblatt!F5,IF(K10=Text!C245,K11/Hilfsblatt!F5,K15/Hilfsblatt!F18)))))))) -> 0.3090336723 | L32: =IF(K10=Text!C238,"100%",IF(K10=Text!C239,"100%",IF(K10=Text!C240,"60% – 70%",IF(K10=Text!C241,"50% – 60%",IF(K10=Text!C242,"±33%",IF(K10=Text!C243,"±33%",IF(K10=Text!C244,"20% – 23%",IF(K10=Text!C245,"17% – 20%","100%")))))))) -> ±33% | M32: =Text!C229 -> Résultat ≥ ou ≤ à la valeur comparative (zone cible) | O32: =IF(K10=Text!C238,1,IF(K10=Text!C239,1,IF(K10=Text!C240,0.6,IF(K10=Text!C241,0.5,IF(K10=Text!C242,0.305,IF(K10=Text!C243,0.305,IF(K10=Text!C244,0.2,IF(K10=Text!C245,0.17,1)))))))) -> 0.305 | P32: =IF(K10=Text!C238,1.1,IF(K10=Text!C239,1.1,IF(K10=Text!C240,0.7,IF(K10=Text!C241,0.6,IF(K10=Text!C242,0.38,IF(K10=Text!C243,0.38,IF(K10=Text!C244,0.23,IF(K10=Text!C245,0.2,1.1)))))))) -> 0.38
B33: =IF(K10=Text!C238,"",IF(K10=Text!C239,"",IF(K10=Text!C240,"",IF(K10=Text!C241,"",IF(K10=Text!C242,Text!C224,IF(K10=Text!C243,Text!C224,IF(K10=Text!C244,Text!C224,IF(K10=Text!C245,Text!C224,"")))))))) -> Dimensionnement de la puissance de la chaudière à bois 2 | K33: =IF(K10=Text!C238,"–",IF(K10=Text!C239,"–",IF(K10=Text!C2338,"–",IF(K10=Text!C241,"–",IF(K10=Text!C242,K12/Hilfsblatt!F18,IF(K10=Text!C243,K12/Hilfsblatt!F18,IF(K10=Text!C244,K12/Hilfsblatt!F5,IF(K10=Text!C245,K12/Hilfsblatt!F5,"–")))))))) -> 0.686741494 | L33: =IF(K10=Text!C238,"–",IF(K10=Text!C239,"–",IF(K10=Text!C240,"–",IF(K10=Text!C241,"–",IF(K10=Text!C242,"±67%",IF(K10=Text!C243,"±67%",IF(K10=Text!C244,"40% – 47%",IF(K10=Text!C245,"33% – 40%","–")))))))) -> ±67% | M33: =Text!C229 -> Résultat ≥ ou ≤ à la valeur comparative (zone cible) | O33: =IF(K10=Text!C238,"–",IF(K10=Text!C239,"–",IF(K10=Text!C240,"–",IF(K10=Text!C241,"–",IF(K10=Text!C242,0.645,IF(K10=Text!C243,0.645,IF(K10=Text!C244,0.4,IF(K10=Text!C245,0.33,"–")))))))) -> 0.645 | P33: =IF(K10=Text!C238,"–",IF(K10=Text!C239,"–",IF(K10=Text!C240,"–",IF(K10=Text!C241,"–",IF(K10=Text!C242,0.72,IF(K10=Text!C243,0.72,IF(K10=Text!C244,0.47,IF(K10=Text!C245,0.4,"–")))))))) -> 0.72
B34: =IF(K10=Text!C238,"",IF(K10=Text!C239,"",IF(K10=Text!C240,"",IF(K10=Text!C241,"",IF(K10=Text!C242,Text!C225,IF(K10=Text!C243,Text!C225,IF(K10=Text!C244,Text!C225,IF(K10=Text!C245,Text!C225,"")))))))) -> Totalement | K34: =IF(K10=Text!C238,"–",IF(K10=Text!C239,"–",IF(K10=Text!C240,"–",IF(K10=Text!C241,"–",IF(K10=Text!C242,K32+K33,IF(K10=Text!C243,K32+K33,IF(K10=Text!C244,K32+K33,IF(K10=Text!C245,K32+K33,"–")))))))) -> 0.9957751663 | L34: =IF(K10=Text!C238,"–",IF(K10=Text!C239,"–",IF(K10=Text!C240,"–",IF(K10=Text!C241,"–",IF(K10=Text!C242,"100%",IF(K10=Text!C243,"100%",IF(K10=Text!C244,"60% – 70%",IF(K10=Text!C245,"50% – 60%","–")))))))) -> 100% | M34: =Text!C229 -> Résultat ≥ ou ≤ à la valeur comparative (zone cible) | O34: =O32+O33 -> 0.95 | P34: =P32+P33 -> 1.1
B35: =Text!C226 -> Dimensionnement de la puissance de la chaudière mazout/gaz [kW] | K35: =IF(ISBLANK(K16),"–",K16) -> – | L35: =IF(K10=Text!C238,"–",IF(K10=Text!C239,"–",IF(K10=Text!C240,ROUND(0.7*Hilfsblatt!F5,0)&" kW – "&ROUND(Hilfsblatt!F5,0)&" kW",IF(K10=Text!C241,ROUND(0.7*Hilfsblatt!F5,0)&" kW – "&ROUND(Hilfsblatt!F5,0)&" kW",IF(K10=Text!C242,"–",IF(K10=Text!C243,"–",IF(K10=Text!C244,ROUND(Hilfsblatt!F5-K11,0)&" kW – "&ROUND(Hilfsblatt!F5,0)&" kW",IF(K10=Text!C245,ROUND(Hilfsblatt!F5-K11,0)&" kW – "&ROUND(Hilfsblatt!F5,0)&" kW","–")))))))) -> – | M35: =Text!C229 -> Résultat ≥ ou ≤ à la valeur comparative (zone cible) | O35: =IF(K10=Text!C238,"–",IF(K10=Text!C239,"–",IF(K10=Text!C240,0.7*Hilfsblatt!F5,IF(K10=Text!C241,0.7*Hilfsblatt!F5,IF(K10=Text!C242,"–",IF(K10=Text!C243,"–",IF(K10=Text!C244,Hilfsblatt!F5-K11,IF(K10=Text!C245,Hilfsblatt!F5-K11,"–")))))))) -> – | P35: =IF(K10=Text!C238,"–",IF(K10=Text!C239,"–",IF(K10=Text!C240,Hilfsblatt!F5,IF(K10=Text!C241,Hilfsblatt!F5,IF(K10=Text!C242,"–",IF(K10=Text!C243,"–",IF(K10=Text!C244,Hilfsblatt!F5,IF(K10=Text!C245,Hilfsblatt!F5,"–")))))))) -> –
B36: =Text!C254 -> Comparer les données de puissance avec données d'énergie (Figure ci-dessous liens dans Figures) | K36: =ROUND(Hilfsblatt!J4/Hilfsblatt!I4,3) -> 1 | L36: =IF(K10=Text!C238,"100% – 110%",IF(K10=Text!C239,"100% – 110%",IF(K10=Text!C240,"95% – 105%",IF(K10=Text!C241,"95% – 105%",IF(K10=Text!C242,"100% – 110%",IF(K10=Text!C243,"100% – 110%",IF(K10=Text!C244,"95% – 105%",IF(K10=Text!C245,"95% – 105%","95% – 105")))))))) -> 100% – 110% | M36: =Text!C229 -> Résultat ≥ ou ≤ à la valeur comparative (zone cible) | O36: =IF(K10=Text!C238,1,IF(K10=Text!C239,1,IF(K10=Text!C240,0.95,IF(K10=Text!C241,0.95,IF(K10=Text!C242,1,IF(K10=Text!C243,1,IF(K10=Text!C244,0.95,IF(K10=Text!C245,0.95,0.95)))))))) -> 1 | P36: =IF(K10=Text!C238,1.1,IF(K10=Text!C239,1.1,IF(K10=Text!C240,1.05,IF(K10=Text!C241,1.05,IF(K10=Text!C242,1.1,IF(K10=Text!C243,1.1,IF(K10=Text!C244,1.05,IF(K10=Text!C245,1.05,1.05)))))))) -> 1.1
B37: =Verbraucher!B46 -> Relevé de situation V37
A38: =Text!C52 -> Champs a remplir | B38: =Text!C37 -> Format de fichier: .xlsm
A40: =Text!C264 -> Moyenne de charge de chauffe journalière minimale en cas de fonctionnement à faible charge
A42: =Text!C257 -> Type de foyer | B42: =Text!C259 -> Foyer à grille mobile | G42: =Text!C260 -> Foyer à poussée inférieure
A43: =Text!C258 -> Recommendations | B43: =Text!C261 -> à allumage automatique | D43: =Text!C262 -> avec maintien du lit de braise | G43: =Text!C261 -> à allumage automatique | I43: =Text!C262 -> avec maintien du lit de braise
A44: =Text!C263 -> Contenu en eau du combustible | B44: ≤ M35 | C44: M35 - 40 | D44: ≤ M35 | E44: M35 - 50 | F44: > M50 | G44: ≤ M35 | H44: M35 - 50 | I44: ≤ M50
A45: =Text!C264 -> Moyenne de charge de chauffe journalière minimale en cas de fonctionnement à faible charge | B45: 0.15 | C45: 0.2 | D45: 0.15 | E45: 0.2 | F45: 0.3 | G45: 0.1 | H45: 0.15 | I45: 0.15
A46: =Text!C266 -> Remarque importante : selon le fabricant de la chaudière à bois, les valeurs peuvent varier légèrement varier. Les valeurs et les recommandations du fabricant de chaudières sont déterminantes.
A47: =Text!C265 -> Correspond au tableau 13.4 du manuel de planification QM Chauffages au bois, 3e édition 2022 de l'édition allemande

Sheet Bilder
A1: =Verbraucher!A3 -> Projet/Variante: | C1: =IF(Verbraucher!$B3="","",Verbraucher!$B3) -> Exemple modèle (ligne 1) | H1: =A1 -> Projet/Variante: | J1: =IF(Verbraucher!$B3="","",Verbraucher!$B3) -> Exemple modèle (ligne 1) | O1: =A1 -> Projet/Variante: | Q1: =IF(Verbraucher!$B3="","",Verbraucher!$B3) -> Exemple modèle (ligne 1) | V1: =A1 -> Projet/Variante: | X1: =IF(Verbraucher!$B3="","",Verbraucher!$B3) -> Exemple modèle (ligne 1)
C2: =IF(Verbraucher!$B4="","",Verbraucher!$B4) -> Exemple modèle (ligne 2) | J2: =IF(Verbraucher!$B4="","",Verbraucher!$B4) -> Exemple modèle (ligne 2) | Q2: =IF(Verbraucher!$B4="","",Verbraucher!$B4) -> Exemple modèle (ligne 2) | X2: =IF(Verbraucher!$B4="","",Verbraucher!$B4) -> Exemple modèle (ligne 2)
C3: =IF(Verbraucher!$B5="","",Verbraucher!$B5) -> Exemple modèle (ligne 3) | J3: =IF(Verbraucher!$B5="","",Verbraucher!$B5) -> Exemple modèle (ligne 3) | Q3: =IF(Verbraucher!$B5="","",Verbraucher!$B5) -> Exemple modèle (ligne 3) | X3: =IF(Verbraucher!$B5="","",Verbraucher!$B5) -> Exemple modèle (ligne 3)
A4: =Verbraucher!A6 -> Saisi par: | C4: =IF(Verbraucher!$B6="","",Verbraucher!$B6) -> Concepteur modèle | H4: =A4 -> Saisi par: | J4: =IF(Verbraucher!$B6="","",Verbraucher!$B6) -> Concepteur modèle | O4: =A4 -> Saisi par: | Q4: =IF(Verbraucher!$B6="","",Verbraucher!$B6) -> Concepteur modèle | V4: =A4 -> Saisi par: | X4: =IF(Verbraucher!$B6="","",Verbraucher!$B6) -> Concepteur modèle
A5: =Verbraucher!A7 -> Date: | C5: =IF(Verbraucher!$B7="","",Verbraucher!$B7) -> 2022-02-18 | H5: =A5 -> Date: | J5: =IF(Verbraucher!$B7="","",Verbraucher!$B7) -> 2022-02-18 | O5: =A5 -> Date: | Q5: =IF(Verbraucher!$B7="","",Verbraucher!$B7) -> 2022-02-18 | V5: =A5 -> Date: | X5: =IF(Verbraucher!$B7="","",Verbraucher!$B7) -> 2022-02-18
A6: Klimastation: | C6: =Hilfsblatt!G29 -> Zürich/Fluntern (CH), 556 m ü. M. | H6: =A6 -> Klimastation: | J6: =C6 -> Zürich/Fluntern (CH), 556 m ü. M. | M6: Vorgabe: | N6: Effektiv: | O6: =A6 -> Klimastation: | Q6: =C6 -> Zürich/Fluntern (CH), 556 m ü. M. | T6: =M6 -> Vorgabe: | U6: Effektiv: | V6: =A6 -> Klimastation: | W6: =Hilfsblatt!AK1 -> 0 | X6: =C6 -> Zürich/Fluntern (CH), 556 m ü. M.
L7: Min. mittlere Holzkessel-Tagesleistung [kW]: | M7: =Wärmezentrale!K20*Wärmezentrale!K11 -> 67.5 | N7: =Hilfsblatt!AG29 -> 180 | S7: =L7 -> Min. mittlere Holzkessel-Tagesleistung [kW]: | T7: 67.5 | U7: 180
A8: =Verbraucher!B46 -> Relevé de situation V37 | L8: Max. mittlere Holzkessel-Tagesleistung [kW]: | M8: =Wärmezentrale!K21*Wärmezentrale!K15 -> 1305 | N8: =Hilfsblatt!AG31 -> 1196 | S8: =L8 -> Max. mittlere Holzkessel-Tagesleistung [kW]: | T8: 1305 | U8: 1196
L9: Max. mittlere Bandquellen-Tagesleist. [kW]: | M9: =Wärmezentrale!K22 -> 0 | N9: =Hilfsblatt!Y31 -> 0 | S9: =L9 -> Max. mittlere Bandquellen-Tagesleist. [kW]: | T9: =M9 -> 0 | U9: =N9 -> 0
V11: Bemerkungen zur Situationserfassung
V14: =IF(W6=6,"Abweichende Resultate sind vom Planer zu kommentieren!","") -> 
V15: Diagramm Seite 1 oben:
V22: Diagramm Seite 1 unten:
V29: Diagramm Seite 2 oben:
G55: =Verbraucher!B46 -> Relevé de situation V37 | N55: =Verbraucher!B46 -> Relevé de situation V37 | U55: =Verbraucher!B46 -> Relevé de situation V37
A56: Diagramm oben: | B56: Ausgezogen die Lastkennlinie der Gesamtanlage; gestrichelt die Lastkennlinie zur Berechnung | H56: =A56 -> Diagramm oben: | I56: Jahresdauerlinie der benötigten Wärmeleistung mit umrahmten Holzkessel- und Bandleistungs- | O56: =H56 -> Diagramm oben: | P56: Gesamt-Wärmeproduktion und Produktionsanteile des Holzkessels und der Bandleistungs-
B57: der Jahresdauerlinie der benötigten Wärmeleistung | I57: Anteilen | P57: quelle
A59: Diagramm unten: | B59: Vergleich Gesamt-Wärmebedarf | H59: =A59 -> Diagramm unten: | I59: Jahresdauerlinien der Aussentemperatur | O59: =H59 -> Diagramm unten: | P59: Gesamt-Wärmeproduktion und Produktionsanteile des Holzkessels und der Bandleistungs-
P60: quelle in Prozent der Gesamtproduktion

Sheet Figures (hidden)
A1: =Verbraucher!A3 -> Projet/Variante: | C1: =IF(Verbraucher!$B3="","",Verbraucher!$B3) -> Exemple modèle (ligne 1) | H1: =A1 -> Projet/Variante: | J1: =IF(Verbraucher!$B3="","",Verbraucher!$B3) -> Exemple modèle (ligne 1) | O1: =A1 -> Projet/Variante: | Q1: =IF(Verbraucher!$B3="","",Verbraucher!$B3) -> Exemple modèle (ligne 1) | V1: =A1 -> Projet/Variante: | X1: =IF(Verbraucher!$B3="","",Verbraucher!$B3) -> Exemple modèle (ligne 1)
C2: =IF(Verbraucher!$B4="","",Verbraucher!$B4) -> Exemple modèle (ligne 2) | J2: =IF(Verbraucher!$B4="","",Verbraucher!$B4) -> Exemple modèle (ligne 2) | Q2: =IF(Verbraucher!$B4="","",Verbraucher!$B4) -> Exemple modèle (ligne 2) | X2: =IF(Verbraucher!$B4="","",Verbraucher!$B4) -> Exemple modèle (ligne 2)
C3: =IF(Verbraucher!$B5="","",Verbraucher!$B5) -> Exemple modèle (ligne 3) | J3: =IF(Verbraucher!$B5="","",Verbraucher!$B5) -> Exemple modèle (ligne 3) | Q3: =IF(Verbraucher!$B5="","",Verbraucher!$B5) -> Exemple modèle (ligne 3) | X3: =IF(Verbraucher!$B5="","",Verbraucher!$B5) -> Exemple modèle (ligne 3)
A4: =Verbraucher!A6 -> Saisi par: | C4: =IF(Verbraucher!$B6="","",Verbraucher!$B6) -> Concepteur modèle | H4: =A4 -> Saisi par: | J4: =IF(Verbraucher!$B6="","",Verbraucher!$B6) -> Concepteur modèle | O4: =A4 -> Saisi par: | Q4: =IF(Verbraucher!$B6="","",Verbraucher!$B6) -> Concepteur modèle | V4: =A4 -> Saisi par: | X4: =IF(Verbraucher!$B6="","",Verbraucher!$B6) -> Concepteur modèle
A5: =Verbraucher!A7 -> Date: | C5: =IF(Verbraucher!$B7="","",Verbraucher!$B7) -> 2022-02-18 | H5: =A5 -> Date: | J5: =IF(Verbraucher!$B7="","",Verbraucher!$B7) -> 2022-02-18 | O5: =A5 -> Date: | Q5: =IF(Verbraucher!$B7="","",Verbraucher!$B7) -> 2022-02-18 | V5: =A5 -> Date: | X5: =IF(Verbraucher!$B7="","",Verbraucher!$B7) -> 2022-02-18
A6: Station climatologique: | C6: =Hilfsblatt!G29 -> Zürich/Fluntern (CH), 556 m ü. M. | H6: =A6 -> Station climatologique: | J6: =C6 -> Zürich/Fluntern (CH), 556 m ü. M. | M6: Spécification: | N6: Effectif: | O6: =A6 -> Station climatologique: | Q6: =C6 -> Zürich/Fluntern (CH), 556 m ü. M. | T6: =M6 -> Spécification: | U6: Effectif: | V6: =A6 -> Station climatologique: | X6: =C6 -> Zürich/Fluntern (CH), 556 m ü. M.
L7: Performance journalière moyenne minimale de la chaudière à bois [kW]: | M7: =Wärmezentrale!K20*Wärmezentrale!K11 -> 67.5 | N7: =Hilfsblatt!AG29 -> 180 | S7: =L7 -> Performance journalière moyenne minimale de la chaudière à bois [kW]: | T7: 67.5 | U7: 180
A8: =Verbraucher!B46 -> Relevé de situation V37 | L8: Performance journalière moyenne maximale de la chaudière à bois [kW]: | M8: =Wärmezentrale!K21*Wärmezentrale!K15 -> 1305 | N8: =Hilfsblatt!AG31 -> 1196 | S8: =L8 -> Performance journalière moyenne maximale de la chaudière à bois [kW]: | T8: 1305 | U8: 1196
L9: Performance journalière moyenne maximale de la source de puissance de base [kW]: | M9: =Wärmezentrale!K22 -> 0 | N9: =Hilfsblatt!Y31 -> 0 | S9: =L9 -> Performance journalière moyenne maximale de la source de puissance de base [kW]: | T9: =M9 -> 0 | U9: =N9 -> 0
V11: Remarques sur le relevé de situation
V15: Graphique Page 1 ci-dessus:
V22: Graphique Page 1 ci-dessous:
V29: Graphique Page 2 ci-dessus:
G55: =Verbraucher!B46 -> Relevé de situation V37 | N55: =Verbraucher!B46 -> Relevé de situation V37 | U55: =Verbraucher!B46 -> Relevé de situation V37
A56: Diagramme en haut: | B56: Dessinée en continu, la courbe caractéristique de charge ensemble de l'installation; en traits | H56: =A56 -> Diagramme en haut: | I56: Courbe de distribution annuelle de la puissance thermique à installer avec les parts des | O56: =H56 -> Diagramme en haut: | P56: Production de chaleur globale et parts de production des chaudières à bois et de la source
B57: discontinus, la courbe caractéristique de charge pondérée pour le calcul de la courbe de | I57: chaudières à bois et de la source de puissance de base encadrées. | P57: de puissance de base.
B58: distribution annuelle de la puissance thermique nécessaire.
H59: =A60 -> Diagramme en bas: | I59: Courbes de distribution annuelle de la température extérieure. | O59: =H59 -> Diagramme en bas: | P59: Production de chaleur globale et parts de production des chaudières à bois et de la source
A60: Diagramme en bas: | B60: Comparaison des besoins totaux de chaleur. | P60: de puissance de base, en pourcentage de la production totale.

Sheet Bilder_IT (hidden)
A1: =Verbraucher!A3 -> Projet/Variante: | C1: =IF(Verbraucher!$B3="","",Verbraucher!$B3) -> Exemple modèle (ligne 1) | H1: =A1 -> Projet/Variante: | J1: =IF(Verbraucher!$B3="","",Verbraucher!$B3) -> Exemple modèle (ligne 1) | O1: =A1 -> Projet/Variante: | Q1: =IF(Verbraucher!$B3="","",Verbraucher!$B3) -> Exemple modèle (ligne 1) | V1: =A1 -> Projet/Variante: | X1: =IF(Verbraucher!$B3="","",Verbraucher!$B3) -> Exemple modèle (ligne 1)
C2: =IF(Verbraucher!$B4="","",Verbraucher!$B4) -> Exemple modèle (ligne 2) | J2: =IF(Verbraucher!$B4="","",Verbraucher!$B4) -> Exemple modèle (ligne 2) | Q2: =IF(Verbraucher!$B4="","",Verbraucher!$B4) -> Exemple modèle (ligne 2) | X2: =IF(Verbraucher!$B4="","",Verbraucher!$B4) -> Exemple modèle (ligne 2)
C3: =IF(Verbraucher!$B5="","",Verbraucher!$B5) -> Exemple modèle (ligne 3) | J3: =IF(Verbraucher!$B5="","",Verbraucher!$B5) -> Exemple modèle (ligne 3) | Q3: =IF(Verbraucher!$B5="","",Verbraucher!$B5) -> Exemple modèle (ligne 3) | X3: =IF(Verbraucher!$B5="","",Verbraucher!$B5) -> Exemple modèle (ligne 3)
A4: =Verbraucher!A6 -> Saisi par: | C4: =IF(Verbraucher!$B6="","",Verbraucher!$B6) -> Concepteur modèle | H4: =A4 -> Saisi par: | J4: =IF(Verbraucher!$B6="","",Verbraucher!$B6) -> Concepteur modèle | O4: =A4 -> Saisi par: | Q4: =IF(Verbraucher!$B6="","",Verbraucher!$B6) -> Concepteur modèle | V4: =A4 -> Saisi par: | X4: =IF(Verbraucher!$B6="","",Verbraucher!$B6) -> Concepteur modèle
A5: Klimastation: | C5: =Hilfsblatt!G29 -> Zürich/Fluntern (CH), 556 m ü. M. | H5: =A5 -> Klimastation: | J5: =C5 -> Zürich/Fluntern (CH), 556 m ü. M. | M5: Vorgabe: | N5: Effektiv: | O5: =A5 -> Klimastation: | Q5: =C5 -> Zürich/Fluntern (CH), 556 m ü. M. | T5: =M5 -> Vorgabe: | U5: Effektiv: | V5: =A5 -> Klimastation: | X5: =C5 -> Zürich/Fluntern (CH), 556 m ü. M.
C6: =IF(Hilfsblatt!T2=2,"Données seulement actives dans la feuille 'Figures_FR'",IF(Hilfsblatt!T2=1,"Eingaben sind nur im Blatt Bilder_DE aktiv!","")) -> Données seulement actives dans la feuille 'Figures_FR' | L6: Min. mittlere Holzkessel-Tagesleistung [kW]: | M6: 150 | N6: =Hilfsblatt!AG29 -> 180 | S6: =L6 -> Min. mittlere Holzkessel-Tagesleistung [kW]: | T6: 150 | U6: 180
L7: Max. mittlere Holzkessel-Tagesleistung [kW]: | M7: 500 | N7: =Hilfsblatt!AG31 -> 1196 | S7: =L7 -> Max. mittlere Holzkessel-Tagesleistung [kW]: | T7: 500 | U7: 1196
L8: Max. mittlere Bandquellen-Tagesleist. [kW]: | M8: 100 | N8: =Hilfsblatt!Y31 -> 0 | S8: =L8 -> Max. mittlere Bandquellen-Tagesleist. [kW]: | T8: =M8 -> 100 | U8: =N8 -> 0
V10: Bemerkungen zur Situationserfassung
A55: Diagramm oben: | B55: Ausgezogen die Lastkennlinie der Gesamtanlage; gestrichelt die Lastkennlinie zur Berechnung | H55: =A55 -> Diagramm oben: | I55: Jahresdauerlinie der benötigten Wärmeleistung und umrahmtem Holzkessel-Anteil | O55: =H55 -> Diagramm oben: | P55: Gesamt-Wärmeproduktion und Produktionsanteil des Holzkessels
B56: der Jahresdauerlinie der benötigten Wärmeleistung
H57: =A58 -> Diagramm unten: | I57: Jahresdauerlinien der Aussentemperatur | O57: =H57 -> Diagramm unten: | P57: Gesamt-Wärmeproduktion und Produktionsanteil des Holzkessels in Prozent der
A58: Diagramm unten: | B58: Vergleich Gesamt-Wärmebedarf | P58: Gesamtproduktion

Sheet Immagini (hidden)
A1: =Verbraucher!A3 -> Projet/Variante: | C1: =IF(Verbraucher!$B3="","",Verbraucher!$B3) -> Exemple modèle (ligne 1) | H1: =A1 -> Projet/Variante: | J1: =IF(Verbraucher!$B3="","",Verbraucher!$B3) -> Exemple modèle (ligne 1) | O1: =A1 -> Projet/Variante: | Q1: =IF(Verbraucher!$B3="","",Verbraucher!$B3) -> Exemple modèle (ligne 1) | V1: =A1 -> Projet/Variante: | X1: =IF(Verbraucher!$B3="","",Verbraucher!$B3) -> Exemple modèle (ligne 1)
C2: =IF(Verbraucher!$B4="","",Verbraucher!$B4) -> Exemple modèle (ligne 2) | J2: =IF(Verbraucher!$B4="","",Verbraucher!$B4) -> Exemple modèle (ligne 2) | Q2: =IF(Verbraucher!$B4="","",Verbraucher!$B4) -> Exemple modèle (ligne 2) | X2: =IF(Verbraucher!$B4="","",Verbraucher!$B4) -> Exemple modèle (ligne 2)
C3: =IF(Verbraucher!$B5="","",Verbraucher!$B5) -> Exemple modèle (ligne 3) | J3: =IF(Verbraucher!$B5="","",Verbraucher!$B5) -> Exemple modèle (ligne 3) | Q3: =IF(Verbraucher!$B5="","",Verbraucher!$B5) -> Exemple modèle (ligne 3) | X3: =IF(Verbraucher!$B5="","",Verbraucher!$B5) -> Exemple modèle (ligne 3)
A4: =Verbraucher!A6 -> Saisi par: | C4: =IF(Verbraucher!$B6="","",Verbraucher!$B6) -> Concepteur modèle | H4: =A4 -> Saisi par: | J4: =IF(Verbraucher!$B6="","",Verbraucher!$B6) -> Concepteur modèle | O4: =A4 -> Saisi par: | Q4: =IF(Verbraucher!$B6="","",Verbraucher!$B6) -> Concepteur modèle | V4: =A4 -> Saisi par: | X4: =IF(Verbraucher!$B6="","",Verbraucher!$B6) -> Concepteur modèle
A5: =Verbraucher!A7 -> Date: | C5: =IF(Verbraucher!$B7="","",Verbraucher!$B7) -> 2022-02-18 | H5: =A5 -> Date: | J5: =IF(Verbraucher!$B7="","",Verbraucher!$B7) -> 2022-02-18 | O5: =A5 -> Date: | Q5: =IF(Verbraucher!$B7="","",Verbraucher!$B7) -> 2022-02-18 | V5: =A5 -> Date: | X5: =IF(Verbraucher!$B7="","",Verbraucher!$B7) -> 2022-02-18
A6: Stazione climatica: | C6: =Hilfsblatt!G29 -> Zürich/Fluntern (CH), 556 m ü. M. | H6: =A6 -> Stazione climatica: | J6: =C6 -> Zürich/Fluntern (CH), 556 m ü. M. | M6: Specifiche: | N6: Efficace: | O6: =A6 -> Stazione climatica: | Q6: =C6 -> Zürich/Fluntern (CH), 556 m ü. M. | T6: =M6 -> Specifiche: | U6: Efficace: | V6: =A6 -> Stazione climatica: | W6: =Hilfsblatt!AK1 -> 0 | X6: =C6 -> Zürich/Fluntern (CH), 556 m ü. M.
L7: Potenza media giornaliera minima della caldaia a legna [kW]: | M7: =Wärmezentrale!K20*Wärmezentrale!K11 -> 67.5 | N7: =Hilfsblatt!AG29 -> 180 | S7: =L7 -> Potenza media giornaliera minima della caldaia a legna [kW]: | T7: 67.5 | U7: 180
A8: =Verbraucher!B46 -> Relevé de situation V37 | L8: Potenza media massima giornaliera della caldaia a legna [kW]: | M8: =Wärmezentrale!K21*Wärmezentrale!K15 -> 1305 | N8: =Hilfsblatt!AG31 -> 1196 | S8: =L8 -> Potenza media massima giornaliera della caldaia a legna [kW]: | T8: 1305 | U8: 1196
L9: Massima potenza media giorno della fonte di alimentazione di base [kW]: | M9: =Wärmezentrale!K22 -> 0 | N9: =Hilfsblatt!Y31 -> 0 | S9: =L9 -> Massima potenza media giorno della fonte di alimentazione di base [kW]: | T9: =M9 -> 0 | U9: =N9 -> 0
V11: Osservazioni
V14: =IF(W6=6,"Abweichende Resultate sind vom Planer zu kommentieren!","") -> 
V15: Diagramma pagina 1 in alto:
V22: Diagramma pagina 1 in basso:
V29: Diagramma pagina 2 in alto:
G55: =Verbraucher!B46 -> Relevé de situation V37 | N55: =Verbraucher!B46 -> Relevé de situation V37 | U55: =Verbraucher!B46 -> Relevé de situation V37
A56: Diagramma sopra: | B56: La curva caratteristica di carico dell'intero sistema è tracciata; la curva caratteristica di carico per il calcolo | H56: =A56 -> Diagramma sopra: | I56: Curva di durata annuale della potenza termica richiesta con caldaia a legna incorniciata | O56: =H56 -> Diagramma sopra: | P56: Produzione totale di calore e quote di produzione della caldaia a legna e della fonte di alimentazione di base.
B57: della curva di durata annuale della potenza termica richiesta è tratteggiata | I57: e quote di potenza della fonte di alimentazione di base.
A59: Diagramma qui sotto: | B59: Confronto della domanda totale di calore | H59: =A59 -> Diagramma qui sotto: | I59: Curve di durata annuale della temperatura esterna | O59: =H59 -> Diagramma qui sotto: | P59: Produzione totale di calore e quote di produzione della caldaia a legna e della fonte di alimentazione di base
P60: in percentuale della produzione totale.

Sheet Images (hidden)
A1: =Verbraucher!A3 -> Projet/Variante: | C1: =IF(Verbraucher!$B3="","",Verbraucher!$B3) -> Exemple modèle (ligne 1) | H1: =A1 -> Projet/Variante: | J1: =IF(Verbraucher!$B3="","",Verbraucher!$B3) -> Exemple modèle (ligne 1) | O1: =A1 -> Projet/Variante: | Q1: =IF(Verbraucher!$B3="","",Verbraucher!$B3) -> Exemple modèle (ligne 1) | V1: =A1 -> Projet/Variante: | X1: =IF(Verbraucher!$B3="","",Verbraucher!$B3) -> Exemple modèle (ligne 1)
C2: =IF(Verbraucher!$B4="","",Verbraucher!$B4) -> Exemple modèle (ligne 2) | J2: =IF(Verbraucher!$B4="","",Verbraucher!$B4) -> Exemple modèle (ligne 2) | Q2: =IF(Verbraucher!$B4="","",Verbraucher!$B4) -> Exemple modèle (ligne 2) | X2: =IF(Verbraucher!$B4="","",Verbraucher!$B4) -> Exemple modèle (ligne 2)
C3: =IF(Verbraucher!$B5="","",Verbraucher!$B5) -> Exemple modèle (ligne 3) | J3: =IF(Verbraucher!$B5="","",Verbraucher!$B5) -> Exemple modèle (ligne 3) | Q3: =IF(Verbraucher!$B5="","",Verbraucher!$B5) -> Exemple modèle (ligne 3) | X3: =IF(Verbraucher!$B5="","",Verbraucher!$B5) -> Exemple modèle (ligne 3)
A4: =Verbraucher!A6 -> Saisi par: | C4: =IF(Verbraucher!$B6="","",Verbraucher!$B6) -> Concepteur modèle | H4: =A4 -> Saisi par: | J4: =IF(Verbraucher!$B6="","",Verbraucher!$B6) -> Concepteur modèle | O4: =A4 -> Saisi par: | Q4: =IF(Verbraucher!$B6="","",Verbraucher!$B6) -> Concepteur modèle | V4: =A4 -> Saisi par: | X4: =IF(Verbraucher!$B6="","",Verbraucher!$B6) -> Concepteur modèle
A5: =Verbraucher!A7 -> Date: | C5: =IF(Verbraucher!$B7="","",Verbraucher!$B7) -> 2022-02-18 | H5: =A5 -> Date: | J5: =IF(Verbraucher!$B7="","",Verbraucher!$B7) -> 2022-02-18 | O5: =A5 -> Date: | Q5: =IF(Verbraucher!$B7="","",Verbraucher!$B7) -> 2022-02-18 | V5: =A5 -> Date: | X5: =IF(Verbraucher!$B7="","",Verbraucher!$B7) -> 2022-02-18
A6: Climate station: | C6: =Hilfsblatt!G29 -> Zürich/Fluntern (CH), 556 m ü. M. | H6: =A6 -> Climate station: | J6: =C6 -> Zürich/Fluntern (CH), 556 m ü. M. | M6: Specification: | N6: Effectively: | O6: =A6 -> Climate station: | Q6: =C6 -> Zürich/Fluntern (CH), 556 m ü. M. | T6: =M6 -> Specification: | U6: Effectively: | V6: =A6 -> Climate station: | W6: =Hilfsblatt!AK1 -> 0 | X6: =C6 -> Zürich/Fluntern (CH), 556 m ü. M.
L7: Min. average daily wood boiler output [kW]: | M7: =Wärmezentrale!K20*Wärmezentrale!K11 -> 67.5 | N7: =Hilfsblatt!AG29 -> 180 | S7: =L7 -> Min. average daily wood boiler output [kW]: | T7: 67.5 | U7: 180
A8: =Verbraucher!B46 -> Relevé de situation V37 | L8: Max. average daily wood boiler output [kW]: | M8: =Wärmezentrale!K21*Wärmezentrale!K15 -> 1305 | N8: =Hilfsblatt!AG31 -> 1196 | S8: =L8 -> Max. average daily wood boiler output [kW]: | T8: 1305 | U8: 1196
L9: Max. average base load daily output [kW]: | M9: =Wärmezentrale!K22 -> 0 | N9: =Hilfsblatt!Y31 -> 0 | S9: =L9 -> Max. average base load daily output [kW]: | T9: =M9 -> 0 | U9: =N9 -> 0
V11: Remarks
V14: =IF(W6=6,"Abweichende Resultate sind vom Planer zu kommentieren!","") -> 
V15: Diagram page 1 top:
V22: Diagram page 1 bottom:
V29: Diagram page 2 top:
G55: =Verbraucher!B46 -> Relevé de situation V37 | N55: =Verbraucher!B46 -> Relevé de situation V37 | U55: =Verbraucher!B46 -> Relevé de situation V37
A56: Diagram above: | B56: The load characteristic curve of the entire system is drawn out. | H56: =A56 -> Diagram above: | I56: Annual duration curve of the required heat output with framed wood boiler and base load shares | O56: =H56 -> Diagram above: | P56: Total heat production and production shares of the wood boiler and the base load source
B57: The load characteristic curve for calculating the annual duration curve of the required heat output is dashed.
H58: =A59 -> Diagram below: | I58: Annual outdoor temperature curves | O58: =H58 -> Diagram below: | P58: Total heat production and production shares of the wood boiler and the base load source
A59: Diagram below: | B59: Comparison of total heat demand | P59: as a percentage of total production

Sheet Text (hidden)
A1: Blatt | B1: Zelle | C1: =Hilfsblatt!T1 -> F | D1: Deutsch | E1: Französisch | F1: Italiano | G1: English
A2: 1 | B2: A1 | C2: =IF(C$1="F",E2,IF(C$1="I",F2,IF(C$1="E",G2,D2))) -> QM Chauffages au bois - Relevée de situation | D2: QM Holzheizwerke - Situationserfassung | E2: QM Chauffages au bois - Relevée de situation | F2: QM Impianti termici a legna - Analisi domanda di calore | G2: QM for Biomass Plants - Demand assessment
A3: 1 | B3: A3 | C3: =IF(C$1="F",E3,IF(C$1="I",F3,IF(C$1="E",G3,D3))) -> Projet/Variante: | D3: Projekt/Variante: | E3: Projet/Variante: | F3: Proggetto/Versione | G3: Project/option:
A4: 1 | B4: A6 | C4: Saisi par: | D4: Erfasst von: | E4: Saisi par: | F4: Registrato da: | G4: Editor:
A5: 1 | B5: B3 | C5: Exemple modèle (ligne 1) | D5: Musterbeispiel (Linie 1) | E5: Exemple modèle (ligne 1) | F5: Esempio (Linea 1) | G5: Example (line 1)
A6: 1 | B6: B4 | C6: Exemple modèle (ligne 2) | D6: Musterbeispiel (Linie 2) | E6: Exemple modèle (ligne 2) | F6: Esempio (Linea 2) | G6: Example (line 2)
A7: 1 | B7: B5 | C7: Exemple modèle (ligne 3) | D7: Musterbeispiel (Linie 3) | E7: Exemple modèle (ligne 3) | F7: Esempio (Linea 3) | G7: Example (line 3)
A8: 1 | B8: B6 | C8: Concepteur modèle | D8: Musterplaner | E8: Concepteur modèle | F8: Progettista del modello | G8: Sample planner
A9: 1 | B9: A8 | C9: Données planificateur principale | D9: Eingaben Hauptplaner | E9: Données planificateur principale | F9: Inputs del progettista principale | G9: Inputs main planner
A10: 1 | B10: A10 | C10: Généralités | D10: Allgemeines | E10: Généralités | F10: Informazioni generali | G10: General information
A11: 1 | B11: B10 | C11: Numéro | D11: Nummer | E11: Numéro | F11: Numero | G11: Number
A12: 1 | B12: B11 | C12: Indication | D12: Bezeichnung | E12: Indication | F12: Indicazione | G12: Designation
A13: 1 | B13: B12 | C13: 0 | D13: Infozeile 1
A14: 1 | B14: B13 | C14: 0 | D14: Infozeile 2
A15: 1 | B15: B14 | C15: 0 | D15: Infozeile 3
A16: 1 | B16: B15 | C16: 0 | D16: Jahreswärmebedarf / Nutzenergie (MWh/a)
A17: 1 | B17: B16 | C17: 0 | D17: Anteil Warmwasser (-)
A18: 1 | B18: B17 | C18: 0 | D18: Verbraucher Status: 1 = aktiv; 0 = inaktiv
A19: 1 | B19: B12 | C19: Langue | D19: Sprache: | E19: Langue | F19: Lingua: | G19: Language:
A20: 1 | B20: B13 | C20: Date: | D20: Datum: | E20: Date: | F20: Data: | G20: Date:
A21: 1 | B21: B14 | C21: Détermination du besoin de chaleur au moyen de | D21: Wärmebedarfsermittlung anhand | E21: Détermination du besoin de chaleur au moyen de | F21: Calcolo della richiesta di calore sulla base di | G21: Heat demand assessment based on
A22: 1 | B22: B15 | C22: Surface de référence énergétique [m²] | D22: Energiebezugsfläche [m²] | E22: Surface de référence énergétique [m²] | F22: Superficie disperdente [m²]. | G22: Energy reference area [m²]
A23: 1 | B23: B16 | C23: Température aller max. [°C] | D23: Max. Vorlauftemperatur [°C] | E23: Température aller max. [°C] | F23: Temperatura max. di mandata [°C] | G23: Max. supply temperature [°C]
A24: 1 | B24: B17 | C24: Température retour max. [°C] | D24: Max. Rücklauftemperatur [°C] | E24: Température retour max. [°C] | F24: Temperatura max. di ritorno [°C] | G24: Max. return temperature [°C]
A25: 1 | B25: A18 | C25: Chaleur ambiante | D25: Raumwärme | E25: Chaleur ambiante | F25: Calore ambienti | G25: Space heating
A26: 1 | B26: B18 | C26: Besoin de chaleur [MWh/a] | D26: Heizwärmebedarf [MWh/a] | E26: Besoin de chaleur [MWh/a] | F26: Domanda di calore [MWh/a] | G26: Annual heat demand for space heating [MWh/a]
A27: 1 | B27: B19 | C27: Puissance thermique requise chaleur ambiante max. [kW] | D27: Max. Wärmeleistungsbedarf Raumwärme [kW] | E27: Puissance thermique requise chaleur ambiante max. [kW] | F27: Max. potenza termica per il riscaldamento degli ambienti [kW] | G27: Max. heat capacity for space heating [kW]
A28: 1 | B28: B20 | C28: Facteur de correction besoin de chaleur [-] | D28: Korrekturfaktor Heizwärmebedarf [-] | E28: Facteur de correction besoin de chaleur [-] | F28: Fattore di correzione per la richiesta di riscaldamento dell'ambiente [-] | G28: Correction factor space heating demand [-]
A29: 1 | B29: B21 | C29: Facteur de correction pointe de préchauffage [-] | D29: Korrekturfaktor Aufheizspitze [-] | E29: Facteur de correction pointe de préchauffage [-] | F29: Fattore di correzione del picco di riscaldamento [-]. | G29: Correction factor heating-up peak [-]
A30: 1 | B30: A22 | C30: Eau chaude | D30: Warmwasser | E30: Eau chaude | F30: Acqua calda sanitaria | G30: Domestic hot water
A31: 1 | B31: B22 | C31: Besoin de chaleur annuel eau chaude [MWh/a]* | D31: Jahreswärmebedarf Warmwasser [MWh/a]* | E31: Besoin de chaleur annuel eau chaude [MWh/a]* | F31: Domanda di calore annuale per l'acqua calda sanitaria [MWh/a]* | G31: Annual heat demand for hot water [MWh/a]*
A32: 1 | B32: B23 | C32: Puissance thermique requise eau chaude max. [kW] | D32: Max. Wärmeleistungsbedarf Warmwasser [kW] | E32: Puissance thermique requise eau chaude max. [kW] | F32: Max. richiesta termica per l'acqua calda sanitaria [kW] | G32: Max. heat capacity for domestic hot water [kW]
A33: 1 | B33: A24 | C33: Chaleur industrielle | D33: Prozesswärme | E33: Chaleur industrielle | F33: Calore di processo | G33: Process heat
A34: 1 | B34: B24 | C34: Besoins de chaleur annuel chaleur industrielle [MWh/a]* | D34: Jahreswärmebedarf Prozesswärme [MWh/a]* | E34: Besoins de chaleur annuel chaleur industrielle [MWh/a]* | F34: Domanda annuale del calore di processo [MWh/a]* | G34: Annual heat demand for process heat [MWh/a]*
A35: 1 | B35: B25 | C35: Puissance thermique requise chaleur industrielle max. [kW] | D35: Max. Wärmeleistungsbedarf Prozesswärme [kW] | E35: Puissance thermique requise chaleur industrielle max. [kW] | F35: Potenza max. richiesta per il calore di processo | G35: Max. heat capacity for process heat [kW]
A36: 1 | B36: B41 | C36: =IF(C$1="F",E36,IF(C$1="I",F36,IF(C$1="E",G36,D36))) -> Relevé de situation V37 | D36: Situationserfassung V37 | E36: Relevé de situation V37 | F36: Analisi domanda di calore V37 | G36: Demand assessment V37
A37: 1 | B37: B41 | C37: Format de fichier: .xlsm | D37: Dateiformat: .xlsm | E37: Format de fichier: .xlsm | F37: Formato del file: .xlsm | G37: File format: .xlsm
A38: 1 | B38: A28 | C38: Données caractéristiques calculées | D38: Berechnete Kennzahlen | E38: Données caractéristiques calculées | F38: Indicatori calcolati | G38: Calculated key figures
A39: 1 | B39: A30 | C39: Chaleur ambiante | D39: Raumwärme | E39: Chaleur ambiante | F39: Calore dell'ambiente | G39: Space heating
A40: 1 | B40: B30 | C40: Heures de marche à pleine charge chaleur ambiante [h/a] | D40: Vollbetriebsstundenzahl Raumwärme [h/a] | E40: Heures de marche à pleine charge chaleur ambiante [h/a] | F40: Ore di funzionamento a pieno carico per il riscaldamento degli ambienti [h/a] | G40: Full load operating hours for space heating [h/a]
A41: 1 | B41: B31 | C41: Besoin de chaleur spécifique [kWh/m²a] | D41: Spezifischer Heizwärmebedarf [kWh/m²a] | E41: Besoin de chaleur spécifique [kWh/m²a] | F41: Domanda specifica del calore per il riscaldamento degli ambienti [kWh/m²a] | G41: Specific heat demand for space heating [kWh/m²a]
A42: 1 | B42: B32 | C42: Puissance thermique spécifique requise [W/m²] | D42: Spezifischer Wärmeleistungsbedarf [W/m²] | E42: Puissance thermique spécifique requise [W/m²] | F42: Domanda specifica della potenza per il ricaldamento degli ambienti [W/m²] | G42: Specific heat capacity for space heating [W/m²]
A43: 1 | B43: A33 | C43: Eau chaude | D43: Warmwasser | E43: Eau chaude | F43: Acqua calda sanitaria | G43: Domestic hot water
A44: 1 | B44: B33 | C44: Heures de marche à pleine charge eau chaude [h/a] | D44: Vollbetriebsstundenzahl Warmwasser [h/a] | E44: Heures de marche à pleine charge eau chaude [h/a] | F44: Ore di funzionamento a pieno carico per l'acqua calda sanitaria [h/a] | G44: Full load operating hours domestic hot water [h/a]
A45: 1 | B45: B34 | C45: Besoin d'énergie spécifique eau chaude [kWh/m²a] | D45: Spezifischer Energiebedarf Warmwasser [kWh/m²a] | E45: Besoin d'énergie spécifique eau chaude [kWh/m²a] | F45: Domanda specifica energetica per l'acqua calda sanitaria [kWh/m²a] | G45: Specific energy demand for domestic hot water [kWh/m²a]
A46: 1 | B46: A35 | C46: Chaleur industrielle | D46: Prozesswärme | E46: Chaleur industrielle | F46: Calore di processo | G46: Process heat
A47: 1 | B47: B35 | C47: Heures de marche à pleine charge chaleur industrielle [h/a] | D47: Vollbetriebsstundenzahl Prozesswärme [h/a] | E47: Heures de marche à pleine charge chaleur industrielle [h/a] | F47: Ore di funzionamento a pieno carico per il calore di processo [h/a] | G47: Full load operating hours for process heat [h/a]
A48: 1
A49: 1 | B49: A37 | C49: * Le besoin de chaleur annuel pour 365 jours doit être indiqué | D49: * Es ist der Jahreswärmebedarf für 365 Tage einzugeben | E49: * Le besoin de chaleur annuel pour 365 jours doit être indiqué | F49: * richiesta di calore annuale per 365 giorni | G49: * annual heat demand for 365 days
A50: 1 | B50: A38 | C50: (besoin de chaleur hiver = besoin de chaleur annuel x jours chauffées / 365 jours) | D50: (Winter-Wärmebedarf = Jahreswärmebedarf x Heiztage / 365 Tage) | E50: (besoin de chaleur hiver = besoin de chaleur annuel x jours chauffées / 365 jours) | F50: (richiesta di calore in inverno = richiesta di calore annuale x giorni di riscaldamento / 365 giorni) | G50: (heat demand in winter = annual heat demand x heating days / 365 days)
A51: 1
A52: 1 | B52: A40 | C52: Champs a remplir | D52: Eingabefelder | E52: Champs a remplir | F52: Campi da compilare | G52: Input fields
A54: 2 | B54: A8 | C54: Données planificateur principale | D54: Eingaben Hauptplaner | E54: Données planificateur principale | F54: Inputs del progettista principale | G54: Inputs main planner
A55: 2 | B55: A10 | C55: Généralités | D55: Allgemeines | E55: Généralités | F55: Informazioni generali | G55: General information
A56: 2 | B56: B10 | C56: Pays | D56: Land | E56: Pays | F56: Paese | G56: Country
A57: 2 | B57: B11 | C57: Station climatologique | D57: Klimastation | E57: Station climatologique | F57: Stazione climatica | G57: Climate station
A58: 2 | B58: B12 | C58: Température extérieure plus basse [°C] | D58: Tiefste Aussentemperatur [°C] | E58: Température extérieure plus basse [°C] | F58: Temperatura esterna più bassa [°C] | G58: Lowest outdoor temperature [°C]
A59: 2 | B59: E12 | C59: =IF(C$1="F",E59,IF(C$1="I",F59,IF(C$1="E",G59,D59))) -> °C = valeur moyenne 10 ans (1993 - 2002) | D59: °C = 10-Jahres-Mittelwert (1993 - 2002) | E59: °C = valeur moyenne 10 ans (1993 - 2002) | F59: °C = media su 10 anni (1993 - 2002) | G59: °C = 10-year average (1993 - 2002)
A60: 2 | B60: E12 | C60: °C = valeur moyenne 10 ans (2011 - 2020) | D60: °C = 10-Jahres-Mittelwert (2011 - 2020) | E60: °C = valeur moyenne 10 ans (2011 - 2020) | F60: °C = media su 10 anni (2011 - 2020) | G60: °C = 10-year average (2011 - 2020)
A61: 2 | B61: E12 | C61: °C = valeur moyenne 10 ans (2002 - 2011) | D61: °C = 10-Jahres-Mittelwert (2002 - 2011) | E61: °C = valeur moyenne 10 ans (2002 - 2011) | F61: °C = media su 10 anni (2002 - 2011) | G61: °C = 10-year average (2002 - 2011)
A62: 2 | B62: B13 | C62: Température ambiante [°C] | D62: Raumtemperatur [°C] | E62: Température ambiante [°C] | F62: Temperatura ambiente [°C] | G62: Room temperature [°C]
A63: 2 | B63: B14 | C63: Limite de chauffage [°C] | D63: Heizgrenze [°C] | E63: Limite de chauffage [°C] | F63: Limite di riscaldamento [°C] | G63: Heating limit [°C]
A64: 2 | B64: B15 | C64: Température aller principale max. [°C] | D64: Max. Haupt-Vorlauftemperatur [°C] | E64: Température aller principale max. [°C] | F64: Max. Temperatura di mandata principale [°C] | G64: Max. main supply temperature [°C]
A65: 2 | B65: B16 | C65: Exploitation estivale | D65: Sommerbetrieb | E65: Exploitation estivale | F65: Funzinamento estivo | G65: Summer operation
A66: 2 | B66: A17 | C66: Chaleur ambiante | D66: Raumwärme | E66: Chaleur ambiante | F66: Calore ambienti | G66: Space heating
A67: 2 | B67: B17 | C67: Part de la puissance thermique requise chaleur ambiante non dépendante de la température extérieure [%] | D67: Nicht witterungsabhängiger Anteil Wärmeleistungsbedarf Raumwärme [%] | E67: Part de la puissance thermique requise chaleur ambiante non dépendante de la température extérieure [%] | F67: Quota non dipendente dalle condizioni climatiche della richiesta di calore per il riscaldamento degli ambienti [%]. | G67: Non-weather-dependent share of heat capacity for space heating [%]
A68: 2 | B68: B18 | C68: Facteur de simultanéité chaleur ambiante [-] | D68: Gleichzeitigkeitsfaktor Raumwärme [-] | E68: Facteur de simultanéité chaleur ambiante [-] | F68: Fattore di simultaneità per il calore ambienti [-] | G68: Simultaneity factor space heating [-]
A69: 2 | B69: A19 | C69: Eau chaude | D69: Warmwasser | E69: Eau chaude | F69: Acqua calda sanitaria | G69: Domestic hot water
A70: 2 | B70: B19 | C70: Facteur de simultanéité eau chaude [-] | D70: Gleichzeitigkeitsfaktor Warmwasser [-] | E70: Facteur de simultanéité eau chaude [-] | F70: Fattore di simultaneità per l'acqua calda [-] | G70: Simultaneity factor domestic hot water [-]
A71: 2 | B71: A20 | C71: Chaleur industrielle | D71: Prozesswärme | E71: Chaleur industrielle | F71: Calore di processo | G71: Process heat
A72: 2 | B72: B20 | C72: Facteur de simultanéité chaleur industrielle [-] | D72: Gleichzeitigkeitsfaktor Prozesswärme [-] | E72: Facteur de simultanéité chaleur industrielle [-] | F72: Fattore di simultaneità per il calore di processo [-] | G72: Simultaneity factor process heat [-]
A73: 2 | B73: A21 | C73: Conduite à distance | D73: Fernleitung | E73: Conduite à distance | F73: Rete di teleriscaldamento | G73: District heating network
A74: 2 | B74: B21 | C74: Perte de chaleur annuelle conduite à distance [MWh/a] | D74: Jahres-Wärmeverlust Fernleitung [MWh/a] | E74: Perte de chaleur annuelle conduite à distance [MWh/a] | F74: Perdita annuale di calore della rete di teleriscaldamento [MWh/a] | G74: Annual heat losses district heating network [MWh/a]
A75: 2 | B75: B22 | C75: Perte de puissance conduite à distance [kW] | D75: Verlustleistung Fernleitung [kW] | E75: Perte de puissance conduite à distance [kW] | F75: Perdita di potenza della rete di teleriscaldamento [kW] | G75: Heat loss capacity of the district heating network [kW]
A76: 2 | C76: =IF(C$1="F",E76,IF(C$1="I",F76,IF(C$1="E",G76,D76))) -> 
A77: 2 | B77: A24 | C77: Valeurs cumulées calculées | D77: Berechnete Summenwerte | E77: Valeurs cumulées calculées | F77: Calcolo dei valori totali | G77: Calculated total values
A78: 2 | B78: A26 | C78: Généralités | D78: Allgemeines | E78: Généralités | F78: Informazioni generali | G78: General information
A79: 2 | B79: B26 | C79: Surface de référence énergétique totale [m²] | D79: Gesamt-Energiebezugsfläche [m²] | E79: Surface de référence énergétique totale [m²] | F79: Superficie disperdente totale [m²] | G79: Total energy reference area [m²]
A80: 2 | B80: A27 | C80: Chaleur ambiante | D80: Raumwärme | E80: Chaleur ambiante | F80: Calore dell'ambiente | G80: Space heating
A81: 2 | B81: B27 | C81: Besoin de chaleur total [MWh/a] | D81: Gesamt-Heizwärmebdarf [MWh/a] | E81: Besoin de chaleur total [MWh/a] | F81: Richiesta di calore totale per il riscaldamento degli ambienti [MWh/a] | G81: Total heat demand for space heating [MWh/a]
A82: 2 | B82: B28 | C82: Puissance thermique totale requise chaleur ambiante max. [kW] | D82: Max. Gesamt-Wärmeleistungsbedarf Raumwärme [kW] | E82: Puissance thermique totale requise chaleur ambiante max. [kW] | F82: Max. potenza termica totale per il riscaldamento degli ambienti [kW] | G82: Total max. heat capacity for space heating [kW]
A83: 2 | B83: A29 | C83: Eau chaude | D83: Warmwasser | E83: Eau chaude | F83: Acqua calda sanitaria | G83: Domestic hot water
A84: 2 | B84: B29 | C84: Besoin de chaleur annuel total eau chaude [MWh/a] | D84: Gesamt-Jahreswärmebdarf Warmwasser [MWh/a] | E84: Besoin de chaleur annuel total eau chaude [MWh/a] | F84: Domanda di calore totale annua per acqua calda sanitaria [MWh/a]. | G84: Total annual heat demand for domestic hot water [MWh/a]
A85: 2 | B85: B30 | C85: Puissance thermique totale requise eau chaude max. [kW] | D85: Max. Gesamt-Wärmeleistungsbedarf Warmwasser [kW] | E85: Puissance thermique totale requise eau chaude max. [kW] | F85: Domanda max. di calore totale annua per acqua calda sanitaria [MWh/a]. | G85: Total max. heat capacity for domestic hot water [kW]
A86: 2 | B86: A31 | C86: Chaleur industrielle | D86: Prozesswärme | E86: Chaleur industrielle | F86: Calore di processo | G86: Process heat
A87: 2 | B87: B31 | C87: Besoin de chaleur annuel total chaleur industrielle [MWh/a] | D87: Gesamt-Jahreswärmebdarf Prozesswärme [MWh/a] | E87: Besoin de chaleur annuel total chaleur industrielle [MWh/a] | F87: Domanda di calore totale annua per il calore di processo [MWh/a]. | G87: Total annual heat demand for process heat [MWh/a]
A88: 2 | B88: B32 | C88: Puissance thermique totale requise chaleur industrielle max. [kW] | D88: Max. Gesamt-Wärmeleistungsbedarf Prozesswärme [kW] | E88: Puissance thermique totale requise chaleur industrielle max. [kW] | F88: Max. domanda di calore totale annua per il calore di processo [MWh/a]. | G88: Total max. heat capacity for process heat [kW]
A89: 2 | B89: A33 | C89: ∑ des consommateurs | D89: ∑ Wärmeabnehmer | E89: ∑ des consommateurs | F89: ∑ consumatori di calore | G89: ∑ heat consumers
A90: 2 | B90: B33 | C90: Besoin de chaleur globale [MWh/a] | D90: Gesamt-Wärmebedarf [MWh/a] | E90: Besoin de chaleur globale [MWh/a] | F90: Domanda di calore totale [MWh/a]. | G90: Total heat demand [MWh/a]
A91: 2 | B91: B34 | C91: Puissance thermique à installer globale [kW] | D91: Gesamt-Wärmeleistungbedarf [kW] | E91: Puissance thermique à installer globale [kW] | F91: Domanda di potenza di calore totale [MWh/a]. | G91: Total heat capacity [kW]
A92: 2
A93: 2 | B93: A36 | C93: Données caractéristiques calculées | D93: Berechnete Kennzahlen | E93: Données caractéristiques calculées | F93: Indicatori calcolati | G93: Calculated key figures
A94: 2 | B94: A38 | C94: Généralités | D94: Allgemeines | E94: Généralités | F94: Informazioni generali | G94: General information
A95: 2 | B95: B38 | C95: Température aller consommateurs max. [°C] | D95: Max. Vorlauftemperatur Wärmeabnehmer [°C] | E95: Température aller consommateurs max. [°C] | F95: Max. Temperatura di mandata per il consumatore di calore [°C] | G95: Max. supply temperature heat consumer [°C]
A96: 2 | B96: B39 | C96: Température retour principale max. [°C] | D96: Max. Hauptrücklauftemperatur [°C] | E96: Température retour principale max. [°C] | F96: Max. Temperatura di ritorno di consumatore di calore [°C] | G96: Max. main return temperature [°C]
A97: 2 | B97: A40 | C97: Chaleur ambiante | D97: Raumwärme | E97: Chaleur ambiante | F97: Calore dell'ambiente | G97: Space heating
A98: 2 | B98: B40 | C98: Heures de marche à pleine charge chaleur ambiante [h/a] | D98: Vollbetriebsstundenzahl Raumwärme [h/a] | E98: Heures de marche à pleine charge chaleur ambiante [h/a] | F98: Ore di funzionamento a pieno carico per il riscaldamento degli ambienti [h/a] | G98: Full load operating hours for space heating [h/a]
A99: 2 | B99: B41 | C99: Besoin de chaleur spécifique [kWh/m²a] | D99: Spezifischer Heizwärmebedarf [kWh/m²a] | E99: Besoin de chaleur spécifique [kWh/m²a] | F99: Domanda specifica di calore per il riscaldamento degli ambienti [kWh/m²a] | G99: Specific heat demand for space heating [kWh/m²a]
A100: 2 | B100: B42 | C100: Puissance thermique spécifique requise [W/m²] | D100: Spezifischer Wärmeleistungsbedarf [W/m²] | E100: Puissance thermique spécifique requise [W/m²] | F100: Domanda specifica della potenza per il ricaldamento degli ambienti [W/m²] | G100: Specific heat capacity for space heating [W/m²]
A101: 2 | B101: A43 | C101: Eau chaude | D101: Warmwasser | E101: Eau chaude | F101: Acqua calda sanitaria | G101: Domestic hot water
A102: 2 | B102: B43 | C102: Heures de marche à pleine charge eau chaude [h/a] | D102: Vollbetriebsstundenzahl Warmwasser [h/a] | E102: Heures de marche à pleine charge eau chaude [h/a] | F102: Ore di funzionamento a pieno carico per l'acqua calda sanitaria [h/a] | G102: Full load operating hours domestic hot water [h/a]
A103: 2 | B103: B44 | C103: Besoin d'énergie spécifique eau chaude [kWh/m²a] | D103: Spezifischer Energiebedarf Warmwasser [kWh/m²a] | E103: Besoin d'énergie spécifique eau chaude [kWh/m²a] | F103: Domanda specifica di calore per l'acqua calda sanitaria [kWh/m²a] | G103: Specific energy demand for domestic hot water [kWh/m²a]
A104: 2 | B104: A44 | C104: Chaleur industrielle | D104: Prozesswärme | E104: Chaleur industrielle | F104: Calore di processo | G104: Process heat
A105: 2 | B105: B45 | C105: Heures de marche à pleine charge chaleur industrielle [h/a] | D105: Vollbetriebsstundenzahl Prozesswärme [h/a] | E105: Heures de marche à pleine charge chaleur industrielle [h/a] | F105: Ore di funzionamento a pieno carico per il calore di processo [h/a] | G105: Full load operating hours for process heat [h/a]
A107: Hilfs | B107: S3 | C107: oui | D107: Ja | E107: oui | F107: Si | G107: Yes
A108: Hilfs | B108: S4 | C108: non | D108: Nein | E108: non | F108: No | G108: No
A109: Hilfs | B109: U3 | C109: Franc Suisse | D109: Franken | E109: Franc Suisse | F109: Franchi svizzeri | G109: Swiss franc
A110: Hilfs | B110: U4 | C110: Euro | D110: Euro | E110: Euro | F110: Euro | G110: Euro
A111: Hilfs | B111: V3 | C111: Plaquettes de bois | D111: Holzhackschnitzel | E111: Plaquettes de bois | F111: Cippato | G111: Wood chips
A112: Hilfs | B112: V4 | C112: Granulé | D112: Pellets | E112: Granulé | F112: Pellets | G112: Pellets
A114: 1 | B114: C11 | C114: Bâtiment ancien | D114: Altbau | E114: Bâtiment ancien | F114: Vecchio edificio | G114: Old building
A115: 1 | B115: C14 | C115: Livraison de mazout | D115: Öl-Lieferung | E115: Livraison de mazout | F115: Consegna del gasolio | G115: Oil delivery
A116: 1 | B116: F11 | C116: Nouveau bâtiment | D116: Neubau | E116: Nouveau bâtiment | F116: Nuova costruzione | G116: New building
A117: 1 | B117: F14 | C117: Norme SIA | D117: SIA-Norm | E117: Norme SIA | F117: Norme SIA | G117: SIA standard
A118: 1
A119: 1 | B119: D11 | C119: Ecole existente | D119: Altes Schulhaus | E119: Ecole existente | F119: Vecchia scuola | G119: Old school building
A120: 1 | B120: D14 | C120: Décompte | D120: Abrechnung | E120: Décompte | F120: Contabilità | G120: Accounting
A121: 1
A122: 1 | B122: E11 | C122: Chaleur industrielle | D122: Prozess | E122: Chaleur industrielle | F122: Processo | G122: Process
A123: 1 | B123: E14 | C123: Mesure | D123: Messung | E123: Mesure | F123: Misurazione | G123: Measurement
C124: 0
A125: Q-Plan | B125: A2 | C125: Unité monétaire: Combustible: | D125: Währungseinheit: Brennstoff: | E125: Unité monétaire: Combustible: | F125: Unità monetaria: Combustibile: | G125: Currency unit: Fuel:
A126: Q-Plan | C126: Tableau Excel «Plan QM» | D126: Excel-Tabelle «Q-Plan» | E126: Tableau Excel «Plan QM» | F126: Tabella Excel "Q-piano" | G126: Excel table "Q-plan"
A127: Q-Plan | C127: Nom du projet ou projet No | D127: Projekt-Kurzbezeichnung oder Projekt-Nr. | E127: Nom du projet ou projet No | F127: Sigla del progetto o numero del progetto | G127: Project short name or project no.
A128: Q-Plan | C128: Planification | D128: Planung | E128: Planification | F128: Proggetazione | G128: Plan
A129: Q-Plan | C129: État réel EP5 | D129: Ist, MS 5 | E129: État réel EP5 | F129: È, MS 5 | G129: Is, MS5
A130: Q-Plan | C130: Bilan énergétique de tous leur preneurs de chaleur | D130: Wärmebedarf aller Wärmeabnehmer | E130: Bilan énergétique de tous leur preneurs de chaleur | F130: Domanda di calore di tutti i consumatori | G130: Heat demand of all heat consumers
A131: Q-Plan | C131: dont ceux raccordés au réseau | D131: davon über das Wärmenetz | E131: dont ceux raccordés au réseau | F131: di cui tramite la rete di teleriscaldamento | G131: of which via the heating network
A132: Q-Plan | C132: Pertes thermiques du réseau de chaleur | D132: Wärmeverluste Wärmenetz | E132: Pertes thermiques du réseau de chaleur | F132: Perdite di calore della rete di teleriscaldamento | G132: District heating network losses
A133: Q-Plan | C133: Bilan énergétique global (y compris pertes du réseau de chaleur) | D133: Gesamtwärmebedarf (inkl. Verluste Wärmenetz) | E133: Bilan énergétique global (y compris pertes du réseau de chaleur) | F133: Domanda totale di calore (incluse le perdite della rete di teleriscaldamento) | G133: Total heat demand (incl. district heating network losses)
A134: Q-Plan | C134: Puissance thermique de tous les preneurs de chaleur | D134: Wärmeleistungsbedarf aller Wärmeabnehmer | E134: Puissance thermique de tous les preneurs de chaleur | F134: Domanda di potenza per il calore di tutti i consumatori | G134: Heat capacity of all heat consumers
A135: Q-Plan | C135: dont ceux raccordés au réseau | D135: davon über das Wärmenetz | E135: dont ceux raccordés au réseau | F135: di cui tramite la rete di teleriscaldamento | G135: of which via the heating network
A136: Q-Plan | C136: =IF(C$1="F",E136,IF(C$1="I",F136,IF(C$1="E",G136,D136))) -> Pertes de puissance du réseau de chaleur | D136: Wärmeleistungsverluste Wärmenetz | E136: Pertes de puissance du réseau de chaleur | F136: Perdite di potenza di calore nella rete di teleriscaldamento | G136: Heat losses district heating network
A137: Q-Plan | C137: Puissance thermique globale de la production de chaleur | D137: Gesamt-Wärmeleistungsbedarf Wärmeerzeugung | E137: Puissance thermique globale de la production de chaleur | F137: Richiesta di potenza di calore per la produzione di calore | G137: Total heat capacity
A138: Q-Plan | C138: Longueur de fouilles du réseau de chaleur (y compris branchements d'immeubles) | D138: Trassenlänge Wärmenetz (inkl. Hausanschlüsse) | E138: Longueur de fouilles du réseau de chaleur (y compris branchements d'immeubles) | F138: Lunghezza della rete di teleriscaldamento (compresi gli allacciamenti della casa) | G138: Length of district heating network (incl. house connections)
A139: Q-Plan | C139: Puissance nominale de la (des) chaudière(s) à bois avec combustible de référence | D139: Nennleistung der/des Holzkessel(s) mit Referenzbrennstoff | E139: Puissance nominale de la (des) chaudière(s) à bois avec combustible de référence | F139: Potenza nominale della caldaia a legna con un combustibile di riferimento | G139: Nominal heat capacity of the biomass boiler(s) with reference fuel
A140: Q-Plan | C140: Puissance nominale de la production de chaleur avec d'autres vecteurs énergétiques…...... | D140: Nennleistung der Wärmeerzeugung mit anderen Energieträgern: ....................................... | E140: Puissance nominale de la production de chaleur avec d'autres vecteurs énergétiques…...... | F140: Potenza nominale della produzione di calore con altre fonti di energia: ....................................... | G140: Nominal heat capacity of the heat production with other energy sources: ……………
A141: Q-Plan | C141: Total puissance nominale de la production de chaleur | D141: Nennleistung der Wärmeerzeugung total | E141: Total puissance nominale de la production de chaleur | F141: Potenza nominale totale della produzione di calore | G141: Total nominal heat capacity of heat production
A142: Q-Plan | C142: Part de l'énergie produite avec du bois | D142: Anteil der mit Holzenergie produzierte Wärmemenge | E142: Part de l'énergie produite avec du bois | F142: Quota di calore prodotto con la legna | G142: Percentage of heat produced from biomass
A143: Q-Plan | C143: Énergie produite avec du bois | D143: Mit Holzenergie produzierte Wärmemenge | E143: Énergie produite avec du bois | F143: Calore prodotto usando legna | G143: Heat produced from biomass
A144: Q-Plan | C144: Volume net du silo | D144: Silogrösse netto | E144: Volume net du silo | F144: Grandezza netta del serbatoio legna | G144: Net size of the storage silo
A145: Q-Plan | C145: Taux de remplissage du silo | D145: Füllgrad Silo | E145: Taux de remplissage du silo | F145: Livello di riempimento del serbatoio legna | G145: Filling level of the storage silo
A146: Q-Plan | C146: Volume brut du silo | D146: Silogrösse brutto | E146: Volume brut du silo | F146: Grandezza lordo del serbatoio legna | G146: Gross size of the storage silo
A147: Q-Plan | C147: Pouvoir calorifique par mètre cube de plaquettes | D147: Energie-Inhalt pro Schüttraummeter (Holzhackschnitzel) | E147: Pouvoir calorifique par mètre cube de plaquettes | F147: Contenuto energetico per metro cubo (cippato) | G147: Energy content per cubic meter (wood chips)
A148: Q-Plan | C148: Pouvoir calorifique par kilogramme de granulé | D148: Energie-Inhalt pro Kilogramm (Pellets) | E148: Pouvoir calorifique par kilogramme de granulé | F148: Contenuto energetico per chilo (pellet) | G148: Energy content per kilogram (pellets)
A149: Q-Plan | C149: Consommation annuelle de combustible | D149: Jährlicher Brennstoffverbrauch der/des Holzkessel(s) | E149: Consommation annuelle de combustible | F149: Consumo annuo del combustibile della caldaia a legna | G149: Annual fuel consumption of the biomass boiler(s)
A150: Q-Plan | C150: Coûts | D150: Kosten | E150: Coûts | F150: Costi | G150: Costs
A151: Q-Plan | C151: Coûts d'investissements pour la production de chaleur | D151: Investitionskosten Wärmeerzeugung | E151: Coûts d'investissements pour la production de chaleur | F151: Costi di investimento per la produzione di calore | G151: Investment costs of heat production
A152: Q-Plan | C152: Coûts d'investissements pour le réseau de chaleur | D152: Investitionskosten Wärmenetz | E152: Coûts d'investissements pour le réseau de chaleur | F152: Costi di investimento per la rete di teleriscaldamento | G152: Investment costs of heating network
A153: Q-Plan | C153: Données de température au point de dimensionnement | D153: Temperaturangaben im Auslegungspunkt | E153: Données de température au point de dimensionnement | F153: Dati di temperatura di progetto | G153: Temperature specification in the design point
A154: Q-Plan | C154: Température départ principal réseau à distance au point de mesure | D154: Temperatur Hauptvorlauf Fernleitung | E154: Température départ principal réseau à distance au point de mesure | F154: Temperatura di mandata principale della rete di teleriscaldamento | G154: Temperature of the main supply pipe
A155: Q-Plan | C155: Température retour principal réseau à distance au point de mesure | D155: Temperatur Hauptrücklauf Fernleitung | E155: Température retour principal réseau à distance au point de mesure | F155: Temperatura di ritorno principale della rete di teleriscaldamento | G155: Temperature of the main return pipe
A156: Q-Plan | C156: Caractéristiques | D156: Kennzahlen | E156: Caractéristiques | F156: Indici | G156: Key figures
A157: Q-Plan | C157: convenue | D157: Vereinbarung | E157: convenue | F157: Accordo | G157: Agreed value
A158: Q-Plan | C158: resp. valeur | D158: bzw. Zielwert | E158: resp. valeur | F158: o obiettivo
A159: Q-Plan | C159: E.2.6 Nombre d'heures de fonctionnement à pleine charge des preneurs de chaleur | D159: E.2.6 Vollbetriebsstundenzahl der Wärmeabnehmer | E159: E.2.6 Nombre d'heures de fonctionnement à pleine charge des preneurs de chaleur | F159: E.2.6 Ore di funzinamento a pieno carico die consumatori di calore | G159: E.2.6 Full load operating hours of the heat consumers
A160: Q-Plan | C160: E.3.3 Densité de raccordement du réseau de chaleur | D160: E.3.3 Anschlussdichte Wärmenetz | E160: E.3.3 Densité de raccordement du réseau de chaleur | F160: E.3.3 Densità di calore lineare della rete di teleriscaldamento | G160: E.3.3 Linear heat density
A161: Q-Plan | C161: E.3.3Pertes thermiques du réseau (% de la chaleur fournie) | D161: E.3.3 Wärmeverluste Wärmenetz (% der zugeführten Wärme) | E161: E.3.3Pertes thermiques du réseau (% de la chaleur fournie) | F161: E.3.3 Perdite di calore nella rete di teleriscaldamento (% del calore prodotto) | G161: E.3.3 District heating network losses (% of the heat input into the network)
A162: Q-Plan | C162: Coûts de la distribution de chaleur par mètre de fouille | D162: Wärmeverteilkosten pro Trm | E162: Coûts de la distribution de chaleur par mètre de fouille | F162: Costi di distribuzione del calore per m (lunghezza rete di teleriscaldamento) | G162: Heat distribution costs per Trm
A163: Q-Plan | C163: E.3.3 Coûts d'investissements spécifiques du réseau de chaleur | D163: E.3.3 Spezifische Investitionskosten Wärmenetz | E163: E.3.3 Coûts d'investissements spécifiques du réseau de chaleur | F163: E.3.3 Costi di investimento specifici per la rete di teleriscaldamento | G163: E.3.3 Specific investment costs of heating network
A164: Q-Plan | C164: E.4.10 Coûts d'investissements spécifiques de la production de chaleur | D164: E.4.10 Spezifische Investitionskosten Wärmeerzeugung | E164: E.4.10 Coûts d'investissements spécifiques de la production de chaleur | F164: E.4.10 Costi di investimento specifici per la produzione di calore | G164: E.4.10 Specific investment costs of heat production
A165: Q-Plan | C165: E.4.4 Nombre d'heures de fonctionnement à pleine charge de la (des) chaudière(s) à bois | D165: E.4.4 Vollbetriebsstundenzahl der/des Holzkessel(s) | E165: E.4.4 Nombre d'heures de fonctionnement à pleine charge de la (des) chaudière(s) à bois | F165: E.4.4 Ore di funzionamento a pieno carico della caldaia a legna | G165: E.4.4 Total full load operating hours of the biomass boiler(s)
A166: Q-Plan | C166: E.4.6 Nombre d'heures de fonctionnement à pleine charge d'autres producteurs de chaleur | D166: E.4.6 Vollbetriebsstundenzahl andere Wärmeerzeuger | E166: E.4.6 Nombre d'heures de fonctionnement à pleine charge d'autres producteurs de chaleur | F166: E.4.6 Ore di funzionamento a pieno carico di altri generatori di calore | G166: E 4.6 Total full load operating hours of other heat production units
A167: Q-Plan | C167: E.4.5 Volume du silo: Couverture des besoins à pleine charge en nombre de jours (+30 m3pl) | D167: E.4.5 Silogrösse: Abdeckung des Vollastbedarfs in Anzahl Tage (+30Srm) | E167: E.4.5 Volume du silo: Couverture des besoins à pleine charge en nombre de jours (+30 m3pl) | F167: E.4.5 Volume del serbatio della legna: Coprire la domanda a pieno carico in numero di giorni (+30 metri steri rinfusi) | G167: E.4.5 Storage size: Coverage the full load demand in number of days (+ 30 LCM)
A168: Q-Plan | C168: E.4.5 Volume du silo: Couverture des besoins à pleine charge en nombre de jours | D168: E.4.5 Silogrösse: Abdeckung des Vollastbedarfs in Anzahl Tage | E168: E.4.5 Volume du silo: Couverture des besoins à pleine charge en nombre de jours | F168: E.4.5 Grandezza del serbatio della legna: Coprire la domanda a pieno carico in numero di giorni | G168: E.4.5 Storage size: Coverage the full load demand in number of days
A169: Q-Plan | C169: Les champs grisés doivent être remplis | D169: Die grau hinterlegten Felder sind Eingabefelder | E169: Les champs grisés doivent être remplis | F169: I campi a sfondo grigio sono campi di input | G169: The fields with a grey background are input fields
A170: Q-Plan | C170: Jours | D170: Tage | E170: Jours | F170: Giorni | G170: days
A171: Q-Plan | C171: kWh/m3pl | D171: kWh/Srm | E171: kWh/m3pl | F171: kWh/msr | G171: kWh/LCM
A172: Q-Plan | C172: m3pl | D172: Srm | E172: m3pl | F172: msr | G172: LCM
A173: Q-Plan | C173: mF | D173: Trm | E173: mF | F173: m | G173: m
A174: Q-Plan | C174: MWh/(a mF) | D174: MWh/(a Trm) | E174: MWh/(a mF) | F174: MWh/m | G174: MWh/(a m)
A175: Q-Plan | C175: CHF/mF | D175: CHF/Trm | E175: CHF/mF | F175: CHF/m | G175: CHF/m
A176: Q-Plan | C176: €/mF | D176: €/Trm | E176: €/mF | F176: €/m | G176: €/m
A177: Q-Plan | C177: Prédéfinition de la monnaie et le type de carburant | D177: Vordefinition von Währung und Brennstofftyp | E177: Prédéfinition de la monnaie et le type de carburant | F177: Predefinizione della valuta e del tipo di carburante | G177: Predefinition of currency and fuel type
A178: Q-Plan | C178: Calcul basé ou un exemple de valeur d'entrée dans la colonne "Planification": | D178: Berechnungs-Basis oder Beispiel für Eingabewert in Spalte "Planung": | E178: Calcul basé ou un exemple de valeur d'entrée dans la colonne "Planification": | F178: Base di calcolo o esempio per il valore di ingresso nella colonna " Progettazione": | G178: Calculation basis or example for input value in column "Plan":
A179: Q-Plan | C179: Texte de la cellule B3 'Consommateurs' | D179: Übernahme aus 'Verbraucher_Consommateurs' Zelle B3 | E179: Texte de la cellule B3 'Consommateurs' | F179: Testo dalla cella B3 'Consumatore' | G179: Transfer from sheet 'Consumers' cell B3
A180: Q-Plan | C180: Valeur de la planification de la feuille Excel 'Hilfsblatt' | D180: Planungswert von 'Hilfsblatt' | E180: Valeur de la planification de la feuille Excel 'Hilfsblatt' | F180: Valore della progettazione del file Excel 'Hilfsblatt' | G180: Planning value from sheet 'Hilfsblatt'
A181: Q-Plan | C181: Valeur d'entrée; entrée possible de Formule | D181: Eingabewert; Formeleingabe möglich | E181: Valeur d'entrée; entrée possible de Formule | F181: Valore d'ingresso; possibilità di inserire la formula | G181: Input value; formula input possible
A182: Q-Plan | C182: Valeur de la planification de la feuille Excel 'Hilfsblatt' | D182: Planungswert von 'Hilfsblatt' | E182: Valeur de la planification de la feuille Excel 'Hilfsblatt' | F182: Valore di progettazione del file Excel 'Hilfsblatt' | G182: Planning value from sheet 'Hilfsblatt'
A183: Q-Plan | C183: Valeur calculée: | D183: Berechneter Wert: | E183: Valeur calculée: | F183: Valore calcolato: | G183: Calculated value:
A184: Q-Plan | C184: Valeur de la planification de la feuille Excel 'Informations generales' | D184: Planungswert von 'Anlage_Installation' | E184: Valeur de la planification de la feuille Excel 'Informations generales' | F184: Valore di progettazione del file Excel 'Informazioni generali' | G184: Planning value from sheet 'General information'
A185: Q-Plan | C185: valeur sélectionnable; entrée possible de Formule | D185: Frei einzugebender Wert; Formeleingabe möglich | E185: valeur sélectionnable; entrée possible de Formule | F185: Valore selezionabile; possibilità di inserire una formula | G185: Value to be entered freely; formula input possible
A186: Q-Plan | C186: Valeur de la planification de la feuille Excel 'Informations generales' | D186: Planungswert von 'Anlage_Installation' | E186: Valeur de la planification de la feuille Excel 'Informations generales' | F186: Valore della progettazione del file Excel 'Informazioni generali' | G186: Planning value from sheet 'General information'
A187: Q-Plan | C187: Valeur d'entrée; entrée possible de Formule | D187: Eingabewert; Formeleingabe möglich | E187: Valeur d'entrée; entrée possible de Formule | F187: Valore di ingresso; possibilità di inserire una formula | G187: Input value; formula input possible
A188: Q-Plan | C188: Valeur de la planification de la feuille Excel 'CentralThermique' | D188: Planungswert von 'Wärmezentrale_Chauffage' | E188: Valeur de la planification de la feuille Excel 'CentralThermique' | F188: Valore della progettazione del file Excel 'Impianto di riscaldimento'. | G188: Planning value from sheet 'Heating plant'
A189: Q-Plan | C189: Valeur de la planification de la feuille Excel 'CentralThermique' | D189: Planungswert von 'Wärmezentrale_Chauffage' | E189: Valeur de la planification de la feuille Excel 'CentralThermique' | F189: Valore della progettazione del file Excel 'Impianto di riscaldimento'. | G189: Planning value from sheet 'Heating plant'
A190: Q-Plan | C190: valeur de la planification de la Çfeuille auxiliaireÈ | D190: Planungswert von 'Hilfsblatt' | E190: valeur de la planification de la Çfeuille auxiliaireÈ | F190: Valore della progettazione del file Excel 'Hilfsblatt' | G190: Planning value from sheet 'Hilfsblatt'
A191: Q-Plan | C191: Valeur d'entrée; entrée possible de Formule | D191: Eingabewert; Formeleingabe möglich | E191: Valeur d'entrée; entrée possible de Formule | F191: Valore di ingresso; possibilità di inserire una formula | G191: Input value; formula input possible
A192: Q-Plan | C192: Valeur d'entrée; entrée possible de Formule | D192: Eingabewert; Formeleingabe möglich | E192: Valeur d'entrée; entrée possible de Formule | F192: Valore di ingresso; possibilità di inserire una formula | G192: Input value; formula input possible
A193: Q-Plan | C193: Valeur d'entrée; entrée possible de Formule | D193: Eingabewert; Formeleingabe möglich | E193: Valeur d'entrée; entrée possible de Formule | F193: Valore di ingresso; possibilità di inserire una formula | G193: Input value; formula input possible
A194: Q-Plan | C194: Valeur d'entrée; entrée possible de Formule | D194: Eingabewert; Formeleingabe möglich | E194: Valeur d'entrée; entrée possible de Formule | F194: Valore di ingresso; possibilità di inserire una formula | G194: Input value; formula input possible
A195: Q-Plan | C195: Valeur d'entrée; entrée possible de Formule | D195: Eingabewert; Formeleingabe möglich | E195: Valeur d'entrée; entrée possible de Formule | F195: Valore di ingresso; possibilità di inserire una formula | G195: Input value; formula input possible
A196: Q-Plan | C196: Valeur d'entrée; entrée possible de Formule | D196: Eingabewert; Formeleingabe möglich | E196: Valeur d'entrée; entrée possible de Formule | F196: Valore di ingresso; possibilità di inserire una formula | G196: Input value; formula input possible
A197: Q-Plan | C197: Valeur d'entrée; entrée possible de Formule | D197: Eingabewert; Formeleingabe möglich | E197: Valeur d'entrée; entrée possible de Formule | F197: Valore di ingresso; possibilità di inserire una formula | G197: Input value; formula input possible
A198: Q-Plan | C198: ; bois d'efficacité annuel chaudiéres 85% | D198: ; Jahrenutzungsgrad Holzkessel 85% | E198: ; bois d'efficacité annuel chaudiéres 85% | F198: ; rendimento annuale della caldaia a legna a 85% | G198: ; annual efficiency biomass boiler 85%
C199: 0
A200: WE | C200: =IF(C$1="F",E200,IF(C$1="I",F200,IF(C$1="E",G200,D200))) -> Données planificateur principale | D200: Eingaben Hauptplaner | E200: Données planificateur principale | F200: Inputs del progettista principale | G200: Inputs main planner
A201: WE | C201: Données caractéristiques calculées | D201: Berechnete Kennzahlen | E201: Données caractéristiques calculées | F201: Indicatori calcolati | G201: Calculated key figures
A202: WE | C202: Champs a remplir | D202: Eingabefelder | E202: Champs a remplir | F202: Campi da compilare | G202: Input fields
A203: WE | C203: Formats de fichiers recommandés: .xlsm oder .xls (Excel 97-2004) | D203: Empfohlene Dateiformate: .xlsm oder .xls (Excel 97-2004) | E203: Formats de fichiers recommandés: .xlsm oder .xls (Excel 97-2004) | F203: Formati di file consigliati: .xlsm o .xls (Excel 97-2004) | G203: Recommended file formats: .xlsm or .xls (Excel 97-2004)
... 63 more rows

Sheet Hilfsblatt (hidden)
B1: Ausgezoge Lastkennlinien | H1: Wärmebedarfsbalken | S1: =IF(S2=1,"Ja","Nein") -> Ja | T1: =IF(T2=1,"D",IF(T2=2,"F",IF(T2=3,"I","E"))) -> F | U1: Währung | V1: Brennstoff | W1: WE | AA1: Tabellenblattnamen (werden über Makro umgeschalten) | AK1: =OFFSET($AK$2,AL1,0) -> 0 | AL1: 3 | AN1: =OFFSET($AN$2,AL1,0) -> 25
I2: Energiedaten | J2: Leistungsdaten | S2: 1 | T2: 2 | U2: 1 | V2: 1 | W2: 1 | Z2: letzte | AA2: aktuelle Auswahl | AB2: deutsch | AC2: français | AD2: italiano | AE2: english
A3: Passwort für EXCEL_Situationserfassung: | B3: AT | C3: Fernleitung | D3: Prozess | E3: Warmwasser | F3: Raumwärme | I3: Jahr | J3: Winter | K3: Sommer | L3: Jahr | S3: =Text!C107 -> oui | T3: deutsch | U3: =Text!C109 -> Franc Suisse | V3: =Text!C111 -> Plaquettes de bois | W3: =Text!C238 -> WE1 | X3: 1500 | Z3: Verbraucher | AA3: =OFFSET(AB3,0,$T$2-1,1,1) -> Consommateurs | AB3: Verbraucher | AC3: Consommateurs | AD3: Consumatore | AE3: Consumers | AK3: 3 | AL3: Deutschland (DE) | AN3: 12
A4: Holzenergie | B4: =C$31 -> -7 | C4: =ROUND('Allgemeine Angaben'!$C$22,3) -> 49.4 | D4: =ROUND($C4+'Allgemeine Angaben'!$C$20*'Allgemeine Angaben'!$C$32,3) -> 111 | E4: =ROUND($D4+'Allgemeine Angaben'!$C$19*'Allgemeine Angaben'!$C$30,3) -> 373.5 | F4: =ROUND((B4-B5)*F12+F5,3) -> 1448.676 | H4: Raumwärme | I4: ='Allgemeine Angaben'!C27 -> 2792 | J4: =D33 -> 2792.954448 | L4: =SUM(J4:K4) -> 2792.954448 | M4: Chaleure ambiante | N4: Space heating | O4: Calore ambienti | S4: =Text!C108 -> non | T4: français | U4: =Text!C110 -> Euro | V4: =Text!C112 -> Granulé | W4: =Text!C239 -> WE2 | X4: 2000 | Z4: Allgemeine Angaben | AA4: =OFFSET(AB4,0,$T$2-1,1,1) -> Informations generales | AB4: Allgemeine Angaben | AC4: Informations generales | AD4: Informazioni generali | AE4: General information | AK4: 6 | AL4: Österreich (AT) | AN4: 20
B5: ='Allgemeine Angaben'!C$12-'Allgemeine Angaben'!C$13+'Allgemeine Angaben'!C$14 -> -13 | C5: =ROUND('Allgemeine Angaben'!$C$22,3) -> 49.4 | D5: =ROUND($C5+'Allgemeine Angaben'!$C$20*'Allgemeine Angaben'!$C$32,3) -> 111 | E5: =ROUND($D5+'Allgemeine Angaben'!$C$19*'Allgemeine Angaben'!$C$30,3) -> 373.5 | F5: =ROUND($E5+'Allgemeine Angaben'!$C$18*SUM(Verbraucher!$C$54:$IV$54),3) -> 1723.5 | H5: Warmwasser | I5: ='Allgemeine Angaben'!C29 -> 641 | J5: =ROUND('Allgemeine Angaben'!$C$29/8760*$J$9,3) -> 467.14 | K5: =IF($S$1="Ja",ROUND('Allgemeine Angaben'!$C$29/8760*$K$9,3),"") -> 173.86 | L5: =SUM(J5:K5) -> 641 | M5: Eau chaude | N5: Domestic hot water | O5: Acqua calda sanitaria | T5: italiano | W5: =Text!C240 -> WE3 | X5: 2500 | Z5: Wärmezentrale | AA5: CentraleThermique | AB5: Wärmezentrale | AC5: CentraleThermique | AD5: Impianto di riscaldamento | AE5: Heating plant | AK5: 0 | AL5: Schweiz (CH) | AN5: 25
B6: ='Allgemeine Angaben'!C$14 -> 15 | C6: =ROUND('Allgemeine Angaben'!$C$22,3) -> 49.4 | D6: =ROUND($C6+'Allgemeine Angaben'!$C$20*'Allgemeine Angaben'!$C$32,3) -> 111 | E6: =ROUND($D6+'Allgemeine Angaben'!$C$19*'Allgemeine Angaben'!$C$30,3) -> 373.5 | F6: =ROUND($E6+'Allgemeine Angaben'!$C$18*('Allgemeine Angaben'!$C$17/100)*SUM(Verbraucher!$C$54:$IV$54),3) -> 441 | H6: Prozess | I6: ='Allgemeine Angaben'!C31 -> 500 | J6: =ROUND('Allgemeine Angaben'!$C$31/8760*$J$9,3) -> 364.384 | K6: =IF($S$1="Ja",ROUND('Allgemeine Angaben'!$C$31/8760*$K$9,3),"") -> 135.616 | L6: =SUM(J6:K6) -> 500 | M6: Chaleure industrielle | N6: Preocess heat | O6: Calore di processo | T6: english | W6: =Text!C241 -> WE4 | X6: 3500 | Z6: Q-Plan Tabelle | AA6: =OFFSET(AB6,0,$T$2-1,1,1) -> QM Tableau | AB6: Q-Plan Tabelle | AC6: QM Tableau | AD6: Q-piano | AE6: Q-plan table | AK6: 9 | AL6: Slowenien (SI) | AN6: 3
B7: ='Allgemeine Angaben'!C$14 -> 15 | C7: =IF($S$1="JA",ROUND('Allgemeine Angaben'!$C$22,3),0) -> 49.4 | D7: =IF($S$1="JA",ROUND($C7+'Allgemeine Angaben'!$C$20*'Allgemeine Angaben'!$C$32,3),0) -> 111 | E7: =IF($S$1="JA",ROUND($D7+'Allgemeine Angaben'!$C$19*'Allgemeine Angaben'!$C$30,3),0) -> 373.5 | F7: =$E7 -> 373.5 | H7: Fernleitung | I7: ='Allgemeine Angaben'!C21 -> 432.6 | J7: =ROUND('Allgemeine Angaben'!$C$22*$J$9/1000,3) -> 315.37 | K7: =IF($S$1="Ja",ROUND('Allgemeine Angaben'!$C$22*$K$9/1000,3),"") -> 117.374 | L7: =SUM(J7:K7) -> 432.744 | M7: Conduite à distance | N7: District heating | O7: Rete di teleriscaldamento | W7: =Text!C242 -> WE5 | X7: 1500 | Z7: AT-Vergleich | AA7: =OFFSET(AB7,0,$T$2-1,1,1) -> Comparaison TE | AB7: AT-Vergleich | AC7: Comparaison TE | AD7: Temp confronto | AE7: Amb-temp comparison | AK7: 12 | AL7: Italien (IT) | AN7: 8
B8: ='Allgemeine Angaben'!C$13 -> 21 | C8: =IF($S$1="JA",ROUND('Allgemeine Angaben'!$C$22,3),0) -> 49.4 | D8: =IF($S$1="JA",ROUND($C8+'Allgemeine Angaben'!$C$20*'Allgemeine Angaben'!$C$32,3),0) -> 111 | E8: =IF($S$1="JA",ROUND($D8+'Allgemeine Angaben'!$C$19*'Allgemeine Angaben'!$C$30,3),0) -> 373.5 | F8: =$E8 -> 373.5 | I8: =SUM(I4:I7) -> 4365.6 | W8: =Text!C243 -> WE6 | X8: 2000
B9: 30 | C9: =IF($S$1="JA",ROUND('Allgemeine Angaben'!$C$22,3),0) -> 49.4 | D9: =IF($S$1="JA",ROUND($C9+'Allgemeine Angaben'!$C$20*'Allgemeine Angaben'!$C$32,3),0) -> 111 | E9: =IF($S$1="JA",ROUND($D9+'Allgemeine Angaben'!$C$19*'Allgemeine Angaben'!$C$30,3),0) -> 373.5 | F9: =$E9 -> 373.5 | H9: Heizstunden | J9: =E32*24 -> 6384 | K9: =365*24-J9 -> 2376 | W9: =Text!C244 -> WE7 | X9: 2500 | AB9: Bilder_DE | AC9: Figures_FR | AD9: Immagini_IT | AE9: Images_EN
W10: =Text!C245 -> WE8 | X10: 3000 | AA10: =OFFSET(AB10,0,$T$2-1,1,1) -> Figures | AB10: Bilder | AC10: Figures | AD10: Immagini | AE10: Images | AO10: CH | AR10: DE | AU10: AT | AX10: SI | BA10: IT
A11: Paralellverschiebung | F11: =ROUND(INDEX(LINEST(F$5:F$6,B$5:B$6),2)-E5,3) -> 754.554 | H11: Gesamt | I11: =SUM(I4:I7) -> 4365.6 | J11: =SUM(J4:J7) -> 3939.848448 | K11: =SUM(K4:K7) -> 426.85 | L11: =SUM(L4:L7) -> 4366.698448 | M11: Total | N11: Total | O11: Totale | W11: =Text!C204 -> Aucun | X11: – | AK11: =OFFSET($AK$12,AL11,0) -> 6 | AL11: 25
A12: Steilheit | F12: =ROUND(INDEX(LINEST(F$5:F$6,B$5:B$6),1),3) -> -45.804 | H12: Holzkessel | J12: =AF32 -> 3939.852816 | K12: =AF31 -> 426.853152 | L12: =AF33 -> 4366.705968 | M12: Chaudière à bois | N12: Biomass boiler | O12: Caldaia a legna
H13: Bandleistungsquelle | J13: =X32 -> 0 | K13: =X31 -> 0 | L13: =X33 -> 0 | M13: Source de puissance de base | N13: Base load source | O13: Fonte di alimentazione di base | AK13: =IF(OFFSET($AO13,,$AK$1)="","",OFFSET($AN13,,$AK$1)) -> 190 | AL13: =IF(OFFSET($AO13,,$AK$1)="","",OFFSET($AO13,,$AK$1)) -> Andermatt (CH), 1442 m ü. M. | AN13: 190 | AO13: Andermatt (CH), 1442 m ü. M. | AQ13: 62 | AR13: Augsburg (DE), 461 m ü. M. | AT13: 122 | AU13: Bad Aussee (AT), 659 m ü. M. | AW13: 42 | AX13: BILJE (SI), 55 m ü. M. | AZ13: 222 | BA13: Barcis (IT) 409 m s.l.m.
B14: Unsichtbare Lastkennlinien | H14: Gesamt | J14: =J11/$L$11*100 -> 90.22488031 | K14: 9.775119695 | L14: 100 | AK14: 194 | AL14: =IF(OFFSET($AO14,,$AK$1)="","",OFFSET($AO14,,$AK$1)) -> Acquarossa/Comprovasco (CH), 575 m ü. M. | AN14: 194 | AO14: Acquarossa/Comprovasco (CH), 575 m ü. M. | AQ14: 66 | AR14: Bamberg (DE), 240 m ü. M. | AT14: 126 | AU14: Bregenz (AT), 427 m ü. M. | AW14: 38 | AX14: BRNIK LETALIŠČE (SI), 364 m ü. M. | AZ14: 226 | BA14: Codroipo (IT) 43 m s.l.m.
H15: Holzkessel | J15: 90.22498034 | K15: 9.775191877 | L15: 100.0001722 | AK15: 198 | AL15: Bad Ragaz (CH), 496 m ü. M. | AN15: 198 | AO15: Bad Ragaz (CH), 496 m ü. M. | AQ15: 50 | AR15: Frankfurt/Main Flughafen (DE), 112 m ü. M. | AT15: 130 | AU15: Eisenstadt (AT), 182 m ü. M. | AW15: 46 | AX15: NOVA VAS [BLOKE] (SI), 722 m ü. M. | AZ15: 230 | BA15: Forni di Sopra (IT) 907 m s.l.m.
B16: AT | C16: Fernleitung | D16: Prozess | E16: Warmwasser | F16: Raumwärme | H16: Bandleistungsquelle | J16: 0 | K16: 0 | L16: 0 | U16: WENN(Hilfsblatt!S1="Nein";Hilfsblatt!F19-Hilfsblatt!AA31;Hilfsblatt!F20-Hilfsblatt!AA31) | AK16: 86 | AL16: Basel-Binningen (CH), 316 m ü. M. | AN16: 86 | AO16: Basel-Binningen (CH), 316 m ü. M. | AQ16: 70 | AR16: Hof (DE), 565 m ü. M. | AT16: 134 | AU16: Freistadt (AT), 560 m ü. M. | AZ16: 234 | BA16: Gemona (IT) 272 m s.l.m.
B17: =C$31 -> -7 | C17: =ROUND('Allgemeine Angaben'!$C$22,3) -> 49.4 | D17: =ROUND($C17+'Allgemeine Angaben'!$C$31*1000/8760,3) -> 106.478 | E17: =ROUND($D17+'Allgemeine Angaben'!$C$29*1000/8760,3) -> 179.652 | F17: =ROUND((B17-B18)*F25+F18,3) -> 1196.292 | AK17: 90 | AL17: Bern/Zollikofen (CH), 553 m ü. M. | AN17: 90 | AO17: Bern/Zollikofen (CH), 553 m ü. M. | AQ17: 34 | AR17: Hohenpeißenberg (DE), 977 m ü. M. | AT17: 138 | AU17: Fürstenfeld (AT), 276 m ü. M. | AZ17: 238 | BA17: San Pietro al Nasitone (IT) 175 m s.l.m.
B18: ='Allgemeine Angaben'!C$12-'Allgemeine Angaben'!C$13+'Allgemeine Angaben'!C$14 -> -13 | C18: =ROUND('Allgemeine Angaben'!$C$22,3) -> 49.4 | D18: =ROUND($C18+'Allgemeine Angaben'!$C$31*1000/8760,3) -> 106.478 | E18: =ROUND($D18+'Allgemeine Angaben'!$C$29*1000/8760,3) -> 179.652 | F18: =ROUND($E18+SUM(Verbraucher!$C$53:$IV$53),3) -> 1456.152 | AK18: 254 | AL18: Bullet / La Fretaz (CH), 1205 m ü. M. | AN18: 254 | AO18: Bullet / La Fretaz (CH), 1205 m ü. M. | AQ18: 58 | AR18: Kahler Asten (DE), 839 m ü. M. | AT18: 14 | AU18: Graz Universität (AT), 353 m ü. M. | AZ18: 242 | BA18: Sgonico (IT) 278 m s.l.m.
B19: ='Allgemeine Angaben'!C$14 -> 15 | C19: =ROUND('Allgemeine Angaben'!$C$22,3) -> 49.4 | D19: =ROUND($C19+'Allgemeine Angaben'!$C$31*1000/8760,3) -> 106.478 | E19: =ROUND($D19+'Allgemeine Angaben'!$C$29*1000/8760,3) -> 179.652 | F19: =ROUND($E19+'Allgemeine Angaben'!$C$17/100*SUM(Verbraucher!$C$53:$IV$53),3) -> 243.477 | AK19: 202 | AL19: Château-d'Oex (CH), 1029 m ü. M. | AN19: 202 | AO19: Château-d'Oex (CH), 1029 m ü. M. | AQ19: 26 | AR19: Karlsruhe/Rheinstetten (DE), 116 m ü. M. | AT19: 142 | AU19: Hohenau/March (AT), 155 m ü. M. | AZ19: 246 | BA19: Tarvisio (IT) 754 m s.l.m.
B20: ='Allgemeine Angaben'!C$14 -> 15 | C20: =IF($S$1="JA",ROUND('Allgemeine Angaben'!$C$22,3),0) -> 49.4 | D20: =IF($S$1="JA",ROUND($C20+'Allgemeine Angaben'!$C$31*1000/8760,3),0) -> 106.478 | E20: =IF($S$1="JA",ROUND($D20+'Allgemeine Angaben'!$C$29*1000/8760,3),0) -> 179.652 | F20: =$E20 -> 179.652 | AK20: 2 | AL20: Davos (CH), 1594 m ü. M. | AN20: 2 | AO20: Davos (CH), 1594 m ü. M. | AQ20: 74 | AR20: Kempten (DE), 705 m ü. M. | AT20: 146 | AU20: Innsbruck Universität (AT), 574 m ü. M. | AZ20: 250 | BA20: Tolmezzo (IT) 323 m s.l.m.
B21: ='Allgemeine Angaben'!C$13 -> 21 | C21: =IF($S$1="JA",ROUND('Allgemeine Angaben'!$C$22,3),0) -> 49.4 | D21: =IF($S$1="JA",ROUND($C21+'Allgemeine Angaben'!$C$31*1000/8760,3),0) -> 106.478 | E21: =IF($S$1="JA",ROUND($D21+'Allgemeine Angaben'!$C$29*1000/8760,3),0) -> 179.652 | F21: =$E21 -> 179.652 | T21: =IF(AA$31=0,0,IF(AA$31>=L36,IF(L36>=T35,L36,IF(S$1="JA",T35,IF(AA$31<=L36,AA$31,L36))),T35)) -> 0 | AK21: 206 | AL21: Disentis/Sedrun (CH), 1197 m ü. M. | AN21: 206 | AO21: Disentis/Sedrun (CH), 1197 m ü. M. | AQ21: 30 | AR21: München Flughafen (DE), 446 m ü. M. | AT21: 150 | AU21: Klagenfurt Flughafen (AT), 446 m ü. M.
B22: 30 | C22: =IF($S$1="JA",ROUND('Allgemeine Angaben'!$C$22,3),0) -> 49.4 | D22: =IF($S$1="JA",ROUND($C22+'Allgemeine Angaben'!$C$31*1000/8760,3),0) -> 106.478 | E22: =IF($S$1="JA",ROUND($D22+'Allgemeine Angaben'!$C$29*1000/8760,3),0) -> 179.652 | F22: =$E22 -> 179.652 | AK22: 258 | AL22: Einsiedeln (CH), 910 m ü. M. | AN22: 258 | AO22: Einsiedeln (CH), 910 m ü. M. | AQ22: 78 | AR22: Nürnberg (DE), 314 m ü. M. | AT22: 154 | AU22: Kufstein (AT), 499 m ü. M.
AK23: 98 | AL23: Engelberg (CH), 1036 m ü. M. | AN23: 98 | AO23: Engelberg (CH), 1036 m ü. M. | AQ23: 54 | AR23: Trier-Petrisberg (DE), 265 m ü. M. | AT23: 158 | AU23: Lienz (AT), 673 m ü. M.
A24: Paralellverschiebung | F24: =ROUND(INDEX(LINEST(F$18:F$19,B$18:B$19),2)-E18,3) -> 713.472 | AK24: 210 | AL24: Fribourg/Posieux (CH), 646 m ü. M. | AN24: 210 | AO24: Fribourg/Posieux (CH), 646 m ü. M. | AQ24: 82 | AR24: Würzburg (DE), 268 m ü. M. | AT24: 162 | AU24: Linz Stadt (AT), 266 m ü. M.
A25: Steilheit | F25: =ROUND(INDEX(LINEST(F$18:F$19,B$18:B$19),1),3) -> -43.31 | AK25: 94 | AL25: La Chaux-de-Fonds (CH), 1018 m ü. M. | AN25: 94 | AO25: La Chaux-de-Fonds (CH), 1018 m ü. M. | AT25: 166 | AU25: Mariazell (AT), 868 m ü. M.
Y26: Bandquelle | AA26: Min. Leistung | AG26: Holzkessel | AK26: 262 | AL26: Langnau i.E. (CH), 745 m ü. M. | AN26: 262 | AO26: Langnau i.E. (CH), 745 m ü. M. | AT26: 170 | AU26: Salzburg-Freisaal (AT), 424 m ü. M.
AA27: =IF(T$1="FR",IF(Figures!M7="",0,Figures!M7),IF(T$1="SI",IF(Bilder_IT!M6="",0,Bilder_IT!M6),IF(Bilder!M7="",0,Bilder!M7))) -> 67.5 | AB27: =AA27+Y31 -> 67.5 | AD27: =MAX(AD34:AD87) -> 179.652 | AK27: 10 | AL27: Locarno/Monti (CH), 367 m ü. M. | AN27: 10 | AO27: Locarno/Monti (CH), 367 m ü. M. | AT27: 174 | AU27: Schröcken (AT), 1269 m ü. M.
W28: =IF(OR($G29="Acquarossa/Comprovasco (CH), 575 m ü. M.",$G29="Pully (CH), 456 m ü. M.",$G29="Schröcken (AT), 1269 m ü. M.",$G29="Augsburg (DE), 461 m ü. M.",$G29="Bamberg (DE), 240 m ü. M.",$G29="Karlsruhe/Rheinstetten (DE), 116 m ü. M.",$G29="BILJE (SI), 55 m ü. M."),2,1) -> 1 | Y28: Min. Leistung | AA28: Max. Leistung | AE28: =IF(OR($G29="Acquarossa/Comprovasco (CH), 575 m ü. M.",$G29="Pully (CH), 456 m ü. M.",$G29="Schröcken (AT), 1269 m ü. M.",$G29="Augsburg (DE), 461 m ü. M.",$G29="Bamberg (DE), 240 m ü. M.",$G29="Karlsruhe/Rheinstetten (DE), 116 m ü. M.",$G29="BILJE (SI), 55 m ü. M."),2,1) -> 1 | AG28: Min. Leistung | AK28: 102 | AL28: Luzern (CH), 454 m ü. M. | AN28: 102 | AO28: Luzern (CH), 454 m ü. M. | AT28: 178 | AU28: St. Pölten (AT), 267 m ü. M.
A29: Klimastation | G29: =OFFSET($AL$12,AL11,0) -> Zürich/Fluntern (CH), 556 m ü. M. | Y29: =ROUND(MIN(Y33:Y87),0) -> 0 | AA29: =IF(T$1="FR",IF(Figures!M8="",10^10,Figures!M8),IF(T$1="IT",IF(Bilder_IT!M7="",10^10,Bilder_IT!M7),IF(Bilder!M8="",10^10,Bilder!M8))) -> 1305 | AB29: =AA29+Y31 -> 1305 | AG29: =ROUND(AD27-T31,0) -> 180 | AK29: 266 | AL29: Payerne (CH), 490 m ü. M. | AN29: 266 | AO29: Payerne (CH), 490 m ü. M. | AT29: 18 | AU29: Tamsweg (AT), 1022 m ü. M.
J30: =C31-B36 -> 13 | K30: =IF($S$1="JA",365,$K$36) -> 365 | L30: =$E$19 -> 179.652 | Y30: Max. Leistung | AA30: Bandleistung | AG30: Max. Leistung | AK30: 214 | AL30: Piotta (CH), 990 m ü. M. | AN30: 214 | AO30: Piotta (CH), 990 m ü. M. | AT30: 22 | AU30: Wien innere Stadt (AT), 170 m ü. M.
A31: Tiefste Aussentemperatur [°C] | C31: =MIN(C36:C86) -> -7 | K31: 1 | L31: =$L$30 -> 179.652 | T31: =MAX(T33:T89) -> 0 | X31: =X33-X32 -> 0 | Y31: =ROUND(MAX(Y33:Y87),0) -> 0 | AA31: =IF(T$1="FR",IF(Figures!M9="",10^10,Figures!M9),IF(T$1="IT",IF(Bilder_IT!M8="",10^10,Bilder_IT!M8),IF(Bilder!M9="",10^10,Bilder!M9))) -> 0 | AF31: =AF33-AF32 -> 426.853152 | AG31: =ROUND(MAX(AG33:AG87),0) -> 1196 | AK31: 106 | AL31: Pully (CH), 456 m ü. M. | AN31: 106 | AO31: Pully (CH), 456 m ü. M. | AT31: 182 | AU31: Zell am See (AT), 750 m ü. M.
A32: Heiztage | E32: =ROUND(SUM(E36:E86)/24,1) -> 266 | G32: =SUM(G36:G86) -> 365 | X32: =SUM(X36:X86) -> 0 | AF32: =SUM(AF36:AF86) -> 3939.852816 | AH32: =SUM(AH36:AH86) -> 3939.852816 | AK32: 270 | AL32: Rünenberg (CH), 611 m ü. M. | AN32: 270 | AO32: Rünenberg (CH), 611 m ü. M. | AT32: 186 | AU32: Zeltweg (AT), 659 m ü. M.
A33: Heizwärmebedarf [MWh/a] (inkl. nicht witterungsabhängigem Anteil) | D33: =SUM(D36:D86)/1000 -> 2792.954448 | T33: 0 | U33: =U34 -> 0 | W33: =SUM(W35:W86) -> 364 | X33: =SUM(X35:X86) -> 0 | AA33: =T$31 -> 0 | AB33: =AB34 -> 365 | AE33: =SUM(AE35:AE86) -> 365 | AF33: =SUM(AF35:AF86) -> 4366.705968 | AG33: =IF(S$1="NEIN",0,IF(AA33>0,AA33,0)) -> 0 | AK33: 110 | AL33: Samedan (CH), 1709 m ü. M. | AN33: 110 | AO33: Samedan (CH), 1709 m ü. M.
A34: Nicht witterunsabhängiger Anteil [MWh/a] | D34: =ROUND((F6-F7)*E32*24/1000,3) -> 430.92 | K34: 365 | L34: =IF($S$1="JA",$L$30,0) -> 179.652 | T34: =IF(AA$31=0,0,IF(AA$31>=L34,L34,AA$31)) -> 0 | U34: =IF(U89<365,U89,365) -> 0 | V34: =IF(AND(T33=0,T34>0),$K34,"") ->  | Y34: =IF(T34>0,T34,0) -> 0 | AA34: =IF(L34<AB$27,AA33,IF(L34>AB$29,AA33,IF(L34<T$31,T$31,L34))) -> 179.652 | AB34: =IF(AB89<365,AB89,365) -> 365 | AC34: =IF(AND(AA33=T$31,AA34>T$31),IF(AB$27<T$31,K33,K34),"") -> 365 | AD34: =IF(AC34="","",AA34) -> 179.652 | AG34: =IF(S$1="NEIN",0,IF(AA34>0,AA34,0)) -> 179.652 | AK34: 114 | AL34: St. Gallen (CH), 776 m ü. M. | AN34: 114 | AO34: St. Gallen (CH), 776 m ü. M.
K35: =E32 -> 266 | L35: =IF($S$1="JA",$L$30,0) -> 179.652 | T35: =IF(AA$31=0,0,IF(AA$31>=L35,IF(L35>=T34,L35,T34),T34)) -> 0 | U35: =IF(AND(T35=0,T36>0),K36,IF(T35=0,U$89,K35)) -> 0 | W35: =(365-U36) -> 365 | X35: =W35*24*T35/1000 -> 0 | Y35: =IF(T35>0,T35,0) -> 0 | AA35: 179.652 | AB35: =IF(AND(AA35=T$31,AA36>T$31),IF(AB$27<T$31,K35,K36),IF(AA35=T$31,AB$89,K35)) -> 266 | AD35: =IF(AC35="","",AA35) ->  | AE35: =(365-AB36) -> 99 | AF35: =IF(AE36=0,0,AE35*24*(AA35-T36)/1000) -> 426.853152 | AG35: =IF(S$1="NEIN",0,IF(AA35>0,AA35,0)) -> 179.652 | AH35: =AE35*AG35*24/1000 -> 426.853152 | AK35: 218 | AL35: Ulrichen (CH), 1346 m ü. M. | AN35: 218 | AO35: Ulrichen (CH), 1346 m ü. M.
B36: -20 | C36: =IF(OR(G36=0,B36>B$6),"",B36) ->  | D36: =IF(C36="","",ROUND((B36*F$25+F$24)*E36,3)) ->  | E36: =IF(C36="","",G36*24) ->  | F36: 0 | G36: =OFFSET(Klimadaten!$B$10,$F36,$AK$11) -> 0 | H36: =G36 -> 0 | I36: =IF(OR($G36=0,$B36>$B$6),-10,$B36*$F$25+$F$24+$L$30) -> -10 | J36: =86+(B20-B22)-36 -> 35 | K36: =OFFSET(H$36,$J36,0) -> 266 | L36: =OFFSET(I$36,$J36,0) -> 243.474 | M36: =IF(G36=0,-25,B36) -> -25 | N36: =OFFSET(Klimadaten!$B$10,$F36,$AK$11-1) -> 0 | O36: =N36 -> 0 | P36: =IF(N36=0,-25,$B36) -> -25 | Q36: =OFFSET(Klimadaten!$B$10,$F36,$AK$11+1) -> 0 | R36: =Q36 -> 0 | S36: =IF(Q36=0,-25,$B36) -> -25 | T36: =IF(AA$31=0,0,IF(AA$31>=L36,IF(L36>=T35,L36,T35),IF(S$1="JA",T35,IF(AA$31<=L36,AA$31,L36)))) -> 0 | U36: 0 | W36: =IF(AND(U36=W$28,U35>W$28),(U36-U37)+W$28,U36-U37) -> 0 | X36: =W36*24*T36/1000 -> 0 | Y36: =IF(T36>0,T36,0) -> 0 | AA36: 243.474 | AB36: 266 | AE36: =IF(AND(AB36=AE$28,AB35>AE$28),(AB36-AB37)+AE$28,AB36-AB37) -> 16 | AF36: =AE36*24*(AA36-T36)/1000 -> 93.494016 | AG36: =IF(AA36>0,AA36-T36,0) -> 243.474 | AH36: =AE36*AG36*24/1000 -> 93.494016 | AK36: 118 | AL36: Visp (CH), 639 m ü. M. | AN36: 118 | AO36: Visp (CH), 639 m ü. M.
B37: =B36+1 -> -19 | D37: =IF(C37="","",ROUND((B37*F$25+F$24)*E37,3)) ->  | E37: =IF(C37="","",G37*24) ->  | F37: =F36+1 -> 1 | G37: =OFFSET(Klimadaten!$B$10,$F37,$AK$11) -> 0 | H37: =H36+G37 -> 0 | I37: -10 | J37: =IF(J36-1<J$30,J$30,J36-1) -> 34 | K37: =OFFSET(H$36,$J37,0) -> 250 | L37: =OFFSET(I$36,$J37,0) -> 286.784 | M37: =IF(G37=0,-25,B37) -> -25 | N37: =OFFSET(Klimadaten!$B$10,$F37,$AK$11-1) -> 0 | O37: =O36+N37 -> 0 | P37: =IF(N37=0,-25,$B37) -> -25 | Q37: =OFFSET(Klimadaten!$B$10,$F37,$AK$11+1) -> 0 | R37: =R36+Q37 -> 0 | S37: =IF(Q37=0,-25,$B37) -> -25 | T37: =IF(AA$31=0,0,IF(AA$31>=L37,IF(L37>=T36,L37,T36),T36)) -> 0 | U37: 0 | W37: 0 | X37: 0 | Y37: =IF(T37>0,T37,0) -> 0 | AA37: 286.784 | AB37: 250 | AE37: 16 | AF37: =AE37*24*(AA37-T37)/1000 -> 110.125056 | AG37: =IF(AA37>0,AA37-T37,0) -> 286.784 | AH37: 110.125056 | AK37: 6 | AL37: Zürich/Fluntern (CH), 556 m ü. M. | AN37: 6 | AO37: Zürich/Fluntern (CH), 556 m ü. M.
B38: -18 | F38: =F37+1 -> 2 | G38: =OFFSET(Klimadaten!$B$10,$F38,$AK$11) -> 0 | H38: 0 | I38: -10 | J38: =IF(J37-1<J$30,J$30,J37-1) -> 33 | K38: 234 | L38: 330.094 | M38: =IF(G38=0,-25,B38) -> -25 | N38: =OFFSET(Klimadaten!$B$10,$F38,$AK$11-1) -> 0 | O38: =O37+N38 -> 0 | P38: -25 | Q38: =OFFSET(Klimadaten!$B$10,$F38,$AK$11+1) -> 0 | R38: =R37+Q38 -> 0 | S38: =IF(Q38=0,-25,$B38) -> -25 | T38: 0 | U38: 0 | W38: 0 | X38: 0 | Y38: 0 | AA38: 330.094 | AB38: 234 | AE38: 17 | AF38: 134.678352 | AG38: 330.094 | AH38: 134.678352
B39: -17 | F39: 3 | G39: =OFFSET(Klimadaten!$B$10,$F39,$AK$11) -> 0 | H39: 0 | I39: -10 | J39: 32 | K39: 217 | L39: 373.404 | M39: -25 | N39: =OFFSET(Klimadaten!$B$10,$F39,$AK$11-1) -> 0 | O39: 0 | P39: -25 | Q39: =OFFSET(Klimadaten!$B$10,$F39,$AK$11+1) -> 0 | R39: 0 | S39: -25 | T39: 0 | U39: 0 | W39: 0 | X39: 0 | Y39: 0 | AA39: 373.404 | AB39: 217 | AE39: 17 | AF39: 152.348832 | AG39: 373.404 | AH39: 152.348832
B40: -16 | F40: 4 | G40: =OFFSET(Klimadaten!$B$10,$F40,$AK$11) -> 0 | H40: 0 | I40: -10 | J40: 31 | K40: 200 | L40: 416.714 | M40: -25 | N40: =OFFSET(Klimadaten!$B$10,$F40,$AK$11-1) -> 0 | O40: 0 | P40: -25 | Q40: =OFFSET(Klimadaten!$B$10,$F40,$AK$11+1) -> 0 | R40: 0 | S40: -25 | T40: 0 | U40: 0 | W40: 0 | X40: 0 | Y40: 0 | AA40: 416.714 | AB40: 200 | AE40: 13 | AF40: 130.014768 | AG40: 416.714 | AH40: 130.014768
B41: -15 | F41: 5 | G41: =OFFSET(Klimadaten!$B$10,$F41,$AK$11) -> 0 | H41: 0 | I41: -10 | J41: 30 | K41: 187 | L41: 460.024 | M41: -25 | N41: =OFFSET(Klimadaten!$B$10,$F41,$AK$11-1) -> 0 | O41: 0 | P41: -25 | Q41: =OFFSET(Klimadaten!$B$10,$F41,$AK$11+1) -> 0 | R41: 0 | S41: -25 | T41: 0 | U41: 0 | W41: 0 | X41: 0 | Y41: 0 | AA41: 460.024 | AB41: 187 | AE41: 13 | AF41: 143.527488 | AG41: 460.024 | AH41: 143.527488
B42: -14 | F42: 6 | G42: =OFFSET(Klimadaten!$B$10,$F42,$AK$11) -> 0 | H42: 0 | I42: -10 | J42: 29 | K42: 174 | L42: 503.334 | M42: -25 | N42: =OFFSET(Klimadaten!$B$10,$F42,$AK$11-1) -> 0 | O42: 0 | P42: -25 | Q42: =OFFSET(Klimadaten!$B$10,$F42,$AK$11+1) -> 0 | R42: 0 | S42: -25 | T42: 0 | U42: 0 | W42: 0 | X42: 0 | Y42: 0 | AA42: 503.334 | AB42: 174 | AE42: 15 | AF42: 181.20024 | AG42: 503.334 | AH42: 181.20024
B43: -13 | F43: 7 | G43: =OFFSET(Klimadaten!$B$10,$F43,$AK$11) -> 0 | H43: 0 | I43: -10 | J43: 28 | K43: 159 | L43: 546.644 | M43: -25 | N43: =OFFSET(Klimadaten!$B$10,$F43,$AK$11-1) -> 0 | O43: 0 | P43: -25 | Q43: =OFFSET(Klimadaten!$B$10,$F43,$AK$11+1) -> 0 | R43: 0 | S43: -25 | T43: 0 | U43: 0 | W43: 0 | X43: 0 | Y43: 0 | AA43: 546.644 | AB43: 159 | AE43: 14 | AF43: 183.672384 | AG43: 546.644 | AH43: 183.672384
B44: -12 | F44: 8 | G44: =OFFSET(Klimadaten!$B$10,$F44,$AK$11) -> 0 | H44: 0 | I44: -10 | J44: 27 | K44: 145 | L44: 589.954 | M44: -25 | N44: =OFFSET(Klimadaten!$B$10,$F44,$AK$11-1) -> 0 | O44: 0 | P44: -25 | Q44: =OFFSET(Klimadaten!$B$10,$F44,$AK$11+1) -> 0 | R44: 0 | S44: -25 | T44: 0 | U44: 0 | W44: 0 | X44: 0 | Y44: 0 | AA44: 589.954 | AB44: 145 | AE44: 15 | AF44: 212.38344 | AG44: 589.954 | AH44: 212.38344
B45: -11 | F45: 9 | G45: =OFFSET(Klimadaten!$B$10,$F45,$AK$11) -> 0 | H45: 0 | I45: -10 | J45: 26 | K45: 130 | L45: 633.264 | M45: -25 | N45: =OFFSET(Klimadaten!$B$10,$F45,$AK$11-1) -> 0 | O45: 0 | P45: -25 | Q45: =OFFSET(Klimadaten!$B$10,$F45,$AK$11+1) -> 0 | R45: 0 | S45: -25 | T45: 0 | U45: 0 | W45: 0 | X45: 0 | Y45: 0 | AA45: 633.264 | AB45: 130 | AE45: 14 | AF45: 212.776704 | AG45: 633.264 | AH45: 212.776704
B46: -10 | F46: 10 | G46: =OFFSET(Klimadaten!$B$10,$F46,$AK$11) -> 0 | H46: 0 | I46: -10 | J46: 25 | K46: 116 | L46: 676.574 | M46: -25 | N46: =OFFSET(Klimadaten!$B$10,$F46,$AK$11-1) -> 1 | O46: 1 | P46: -10 | Q46: =OFFSET(Klimadaten!$B$10,$F46,$AK$11+1) -> 0 | R46: 0 | S46: -25 | T46: 0 | U46: 0 | W46: 0 | X46: 0 | Y46: 0 | AA46: 676.574 | AB46: 116 | AE46: 12 | AF46: 194.853312 | AG46: 676.574 | AH46: 194.853312
B47: -9 | F47: 11 | G47: =OFFSET(Klimadaten!$B$10,$F47,$AK$11) -> 0 | H47: 0 | I47: -10 | J47: 24 | K47: 104 | L47: 719.884 | M47: -25 | N47: =OFFSET(Klimadaten!$B$10,$F47,$AK$11-1) -> 1 | O47: 2 | P47: -9 | Q47: =OFFSET(Klimadaten!$B$10,$F47,$AK$11+1) -> 0 | R47: 0 | S47: -25 | T47: 0 | U47: 0 | W47: 0 | X47: 0 | Y47: 0 | AA47: 719.884 | AB47: 104 | AE47: 13 | AF47: 224.603808 | AG47: 719.884 | AH47: 224.603808
B48: -8 | F48: 12 | G48: =OFFSET(Klimadaten!$B$10,$F48,$AK$11) -> 0 | H48: 0 | I48: -10 | J48: 23 | K48: =OFFSET(H$36,$J48,0) -> 91 | L48: 763.194 | M48: -25 | N48: =OFFSET(Klimadaten!$B$10,$F48,$AK$11-1) -> 3 | O48: 5 | P48: -8 | Q48: =OFFSET(Klimadaten!$B$10,$F48,$AK$11+1) -> 0 | R48: 0 | S48: -25 | T48: 0 | U48: 0 | W48: 0 | X48: 0 | Y48: 0 | AA48: 763.194 | AB48: 91 | AE48: 17 | AF48: 311.383152 | AG48: 763.194 | AH48: 311.383152
B49: -7 | C49: -7 | D49: 24399.408 | E49: 24 | F49: 13 | G49: =OFFSET(Klimadaten!$B$10,$F49,$AK$11) -> 1 | H49: 1 | I49: 1196.294 | J49: 22 | K49: 74 | L49: 806.504 | M49: -7 | N49: =OFFSET(Klimadaten!$B$10,$F49,$AK$11-1) -> 4 | O49: 9 | P49: -7 | Q49: =OFFSET(Klimadaten!$B$10,$F49,$AK$11+1) -> 0 | R49: 0 | S49: -25 | T49: 0 | U49: 0 | W49: 0 | X49: 0 | Y49: 0 | AA49: 806.504 | AB49: 74 | AE49: 14 | AF49: 270.985344 | AG49: 806.504 | AH49: 270.985344
B50: -6 | C50: -6 | D50: 46719.936 | E50: 48 | F50: 14 | G50: =OFFSET(Klimadaten!$B$10,$F50,$AK$11) -> 2 | H50: 3 | I50: 1152.984 | J50: 21 | K50: 60 | L50: 849.814 | M50: -6 | N50: =OFFSET(Klimadaten!$B$10,$F50,$AK$11-1) -> 4 | O50: 13 | P50: -6 | Q50: =OFFSET(Klimadaten!$B$10,$F50,$AK$11+1) -> 0 | R50: 0 | S50: -25 | T50: 0 | U50: 0 | W50: 0 | X50: 0 | Y50: 0 | AA50: 849.814 | AB50: 60 | AE50: 13 | AF50: 265.141968 | AG50: 849.814 | AH50: 265.141968
B51: -5 | C51: -5 | D51: 111602.64 | E51: 120 | F51: 15 | G51: =OFFSET(Klimadaten!$B$10,$F51,$AK$11) -> 5 | H51: 8 | I51: 1109.674 | J51: 20 | K51: 47 | L51: 893.124 | M51: -5 | N51: =OFFSET(Klimadaten!$B$10,$F51,$AK$11-1) -> 8 | O51: 21 | P51: -5 | Q51: =OFFSET(Klimadaten!$B$10,$F51,$AK$11+1) -> 1 | R51: 1 | S51: -5 | T51: 0 | U51: 0 | W51: 0 | X51: 0 | Y51: 0 | AA51: 893.124 | AB51: 47 | AE51: 12 | AF51: 257.219712 | AG51: 893.124 | AH51: 257.219712
B52: -4 | C52: -4 | D52: 106405.44 | E52: 120 | F52: 16 | G52: =OFFSET(Klimadaten!$B$10,$F52,$AK$11) -> 5 | H52: 13 | I52: 1066.364 | J52: 19 | K52: 35 | L52: 936.434 | M52: -4 | N52: =OFFSET(Klimadaten!$B$10,$F52,$AK$11-1) -> 8 | O52: 29 | P52: -4 | Q52: =OFFSET(Klimadaten!$B$10,$F52,$AK$11+1) -> 3 | R52: 4 | S52: -4 | T52: 0 | U52: 0 | W52: 0 | X52: 0 | Y52: 0 | AA52: 936.434 | AB52: 35 | AE52: 8 | AF52: 179.795328 | AG52: 936.434 | AH52: 179.795328
B53: -3 | C53: -3 | D53: 141691.536 | E53: 168 | F53: 17 | G53: =OFFSET(Klimadaten!$B$10,$F53,$AK$11) -> 7 | H53: 20 | I53: 1023.054 | J53: 18 | K53: 27 | L53: 979.744 | M53: -3 | N53: =OFFSET(Klimadaten!$B$10,$F53,$AK$11-1) -> 11 | O53: 40 | P53: -3 | Q53: =OFFSET(Klimadaten!$B$10,$F53,$AK$11+1) -> 4 | R53: 8 | S53: -3 | T53: 0 | U53: 0 | W53: 0 | X53: 0 | Y53: 0 | AA53: 979.744 | AB53: 27 | AE53: 7 | AF53: 164.596992 | AG53: 979.744 | AH53: 164.596992
B54: -2 | C54: -2 | D54: 134415.456 | E54: 168 | F54: 18 | G54: =OFFSET(Klimadaten!$B$10,$F54,$AK$11) -> 7 | H54: 27 | I54: 979.744 | J54: 17 | K54: 20 | L54: 1023.054 | M54: -2 | N54: =OFFSET(Klimadaten!$B$10,$F54,$AK$11-1) -> 12 | O54: 52 | P54: -2 | Q54: =OFFSET(Klimadaten!$B$10,$F54,$AK$11+1) -> 5 | R54: 13 | S54: -2 | T54: 0 | U54: 0 | W54: =IF(AND(U54=W$28,U53>W$28),(U54-U55)+W$28,U54-U55) -> 0 | X54: 0 | Y54: 0 | AA54: 1023.054 | AB54: 20 | AE54: =IF(AND(AB54=AE$28,AB53>AE$28),(AB54-AB55)+AE$28,AB54-AB55) -> 7 | AF54: 171.873072 | AG54: 1023.054 | AH54: 171.873072
B55: -1 | C55: -1 | D55: 145302.144 | E55: 192 | F55: 19 | G55: =OFFSET(Klimadaten!$B$10,$F55,$AK$11) -> 8 | H55: 35 | I55: 936.434 | J55: 16 | K55: 13 | L55: 1066.364 | M55: -1 | N55: =OFFSET(Klimadaten!$B$10,$F55,$AK$11-1) -> 15 | O55: 67 | P55: -1 | Q55: =OFFSET(Klimadaten!$B$10,$F55,$AK$11+1) -> 5 | R55: 18 | S55: -1 | T55: 0 | U55: 0 | W55: =IF(AND(U55=W$28,U54>W$28),(U55-U56)+W$28,U55-U56) -> 0 | X55: 0 | Y55: 0 | AA55: 1066.364 | AB55: 13 | AE55: =IF(AND(AB55=AE$28,AB54>AE$28),(AB55-AB56)+AE$28,AB55-AB56) -> 5 | AF55: 127.96368 | AG55: 1066.364 | AH55: 127.96368
B56: 0 | C56: 0 | D56: 205479.936 | E56: 288 | F56: 20 | G56: =OFFSET(Klimadaten!$B$10,$F56,$AK$11) -> 12 | H56: 47 | I56: 893.124 | J56: 15 | K56: 8 | L56: 1109.674 | M56: 0 | N56: =OFFSET(Klimadaten!$B$10,$F56,$AK$11-1) -> 18 | O56: 85 | P56: 0 | Q56: =OFFSET(Klimadaten!$B$10,$F56,$AK$11+1) -> 7 | R56: 25 | S56: 0 | T56: 0 | U56: 0 | W56: 0 | X56: 0 | Y56: 0 | AA56: 1109.674 | AB56: 8 | AE56: 5 | AF56: 133.16088 | AG56: 1109.674 | AH56: 133.16088
B57: 1 | C57: 1 | D57: 209090.544 | E57: 312 | F57: 21 | G57: =OFFSET(Klimadaten!$B$10,$F57,$AK$11) -> 13 | H57: 60 | I57: 849.814 | J57: 14 | K57: 3 | L57: 1152.984 | M57: 1 | N57: =OFFSET(Klimadaten!$B$10,$F57,$AK$11-1) -> 18 | O57: 103 | P57: 1 | Q57: =OFFSET(Klimadaten!$B$10,$F57,$AK$11+1) -> 8 | R57: 33 | S57: 1 | T57: 0 | U57: 0 | W57: 0 | X57: 0 | Y57: 0 | AA57: 1152.984 | AB57: 3 | AE57: 2 | AF57: 55.343232 | AG57: 1152.984 | AH57: 55.343232
B58: 2 | C58: 2 | D58: 210622.272 | E58: 336 | F58: 22 | G58: =OFFSET(Klimadaten!$B$10,$F58,$AK$11) -> 14 | H58: 74 | I58: 806.504 | J58: 13 | K58: 1 | L58: 1196.294 | M58: 2 | N58: =OFFSET(Klimadaten!$B$10,$F58,$AK$11-1) -> 15 | O58: 118 | P58: 2 | Q58: =OFFSET(Klimadaten!$B$10,$F58,$AK$11+1) -> 9 | R58: 42 | S58: 2 | T58: 0 | U58: 0 | W58: 0 | X58: 0 | Y58: 0 | AA58: 1196.294 | AB58: 1 | AE58: 1 | AF58: 28.711056 | AG58: 1196.294 | AH58: 28.711056
B59: 3 | C59: 3 | D59: 238085.136 | E59: 408 | F59: 23 | G59: =OFFSET(Klimadaten!$B$10,$F59,$AK$11) -> 17 | H59: 91 | I59: 763.194 | J59: 13 | K59: 1 | L59: 1196.294 | M59: 3 | N59: =OFFSET(Klimadaten!$B$10,$F59,$AK$11-1) -> 14 | O59: 132 | P59: 3 | Q59: =OFFSET(Klimadaten!$B$10,$F59,$AK$11+1) -> 11 | R59: 53 | S59: 3 | T59: 0 | U59: 0 | W59: 0 | X59: 0 | Y59: 0 | AA59: 1196.294 | AB59: 1 | AE59: 0 | AF59: 0 | AG59: 1196.294 | AH59: 0
B60: 4 | C60: 4 | D60: 168552.384 | E60: 312 | F60: 24 | G60: =OFFSET(Klimadaten!$B$10,$F60,$AK$11) -> 13 | H60: 104 | I60: 719.884 | J60: 13 | K60: 1 | L60: 1196.294 | M60: 4 | N60: =OFFSET(Klimadaten!$B$10,$F60,$AK$11-1) -> 17 | O60: 149 | P60: 4 | Q60: =OFFSET(Klimadaten!$B$10,$F60,$AK$11+1) -> 13 | R60: 66 | S60: 4 | T60: 0 | U60: 0 | W60: =IF(AND(U60=W$28,U59>W$28),(U60-U61)+W$28,U60-U61) -> 0 | X60: 0 | Y60: 0 | AA60: 1196.294 | AB60: 1 | AE60: =IF(AND(AB60=AE$28,AB59>AE$28),(AB60-AB61)+AE$28,AB60-AB61) -> 0 | AF60: 0 | AG60: 1196.294 | AH60: 0
B61: 5 | C61: 5 | D61: 143113.536 | E61: 288 | F61: 25 | G61: =OFFSET(Klimadaten!$B$10,$F61,$AK$11) -> 12 | H61: 116 | I61: 676.574 | J61: 13 | K61: 1 | L61: 1196.294 | M61: 5 | N61: =OFFSET(Klimadaten!$B$10,$F61,$AK$11-1) -> 17 | O61: 166 | P61: 5 | Q61: =OFFSET(Klimadaten!$B$10,$F61,$AK$11+1) -> 12 | R61: 78 | S61: 5 | T61: 0 | U61: 0 | W61: 0 | X61: 0 | Y61: 0 | AA61: 1196.294 | AB61: 1 | AE61: 0 | AF61: 0 | AG61: 1196.294 | AH61: 0
B62: 6 | C62: 6 | D62: 152413.632 | E62: 336 | F62: 26 | G62: =OFFSET(Klimadaten!$B$10,$F62,$AK$11) -> 14 | H62: 130 | I62: 633.264 | J62: 13 | K62: 1 | L62: 1196.294 | M62: 6 | N62: =OFFSET(Klimadaten!$B$10,$F62,$AK$11-1) -> 16 | O62: 182 | P62: 6 | Q62: =OFFSET(Klimadaten!$B$10,$F62,$AK$11+1) -> 10 | R62: 88 | S62: 6 | T62: 0 | U62: 0 | W62: 0 | X62: 0 | Y62: 0 | AA62: 1196.294 | AB62: 1 | AE62: 0 | AF62: 0 | AG62: 1196.294 | AH62: 0
B63: 7 | C63: 7 | D63: 147708.72 | E63: 360 | F63: 27 | G63: =OFFSET(Klimadaten!$B$10,$F63,$AK$11) -> 15 | H63: 145 | I63: 589.954 | J63: 13 | K63: 1 | L63: 1196.294 | M63: 7 | N63: =OFFSET(Klimadaten!$B$10,$F63,$AK$11-1) -> 17 | O63: 199 | P63: 7 | Q63: =OFFSET(Klimadaten!$B$10,$F63,$AK$11+1) -> 13 | R63: 101 | S63: 7 | T63: 0 | U63: 0 | W63: 0 | X63: 0 | Y63: 0 | AA63: 1196.294 | AB63: 1 | AE63: 0 | AF63: 0 | AG63: 1196.294 | AH63: 0
B64: 8 | C64: 8 | D64: 123309.312 | E64: 336 | F64: 28 | G64: =OFFSET(Klimadaten!$B$10,$F64,$AK$11) -> 14 | H64: 159 | I64: 546.644 | J64: 13 | K64: 1 | L64: 1196.294 | M64: 8 | N64: =OFFSET(Klimadaten!$B$10,$F64,$AK$11-1) -> 18 | O64: 217 | P64: 8 | Q64: =OFFSET(Klimadaten!$B$10,$F64,$AK$11+1) -> 12 | R64: 113 | S64: 8 | T64: 0 | U64: 0 | W64: 0 | X64: 0 | Y64: 0 | AA64: 1196.294 | AB64: 1 | AE64: 0 | AF64: 0 | AG64: 1196.294 | AH64: 0
B65: 9 | C65: 9 | D65: 116525.52 | E65: 360 | F65: 29 | G65: =OFFSET(Klimadaten!$B$10,$F65,$AK$11) -> 15 | H65: 174 | I65: 503.334 | J65: 13 | K65: 1 | L65: 1196.294 | M65: 9 | N65: =OFFSET(Klimadaten!$B$10,$F65,$AK$11-1) -> 16 | O65: 233 | P65: 9 | Q65: =OFFSET(Klimadaten!$B$10,$F65,$AK$11+1) -> 11 | R65: 124 | S65: 9 | T65: 0 | U65: 0 | W65: 0 | X65: 0 | Y65: 0 | AA65: 1196.294 | AB65: 1 | AE65: 0 | AF65: 0 | AG65: 1196.294 | AH65: 0
B66: 10 | C66: 10 | D66: 87476.064 | E66: 312 | F66: 30 | G66: =OFFSET(Klimadaten!$B$10,$F66,$AK$11) -> 13 | H66: 187 | I66: 460.024 | J66: 13 | K66: 1 | L66: 1196.294 | M66: 10 | N66: =OFFSET(Klimadaten!$B$10,$F66,$AK$11-1) -> 16 | O66: 249 | P66: 10 | Q66: =OFFSET(Klimadaten!$B$10,$F66,$AK$11+1) -> 13 | R66: 137 | S66: 10 | T66: 0 | U66: 0 | V66: =IF(AND(T65=0,T66>0),$K66,"") ->  | W66: 0 | X66: 0 | Y66: 0 | AA66: =IF(L66<AB$27,AA65,IF(L66>AB$29,AA65,IF(L66<T$31,T$31,L66))) -> 1196.294 | AB66: 1 | AC66: =IF(AND(AA65=T$31,AA66>T$31),IF(AB$27<T$31,K65,K66),"") ->  | AE66: 0 | AF66: 0 | AG66: 1196.294 | AH66: 0
B67: 11 | C67: 11 | D67: 73963.344 | E67: 312 | F67: 31 | G67: =OFFSET(Klimadaten!$B$10,$F67,$AK$11) -> 13 | H67: 200 | I67: 416.714 | J67: 13 | K67: 1 | L67: 1196.294 | M67: 11 | N67: =OFFSET(Klimadaten!$B$10,$F67,$AK$11-1) -> 19 | O67: 268 | P67: 11 | Q67: =OFFSET(Klimadaten!$B$10,$F67,$AK$11+1) -> 12 | R67: 149 | S67: 11 | T67: 0 | U67: =IF(AND(T67=0,T68>0),K68,IF(T67=0,U$89,K67)) -> 0 | W67: 0 | X67: 0 | Y67: 0 | AA67: 1196.294 | AB67: =IF(AND(AA67=T$31,AA68>T$31),IF(AB$27<T$31,K67,K68),IF(AA67=T$31,AB$89,K67)) -> 1 | AE67: 0 | AF67: 0 | AG67: 1196.294 | AH67: 0
B68: 12 | C68: =IF(OR(G68=0,B68>B$6),"",B68) -> 12 | D68: 79050.816 | E68: 408 | F68: 32 | G68: =OFFSET(Klimadaten!$B$10,$F68,$AK$11) -> 17 | H68: 217 | I68: =IF(OR($G68=0,$B68>$B$6),-10,$B68*$F$25+$F$24+$L$30) -> 373.404 | J68: 13 | K68: 1 | L68: 1196.294 | M68: 12 | N68: =OFFSET(Klimadaten!$B$10,$F68,$AK$11-1) -> 15 | O68: 283 | P68: 12 | Q68: =OFFSET(Klimadaten!$B$10,$F68,$AK$11+1) -> 12 | R68: 161 | S68: 12 | T68: 0 | U68: 0 | W68: 0 | X68: 0 | Y68: 0 | AA68: 1196.294 | AB68: 1 | AE68: 0 | AF68: 0 | AG68: 1196.294 | AH68: 0
B69: =B68+1 -> 13 | C69: 13 | D69: 61380.336 | E69: 408 | F69: 33 | G69: =OFFSET(Klimadaten!$B$10,$F69,$AK$11) -> 17 | H69: =H68+G69 -> 234 | I69: 330.094 | J69: 13 | K69: 1 | L69: 1196.294 | M69: 13 | N69: =OFFSET(Klimadaten!$B$10,$F69,$AK$11-1) -> 19 | O69: 302 | P69: 13 | Q69: =OFFSET(Klimadaten!$B$10,$F69,$AK$11+1) -> 11 | R69: 172 | S69: 13 | T69: =IF(AA$31=0,0,IF(AA$31>=L69,IF(L69>=T68,L69,T68),T68)) -> 0 | U69: 0 | W69: 0 | X69: 0 | Y69: 0 | AA69: 1196.294 | AB69: 1 | AE69: 0 | AF69: 0 | AG69: 1196.294 | AH69: 0
B70: 14 | C70: 14 | D70: 41138.688 | E70: 384 | F70: 34 | G70: =OFFSET(Klimadaten!$B$10,$F70,$AK$11) -> 16 | H70: 250 | I70: 286.784 | J70: 13 | K70: 1 | L70: 1196.294 | M70: 14 | N70: =OFFSET(Klimadaten!$B$10,$F70,$AK$11-1) -> 18 | O70: 320 | P70: 14 | Q70: =OFFSET(Klimadaten!$B$10,$F70,$AK$11+1) -> 12 | R70: 184 | S70: 14 | T70: 0 | U70: 0 | W70: 0 | X70: 0 | Y70: 0 | AA70: 1196.294 | AB70: 1 | AE70: 0 | AF70: 0 | AG70: 1196.294 | AH70: 0
B71: 15 | C71: 15 | D71: 24507.648 | E71: 384 | F71: 35 | G71: =OFFSET(Klimadaten!$B$10,$F71,$AK$11) -> 16 | H71: 266 | I71: 243.474 | J71: 13 | K71: 1 | L71: 1196.294 | M71: 15 | N71: =OFFSET(Klimadaten!$B$10,$F71,$AK$11-1) -> 15 | O71: 335 | P71: 15 | Q71: =OFFSET(Klimadaten!$B$10,$F71,$AK$11+1) -> 12 | R71: 196 | S71: 15 | T71: 0 | U71: 0 | W71: 0 | X71: 0 | Y71: 0 | AA71: 1196.294 | AB71: 1 | AE71: 0 | AF71: 0 | AG71: 1196.294 | AH71: 0
B72: 16 | F72: 36 | G72: =OFFSET(Klimadaten!$B$10,$F72,$AK$11) -> 16 | H72: 282 | I72: -10 | J72: 13 | K72: 1 | L72: 1196.294 | M72: 16 | N72: =OFFSET(Klimadaten!$B$10,$F72,$AK$11-1) -> 11 | O72: 346 | P72: 16 | Q72: =OFFSET(Klimadaten!$B$10,$F72,$AK$11+1) -> 12 | R72: 208 | S72: 16 | T72: 0 | U72: 0 | W72: 0 | X72: 0 | Y72: 0 | AA72: 1196.294 | AB72: 1 | AE72: 0 | AF72: 0 | AG72: 1196.294 | AH72: 0
B73: 17 | F73: 37 | G73: =OFFSET(Klimadaten!$B$10,$F73,$AK$11) -> 17 | H73: 299 | I73: -10 | J73: 13 | K73: 1 | L73: 1196.294 | M73: 17 | N73: =OFFSET(Klimadaten!$B$10,$F73,$AK$11-1) -> 10 | O73: 356 | P73: 17 | Q73: =OFFSET(Klimadaten!$B$10,$F73,$AK$11+1) -> 14 | R73: 222 | S73: 17 | T73: 0 | U73: 0 | W73: 0 | X73: 0 | Y73: 0 | AA73: 1196.294 | AB73: 1 | AE73: 0 | AF73: 0 | AG73: 1196.294 | AH73: 0
B74: 18 | F74: 38 | G74: =OFFSET(Klimadaten!$B$10,$F74,$AK$11) -> 16 | H74: 315 | I74: -10 | J74: 13 | K74: 1 | L74: 1196.294 | M74: 18 | N74: =OFFSET(Klimadaten!$B$10,$F74,$AK$11-1) -> 6 | O74: 362 | P74: 18 | Q74: =OFFSET(Klimadaten!$B$10,$F74,$AK$11+1) -> 16 | R74: 238 | S74: 18 | T74: 0 | U74: 0 | W74: 0 | X74: 0 | Y74: 0 | AA74: 1196.294 | AB74: 1 | AE74: 0 | AF74: 0 | AG74: 1196.294 | AH74: 0
B75: 19 | F75: 39 | G75: =OFFSET(Klimadaten!$B$10,$F75,$AK$11) -> 10 | H75: 325 | I75: -10 | J75: 13 | K75: 1 | L75: 1196.294 | M75: 19 | N75: =OFFSET(Klimadaten!$B$10,$F75,$AK$11-1) -> 3 | O75: 365 | P75: 19 | Q75: =OFFSET(Klimadaten!$B$10,$F75,$AK$11+1) -> 14 | R75: 252 | S75: 19 | T75: 0 | U75: 0 | W75: 0 | X75: 0 | Y75: 0 | AA75: 1196.294 | AB75: 1 | AE75: 0 | AF75: 0 | AG75: 1196.294 | AH75: 0
B76: 20 | F76: 40 | G76: =OFFSET(Klimadaten!$B$10,$F76,$AK$11) -> 12 | H76: 337 | I76: -10 | J76: 13 | K76: 1 | L76: 1196.294 | M76: 20 | N76: =OFFSET(Klimadaten!$B$10,$F76,$AK$11-1) -> 0 | O76: 365 | P76: -25 | Q76: =OFFSET(Klimadaten!$B$10,$F76,$AK$11+1) -> 13 | R76: 265 | S76: 20 | T76: 0 | U76: 0 | W76: 0 | X76: 0 | Y76: 0 | AA76: 1196.294 | AB76: 1 | AE76: 0 | AF76: 0 | AG76: 1196.294 | AH76: 0
B77: 21 | F77: 41 | G77: =OFFSET(Klimadaten!$B$10,$F77,$AK$11) -> 10 | H77: 347 | I77: -10 | J77: 13 | K77: 1 | L77: 1196.294 | M77: 21 | N77: =OFFSET(Klimadaten!$B$10,$F77,$AK$11-1) -> 0 | O77: 365 | P77: -25 | Q77: =OFFSET(Klimadaten!$B$10,$F77,$AK$11+1) -> 14 | R77: 279 | S77: 21 | T77: 0 | U77: 0 | W77: 0 | X77: 0 | Y77: 0 | AA77: 1196.294 | AB77: 1 | AE77: 0 | AF77: 0 | AG77: 1196.294 | AH77: 0
B78: 22 | F78: 42 | G78: =OFFSET(Klimadaten!$B$10,$F78,$AK$11) -> 7 | H78: 354 | I78: -10 | J78: 13 | K78: 1 | L78: 1196.294 | M78: 22 | N78: =OFFSET(Klimadaten!$B$10,$F78,$AK$11-1) -> 0 | O78: 365 | P78: -25 | Q78: =OFFSET(Klimadaten!$B$10,$F78,$AK$11+1) -> 12 | R78: 291 | S78: 22 | T78: 0 | U78: 0 | W78: 0 | X78: 0 | Y78: 0 | AA78: 1196.294 | AB78: 1 | AE78: 0 | AF78: 0 | AG78: 1196.294 | AH78: 0
B79: 23 | F79: 43 | G79: =OFFSET(Klimadaten!$B$10,$F79,$AK$11) -> 5 | H79: 359 | I79: -10 | J79: 13 | K79: 1 | L79: 1196.294 | M79: 23 | N79: =OFFSET(Klimadaten!$B$10,$F79,$AK$11-1) -> 0 | O79: 365 | P79: -25 | Q79: =OFFSET(Klimadaten!$B$10,$F79,$AK$11+1) -> 14 | R79: 305 | S79: 23 | T79: 0 | U79: 0 | W79: 0 | X79: 0 | Y79: 0 | AA79: 1196.294 | AB79: 1 | AE79: 0 | AF79: 0 | AG79: 1196.294 | AH79: 0
B80: 24 | F80: 44 | G80: =OFFSET(Klimadaten!$B$10,$F80,$AK$11) -> 3 | H80: 362 | I80: -10 | J80: 13 | K80: 1 | L80: 1196.294 | M80: 24 | N80: =OFFSET(Klimadaten!$B$10,$F80,$AK$11-1) -> 0 | O80: 365 | P80: -25 | Q80: =OFFSET(Klimadaten!$B$10,$F80,$AK$11+1) -> 10 | R80: 315 | S80: 24 | T80: 0 | U80: 0 | W80: 0 | X80: 0 | Y80: 0 | AA80: 1196.294 | AB80: 1 | AE80: 0 | AF80: 0 | AG80: 1196.294 | AH80: 0
B81: 25 | F81: 45 | G81: =OFFSET(Klimadaten!$B$10,$F81,$AK$11) -> 2 | H81: 364 | I81: -10 | J81: 13 | K81: 1 | L81: 1196.294 | M81: 25 | N81: =OFFSET(Klimadaten!$B$10,$F81,$AK$11-1) -> 0 | O81: 365 | P81: -25 | Q81: =OFFSET(Klimadaten!$B$10,$F81,$AK$11+1) -> 11 | R81: 326 | S81: 25 | T81: 0 | U81: 0 | W81: 0 | X81: 0 | Y81: 0 | AA81: 1196.294 | AB81: 1 | AE81: 0 | AF81: 0 | AG81: 1196.294 | AH81: 0
B82: 26 | F82: 46 | G82: =OFFSET(Klimadaten!$B$10,$F82,$AK$11) -> 1 | H82: 365 | I82: -10 | J82: 13 | K82: 1 | L82: 1196.294 | M82: 26 | N82: =OFFSET(Klimadaten!$B$10,$F82,$AK$11-1) -> 0 | O82: 365 | P82: -25 | Q82: =OFFSET(Klimadaten!$B$10,$F82,$AK$11+1) -> 9 | R82: 335 | S82: 26 | T82: 0 | U82: 0 | W82: 0 | X82: 0 | Y82: 0 | AA82: 1196.294 | AB82: 1 | AE82: 0 | AF82: 0 | AG82: 1196.294 | AH82: 0
B83: 27 | F83: 47 | G83: =OFFSET(Klimadaten!$B$10,$F83,$AK$11) -> 0 | H83: 365 | I83: -10 | J83: 13 | K83: 1 | L83: 1196.294 | M83: -25 | N83: =OFFSET(Klimadaten!$B$10,$F83,$AK$11-1) -> 0 | O83: 365 | P83: -25 | Q83: =OFFSET(Klimadaten!$B$10,$F83,$AK$11+1) -> 8 | R83: 343 | S83: 27 | T83: 0 | U83: 0 | W83: 0 | X83: 0 | Y83: 0 | AA83: 1196.294 | AB83: 1 | AE83: 0 | AF83: 0 | AG83: 1196.294 | AH83: 0
B84: 28 | F84: 48 | G84: =OFFSET(Klimadaten!$B$10,$F84,$AK$11) -> 0 | H84: 365 | I84: -10 | J84: 13 | K84: 1 | L84: 1196.294 | M84: -25 | N84: =OFFSET(Klimadaten!$B$10,$F84,$AK$11-1) -> 0 | O84: 365 | P84: -25 | Q84: =OFFSET(Klimadaten!$B$10,$F84,$AK$11+1) -> 6 | R84: 349 | S84: 28 | T84: 0 | U84: 0 | W84: 0 | X84: 0 | Y84: 0 | AA84: 1196.294 | AB84: 1 | AE84: 0 | AF84: 0 | AG84: 1196.294 | AH84: 0
B85: 29 | F85: 49 | G85: =OFFSET(Klimadaten!$B$10,$F85,$AK$11) -> 0 | H85: 365 | I85: -10 | J85: 13 | K85: 1 | L85: 1196.294 | M85: -25 | N85: =OFFSET(Klimadaten!$B$10,$F85,$AK$11-1) -> 0 | O85: 365 | P85: -25 | Q85: =OFFSET(Klimadaten!$B$10,$F85,$AK$11+1) -> 6 | R85: 355 | S85: 29 | T85: 0 | U85: 0 | W85: 0 | X85: 0 | Y85: 0 | AA85: 1196.294 | AB85: 1 | AE85: 0 | AF85: 0 | AG85: 1196.294 | AH85: 0
B86: 30 | F86: 50 | G86: =OFFSET(Klimadaten!$B$10,$F86,$AK$11) -> 0 | H86: 365 | I86: -10 | J86: 13 | K86: 1 | L86: 1196.294 | M86: -25 | N86: =OFFSET(Klimadaten!$B$10,$F86,$AK$11-1) -> 0 | O86: 365 | P86: -25 | Q86: =OFFSET(Klimadaten!$B$10,$F86,$AK$11+1) -> 10 | R86: 365 | S86: 30 | T86: 0 | U86: 0 | W86: =IF(AND(U86=1,U85>1),(U86),U86-W$28) -> -1 | X86: 0 | Y86: 0 | AA86: 1196.294 | AB86: 1 | AE86: =IF(AND(AB86=1,AB85>1),(AB86),AB86-AE$28) -> 0 | AF86: 0 | AG86: 1196.294 | AH86: 0
T87: 0 | U87: 0 | Y87: 0 | AA87: =AA86 -> 1196.294 | AB87: 0 | AG87: 1196.294
T88: 0 | U88: 0 | AA88: =T$31 -> 0 | AB88: 0
T89: 0 | U89: =MAX(V34:V87) -> 0 | AA89: =T$31 -> 0 | AB89: =MAX(AC34:AC87) -> 365

Sheet Klimadaten (hidden)
D1: =SUM(D10:D60) -> 365 | H1: =SUM(H10:H60) -> 365 | L1: =SUM(L10:L60) -> 365 | P1: =SUM(P10:P60) -> 365 | T1: =SUM(T10:T60) -> 365 | X1: =SUM(X10:X60) -> 365 | AB1: =SUM(AB10:AB60) -> 365 | AF1: =SUM(AF10:AF60) -> 365 | AJ1: =SUM(AJ10:AJ60) -> 365 | AN1: =SUM(AN10:AN60) -> 365 | AR1: =SUM(AR10:AR60) -> 365 | AV1: =SUM(AV10:AV60) -> 365 | AZ1: =SUM(AZ10:AZ60) -> 365 | BD1: =SUM(BD10:BD60) -> 365 | BH1: =SUM(BH10:BH60) -> 365 | BL1: =SUM(BL10:BL60) -> 365 | BP1: =SUM(BP10:BP60) -> 365 | BT1: =SUM(BT10:BT60) -> 365 | BX1: =SUM(BX10:BX60) -> 365 | CB1: =SUM(CB10:CB60) -> 365 | CF1: =SUM(CF10:CF60) -> 365 | CJ1: =SUM(CJ10:CJ60) -> 365 | CN1: =SUM(CN10:CN60) -> 365 | CR1: =SUM(CR10:CR60) -> 365 | CV1: =SUM(CV10:CV60) -> 365 | CZ1: =SUM(CZ10:CZ60) -> 365 | DD1: =SUM(DD10:DD60) -> 365 | DH1: =SUM(DH10:DH60) -> 365 | DL1: =SUM(DL10:DL60) -> 365 | DP1: =SUM(DP10:DP60) -> 365 | DT1: =SUM(DT10:DT60) -> 365 | DX1: =SUM(DX10:DX60) -> 365 | EB1: =SUM(EB10:EB60) -> 365 | EF1: =SUM(EF10:EF60) -> 365 | EJ1: =SUM(EJ10:EJ60) -> 365 | EN1: =SUM(EN10:EN60) -> 365 | ER1: =SUM(ER10:ER60) -> 365 | EV1: =SUM(EV10:EV60) -> 365 | EZ1: =SUM(EZ10:EZ60) -> 365 | FD1: =SUM(FD10:FD60) -> 365 | FH1: =SUM(FH10:FH60) -> 365 | FL1: =SUM(FL10:FL60) -> 365 | FP1: =SUM(FP10:FP60) -> 365 | FT1: =SUM(FT10:FT60) -> 365 | FX1: =SUM(FX10:FX60) -> 365 | GB1: =SUM(GB10:GB60) -> 365 | GF1: =SUM(GF10:GF60) -> 365 | GJ1: =SUM(GJ10:GJ60) -> 365 | GN1: =SUM(GN10:GN60) -> 365 | GR1: =SUM(GR10:GR60) -> 365 | GV1: =SUM(GV10:GV60) -> 365 | GZ1: =SUM(GZ10:GZ60) -> 365 | HD1: =SUM(HD10:HD60) -> 365 | HH1: =SUM(HH10:HH60) -> 365 | HL1: =SUM(HL10:HL60) -> 365 | HP1: =SUM(HP10:HP60) -> 365 | HT1: =SUM(HT10:HT60) -> 365 | HX1: =SUM(HX10:HX60) -> 365 | IB1: =SUM(IB10:IB60) -> 365 | IF1: =SUM(IF10:IF60) -> 365 | IJ1: =SUM(IJ10:IJ60) -> 365 | IN1: =SUM(IN10:IN60) -> 365 | IR1: =SUM(IR10:IR60) -> 365 | IV1: =SUM(IV10:IV60) -> 365 | IZ1: =SUM(IZ10:IZ60) -> 365 | JD1: =SUM(JD10:JD60) -> 365 | JH1: =SUM(JH10:JH60) -> 365 | JL1: =SUM(JL10:JL60) -> 365
C3: Davos (CH) | G3: Zürich/Fluntern (CH) | K3: Locarno/Monti (CH) | O3: Graz Universität (AT) | S3: Tamsweg (AT) | W3: Wien innere Stadt (AT) | AA3: Karlsruhe/Rheinstetten (DE) | AE3: München Flughafen (DE) | AI3: Hohenpeißenberg (DE) | AM3: BRNIK LETALIŠČE (SI) | AQ3: BILJE (SI) | AU3: NOVA VAS, BLOKE (SI) | AY3: Frankfurt/Main Flughafen (DE) | BC3: Trier-Petrisberg (DE) | BG3: Kahler Asten (DE) | BK3: Augsburg (DE) | BO3: Bamberg (DE) | BS3: Hof (DE) | BW3: Kempten (DE) | CA3: Nürnberg (DE) | CE3: Würzburg (DE) | CI3: Basel-Binningen (CH) | CM3: Bern/Zollikofen (CH) | CQ3: La Chaux-de-Fonds (CH) | CU3: Engelberg (CH) | CY3: Luzern (CH) | DC3: Pully (CH) | DG3: Samedan (CH) | DK3: St. Gallen (CH) | DO3: Visp (CH) | DS3: Bad Aussee (AT) | DW3: Bregenz (AT) | EA3: Eisenstadt (AT) | EE3: Freistadt (AT) | EI3: Fürstenfeld (AT) | EM3: Hohenau/March (AT) | EQ3: Innsbruck Universität (AT) | EU3: Klagenfurt Flughafen (AT) | EY3: Kufstein (AT) | FC3: Lienz (AT) | FG3: Linz Stadt (AT) | FK3: Mariazell (AT) | FO3: Salzburg-Freisaal (AT) | FS3: Schröcken (AT) | FW3: St. Pölten (AT) | GA3: Zell am See (AT) | GE3: Zeltweg (AT) | GI3: Andermatt (CH) | GM3: Acquarossa/Comprovasco (CH) | GQ3: Bad Ragaz (CH) | GU3: Château-d'Oex (CH) | GY3: Disentis/Sedrun (CH) | HC3: Fribourg/Posieux (CH) | HG3: Piotta (CH) | HK3: Ulrichen (CH) | HO3: Barcis (IT) | HS3: Codroipo (IT) | HW3: Forni di Sopra (IT) | IA3: Gemona (IT) | IE3: San Pietro al Nasitone (IT) | II3: Sgonico (IT) | IM3: Tarvisio (IT) | IQ3: Tolmezzo (IT) | IU3: Bullet / La Fretaz (CH) | IY3: Einsiedeln (CH) | JC3: Langnau i.E. (CH) | JG3: Payerne (CH) | JK3: Rünenberg (CH)
C4: 10 Jahresmittel | G4: 10 Jahresmittel | K4: 10 Jahresmittel | O4: Steiermark | S4: Salzburg | W4: WIEN INNERE STADT | AA4: 10 Jahresmittel | AE4: 10 Jahresmittel | AI4: 10 Jahresmittel | AM4: 10 Jahresmittel | AQ4: 10 Jahresmittel | AU4: 10 Jahresmittel | AY4: 10 Jahresmittel | BC4: 10 Jahresmittel | BG4: 10 Jahresmittel | BK4: 10 Jahresmittel | BO4: 10 Jahresmittel | BS4: 10 Jahresmittel | BW4: 10 Jahresmittel | CA4: 10 Jahresmittel | CE4: 10 Jahresmittel | CI4: 10 Jahresmittel | CM4: 10 Jahresmittel | CQ4: 10 Jahresmittel | CU4: 10 Jahresmittel | CY4: 10 Jahresmittel | DC4: 10 Jahresmittel | DG4: 10 Jahresmittel | DK4: 10 Jahresmittel | DO4: 10 Jahresmittel | DS4: 10 Jahresmittel | DW4: 10 Jahresmittel | EA4: 10 Jahresmittel | EE4: 10 Jahresmittel | EI4: 10 Jahresmittel | EM4: 10 Jahresmittel | EQ4: 10 Jahresmittel | EU4: 10 Jahresmittel | EY4: 10 Jahresmittel | FC4: 10 Jahresmittel | FG4: 10 Jahresmittel | FK4: 10 Jahresmittel | FO4: 10 Jahresmittel | FS4: 10 Jahresmittel | FW4: 10 Jahresmittel | GA4: 10 Jahresmittel | GE4: 10 Jahresmittel | GI4: 10 Jahresmittel | GM4: 10 Jahresmittel | GQ4: 10 Jahresmittel | GU4: 10 Jahresmittel | GY4: 10 Jahresmittel | HC4: 10 Jahresmittel | HG4: 10 Jahresmittel | HK4: 10 Jahresmittel | HO4: 10 Jahresmittel | HS4: 10 Jahresmittel | HW4: 10 Jahresmittel | IA4: 10 Jahresmittel | IE4: 10 Jahresmittel | II4: 10 Jahresmittel | IM4: 10 Jahresmittel | IQ4: 10 Jahresmittel | IU4: 10 Jahresmittel | IY4: 10 Jahresmittel | JC4: 10 Jahresmittel | JG4: 10 Jahresmittel | JK4: 10 Jahresmittel
C5: 2002-2011 | G5: 2002-2011 | K5: 2002-2011 | O5: 2002-2011 | S5: 2002-2011 | W5: 2002-2011 | AA5: 2002-2011 | AE5: 2002-2011 | AI5: 2002-2011 | AM5: 1993-2002 | AQ5: 1993-2002 | AU5: 1993-2002 | AY5: 2002-2011 | BC5: 2002-2011 | BG5: 2002-2011 | BK5: 2002-2011 | BO5: 2002-2011 | BS5: 2002-2011 | BW5: 2002-2011 | CA5: 2002-2011 | CE5: 2002-2011 | CI5: 2002-2011 | CM5: 2002-2011 | CQ5: 2002-2011 | CU5: 2002-2011 | CY5: 2002-2011 | DC5: 2002-2011 | DG5: 2002-2011 | DK5: 2002-2011 | DO5: 2002-2011 | DS5: 2002-2011 | DW5: 2002-2011 | EA5: 2002-2011 | EE5: 2002-2011 | EI5: 2002-2011 | EM5: 2002-2011 | EQ5: 2002-2011 | EU5: 2002-2011 | EY5: 2002-2011 | FC5: 2002-2011 | FG5: 2002-2011 | FK5: 2002-2011 | FO5: 2002-2011 | FS5: 2002-2011 | FW5: 2002-2011 | GA5: 2002-2011 | GE5: 2002-2011 | GI5: 2002-2011 | GM5: 2002-2011 | GQ5: 2002-2011 | GU5: 2002-2011 | GY5: 2002-2011 | HC5: 2002-2011 | HG5: 2002-2011 | HK5: 2002-2011 | HO5: (2011-2020) | HS5: (2011-2020) | HW5: (2011-2020) | IA5: (2011-2020) | IE5: (2011-2020) | II5: (2011-2020) | IM5: (2011-2020) | IQ5: (2011-2020) | IU5: 2002-2011 | IY5: 2002-2011 | JC5: 2002-2011 | JG5: 2002-2011 | JK5: 2002-2011
C6: Häufigkeit | G6: Häufigkeit | K6: Häufigkeit | O6: Häufigkeit | S6: Häufigkeit | W6: Häufigkeit | AA6: Häufigkeit | AE6: Häufigkeit | AI6: Häufigkeit | AM6: Häufigkeit | AQ6: Häufigkeit | AU6: Häufigkeit | AY6: Häufigkeit | BC6: Häufigkeit | BG6: Häufigkeit | BK6: Häufigkeit | BO6: Häufigkeit | BS6: Häufigkeit | BW6: Häufigkeit | CA6: Häufigkeit | CE6: Häufigkeit | CI6: Häufigkeit | CM6: Häufigkeit | CQ6: Häufigkeit | CU6: Häufigkeit | CY6: Häufigkeit | DC6: Häufigkeit | DG6: Häufigkeit | DK6: Häufigkeit | DO6: Häufigkeit | DS6: Häufigkeit | DW6: Häufigkeit | EA6: Häufigkeit | EE6: Häufigkeit | EI6: Häufigkeit | EM6: Häufigkeit | EQ6: Häufigkeit | EU6: Häufigkeit | EY6: Häufigkeit | FC6: Häufigkeit | FG6: Häufigkeit | FK6: Häufigkeit | FO6: Häufigkeit | FS6: Häufigkeit | FW6: Häufigkeit | GA6: Häufigkeit | GE6: Häufigkeit | GI6: Häufigkeit | GM6: Häufigkeit | GQ6: Häufigkeit | GU6: Häufigkeit | GY6: Häufigkeit | HC6: Häufigkeit | HG6: Häufigkeit | HK6: Häufigkeit | HO6: Häufigkeit | HS6: Häufigkeit | HW6: Häufigkeit | IA6: Häufigkeit | IE6: Häufigkeit | II6: Häufigkeit | IM6: Häufigkeit | IQ6: Häufigkeit | IU6: Häufigkeit | IY6: Häufigkeit | JC6: Häufigkeit | JG6: Häufigkeit | JK6: Häufigkeit
C7: Min. | D7: Mittel | E7: Max. | G7: Min. | H7: Mittel | I7: Max. | K7: Min. | L7: Mittel | M7: Max. | O7: Min. | P7: Mittel | Q7: Max. | S7: Min. | T7: Mittel | U7: Max. | W7: Min. | X7: Mittel | Y7: Max. | AA7: Min. | AB7: Mittel | AC7: Max. | AE7: Min. | AF7: Mittel | AG7: Max. | AI7: Min. | AJ7: Mittel | AK7: Max. | AM7: Min. | AN7: Mittel | AO7: Max. | AQ7: Min. | AR7: Mittel | AS7: Max. | AU7: Min. | AV7: Mittel | AW7: Max. | AY7: Min. | AZ7: Mittel | BA7: Max. | BC7: Min. | BD7: Mittel | BE7: Max. | BG7: Min. | BH7: Mittel | BI7: Max. | BK7: Min. | BL7: Mittel | BM7: Max. | BO7: Min. | BP7: Mittel | BQ7: Max. | BS7: Min. | BT7: Mittel | BU7: Max. | BW7: Min. | BX7: Mittel | BY7: Max. | CA7: Min. | CB7: Mittel | CC7: Max. | CE7: Min. | CF7: Mittel | CG7: Max. | CI7: Min. | CJ7: Mittel | CK7: Max. | CM7: Min. | CN7: Mittel | CO7: Max. | CQ7: Min. | CR7: Mittel | CS7: Max. | CU7: Min. | CV7: Mittel | CW7: Max. | CY7: Min. | CZ7: Mittel | DA7: Max. | DC7: Min. | DD7: Mittel | DE7: Max. | DG7: Min. | DH7: Mittel | DI7: Max. | DK7: Min. | DL7: Mittel | DM7: Max. | DO7: Min. | DP7: Mittel | DQ7: Max. | DS7: Min. | DT7: Mittel | DU7: Max. | DW7: Min. | DX7: Mittel | DY7: Max. | EA7: Min. | EB7: Mittel | EC7: Max. | EE7: Min. | EF7: Mittel | EG7: Max. | EI7: Min. | EJ7: Mittel | EK7: Max. | EM7: Min. | EN7: Mittel | EO7: Max. | EQ7: Min. | ER7: Mittel | ES7: Max. | EU7: Min. | EV7: Mittel | EW7: Max. | EY7: Min. | EZ7: Mittel | FA7: Max. | FC7: Min. | FD7: Mittel | FE7: Max. | FG7: Min. | FH7: Mittel | FI7: Max. | FK7: Min. | FL7: Mittel | FM7: Max. | FO7: Min. | FP7: Mittel | FQ7: Max. | FS7: Min. | FT7: Mittel | FU7: Max. | FW7: Min. | FX7: Mittel | FY7: Max. | GA7: Min. | GB7: Mittel | GC7: Max. | GE7: Min. | GF7: Mittel | GG7: Max. | GI7: Min. | GJ7: Mittel | GK7: Max. | GM7: Min. | GN7: Mittel | GO7: Max. | GQ7: Min. | GR7: Mittel | GS7: Max. | GU7: Min. | GV7: Mittel | GW7: Max. | GY7: Min. | GZ7: Mittel | HA7: Max. | HC7: Min. | HD7: Mittel | HE7: Max. | HG7: Min. | HH7: Mittel | HI7: Max. | HK7: Min. | HL7: Mittel | HM7: Max. | HO7: Min. | HP7: Mittel | HQ7: Max. | HS7: Min. | HT7: Mittel | HU7: Max. | HW7: Min. | HX7: Mittel | HY7: Max. | IA7: Min. | IB7: Mittel | IC7: Max. | IE7: Min. | IF7: Mittel | IG7: Max. | II7: Min. | IJ7: Mittel | IK7: Max. | IM7: Min. | IN7: Mittel | IO7: Max. | IQ7: Min. | IR7: Mittel | IS7: Max. | IU7: Min. | IV7: Mittel | IW7: Max. | IY7: Min. | IZ7: Mittel | JA7: Max. | JC7: Min. | JD7: Mittel | JE7: Max. | JG7: Min. | JH7: Mittel | JI7: Max. | JK7: Min. | JL7: Mittel | JM7: Max.
B8: 0 | C8: =B8+1 -> 1 | D8: =C8+1 -> 2 | E8: 3 | F8: 4 | G8: 5 | H8: 6 | I8: 7 | J8: 8 | K8: 9 | L8: 10 | M8: 11 | N8: 12 | O8: 13 | P8: 14 | Q8: 15 | R8: 16 | S8: 17 | T8: 18 | U8: 19 | V8: 20 | W8: 21 | X8: 22 | Y8: 23 | Z8: 24 | AA8: 25 | AB8: 26 | AC8: 27 | AD8: 28 | AE8: 29 | AF8: 30 | AG8: 31 | AH8: 32 | AI8: 33 | AJ8: 34 | AK8: 35 | AL8: 36 | AM8: 37 | AN8: 38 | AO8: 39 | AP8: 40 | AQ8: 41 | AR8: 42 | AS8: 43 | AT8: 44 | AU8: 45 | AV8: 46 | AW8: 47 | AX8: 48 | AY8: 49 | AZ8: 50 | BA8: 51 | BB8: 52 | BC8: 53 | BD8: 54 | BE8: 55 | BF8: 56 | BG8: 57 | BH8: 58 | BI8: 59 | BJ8: 60 | BK8: 61 | BL8: 62 | BM8: 63 | BN8: 64 | BO8: 65 | BP8: =BO8+1 -> 66 | BQ8: 67 | BR8: 68 | BS8: 69 | BT8: 70 | BU8: 71 | BV8: 72 | BW8: 73 | BX8: 74 | BY8: 75 | BZ8: 76 | CA8: 77 | CB8: 78 | CC8: 79 | CD8: 80 | CE8: 81 | CF8: 82 | CG8: 83 | CH8: 84 | CI8: 85 | CJ8: 86 | CK8: 87 | CL8: 88 | CM8: 89 | CN8: 90 | CO8: 91 | CP8: 92 | CQ8: 93 | CR8: 94 | CS8: 95 | CT8: 96 | CU8: 97 | CV8: 98 | CW8: 99 | CX8: 100 | CY8: 101 | CZ8: 102 | DA8: 103 | DB8: 104 | DC8: 105 | DD8: 106 | DE8: 107 | DF8: 108 | DG8: 109 | DH8: 110 | DI8: 111 | DJ8: 112 | DK8: 113 | DL8: 114 | DM8: 115 | DN8: 116 | DO8: 117 | DP8: 118 | DQ8: 119 | DR8: 120 | DS8: 121 | DT8: 122 | DU8: 123 | DV8: 124 | DW8: 125 | DX8: 126 | DY8: 127 | DZ8: 128 | EA8: 129 | EB8: =EA8+1 -> 130 | EC8: 131 | ED8: 132 | EE8: 133 | EF8: 134 | EG8: 135 | EH8: 136 | EI8: 137 | EJ8: 138 | EK8: 139 | EL8: 140 | EM8: 141 | EN8: 142 | EO8: 143 | EP8: 144 | EQ8: 145 | ER8: 146 | ES8: 147 | ET8: 148 | EU8: 149 | EV8: 150 | EW8: 151 | EX8: 152 | EY8: 153 | EZ8: 154 | FA8: 155 | FB8: 156 | FC8: 157 | FD8: 158 | FE8: 159 | FF8: 160 | FG8: 161 | FH8: 162 | FI8: 163 | FJ8: 164 | FK8: 165 | FL8: 166 | FM8: 167 | FN8: 168 | FO8: 169 | FP8: 170 | FQ8: 171 | FR8: 172 | FS8: 173 | FT8: 174 | FU8: 175 | FV8: 176 | FW8: 177 | FX8: 178 | FY8: 179 | FZ8: 180 | GA8: 181 | GB8: 182 | GC8: 183 | GD8: 184 | GE8: 185 | GF8: 186 | GG8: 187 | GH8: 188 | GI8: 189 | GJ8: 190 | GK8: 191 | GL8: 192 | GM8: 193 | GN8: =GM8+1 -> 194 | GO8: 195 | GP8: 196 | GQ8: 197 | GR8: 198 | GS8: 199 | GT8: 200 | GU8: 201 | GV8: 202 | GW8: 203 | GX8: 204 | GY8: 205 | GZ8: 206 | HA8: 207 | HB8: 208 | HC8: 209 | HD8: 210 | HE8: 211 | HF8: 212 | HG8: 213 | HH8: 214 | HI8: 215 | HJ8: 216 | HK8: 217 | HL8: 218 | HM8: 219 | HN8: =HM8+1 -> 220 | HO8: =HN8+1 -> 221 | HP8: =HO8+1 -> 222 | HQ8: =HP8+1 -> 223 | HR8: =HQ8+1 -> 224 | HS8: =HR8+1 -> 225 | HT8: =HS8+1 -> 226 | HU8: =HT8+1 -> 227 | HV8: =HU8+1 -> 228 | HW8: =HV8+1 -> 229 | HX8: =HW8+1 -> 230 | HY8: =HX8+1 -> 231 | HZ8: =HY8+1 -> 232 | IA8: =HZ8+1 -> 233 | IB8: =IA8+1 -> 234 | IC8: =IB8+1 -> 235 | ID8: =IC8+1 -> 236 | IE8: =ID8+1 -> 237 | IF8: =IE8+1 -> 238 | IG8: =IF8+1 -> 239 | IH8: =IG8+1 -> 240 | II8: =IH8+1 -> 241 | IJ8: =II8+1 -> 242 | IK8: =IJ8+1 -> 243 | IL8: =IK8+1 -> 244 | IM8: =IL8+1 -> 245 | IN8: =IM8+1 -> 246 | IO8: =IN8+1 -> 247 | IP8: =IO8+1 -> 248 | IQ8: =IP8+1 -> 249 | IR8: =IQ8+1 -> 250 | IS8: =IR8+1 -> 251 | IT8: =IS8+1 -> 252 | IU8: =IT8+1 -> 253 | IV8: =IU8+1 -> 254 | IW8: =IV8+1 -> 255 | IX8: =IW8+1 -> 256 | IY8: =IX8+1 -> 257 | IZ8: =IY8+1 -> 258 | JA8: =IZ8+1 -> 259 | JB8: =JA8+1 -> 260 | JC8: =JB8+1 -> 261 | JD8: =JC8+1 -> 262 | JE8: =JD8+1 -> 263 | JF8: =JE8+1 -> 264 | JG8: =JF8+1 -> 265 | JH8: =JG8+1 -> 266 | JI8: =JH8+1 -> 267 | JJ8: =JI8+1 -> 268 | JK8: =JJ8+1 -> 269 | JL8: =JK8+1 -> 270 | JM8: =JL8+1 -> 271
A10: -20 | C10: 1 | D10: 0 | E10: 0 | G10: 0 | H10: 0 | I10: 0 | K10: 0 | L10: 0 | M10: 0 | O10: 0 | P10: 0 | Q10: 0 | S10: 2 | T10: 0 | U10: 0 | W10: 0 | X10: 0 | Y10: 0 | AA10: 0 | AB10: 0 | AC10: 0 | AE10: 0 | AF10: 0 | AG10: 0 | AI10: 0 | AJ10: 0 | AK10: 0 | AM10: 0 | AN10: 0 | AO10: 0 | AQ10: 0 | AR10: 0 | AS10: 0 | AU10: 1 | AV10: 0 | AW10: 0 | AY10: 0 | AZ10: 0 | BA10: 0 | BC10: 0 | BD10: 0 | BE10: 0 | BG10: 0 | BH10: 0 | BI10: 0 | BK10: 0 | BL10: 0 | BM10: 0 | BO10: 0 | BP10: 0 | BQ10: 0 | BS10: 0 | BT10: 0 | BU10: 0 | BW10: 0 | BX10: 0 | BY10: 0 | CA10: 0 | CB10: 0 | CC10: 0 | CE10: 0 | CF10: 0 | CG10: 0 | CI10: 0 | CJ10: 0 | CK10: 0 | CM10: 0 | CN10: 0 | CO10: 0 | CQ10: 0 | CR10: 0 | CS10: 0 | CU10: 0 | CV10: 0 | CW10: 0 | CY10: 0 | CZ10: 0 | DA10: 0 | DC10: 0 | DD10: 0 | DE10: 0 | DG10: 32 | DH10: 1 | DI10: 0 | DK10: 0 | DL10: 0 | DM10: 0 | DO10: 0 | DP10: 0 | DQ10: 0 | DS10: 0 | DT10: 0 | DU10: 0 | DW10: 0 | DX10: 0 | DY10: 0 | EA10: 0 | EB10: 0 | EC10: 0 | EE10: 0 | EF10: 0 | EG10: 0 | EI10: 0 | EJ10: 0 | EK10: 0 | EM10: 0 | EN10: 0 | EO10: 0 | EQ10: 0 | ER10: 0 | ES10: 0 | EU10: 0 | EV10: 0 | EW10: 0 | EY10: 0 | EZ10: 0 | FA10: 0 | FC10: 0 | FD10: 0 | FE10: 0 | FG10: 0 | FH10: 0 | FI10: 0 | FK10: 1 | FL10: 0 | FM10: 0 | FO10: 0 | FP10: 0 | FQ10: 0 | FS10: 0 | FT10: 0 | FU10: 0 | FW10: 0 | FX10: 0 | FY10: 0 | GA10: 0 | GB10: 0 | GC10: 0 | GE10: 1 | GF10: 0 | GG10: 0 | GI10: 1 | GJ10: 0 | GK10: 0 | GM10: 0 | GN10: 0 | GO10: 0 | GQ10: 0 | GR10: 0 | GS10: 0 | GU10: 0 | GV10: 0 | GW10: 0 | GY10: 0 | GZ10: 0 | HA10: 0 | HC10: 0 | HD10: 0 | HE10: 0 | HG10: 0 | HH10: 0 | HI10: 0 | HK10: 17 | HL10: 0 | HM10: 0 | HO10: 0 | HP10: 0 | HQ10: 0 | HS10: 0 | HT10: 0 | HU10: 0 | HW10: 0 | HX10: 0 | HY10: 0 | IA10: 0 | IB10: 0 | IC10: 0 | IE10: 0 | IF10: 0 | IG10: 0 | II10: 0 | IJ10: 0 | IK10: 0 | IM10: 0 | IN10: 0 | IO10: 0 | IQ10: 0 | IR10: 0 | IS10: 0 | IU10: 0 | IV10: 0 | IW10: 0 | IY10: 0 | IZ10: 0 | JA10: 0 | JC10: 0 | JD10: 0 | JE10: 0 | JG10: 0 | JH10: 0 | JI10: 0 | JK10: 0 | JL10: 0 | JM10: 0
A11: -19 | C11: 0 | D11: 0 | E11: 0 | G11: 0 | H11: 0 | I11: 0 | K11: 0 | L11: 0 | M11: 0 | O11: 0 | P11: 0 | Q11: 0 | S11: 2 | T11: 0 | U11: 0 | W11: 0 | X11: 0 | Y11: 0 | AA11: 0 | AB11: 0 | AC11: 0 | AE11: 0 | AF11: 0 | AG11: 0 | AI11: 0 | AJ11: 0 | AK11: 0 | AM11: 0 | AN11: 0 | AO11: 0 | AQ11: 0 | AR11: 0 | AS11: 0 | AU11: 1 | AV11: 0 | AW11: 0 | AY11: 0 | AZ11: 0 | BA11: 0 | BC11: 0 | BD11: 0 | BE11: 0 | BG11: 0 | BH11: 0 | BI11: 0 | BK11: 0 | BL11: 0 | BM11: 0 | BO11: 0 | BP11: 0 | BQ11: 0 | BS11: 0 | BT11: 0 | BU11: 0 | BW11: 0 | BX11: 0 | BY11: 0 | CA11: 0 | CB11: 0 | CC11: 0 | CE11: 0 | CF11: 0 | CG11: 0 | CI11: 0 | CJ11: 0 | CK11: 0 | CM11: 0 | CN11: 0 | CO11: 0 | CQ11: 1 | CR11: 0 | CS11: 0 | CU11: 0 | CV11: 0 | CW11: 0 | CY11: 0 | CZ11: 0 | DA11: 0 | DC11: 0 | DD11: 0 | DE11: 0 | DG11: 6 | DH11: 1 | DI11: 0 | DK11: 0 | DL11: 0 | DM11: 0 | DO11: 0 | DP11: 0 | DQ11: 0 | DS11: 0 | DT11: 0 | DU11: 0 | DW11: 0 | DX11: 0 | DY11: 0 | EA11: 0 | EB11: 0 | EC11: 0 | EE11: 1 | EF11: 0 | EG11: 0 | EI11: 0 | EJ11: 0 | EK11: 0 | EM11: 0 | EN11: 0 | EO11: 0 | EQ11: 0 | ER11: 0 | ES11: 0 | EU11: 0 | EV11: 0 | EW11: 0 | EY11: 0 | EZ11: 0 | FA11: 0 | FC11: 0 | FD11: 0 | FE11: 0 | FG11: 0 | FH11: 0 | FI11: 0 | FK11: 1 | FL11: 0 | FM11: 0 | FO11: 0 | FP11: 0 | FQ11: 0 | FS11: 0 | FT11: 0 | FU11: 0 | FW11: 0 | FX11: 0 | FY11: 0 | GA11: 0 | GB11: 0 | GC11: 0 | GE11: 1 | GF11: 0 | GG11: 0 | GI11: 1 | GJ11: 0 | GK11: 0 | GM11: 0 | GN11: 0 | GO11: 0 | GQ11: 0 | GR11: 0 | GS11: 0 | GU11: 0 | GV11: 0 | GW11: 0 | GY11: 0 | GZ11: 0 | HA11: 0 | HC11: 0 | HD11: 0 | HE11: 0 | HG11: 0 | HH11: 0 | HI11: 0 | HK11: 4 | HL11: 1 | HM11: 0 | HO11: 0 | HP11: 0 | HQ11: 0 | HS11: 0 | HT11: 0 | HU11: 0 | HW11: 0 | HX11: 0 | HY11: 0 | IA11: 0 | IB11: 0 | IC11: 0 | IE11: 0 | IF11: 0 | IG11: 0 | II11: 0 | IJ11: 0 | IK11: 0 | IM11: 0 | IN11: 0 | IO11: 0 | IQ11: 0 | IR11: 0 | IS11: 0 | IU11: 0 | IV11: 0 | IW11: 0 | IY11: 0 | IZ11: 0 | JA11: 0 | JC11: 0 | JD11: 0 | JE11: 0 | JG11: 0 | JH11: 0 | JI11: 0 | JK11: 0 | JL11: 0 | JM11: 0
A12: -18 | C12: 2 | D12: 0 | E12: 0 | G12: 0 | H12: 0 | I12: 0 | K12: 0 | L12: 0 | M12: 0 | O12: 0 | P12: 0 | Q12: 0 | S12: 2 | T12: 0 | U12: 0 | W12: 0 | X12: 0 | Y12: 0 | AA12: 0 | AB12: 0 | AC12: 0 | AE12: 0 | AF12: 0 | AG12: 0 | AI12: 0 | AJ12: 0 | AK12: 0 | AM12: 0 | AN12: 0 | AO12: 0 | AQ12: 0 | AR12: 0 | AS12: 0 | AU12: 0 | AV12: 0 | AW12: 0 | AY12: 0 | AZ12: 0 | BA12: 0 | BC12: 0 | BD12: 0 | BE12: 0 | BG12: 0 | BH12: 0 | BI12: 0 | BK12: 0 | BL12: 0 | BM12: 0 | BO12: 0 | BP12: 0 | BQ12: 0 | BS12: 0 | BT12: 0 | BU12: 0 | BW12: 1 | BX12: 0 | BY12: 0 | CA12: 0 | CB12: 0 | CC12: 0 | CE12: 0 | CF12: 0 | CG12: 0 | CI12: 0 | CJ12: 0 | CK12: 0 | CM12: 0 | CN12: 0 | CO12: 0 | CQ12: 1 | CR12: 0 | CS12: 0 | CU12: 0 | CV12: 0 | CW12: 0 | CY12: 0 | CZ12: 0 | DA12: 0 | DC12: 0 | DD12: 0 | DE12: 0 | DG12: 6 | DH12: 1 | DI12: 0 | DK12: 0 | DL12: 0 | DM12: 0 | DO12: 0 | DP12: 0 | DQ12: 0 | DS12: 0 | DT12: 0 | DU12: 0 | DW12: 0 | DX12: 0 | DY12: 0 | EA12: 0 | EB12: 0 | EC12: 0 | EE12: 1 | EF12: 0 | EG12: 0 | EI12: 0 | EJ12: 0 | EK12: 0 | EM12: 0 | EN12: 0 | EO12: 0 | EQ12: 0 | ER12: 0 | ES12: 0 | EU12: 0 | EV12: 0 | EW12: 0 | EY12: 0 | EZ12: 0 | FA12: 0 | FC12: 1 | FD12: 0 | FE12: 0 | FG12: 0 | FH12: 0 | FI12: 0 | FK12: 0 | FL12: 0 | FM12: 0 | FO12: 0 | FP12: 0 | FQ12: 0 | FS12: 0 | FT12: 0 | FU12: 0 | FW12: 0 | FX12: 0 | FY12: 0 | GA12: 0 | GB12: 0 | GC12: 0 | GE12: 1 | GF12: 0 | GG12: 0 | GI12: 1 | GJ12: 0 | GK12: 0 | GM12: 0 | GN12: 0 | GO12: 0 | GQ12: 0 | GR12: 0 | GS12: 0 | GU12: 0 | GV12: 0 | GW12: 0 | GY12: 0 | GZ12: 0 | HA12: 0 | HC12: 0 | HD12: 0 | HE12: 0 | HG12: 0 | HH12: 0 | HI12: 0 | HK12: 4 | HL12: 1 | HM12: 0 | HO12: 0 | HP12: 0 | HQ12: 0 | HS12: 0 | HT12: 0 | HU12: 0 | HW12: 0 | HX12: 0 | HY12: 0 | IA12: 0 | IB12: 0 | IC12: 0 | IE12: 0 | IF12: 0 | IG12: 0 | II12: 0 | IJ12: 0 | IK12: 0 | IM12: 0 | IN12: 0 | IO12: 0 | IQ12: 0 | IR12: 0 | IS12: 0 | IU12: 0 | IV12: 0 | IW12: 0 | IY12: 1 | IZ12: 0 | JA12: 0 | JC12: 0 | JD12: 0 | JE12: 0 | JG12: 0 | JH12: 0 | JI12: 0 | JK12: 0 | JL12: 0 | JM12: 0
A13: -17 | C13: 3 | D13: 0 | E13: 0 | G13: 0 | H13: 0 | I13: 0 | K13: 0 | L13: 0 | M13: 0 | O13: 0 | P13: 0 | Q13: 0 | S13: 2 | T13: 0 | U13: 0 | W13: 0 | X13: 0 | Y13: 0 | AA13: 0 | AB13: 0 | AC13: 0 | AE13: 1 | AF13: 0 | AG13: 0 | AI13: 0 | AJ13: 0 | AK13: 0 | AM13: 1 | AN13: 0 | AO13: 0 | AQ13: 0 | AR13: 0 | AS13: 0 | AU13: 1 | AV13: 0 | AW13: 0 | AY13: 0 | AZ13: 0 | BA13: 0 | BC13: 0 | BD13: 0 | BE13: 0 | BG13: 0 | BH13: 0 | BI13: 0 | BK13: 1 | BL13: 0 | BM13: 0 | BO13: 0 | BP13: 0 | BQ13: 0 | BS13: 0 | BT13: 0 | BU13: 0 | BW13: 1 | BX13: 0 | BY13: 0 | CA13: 0 | CB13: 0 | CC13: 0 | CE13: 0 | CF13: 0 | CG13: 0 | CI13: 0 | CJ13: 0 | CK13: 0 | CM13: 0 | CN13: 0 | CO13: 0 | CQ13: 1 | CR13: 0 | CS13: 0 | CU13: 0 | CV13: 0 | CW13: 0 | CY13: 0 | CZ13: 0 | DA13: 0 | DC13: 0 | DD13: 0 | DE13: 0 | DG13: 6 | DH13: 2 | DI13: 0 | DK13: 0 | DL13: 0 | DM13: 0 | DO13: 1 | DP13: 0 | DQ13: 0 | DS13: 1 | DT13: 0 | DU13: 0 | DW13: 0 | DX13: 0 | DY13: 0 | EA13: 0 | EB13: 0 | EC13: 0 | EE13: 1 | EF13: 0 | EG13: 0 | EI13: 0 | EJ13: 0 | EK13: 0 | EM13: 1 | EN13: 0 | EO13: 0 | EQ13: 0 | ER13: 0 | ES13: 0 | EU13: 0 | EV13: 0 | EW13: 0 | EY13: 0 | EZ13: 0 | FA13: 0 | FC13: 1 | FD13: 0 | FE13: 0 | FG13: 0 | FH13: 0 | FI13: 0 | FK13: 1 | FL13: 0 | FM13: 0 | FO13: 0 | FP13: 0 | FQ13: 0 | FS13: 1 | FT13: 0 | FU13: 0 | FW13: 0 | FX13: 0 | FY13: 0 | GA13: 1 | GB13: 0 | GC13: 0 | GE13: 2 | GF13: 0 | GG13: 0 | GI13: 3 | GJ13: 0 | GK13: 0 | GM13: 0 | GN13: 0 | GO13: 0 | GQ13: 0 | GR13: 0 | GS13: 0 | GU13: 1 | GV13: 0 | GW13: 0 | GY13: 0 | GZ13: 0 | HA13: 0 | HC13: 0 | HD13: 0 | HE13: 0 | HG13: 0 | HH13: 0 | HI13: 0 | HK13: 7 | HL13: 1 | HM13: 0 | HO13: 0 | HP13: 0 | HQ13: 0 | HS13: 0 | HT13: 0 | HU13: 0 | HW13: 0 | HX13: 0 | HY13: 0 | IA13: 0 | IB13: 0 | IC13: 0 | IE13: 0 | IF13: 0 | IG13: 0 | II13: 0 | IJ13: 0 | IK13: 0 | IM13: 0 | IN13: 0 | IO13: 0 | IQ13: 0 | IR13: 0 | IS13: 0 | IU13: 0 | IV13: 0 | IW13: 0 | IY13: 0 | IZ13: 0 | JA13: 0 | JC13: 0 | JD13: 0 | JE13: 0 | JG13: 0 | JH13: 0 | JI13: 0 | JK13: 0 | JL13: 0 | JM13: 0
A14: -16 | C14: 4 | D14: 0 | E14: 0 | G14: 0 | H14: 0 | I14: 0 | K14: 0 | L14: 0 | M14: 0 | O14: 0 | P14: 0 | Q14: 0 | S14: 3 | T14: 1 | U14: 0 | W14: 0 | X14: 0 | Y14: 0 | AA14: 0 | AB14: 0 | AC14: 0 | AE14: 1 | AF14: 0 | AG14: 0 | AI14: 0 | AJ14: 0 | AK14: 0 | AM14: 1 | AN14: 0 | AO14: 0 | AQ14: 0 | AR14: 0 | AS14: 0 | AU14: 1 | AV14: 0 | AW14: 0 | AY14: 0 | AZ14: 0 | BA14: 0 | BC14: 0 | BD14: 0 | BE14: 0 | BG14: 0 | BH14: 0 | BI14: 0 | BK14: 1 | BL14: 0 | BM14: 0 | BO14: 1 | BP14: 0 | BQ14: 0 | BS14: 1 | BT14: 0 | BU14: 0 | BW14: 2 | BX14: 0 | BY14: 0 | CA14: 0 | CB14: 0 | CC14: 0 | CE14: 0 | CF14: 0 | CG14: 0 | CI14: 0 | CJ14: 0 | CK14: 0 | CM14: 0 | CN14: 0 | CO14: 0 | CQ14: 2 | CR14: 0 | CS14: 0 | CU14: 1 | CV14: 0 | CW14: 0 | CY14: 0 | CZ14: 0 | DA14: 0 | DC14: 0 | DD14: 0 | DE14: 0 | DG14: 7 | DH14: 2 | DI14: 0 | DK14: 0 | DL14: 0 | DM14: 0 | DO14: 1 | DP14: 0 | DQ14: 0 | DS14: 1 | DT14: 0 | DU14: 0 | DW14: 0 | DX14: 0 | DY14: 0 | EA14: 0 | EB14: 0 | EC14: 0 | EE14: 0 | EF14: 0 | EG14: 0 | EI14: 1 | EJ14: 0 | EK14: 0 | EM14: 1 | EN14: 0 | EO14: 0 | EQ14: 0 | ER14: 0 | ES14: 0 | EU14: 1 | EV14: 0 | EW14: 0 | EY14: 0 | EZ14: 0 | FA14: 0 | FC14: 1 | FD14: 0 | FE14: 0 | FG14: 0 | FH14: 0 | FI14: 0 | FK14: 2 | FL14: 0 | FM14: 0 | FO14: 0 | FP14: 0 | FQ14: 0 | FS14: 1 | FT14: 0 | FU14: 0 | FW14: 0 | FX14: 0 | FY14: 0 | GA14: 0 | GB14: 0 | GC14: 0 | GE14: 2 | GF14: 0 | GG14: 0 | GI14: 3 | GJ14: 1 | GK14: 0 | GM14: 0 | GN14: 0 | GO14: 0 | GQ14: 0 | GR14: 0 | GS14: 0 | GU14: 0 | GV14: 0 | GW14: 0 | GY14: 0 | GZ14: 0 | HA14: 0 | HC14: 0 | HD14: 0 | HE14: 0 | HG14: 0 | HH14: 0 | HI14: 0 | HK14: 5 | HL14: 2 | HM14: 0 | HO14: 0 | HP14: 0 | HQ14: 0 | HS14: 0 | HT14: 0 | HU14: 0 | HW14: 0 | HX14: 0 | HY14: 0 | IA14: 0 | IB14: 0 | IC14: 0 | IE14: 0 | IF14: 0 | IG14: 0 | II14: 0 | IJ14: 0 | IK14: 0 | IM14: 0 | IN14: 0 | IO14: 0 | IQ14: 0 | IR14: 0 | IS14: 0 | IU14: 0 | IV14: 0 | IW14: 0 | IY14: 2 | IZ14: 0 | JA14: 0 | JC14: 0 | JD14: 0 | JE14: 0 | JG14: 0 | JH14: 0 | JI14: 0 | JK14: 0 | JL14: 0 | JM14: 0
A15: -15 | C15: 3 | D15: 0 | E15: 0 | G15: 0 | H15: 0 | I15: 0 | K15: 0 | L15: 0 | M15: 0 | O15: 0 | P15: 0 | Q15: 0 | S15: 3 | T15: 1 | U15: 0 | W15: 0 | X15: 0 | Y15: 0 | AA15: 0 | AB15: 0 | AC15: 0 | AE15: 1 | AF15: 0 | AG15: 0 | AI15: 0 | AJ15: 0 | AK15: 0 | AM15: 0 | AN15: 0 | AO15: 0 | AQ15: 0 | AR15: 0 | AS15: 0 | AU15: 3 | AV15: 0 | AW15: 0 | AY15: 0 | AZ15: 0 | BA15: 0 | BC15: 0 | BD15: 0 | BE15: 0 | BG15: 0 | BH15: 0 | BI15: 0 | BK15: 0 | BL15: 0 | BM15: 0 | BO15: 1 | BP15: 0 | BQ15: 0 | BS15: 1 | BT15: 0 | BU15: 0 | BW15: 1 | BX15: 0 | BY15: 0 | CA15: 1 | CB15: 0 | CC15: 0 | CE15: 0 | CF15: 0 | CG15: 0 | CI15: 0 | CJ15: 0 | CK15: 0 | CM15: 0 | CN15: 0 | CO15: 0 | CQ15: 4 | CR15: 0 | CS15: 0 | CU15: 2 | CV15: 0 | CW15: 0 | CY15: 0 | CZ15: 0 | DA15: 0 | DC15: 0 | DD15: 0 | DE15: 0 | DG15: 7 | DH15: 4 | DI15: 0 | DK15: 0 | DL15: 0 | DM15: 0 | DO15: 1 | DP15: 0 | DQ15: 0 | DS15: 1 | DT15: 0 | DU15: 0 | DW15: 0 | DX15: 0 | DY15: 0 | EA15: 0 | EB15: 0 | EC15: 0 | EE15: 2 | EF15: 0 | EG15: 0 | EI15: 1 | EJ15: 0 | EK15: 0 | EM15: 1 | EN15: 0 | EO15: 0 | EQ15: 0 | ER15: 0 | ES15: 0 | EU15: 1 | EV15: 0 | EW15: 0 | EY15: 0 | EZ15: 0 | FA15: 0 | FC15: 3 | FD15: 0 | FE15: 0 | FG15: 0 | FH15: 0 | FI15: 0 | FK15: 2 | FL15: 0 | FM15: 0 | FO15: 1 | FP15: 0 | FQ15: 0 | FS15: 2 | FT15: 0 | FU15: 0 | FW15: 0 | FX15: 0 | FY15: 0 | GA15: 1 | GB15: 0 | GC15: 0 | GE15: 4 | GF15: 1 | GG15: 0 | GI15: 3 | GJ15: 1 | GK15: 0 | GM15: 0 | GN15: 0 | GO15: 0 | GQ15: 0 | GR15: 0 | GS15: 0 | GU15: 2 | GV15: 0 | GW15: 0 | GY15: 0 | GZ15: 0 | HA15: 0 | HC15: 0 | HD15: 0 | HE15: 0 | HG15: 0 | HH15: 0 | HI15: 0 | HK15: 6 | HL15: 2 | HM15: 0 | HO15: 0 | HP15: 0 | HQ15: 0 | HS15: 0 | HT15: 0 | HU15: 0 | HW15: 0 | HX15: 0 | HY15: 0 | IA15: 0 | IB15: 0 | IC15: 0 | IE15: 0 | IF15: 0 | IG15: 0 | II15: 0 | IJ15: 0 | IK15: 0 | IM15: 1 | IN15: 0 | IO15: 0 | IQ15: 0 | IR15: 0 | IS15: 0 | IU15: 0 | IV15: 0 | IW15: 0 | IY15: 2 | IZ15: 0 | JA15: 0 | JC15: 0 | JD15: 0 | JE15: 0 | JG15: 0 | JH15: 0 | JI15: 0 | JK15: 0 | JL15: 0 | JM15: 0
A16: -14 | C16: 5 | D16: 1 | E16: 0 | G16: 0 | H16: 0 | I16: 0 | K16: 0 | L16: 0 | M16: 0 | O16: 0 | P16: 0 | Q16: 0 | S16: 4 | T16: 1 | U16: 0 | W16: 0 | X16: 0 | Y16: 0 | AA16: 0 | AB16: 0 | AC16: 0 | AE16: 2 | AF16: 0 | AG16: 0 | AI16: 0 | AJ16: 0 | AK16: 0 | AM16: 1 | AN16: 0 | AO16: 0 | AQ16: 0 | AR16: 0 | AS16: 0 | AU16: 2 | AV16: 0 | AW16: 0 | AY16: 0 | AZ16: 0 | BA16: 0 | BC16: 0 | BD16: 0 | BE16: 0 | BG16: 1 | BH16: 0 | BI16: 0 | BK16: 1 | BL16: 0 | BM16: 0 | BO16: 1 | BP16: 0 | BQ16: 0 | BS16: 2 | BT16: 0 | BU16: 0 | BW16: 3 | BX16: 0 | BY16: 0 | CA16: 1 | CB16: 0 | CC16: 0 | CE16: 1 | CF16: 0 | CG16: 0 | CI16: 0 | CJ16: 0 | CK16: 0 | CM16: 0 | CN16: 0 | CO16: 0 | CQ16: 2 | CR16: 0 | CS16: 0 | CU16: 2 | CV16: 0 | CW16: 0 | CY16: 0 | CZ16: 0 | DA16: 0 | DC16: 0 | DD16: 0 | DE16: 0 | DG16: 7 | DH16: 4 | DI16: 0 | DK16: 0 | DL16: 0 | DM16: 0 | DO16: 2 | DP16: 0 | DQ16: 0 | DS16: 1 | DT16: 0 | DU16: 0 | DW16: 0 | DX16: 0 | DY16: 0 | EA16: 0 | EB16: 0 | EC16: 0 | EE16: 2 | EF16: 0 | EG16: 0 | EI16: 0 | EJ16: 0 | EK16: 0 | EM16: 1 | EN16: 0 | EO16: 0 | EQ16: 0 | ER16: 0 | ES16: 0 | EU16: 1 | EV16: 0 | EW16: 0 | EY16: 1 | EZ16: 0 | FA16: 0 | FC16: 3 | FD16: 0 | FE16: 0 | FG16: 0 | FH16: 0 | FI16: 0 | FK16: 2 | FL16: 1 | FM16: 0 | FO16: 1 | FP16: 0 | FQ16: 0 | FS16: 2 | FT16: 0 | FU16: 0 | FW16: 1 | FX16: 0 | FY16: 0 | GA16: 2 | GB16: 0 | GC16: 0 | GE16: 3 | GF16: 0 | GG16: 0 | GI16: 5 | GJ16: 1 | GK16: 0 | GM16: 0 | GN16: 0 | GO16: 0 | GQ16: 0 | GR16: 0 | GS16: 0 | GU16: 2 | GV16: 0 | GW16: 0 | GY16: 1 | GZ16: 0 | HA16: 0 | HC16: 0 | HD16: 0 | HE16: 0 | HG16: 0 | HH16: 0 | HI16: 0 | HK16: 5 | HL16: 3 | HM16: 0 | HO16: 0 | HP16: 0 | HQ16: 0 | HS16: 0 | HT16: 0 | HU16: 0 | HW16: 0 | HX16: 0 | HY16: 0 | IA16: 0 | IB16: 0 | IC16: 0 | IE16: 0 | IF16: 0 | IG16: 0 | II16: 0 | IJ16: 0 | IK16: 0 | IM16: 0 | IN16: 0 | IO16: 0 | IQ16: 0 | IR16: 0 | IS16: 0 | IU16: 0 | IV16: 0 | IW16: 0 | IY16: 1 | IZ16: 0 | JA16: 0 | JC16: 1 | JD16: 0 | JE16: 0 | JG16: 0 | JH16: 0 | JI16: 0 | JK16: 0 | JL16: 0 | JM16: 0
A17: -13 | C17: 7 | D17: 2 | E17: 0 | G17: 0 | H17: 0 | I17: 0 | K17: 0 | L17: 0 | M17: 0 | O17: 1 | P17: 0 | Q17: 0 | S17: 4 | T17: 1 | U17: 0 | W17: 0 | X17: 0 | Y17: 0 | AA17: 0 | AB17: 0 | AC17: 0 | AE17: 1 | AF17: 0 | AG17: 0 | AI17: 1 | AJ17: 0 | AK17: 0 | AM17: 2 | AN17: 0 | AO17: 0 | AQ17: 0 | AR17: 0 | AS17: 0 | AU17: 3 | AV17: 1 | AW17: 0 | AY17: 0 | AZ17: 0 | BA17: 0 | BC17: 0 | BD17: 0 | BE17: 0 | BG17: 1 | BH17: 0 | BI17: 0 | BK17: 2 | BL17: 0 | BM17: 0 | BO17: 1 | BP17: 0 | BQ17: 0 | BS17: 1 | BT17: 0 | BU17: 0 | BW17: 2 | BX17: 0 | BY17: 0 | CA17: 1 | CB17: 0 | CC17: 0 | CE17: 0 | CF17: 0 | CG17: 0 | CI17: 0 | CJ17: 0 | CK17: 0 | CM17: 0 | CN17: 0 | CO17: 0 | CQ17: 4 | CR17: 0 | CS17: 0 | CU17: 3 | CV17: 0 | CW17: 0 | CY17: 0 | CZ17: 0 | DA17: 0 | DC17: 0 | DD17: 0 | DE17: 0 | DG17: 8 | DH17: 5 | DI17: 0 | DK17: 0 | DL17: 0 | DM17: 0 | DO17: 2 | DP17: 0 | DQ17: 0 | DS17: 3 | DT17: 0 | DU17: 0 | DW17: 0 | DX17: 0 | DY17: 0 | EA17: 0 | EB17: 0 | EC17: 0 | EE17: 3 | EF17: 1 | EG17: 0 | EI17: 1 | EJ17: 0 | EK17: 0 | EM17: 1 | EN17: 0 | EO17: 0 | EQ17: 0 | ER17: 0 | ES17: 0 | EU17: 2 | EV17: 0 | EW17: 0 | EY17: 1 | EZ17: 0 | FA17: 0 | FC17: 4 | FD17: 1 | FE17: 0 | FG17: 0 | FH17: 0 | FI17: 0 | FK17: 3 | FL17: 0 | FM17: 0 | FO17: 1 | FP17: 0 | FQ17: 0 | FS17: 4 | FT17: 0 | FU17: 0 | FW17: 1 | FX17: 0 | FY17: 0 | GA17: 4 | GB17: 1 | GC17: 0 | GE17: 3 | GF17: 2 | GG17: 0 | GI17: 5 | GJ17: 1 | GK17: 0 | GM17: 0 | GN17: 0 | GO17: 0 | GQ17: 0 | GR17: 0 | GS17: 0 | GU17: 3 | GV17: 0 | GW17: 0 | GY17: 2 | GZ17: 0 | HA17: 0 | HC17: 1 | HD17: 0 | HE17: 0 | HG17: 1 | HH17: 0 | HI17: 0 | HK17: 8 | HL17: 4 | HM17: 0 | HO17: 0 | HP17: 0 | HQ17: 0 | HS17: 0 | HT17: 0 | HU17: 0 | HW17: 0 | HX17: 0 | HY17: 0 | IA17: 0 | IB17: 0 | IC17: 0 | IE17: 0 | IF17: 0 | IG17: 0 | II17: 0 | IJ17: 0 | IK17: 0 | IM17: 2 | IN17: 0 | IO17: 0 | IQ17: 0 | IR17: 0 | IS17: 0 | IU17: 2 | IV17: 0 | IW17: 0 | IY17: 5 | IZ17: 0 | JA17: 0 | JC17: 1 | JD17: 0 | JE17: 0 | JG17: 0 | JH17: 0 | JI17: 0 | JK17: 0 | JL17: 0 | JM17: 0
A18: -12 | C18: 6 | D18: 4 | E18: 0 | G18: 0 | H18: 0 | I18: 0 | K18: 0 | L18: 0 | M18: 0 | O18: 1 | P18: 0 | Q18: 0 | S18: 5 | T18: 2 | U18: 0 | W18: 0 | X18: 0 | Y18: 0 | AA18: 1 | AB18: 0 | AC18: 0 | AE18: 2 | AF18: 0 | AG18: 0 | AI18: 1 | AJ18: 0 | AK18: 0 | AM18: 3 | AN18: 0 | AO18: 0 | AQ18: 0 | AR18: 0 | AS18: 0 | AU18: 4 | AV18: 1 | AW18: 0 | AY18: 1 | AZ18: 0 | BA18: 0 | BC18: 0 | BD18: 0 | BE18: 0 | BG18: 1 | BH18: 1 | BI18: 0 | BK18: 2 | BL18: 0 | BM18: 0 | BO18: 2 | BP18: 0 | BQ18: 0 | BS18: 2 | BT18: 1 | BU18: 0 | BW18: 3 | BX18: 1 | BY18: 0 | CA18: 2 | CB18: 0 | CC18: 0 | CE18: 1 | CF18: 0 | CG18: 0 | CI18: 0 | CJ18: 0 | CK18: 0 | CM18: 1 | CN18: 0 | CO18: 0 | CQ18: 3 | CR18: 0 | CS18: 0 | CU18: 4 | CV18: 1 | CW18: 0 | CY18: 0 | CZ18: 0 | DA18: 0 | DC18: 0 | DD18: 0 | DE18: 0 | DG18: 8 | DH18: 6 | DI18: 0 | DK18: 1 | DL18: 0 | DM18: 0 | DO18: 4 | DP18: 0 | DQ18: 0 | DS18: 2 | DT18: 1 | DU18: 0 | DW18: 0 | DX18: 0 | DY18: 0 | EA18: 1 | EB18: 0 | EC18: 0 | EE18: 2 | EF18: 1 | EG18: 0 | EI18: 1 | EJ18: 0 | EK18: 0 | EM18: 2 | EN18: 1 | EO18: 0 | EQ18: 1 | ER18: 0 | ES18: 0 | EU18: 3 | EV18: 1 | EW18: 0 | EY18: 2 | EZ18: 0 | FA18: 0 | FC18: 3 | FD18: 1 | FE18: 0 | FG18: 1 | FH18: 0 | FI18: 0 | FK18: 3 | FL18: 1 | FM18: 0 | FO18: 2 | FP18: 0 | FQ18: 0 | FS18: 2 | FT18: 2 | FU18: 0 | FW18: 0 | FX18: 0 | FY18: 0 | GA18: 4 | GB18: 0 | GC18: 0 | GE18: 4 | GF18: 1 | GG18: 0 | GI18: 7 | GJ18: 3 | GK18: 0 | GM18: 0 | GN18: 0 | GO18: 0 | GQ18: 1 | GR18: 0 | GS18: 0 | GU18: 4 | GV18: 0 | GW18: 0 | GY18: 3 | GZ18: 0 | HA18: 0 | HC18: 1 | HD18: 0 | HE18: 0 | HG18: 1 | HH18: 0 | HI18: 0 | HK18: 6 | HL18: 4 | HM18: 0 | HO18: 0 | HP18: 0 | HQ18: 0 | HS18: 0 | HT18: 0 | HU18: 0 | HW18: 0 | HX18: 0 | HY18: 0 | IA18: 0 | IB18: 0 | IC18: 0 | IE18: 0 | IF18: 0 | IG18: 0 | II18: 0 | IJ18: 0 | IK18: 0 | IM18: 2 | IN18: 0 | IO18: 0 | IQ18: 0 | IR18: 0 | IS18: 0 | IU18: 2 | IV18: 0 | IW18: 0 | IY18: 3 | IZ18: 0 | JA18: 0 | JC18: 2 | JD18: 0 | JE18: 0 | JG18: 1 | JH18: 0 | JI18: 0 | JK18: 0 | JL18: 0 | JM18: 0
A19: -11 | C19: 8 | D19: 2 | E19: 0 | G19: 0 | H19: 0 | I19: 0 | K19: 0 | L19: 0 | M19: 0 | O19: 1 | P19: 0 | Q19: 0 | S19: 6 | T19: 4 | U19: 0 | W19: 0 | X19: 0 | Y19: 0 | AA19: 1 | AB19: 0 | AC19: 0 | AE19: 2 | AF19: 1 | AG19: 0 | AI19: 3 | AJ19: 1 | AK19: 0 | AM19: 2 | AN19: 1 | AO19: 0 | AQ19: 0 | AR19: 0 | AS19: 0 | AU19: 3 | AV19: 1 | AW19: 0 | AY19: 0 | AZ19: 0 | BA19: 0 | BC19: 2 | BD19: 0 | BE19: 0 | BG19: 2 | BH19: 1 | BI19: 0 | BK19: 3 | BL19: 0 | BM19: 0 | BO19: 2 | BP19: 0 | BQ19: 0 | BS19: 3 | BT19: 1 | BU19: 0 | BW19: 3 | BX19: 0 | BY19: 0 | CA19: 2 | CB19: 0 | CC19: 0 | CE19: 1 | CF19: 0 | CG19: 0 | CI19: 1 | CJ19: 0 | CK19: 0 | CM19: 2 | CN19: 0 | CO19: 0 | CQ19: 4 | CR19: 1 | CS19: 0 | CU19: 4 | CV19: 1 | CW19: 0 | CY19: 1 | CZ19: 0 | DA19: 0 | DC19: 0 | DD19: 0 | DE19: 0 | DG19: 8 | DH19: 6 | DI19: 1 | DK19: 1 | DL19: 0 | DM19: 0 | DO19: 2 | DP19: 1 | DQ19: 0 | DS19: 4 | DT19: 1 | DU19: 0 | DW19: 0 | DX19: 0 | DY19: 0 | EA19: 1 | EB19: 0 | EC19: 0 | EE19: 3 | EF19: 1 | EG19: 0 | EI19: 2 | EJ19: 1 | EK19: 0 | EM19: 3 | EN19: 1 | EO19: 0 | EQ19: 1 | ER19: 0 | ES19: 0 | EU19: 3 | EV19: 1 | EW19: 0 | EY19: 3 | EZ19: 0 | FA19: 0 | FC19: 5 | FD19: 2 | FE19: 0 | FG19: 1 | FH19: 0 | FI19: 0 | FK19: 2 | FL19: 2 | FM19: 0 | FO19: 3 | FP19: 0 | FQ19: 0 | FS19: 5 | FT19: 2 | FU19: 0 | FW19: 2 | FX19: 0 | FY19: 0 | GA19: 4 | GB19: 1 | GC19: 0 | GE19: 6 | GF19: 2 | GG19: 0 | GI19: 7 | GJ19: 3 | GK19: 0 | GM19: 0 | GN19: 0 | GO19: 0 | GQ19: 1 | GR19: 0 | GS19: 0 | GU19: 4 | GV19: 1 | GW19: 0 | GY19: 3 | GZ19: 0 | HA19: 0 | HC19: 2 | HD19: 0 | HE19: 0 | HG19: 3 | HH19: 0 | HI19: 0 | HK19: 7 | HL19: 4 | HM19: 1 | HO19: 0 | HP19: 0 | HQ19: 0 | HS19: 0 | HT19: 0 | HU19: 0 | HW19: 1 | HX19: 0 | HY19: 0 | IA19: 0 | IB19: 0 | IC19: 0 | IE19: 0 | IF19: 0 | IG19: 0 | II19: 0 | IJ19: 0 | IK19: 0 | IM19: 3 | IN19: 0 | IO19: 0 | IQ19: 0 | IR19: 0 | IS19: 0 | IU19: 3 | IV19: 1 | IW19: 0 | IY19: 4 | IZ19: 1 | JA19: 0 | JC19: 2 | JD19: 0 | JE19: 0 | JG19: 0 | JH19: 0 | JI19: 0 | JK19: 1 | JL19: 0 | JM19: 0
A20: -10 | C20: 10 | D20: 5 | E20: 1 | G20: 1 | H20: 0 | I20: 0 | K20: 0 | L20: 0 | M20: 0 | O20: 1 | P20: 0 | Q20: 0 | S20: 7 | T20: 3 | U20: 0 | W20: 1 | X20: 0 | Y20: 0 | AA20: 1 | AB20: 0 | AC20: 0 | AE20: 3 | AF20: 1 | AG20: 0 | AI20: 4 | AJ20: 1 | AK20: 0 | AM20: 3 | AN20: 1 | AO20: 0 | AQ20: 0 | AR20: 0 | AS20: 0 | AU20: 5 | AV20: 1 | AW20: 0 | AY20: 2 | AZ20: 0 | BA20: 0 | BC20: 1 | BD20: 0 | BE20: 0 | BG20: 2 | BH20: 1 | BI20: 0 | BK20: 4 | BL20: 2 | BM20: 0 | BO20: 3 | BP20: 2 | BQ20: 0 | BS20: 3 | BT20: 1 | BU20: 0 | BW20: 4 | BX20: 2 | BY20: 0 | CA20: 2 | CB20: 1 | CC20: 0 | CE20: 2 | CF20: 0 | CG20: 0 | CI20: 1 | CJ20: 0 | CK20: 0 | CM20: 3 | CN20: 0 | CO20: 0 | CQ20: 5 | CR20: 1 | CS20: 0 | CU20: 5 | CV20: 3 | CW20: 0 | CY20: 0 | CZ20: 0 | DA20: 0 | DC20: 0 | DD20: 0 | DE20: 0 | DG20: 9 | DH20: 8 | DI20: 1 | DK20: 3 | DL20: 0 | DM20: 0 | DO20: 4 | DP20: 1 | DQ20: 0 | DS20: 3 | DT20: 1 | DU20: 0 | DW20: 2 | DX20: 0 | DY20: 0 | EA20: 1 | EB20: 0 | EC20: 0 | EE20: 5 | EF20: 1 | EG20: 0 | EI20: 2 | EJ20: 0 | EK20: 0 | EM20: 2 | EN20: 1 | EO20: 0 | EQ20: 4 | ER20: 0 | ES20: 0 | EU20: 4 | EV20: 0 | EW20: 0 | EY20: 2 | EZ20: 1 | FA20: 0 | FC20: 5 | FD20: 3 | FE20: 0 | FG20: 1 | FH20: 0 | FI20: 0 | FK20: 5 | FL20: 1 | FM20: 0 | FO20: 2 | FP20: 1 | FQ20: 0 | FS20: 6 | FT20: 3 | FU20: 0 | FW20: 2 | FX20: 1 | FY20: 0 | GA20: 3 | GB20: 3 | GC20: 0 | GE20: 4 | GF20: 4 | GG20: 0 | GI20: 6 | GJ20: 4 | GK20: 0 | GM20: 0 | GN20: 0 | GO20: 0 | GQ20: 3 | GR20: 0 | GS20: 0 | GU20: 5 | GV20: 1 | GW20: 0 | GY20: 4 | GZ20: 1 | HA20: 0 | HC20: 2 | HD20: 0 | HE20: 0 | HG20: 2 | HH20: 0 | HI20: 0 | HK20: 7 | HL20: 5 | HM20: 0 | HO20: 0 | HP20: 0 | HQ20: 0 | HS20: 0 | HT20: 0 | HU20: 0 | HW20: 1 | HX20: 0 | HY20: 0 | IA20: 0 | IB20: 0 | IC20: 0 | IE20: 0 | IF20: 0 | IG20: 0 | II20: 0 | IJ20: 0 | IK20: 0 | IM20: 5 | IN20: 0 | IO20: 0 | IQ20: 0 | IR20: 0 | IS20: 0 | IU20: 4 | IV20: 1 | IW20: 0 | IY20: 5 | IZ20: 2 | JA20: 0 | JC20: 4 | JD20: 0 | JE20: 0 | JG20: 2 | JH20: 0 | JI20: 0 | JK20: 1 | JL20: 0 | JM20: 0
A21: -9 | C21: 11 | D21: 6 | E21: 1 | G21: 1 | H21: 0 | I21: 0 | K21: 0 | L21: 0 | M21: 0 | O21: 3 | P21: 1 | Q21: 0 | S21: 6 | T21: 3 | U21: 1 | W21: 1 | X21: 0 | Y21: 0 | AA21: 1 | AB21: 0 | AC21: 0 | AE21: 5 | AF21: 1 | AG21: 0 | AI21: 4 | AJ21: 3 | AK21: 1 | AM21: 4 | AN21: 1 | AO21: 0 | AQ21: 1 | AR21: 0 | AS21: 0 | AU21: 5 | AV21: 2 | AW21: 1 | AY21: 2 | AZ21: 0 | BA21: 0 | BC21: 1 | BD21: 0 | BE21: 0 | BG21: 5 | BH21: 1 | BI21: 1 | BK21: 4 | BL21: 1 | BM21: 0 | BO21: 3 | BP21: 1 | BQ21: 0 | BS21: 4 | BT21: 2 | BU21: 1 | BW21: 5 | BX21: 3 | BY21: 0 | CA21: 3 | CB21: 1 | CC21: 0 | CE21: 2 | CF21: 1 | CG21: 0 | CI21: 1 | CJ21: 0 | CK21: 0 | CM21: 3 | CN21: 0 | CO21: 0 | CQ21: 6 | CR21: 2 | CS21: 0 | CU21: 7 | CV21: 2 | CW21: 0 | CY21: 1 | CZ21: 0 | DA21: 0 | DC21: 0 | DD21: 0 | DE21: 0 | DG21: 7 | DH21: 7 | DI21: 2 | DK21: 5 | DL21: 1 | DM21: 0 | DO21: 6 | DP21: 2 | DQ21: 0 | DS21: 4 | DT21: 2 | DU21: 0 | DW21: 2 | DX21: 0 | DY21: 0 | EA21: 3 | EB21: 1 | EC21: 0 | EE21: 5 | EF21: 3 | EG21: 0 | EI21: 3 | EJ21: 1 | EK21: 0 | EM21: 4 | EN21: 2 | EO21: 0 | EQ21: 4 | ER21: 1 | ES21: 0 | EU21: 5 | EV21: 2 | EW21: 0 | EY21: 4 | EZ21: 1 | FA21: 0 | FC21: 7 | FD21: 3 | FE21: 0 | FG21: 1 | FH21: 1 | FI21: 0 | FK21: 5 | FL21: 4 | FM21: 0 | FO21: 3 | FP21: 1 | FQ21: 0 | FS21: 5 | FT21: 3 | FU21: 0 | FW21: 2 | FX21: 1 | FY21: 0 | GA21: 5 | GB21: 3 | GC21: 0 | GE21: 7 | GF21: 3 | GG21: 0 | GI21: 8 | GJ21: 6 | GK21: 0 | GM21: 0 | GN21: 0 | GO21: 0 | GQ21: 3 | GR21: 0 | GS21: 0 | GU21: 4 | GV21: 2 | GW21: 0 | GY21: 6 | GZ21: 3 | HA21: 0 | HC21: 1 | HD21: 0 | HE21: 0 | HG21: 4 | HH21: 1 | HI21: 0 | HK21: 9 | HL21: 7 | HM21: 1 | HO21: 2 | HP21: 0 | HQ21: 0 | HS21: 0 | HT21: 0 | HU21: 0 | HW21: 2 | HX21: 0 | HY21: 0 | IA21: 0 | IB21: 0 | IC21: 0 | IE21: 0 | IF21: 0 | IG21: 0 | II21: 0 | IJ21: 0 | IK21: 0 | IM21: 5 | IN21: 1 | IO21: 0 | IQ21: 0 | IR21: 0 | IS21: 0 | IU21: 5 | IV21: 1 | IW21: 1 | IY21: 5 | IZ21: 4 | JA21: 0 | JC21: 4 | JD21: 1 | JE21: 0 | JG21: 2 | JH21: 0 | JI21: 0 | JK21: 3 | JL21: 0 | JM21: 0
A22: -8 | C22: 13 | D22: 7 | E22: 2 | G22: 3 | H22: 0 | I22: 0 | K22: 0 | L22: 0 | M22: 0 | O22: 3 | P22: 1 | Q22: 0 | S22: 6 | T22: 5 | U22: 1 | W22: 2 | X22: 0 | Y22: 0 | AA22: 2 | AB22: 0 | AC22: 0 | AE22: 4 | AF22: 2 | AG22: 0 | AI22: 5 | AJ22: 2 | AK22: 1 | AM22: 6 | AN22: 2 | AO22: 0 | AQ22: 1 | AR22: 0 | AS22: 0 | AU22: 6 | AV22: 3 | AW22: 0 | AY22: 1 | AZ22: 0 | BA22: 0 | BC22: 2 | BD22: 1 | BE22: 0 | BG22: 6 | BH22: 2 | BI22: 1 | BK22: 4 | BL22: 2 | BM22: 0 | BO22: 5 | BP22: 1 | BQ22: 0 | BS22: 5 | BT22: 3 | BU22: 1 | BW22: 7 | BX22: 2 | BY22: 0 | CA22: 4 | CB22: 1 | CC22: 0 | CE22: 3 | CF22: 1 | CG22: 0 | CI22: 2 | CJ22: 0 | CK22: 0 | CM22: 3 | CN22: 1 | CO22: 0 | CQ22: 5 | CR22: 3 | CS22: 0 | CU22: 6 | CV22: 3 | CW22: 2 | CY22: 2 | CZ22: 0 | DA22: 0 | DC22: 0 | DD22: 0 | DE22: 0 | DG22: 9 | DH22: 9 | DI22: 3 | DK22: 4 | DL22: 2 | DM22: 0 | DO22: 5 | DP22: 2 | DQ22: 0 | DS22: 6 | DT22: 3 | DU22: 0 | DW22: 3 | DX22: 0 | DY22: 0 | EA22: 3 | EB22: 1 | EC22: 0 | EE22: 6 | EF22: 5 | EG22: 0 | EI22: 5 | EJ22: 2 | EK22: 0 | EM22: 4 | EN22: 1 | EO22: 0 | EQ22: 5 | ER22: 1 | ES22: 0 | EU22: 7 | EV22: 3 | EW22: 0 | EY22: 5 | EZ22: 2 | FA22: 0 | FC22: 7 | FD22: 3 | FE22: 0 | FG22: 3 | FH22: 0 | FI22: 0 | FK22: 6 | FL22: 4 | FM22: 1 | FO22: 5 | FP22: 2 | FQ22: 0 | FS22: 8 | FT22: 4 | FU22: 1 | FW22: 3 | FX22: 1 | FY22: 0 | GA22: 6 | GB22: 4 | GC22: 1 | GE22: 8 | GF22: 4 | GG22: 1 | GI22: 10 | GJ22: 5 | GK22: 0 | GM22: 2 | GN22: 0 | GO22: 0 | GQ22: 2 | GR22: 1 | GS22: 0 | GU22: 8 | GV22: 5 | GW22: 0 | GY22: 5 | GZ22: 3 | HA22: 0 | HC22: 5 | HD22: 1 | HE22: 0 | HG22: 6 | HH22: 1 | HI22: 0 | HK22: 8 | HL22: 7 | HM22: 3 | HO22: 2 | HP22: 0 | HQ22: 0 | HS22: 0 | HT22: 0 | HU22: 0 | HW22: 2 | HX22: 0 | HY22: 0 | IA22: 1 | IB22: 0 | IC22: 0 | IE22: 1 | IF22: 0 | IG22: 0 | II22: 0 | IJ22: 0 | IK22: 0 | IM22: 7 | IN22: 2 | IO22: 0 | IQ22: 0 | IR22: 0 | IS22: 0 | IU22: 7 | IV22: 4 | IW22: 0 | IY22: 5 | IZ22: 3 | JA22: 0 | JC22: 5 | JD22: 1 | JE22: 0 | JG22: 2 | JH22: 0 | JI22: 0 | JK22: 4 | JL22: 1 | JM22: 0
A23: -7 | C23: 10 | D23: 7 | E23: 4 | G23: 4 | H23: 1 | I23: 0 | K23: 0 | L23: 0 | M23: 0 | O23: 4 | P23: 2 | Q23: 0 | S23: 9 | T23: 5 | U23: 1 | W23: 2 | X23: 1 | Y23: 0 | AA23: 3 | AB23: 2 | AC23: 0 | AE23: 6 | AF23: 3 | AG23: 0 | AI23: 7 | AJ23: 6 | AK23: 2 | AM23: 6 | AN23: 2 | AO23: 0 | AQ23: 2 | AR23: 0 | AS23: 0 | AU23: 8 | AV23: 3 | AW23: 1 | AY23: 3 | AZ23: 1 | BA23: 0 | BC23: 2 | BD23: 0 | BE23: 0 | BG23: 8 | BH23: 4 | BI23: 2 | BK23: 5 | BL23: 3 | BM23: 0 | BO23: 4 | BP23: 1 | BQ23: 0 | BS23: 6 | BT23: 3 | BU23: 0 | BW23: 6 | BX23: 4 | BY23: 0 | CA23: 5 | CB23: 2 | CC23: 0 | CE23: 4 | CF23: 2 | CG23: 0 | CI23: 2 | CJ23: 0 | CK23: 0 | CM23: 5 | CN23: 1 | CO23: 0 | CQ23: 7 | CR23: 6 | CS23: 1 | CU23: 9 | CV23: 6 | CW23: 1 | CY23: 3 | CZ23: 0 | DA23: 0 | DC23: 1 | DD23: 0 | DE23: 0 | DG23: 10 | DH23: 8 | DI23: 3 | DK23: 6 | DL23: 4 | DM23: 1 | DO23: 7 | DP23: 2 | DQ23: 0 | DS23: 5 | DT23: 3 | DU23: 0 | DW23: 3 | DX23: 1 | DY23: 0 | EA23: 3 | EB23: 2 | EC23: 0 | EE23: 7 | EF23: 3 | EG23: 1 | EI23: 5 | EJ23: 1 | EK23: 0 | EM23: 7 | EN23: 3 | EO23: 0 | EQ23: 4 | ER23: 2 | ES23: 0 | EU23: 8 | EV23: 3 | EW23: 1 | EY23: 5 | EZ23: 4 | FA23: 0 | FC23: 9 | FD23: 5 | FE23: 1 | FG23: 4 | FH23: 2 | FI23: 0 | FK23: 9 | FL23: 5 | FM23: 1 | FO23: 5 | FP23: 3 | FQ23: 0 | FS23: 8 | FT23: 5 | FU23: 2 | FW23: 4 | FX23: 3 | FY23: 1 | GA23: 7 | GB23: 4 | GC23: 1 | GE23: 8 | GF23: 4 | GG23: 1 | GI23: 12 | GJ23: 6 | GK23: 0 | GM23: 2 | GN23: 0 | GO23: 0 | GQ23: 4 | GR23: 2 | GS23: 0 | GU23: 9 | GV23: 5 | GW23: 0 | GY23: 8 | GZ23: 4 | HA23: 1 | HC23: 5 | HD23: 2 | HE23: 0 | HG23: 8 | HH23: 2 | HI23: 0 | HK23: 9 | HL23: 8 | HM23: 3 | HO23: 3 | HP23: 0 | HQ23: 0 | HS23: 1 | HT23: 0 | HU23: 0 | HW23: 3 | HX23: 0 | HY23: 0 | IA23: 1 | IB23: 0 | IC23: 0 | IE23: 1 | IF23: 0 | IG23: 0 | II23: 2 | IJ23: 0 | IK23: 0 | IM23: 9 | IN23: 2 | IO23: 0 | IQ23: 1 | IR23: 0 | IS23: 0 | IU23: 8 | IV23: 5 | IW23: 2 | IY23: 9 | IZ23: 5 | JA23: 2 | JC23: 6 | JD23: 3 | JE23: 0 | JG23: 6 | JH23: 1 | JI23: 0 | JK23: 4 | JL23: 2 | JM23: 0
A24: -6 | C24: 13 | D24: 10 | E24: 4 | G24: 4 | H24: 2 | I24: 0 | K24: 0 | L24: 0 | M24: 0 | O24: 6 | P24: 2 | Q24: 1 | S24: 12 | T24: 8 | U24: 2 | W24: 3 | X24: 2 | Y24: 0 | AA24: 4 | AB24: 1 | AC24: 0 | AE24: 5 | AF24: 4 | AG24: 1 | AI24: 8 | AJ24: 3 | AK24: 3 | AM24: 6 | AN24: 3 | AO24: 1 | AQ24: 3 | AR24: 0 | AS24: 0 | AU24: 9 | AV24: 5 | AW24: 1 | AY24: 4 | AZ24: 2 | BA24: 0 | BC24: 5 | BD24: 2 | BE24: 0 | BG24: 10 | BH24: 6 | BI24: 2 | BK24: 8 | BL24: 4 | BM24: 2 | BO24: 4 | BP24: 2 | BQ24: 0 | BS24: 9 | BT24: 5 | BU24: 3 | BW24: 8 | BX24: 4 | BY24: 2 | CA24: 5 | CB24: 2 | CC24: 1 | CE24: 4 | CF24: 2 | CG24: 1 | CI24: 4 | CJ24: 1 | CK24: 0 | CM24: 7 | CN24: 3 | CO24: 0 | CQ24: 10 | CR24: 6 | CS24: 1 | CU24: 10 | CV24: 5 | CW24: 3 | CY24: 4 | CZ24: 1 | DA24: 0 | DC24: 1 | DD24: 0 | DE24: 0 | DG24: 12 | DH24: 9 | DI24: 5 | DK24: 6 | DL24: 5 | DM24: 2 | DO24: 9 | DP24: 5 | DQ24: 1 | DS24: 7 | DT24: 6 | DU24: 1 | DW24: 4 | DX24: 3 | DY24: 0 | EA24: 5 | EB24: 3 | EC24: 1 | EE24: 10 | EF24: 6 | EG24: 1 | EI24: 7 | EJ24: 4 | EK24: 0 | EM24: 5 | EN24: 3 | EO24: 1 | EQ24: 6 | ER24: 3 | ES24: 0 | EU24: 7 | EV24: 5 | EW24: 0 | EY24: 5 | EZ24: 3 | FA24: 0 | FC24: 9 | FD24: 5 | FE24: 1 | FG24: 4 | FH24: 2 | FI24: 0 | FK24: 9 | FL24: 6 | FM24: 3 | FO24: 3 | FP24: 4 | FQ24: 0 | FS24: 12 | FT24: 7 | FU24: 2 | FW24: 6 | FX24: 3 | FY24: 0 | GA24: 8 | GB24: 6 | GC24: 2 | GE24: 11 | GF24: 5 | GG24: 1 | GI24: 10 | GJ24: 10 | GK24: 0 | GM24: 3 | GN24: 0 | GO24: 0 | GQ24: 5 | GR24: 3 | GS24: 0 | GU24: 10 | GV24: 5 | GW24: 2 | GY24: 10 | GZ24: 4 | HA24: 2 | HC24: 6 | HD24: 2 | HE24: 0 | HG24: 10 | HH24: 4 | HI24: 1 | HK24: 11 | HL24: 8 | HM24: 3 | HO24: 6 | HP24: 0 | HQ24: 0 | HS24: 2 | HT24: 0 | HU24: 0 | HW24: 6 | HX24: 2 | HY24: 0 | IA24: 2 | IB24: 0 | IC24: 0 | IE24: 2 | IF24: 0 | IG24: 0 | II24: 1 | IJ24: 0 | IK24: 0 | IM24: 11 | IN24: 3 | IO24: 0 | IQ24: 3 | IR24: 0 | IS24: 0 | IU24: 9 | IV24: 7 | IW24: 3 | IY24: 10 | IZ24: 5 | JA24: 1 | JC24: 8 | JD24: 4 | JE24: 0 | JG24: 6 | JH24: 2 | JI24: 0 | JK24: 5 | JL24: 4 | JM24: 1
A25: -5 | C25: 13 | D25: 13 | E25: 6 | G25: 8 | H25: 5 | I25: 1 | K25: 1 | L25: 0 | M25: 0 | O25: 7 | P25: 4 | Q25: 1 | S25: 14 | T25: 8 | U25: 3 | W25: 4 | X25: 3 | Y25: 1 | AA25: 4 | AB25: 1 | AC25: 0 | AE25: 9 | AF25: 4 | AG25: 2 | AI25: 11 | AJ25: 6 | AK25: 4 | AM25: 10 | AN25: 4 | AO25: 1 | AQ25: 6 | AR25: 0 | AS25: 0 | AU25: 11 | AV25: 6 | AW25: 2 | AY25: 4 | AZ25: 2 | BA25: 0 | BC25: 4 | BD25: 2 | BE25: 0 | BG25: 10 | BH25: 9 | BI25: 4 | BK25: 9 | BL25: 3 | BM25: 2 | BO25: 9 | BP25: 3 | BQ25: 2 | BS25: 11 | BT25: 6 | BU25: 4 | BW25: 9 | BX25: 5 | BY25: 1 | CA25: 10 | CB25: 3 | CC25: 0 | CE25: 6 | CF25: 3 | CG25: 0 | CI25: 5 | CJ25: 3 | CK25: 0 | CM25: 9 | CN25: 5 | CO25: 1 | CQ25: 11 | CR25: 5 | CS25: 3 | CU25: 12 | CV25: 6 | CW25: 3 | CY25: 9 | CZ25: 3 | DA25: 0 | DC25: 3 | DD25: 0 | DE25: 0 | DG25: 13 | DH25: 14 | DI25: 4 | DK25: 9 | DL25: 5 | DM25: 4 | DO25: 10 | DP25: 5 | DQ25: 2 | DS25: 10 | DT25: 5 | DU25: 2 | DW25: 4 | DX25: 4 | DY25: 0 | EA25: 6 | EB25: 4 | EC25: 1 | EE25: 8 | EF25: 6 | EG25: 2 | EI25: 10 | EJ25: 5 | EK25: 2 | EM25: 7 | EN25: 6 | EO25: 2 | EQ25: 9 | ER25: 5 | ES25: 0 | EU25: 11 | EV25: 6 | EW25: 2 | EY25: 7 | EZ25: 5 | FA25: 2 | FC25: 13 | FD25: 5 | FE25: 1 | FG25: 6 | FH25: 4 | FI25: 1 | FK25: 13 | FL25: 7 | FM25: 2 | FO25: 7 | FP25: 4 | FQ25: 1 | FS25: 12 | FT25: 7 | FU25: 4 | FW25: 6 | FX25: 4 | FY25: 2 | GA25: 9 | GB25: 5 | GC25: 3 | GE25: 11 | GF25: 6 | GG25: 3 | GI25: 11 | GJ25: 13 | GK25: 0 | GM25: 6 | GN25: 0 | GO25: 0 | GQ25: 5 | GR25: 4 | GS25: 1 | GU25: 11 | GV25: 6 | GW25: 1 | GY25: 12 | GZ25: 8 | HA25: 3 | HC25: 9 | HD25: 4 | HE25: 0 | HG25: 13 | HH25: 5 | HI25: 1 | HK25: 12 | HL25: 10 | HM25: 5 | HO25: 12 | HP25: 1 | HQ25: 0 | HS25: 3 | HT25: 0 | HU25: 0 | HW25: 9 | HX25: 1 | HY25: 0 | IA25: 3 | IB25: 0 | IC25: 0 | IE25: 4 | IF25: 0 | IG25: 0 | II25: 2 | IJ25: 0 | IK25: 0 | IM25: 13 | IN25: 7 | IO25: 2 | IQ25: 3 | IR25: 0 | IS25: 0 | IU25: 10 | IV25: 7 | IW25: 4 | IY25: 11 | IZ25: 6 | JA25: 3 | JC25: 12 | JD25: 6 | JE25: 1 | JG25: 9 | JH25: 3 | JI25: 0 | JK25: 7 | JL25: 4 | JM25: 2
A26: -4 | C26: 14 | D26: 13 | E26: 6 | G26: 8 | H26: 5 | I26: 3 | K26: 1 | L26: 0 | M26: 0 | O26: 8 | P26: 5 | Q26: 2 | S26: 13 | T26: 11 | U26: 4 | W26: 6 | X26: 3 | Y26: 2 | AA26: 6 | AB26: 3 | AC26: 2 | AE26: 9 | AF26: 7 | AG26: 4 | AI26: 12 | AJ26: 8 | AK26: 5 | AM26: 12 | AN26: 6 | AO26: 2 | AQ26: 8 | AR26: 0 | AS26: 0 | AU26: 12 | AV26: 8 | AW26: 3 | AY26: 7 | AZ26: 3 | BA26: 1 | BC26: 7 | BD26: 3 | BE26: 1 | BG26: 15 | BH26: 10 | BI26: 8 | BK26: 10 | BL26: 7 | BM26: 2 | BO26: 11 | BP26: 6 | BQ26: 1 | BS26: 10 | BT26: 9 | BU26: 4 | BW26: 12 | BX26: 5 | BY26: 4 | CA26: 11 | CB26: 6 | CC26: 3 | CE26: 8 | CF26: 3 | CG26: 3 | CI26: 6 | CJ26: 3 | CK26: 0 | CM26: 12 | CN26: 5 | CO26: 2 | CQ26: 11 | CR26: 7 | CS26: 3 | CU26: 12 | CV26: 9 | CW26: 5 | CY26: 12 | CZ26: 3 | DA26: 1 | DC26: 4 | DD26: 2 | DE26: 0 | DG26: 15 | DH26: 11 | DI26: 7 | DK26: 10 | DL26: 6 | DM26: 4 | DO26: 12 | DP26: 5 | DQ26: 2 | DS26: 11 | DT26: 6 | DU26: 2 | DW26: 8 | DX26: 4 | DY26: 1 | EA26: 7 | EB26: 5 | EC26: 3 | EE26: 11 | EF26: 7 | EG26: 3 | EI26: 11 | EJ26: 4 | EK26: 3 | EM26: 9 | EN26: 5 | EO26: 3 | EQ26: 11 | ER26: 4 | ES26: 1 | EU26: 11 | EV26: 7 | EW26: 2 | EY26: 10 | EZ26: 5 | FA26: 2 | FC26: 11 | FD26: 10 | FE26: 4 | FG26: 7 | FH26: 4 | FI26: 2 | FK26: 12 | FL26: 8 | FM26: 4 | FO26: 9 | FP26: 4 | FQ26: 3 | FS26: 10 | FT26: 10 | FU26: 4 | FW26: 9 | FX26: 7 | FY26: 3 | GA26: 12 | GB26: 7 | GC26: 3 | GE26: 13 | GF26: 9 | GG26: 3 | GI26: 13 | GJ26: 10 | GK26: 0 | GM26: 8 | GN26: 2 | GO26: 0 | GQ26: 8 | GR26: 5 | GS26: 2 | GU26: 14 | GV26: 7 | GW26: 3 | GY26: 14 | GZ26: 8 | HA26: 4 | HC26: 12 | HD26: 4 | HE26: 1 | HG26: 13 | HH26: 6 | HI26: 2 | HK26: 10 | HL26: 11 | HM26: 5 | HO26: 12 | HP26: 2 | HQ26: 0 | HS26: 8 | HT26: 0 | HU26: 0 | HW26: 12 | HX26: 3 | HY26: 0 | IA26: 5 | IB26: 0 | IC26: 0 | IE26: 6 | IF26: 0 | IG26: 0 | II26: 4 | IJ26: 0 | IK26: 0 | IM26: 14 | IN26: 6 | IO26: 1 | IQ26: 6 | IR26: 0 | IS26: 0 | IU26: 13 | IV26: 8 | IW26: 6 | IY26: 13 | IZ26: 7 | JA26: 5 | JC26: 14 | JD26: 6 | JE26: 2 | JG26: 12 | JH26: 6 | JI26: 2 | JK26: 9 | JL26: 7 | JM26: 2
A27: -3 | C27: 15 | D27: 13 | E27: 9 | G27: 11 | H27: 7 | I27: 4 | K27: 4 | L27: 0 | M27: 0 | O27: 13 | P27: 6 | Q27: 3 | S27: 14 | T27: 9 | U27: 5 | W27: 7 | X27: 5 | Y27: 2 | AA27: 9 | AB27: 4 | AC27: 1 | AE27: 13 | AF27: 5 | AG27: 4 | AI27: 14 | AJ27: 11 | AK27: 5 | AM27: 13 | AN27: 7 | AO27: 3 | AQ27: 8 | AR27: 2 | AS27: 0 | AU27: 12 | AV27: 7 | AW27: 4 | AY27: 12 | AZ27: 4 | BA27: 2 | BC27: 9 | BD27: 5 | BE27: 2 | BG27: 15 | BH27: 13 | BI27: 9 | BK27: 14 | BL27: 6 | BM27: 4 | BO27: 11 | BP27: 5 | BQ27: 3 | BS27: 13 | BT27: 9 | BU27: 7 | BW27: 12 | BX27: 8 | BY27: 4 | CA27: 13 | CB27: 5 | CC27: 2 | CE27: 12 | CF27: 6 | CG27: 3 | CI27: 10 | CJ27: 4 | CK27: 3 | CM27: 17 | CN27: 7 | CO27: 3 | CQ27: 12 | CR27: 9 | CS27: 4 | CU27: 13 | CV27: 12 | CW27: 7 | CY27: 13 | CZ27: 7 | DA27: 3 | DC27: 7 | DD27: 2 | DE27: 0 | DG27: 13 | DH27: 10 | DI27: 10 | DK27: 12 | DL27: 6 | DM27: 5 | DO27: 14 | DP27: 6 | DQ27: 2 | DS27: 14 | DT27: 8 | DU27: 4 | DW27: 10 | DX27: 5 | DY27: 3 | EA27: 10 | EB27: 4 | EC27: 3 | EE27: 15 | EF27: 8 | EG27: 5 | EI27: 13 | EJ27: 6 | EK27: 2 | EM27: 13 | EN27: 6 | EO27: 4 | EQ27: 11 | ER27: 7 | ES27: 2 | EU27: 14 | EV27: 10 | EW27: 3 | EY27: 11 | EZ27: 7 | FA27: 2 | FC27: 12 | FD27: 11 | FE27: 3 | FG27: 9 | FH27: 8 | FI27: 4 | FK27: 16 | FL27: 11 | FM27: 6 | FO27: 9 | FP27: 6 | FQ27: 2 | FS27: 15 | FT27: 13 | FU27: 5 | FW27: 9 | FX27: 5 | FY27: 5 | GA27: 14 | GB27: 11 | GC27: 5 | GE27: 14 | GF27: 12 | GG27: 3 | GI27: 13 | GJ27: 11 | GK27: 0 | GM27: 13 | GN27: 2 | GO27: 0 | GQ27: 10 | GR27: 5 | GS27: 2 | GU27: 14 | GV27: 9 | GW27: 4 | GY27: 14 | GZ27: 10 | HA27: 3 | HC27: 13 | HD27: 7 | HE27: 2 | HG27: 15 | HH27: 9 | HI27: 3 | HK27: 14 | HL27: 12 | HM27: 8 | HO27: 16 | HP27: 3 | HQ27: 0 | HS27: 10 | HT27: 0 | HU27: 0 | HW27: 16 | HX27: 4 | HY27: 0 | IA27: 8 | IB27: 0 | IC27: 0 | IE27: 9 | IF27: 1 | IG27: 0 | II27: 7 | IJ27: 1 | IK27: 0 | IM27: 16 | IN27: 10 | IO27: 2 | IQ27: 11 | IR27: 1 | IS27: 0 | IU27: 16 | IV27: 11 | IW27: 6 | IY27: 12 | IZ27: 11 | JA27: 4 | JC27: 13 | JD27: 8 | JE27: 3 | JG27: 13 | JH27: 6 | JI27: 4 | JK27: 11 | JL27: 4 | JM27: 6
A28: -2 | C28: 19 | D28: 15 | E28: 10 | G28: 12 | H28: 7 | I28: 5 | K28: 5 | L28: 1 | M28: 0 | O28: 15 | P28: 7 | Q28: 3 | S28: 17 | T28: 14 | U28: 5 | W28: 7 | X28: 5 | Y28: 4 | AA28: 13 | AB28: 5 | AC28: 3 | AE28: 14 | AF28: 9 | AG28: 6 | AI28: 14 | AJ28: 12 | AK28: 7 | AM28: 16 | AN28: 10 | AO28: 3 | AQ28: 12 | AR28: 2 | AS28: 0 | AU28: 14 | AV28: 8 | AW28: 6 | AY28: 14 | AZ28: 5 | BA28: 3 | BC28: 14 | BD28: 6 | BE28: 3 | BG28: 17 | BH28: 12 | BI28: 10 | BK28: 16 | BL28: 9 | BM28: 6 | BO28: 14 | BP28: 7 | BQ28: 4 | BS28: 14 | BT28: 11 | BU28: 8 | BW28: 15 | BX28: 10 | BY28: 5 | CA28: 13 | CB28: 8 | CC28: 4 | CE28: 13 | CF28: 7 | CG28: 3 | CI28: 12 | CJ28: 6 | CK28: 2 | CM28: 14 | CN28: 7 | CO28: 6 | CQ28: 15 | CR28: 9 | CS28: 6 | CU28: 16 | CV28: 12 | CW28: 6 | CY28: 15 | CZ28: 9 | DA28: 5 | DC28: 9 | DD28: 5 | DE28: 2 | DG28: 17 | DH28: 12 | DI28: 10 | DK28: 14 | DL28: 11 | DM28: 5 | DO28: 14 | DP28: 7 | DQ28: 5 | DS28: 17 | DT28: 12 | DU28: 4 | DW28: 10 | DX28: 6 | DY28: 4 | EA28: 11 | EB28: 8 | EC28: 4 | EE28: 16 | EF28: 10 | EG28: 7 | EI28: 16 | EJ28: 9 | EK28: 5 | EM28: 15 | EN28: 7 | EO28: 4 | EQ28: 14 | ER28: 9 | ES28: 3 | EU28: 15 | EV28: 12 | EW28: 5 | EY28: 16 | EZ28: 9 | FA28: 5 | FC28: 16 | FD28: 11 | FE28: 3 | FG28: 12 | FH28: 6 | FI28: 4 | FK28: 18 | FL28: 12 | FM28: 7 | FO28: 15 | FP28: 7 | FQ28: 4 | FS28: 13 | FT28: 12 | FU28: 7 | FW28: 13 | FX28: 8 | FY28: 6 | GA28: 16 | GB28: 12 | GC28: 6 | GE28: 15 | GF28: 12 | GG28: 6 | GI28: 15 | GJ28: 14 | GK28: 0 | GM28: 17 | GN28: 6 | GO28: 0 | GQ28: 11 | GR28: 6 | GS28: 4 | GU28: 14 | GV28: 12 | GW28: 6 | GY28: 15 | GZ28: 13 | HA28: 7 | HC28: 15 | HD28: 8 | HE28: 3 | HG28: 16 | HH28: 13 | HI28: 5 | HK28: 15 | HL28: 12 | HM28: 9 | HO28: 15 | HP28: 9 | HQ28: 0 | HS28: 12 | HT28: 1 | HU28: 0 | HW28: 20 | HX28: 8 | HY28: 1 | IA28: 10 | IB28: 1 | IC28: 0 | IE28: 12 | IF28: 2 | IG28: 0 | II28: 9 | IJ28: 2 | IK28: 0 | IM28: 15 | IN28: 10 | IO28: 4 | IQ28: 11 | IR28: 2 | IS28: 0 | IU28: 16 | IV28: 10 | IW28: 7 | IY28: 14 | IZ28: 11 | JA28: 7 | JC28: 16 | JD28: 10 | JE28: 4 | JG28: 15 | JH28: 8 | JI28: 4 | JK28: 11 | JL28: 8 | JM28: 6
A29: -1 | C29: 20 | D29: 15 | E29: 11 | G29: 15 | H29: 8 | I29: 5 | K29: 11 | L29: 2 | M29: 0 | O29: 17 | P29: 9 | Q29: 4 | S29: 19 | T29: 13 | U29: 8 | W29: 11 | X29: 7 | Y29: 4 | AA29: 14 | AB29: 7 | AC29: 2 | AE29: 19 | AF29: 9 | AG29: 7 | AI29: 14 | AJ29: 11 | AK29: 9 | AM29: 16 | AN29: 9 | AO29: 7 | AQ29: 12 | AR29: 3 | AS29: 0 | AU29: 14 | AV29: 11 | AW29: 3 | AY29: 16 | AZ29: 7 | BA29: 3 | BC29: 16 | BD29: 8 | BE29: 4 | BG29: 18 | BH29: 16 | BI29: 11 | BK29: 20 | BL29: 11 | BM29: 7 | BO29: 19 | BP29: 10 | BQ29: 4 | BS29: 16 | BT29: 12 | BU29: 9 | BW29: 17 | BX29: 12 | BY29: 7 | CA29: 17 | CB29: 11 | CC29: 7 | CE29: 13 | CF29: 9 | CG29: 5 | CI29: 12 | CJ29: 7 | CK29: 5 | CM29: 15 | CN29: 10 | CO29: 5 | CQ29: 15 | CR29: 13 | CS29: 9 | CU29: 16 | CV29: 13 | CW29: 9 | CY29: 15 | CZ29: 8 | DA29: 7 | DC29: 12 | DD29: 7 | DE29: 3 | DG29: 16 | DH29: 11 | DI29: 13 | DK29: 12 | DL29: 11 | DM29: 8 | DO29: 13 | DP29: 10 | DQ29: 4 | DS29: 19 | DT29: 14 | DU29: 7 | DW29: 15 | DX29: 8 | DY29: 4 | EA29: 15 | EB29: 8 | EC29: 6 | EE29: 18 | EF29: 13 | EG29: 7 | EI29: 19 | EJ29: 10 | EK29: 4 | EM29: 15 | EN29: 11 | EO29: 5 | EQ29: 16 | ER29: 10 | ES29: 4 | EU29: 15 | EV29: 12 | EW29: 10 | EY29: 17 | EZ29: 12 | FA29: 6 | FC29: 15 | FD29: 12 | FE29: 7 | FG29: 15 | FH29: 9 | FI29: 6 | FK29: 22 | FL29: 13 | FM29: 9 | FO29: 16 | FP29: 9 | FQ29: 5 | FS29: 15 | FT29: 12 | FU29: 9 | FW29: 15 | FX29: 9 | FY29: 6 | GA29: 15 | GB29: 13 | GC29: 8 | GE29: 16 | GF29: 11 | GG29: 7 | GI29: 17 | GJ29: 14 | GK29: 0 | GM29: 18 | GN29: 8 | GO29: 2 | GQ29: 15 | GR29: 9 | GS29: 5 | GU29: 15 | GV29: 13 | GW29: 7 | GY29: 19 | GZ29: 14 | HA29: 9 | HC29: 18 | HD29: 9 | HE29: 6 | HG29: 17 | HH29: 15 | HI29: 6 | HK29: 18 | HL29: 13 | HM29: 10 | HO29: 18 | HP29: 12 | HQ29: 1 | HS29: 14 | HT29: 2 | HU29: 0 | HW29: 22 | HX29: 12 | HY29: 2 | IA29: 11 | IB29: 2 | IC29: 0 | IE29: 17 | IF29: 3 | IG29: 0 | II29: 12 | IJ29: 2 | IK29: 1 | IM29: 18 | IN29: 15 | IO29: 4 | IQ29: 16 | IR29: 3 | IS29: 0 | IU29: 16 | IV29: 15 | IW29: 10 | IY29: 16 | IZ29: 14 | JA29: 8 | JC29: 17 | JD29: 13 | JE29: 8 | JG29: 17 | JH29: 9 | JI29: 7 | JK29: 13 | JL29: 9 | JM29: 5
A30: 0 | C30: 21 | D30: 14 | E30: 13 | G30: 18 | H30: 12 | I30: 7 | K30: 16 | L30: 5 | M30: 1 | O30: 19 | P30: 12 | Q30: 5 | S30: 20 | T30: 15 | U30: 10 | W30: 11 | X30: 8 | Y30: 6 | AA30: 17 | AB30: 7 | AC30: 5 | AE30: 20 | AF30: 12 | AG30: 7 | AI30: 18 | AJ30: 14 | AK30: 9 | AM30: 16 | AN30: 12 | AO30: 8 | AQ30: 14 | AR30: 6 | AS30: 0 | AU30: 16 | AV30: 14 | AW30: 7 | AY30: 13 | AZ30: 8 | BA30: 5 | BC30: 15 | BD30: 9 | BE30: 5 | BG30: 21 | BH30: 19 | BI30: 14 | BK30: 21 | BL30: 14 | BM30: 7 | BO30: 20 | BP30: 11 | BQ30: 7 | BS30: 19 | BT30: 15 | BU30: 11 | BW30: 20 | BX30: 13 | BY30: 6 | CA30: 20 | CB30: 11 | CC30: 6 | CE30: 17 | CF30: 11 | CG30: 6 | CI30: 19 | CJ30: 9 | CK30: 6 | CM30: 19 | CN30: 15 | CO30: 7 | CQ30: 19 | CR30: 15 | CS30: 9 | CU30: 19 | CV30: 13 | CW30: 9 | CY30: 19 | CZ30: 11 | DA30: 5 | DC30: 15 | DD30: 8 | DE30: 5 | DG30: 19 | DH30: 12 | DI30: 13 | DK30: 16 | DL30: 12 | DM30: 9 | DO30: 18 | DP30: 13 | DQ30: 7 | DS30: 20 | DT30: 17 | DU30: 8 | DW30: 16 | DX30: 10 | DY30: 7 | EA30: 15 | EB30: 11 | EC30: 6 | EE30: 21 | EF30: 15 | EG30: 7 | EI30: 18 | EJ30: 14 | EK30: 5 | EM30: 19 | EN30: 11 | EO30: 7 | EQ30: 19 | ER30: 14 | ES30: 6 | EU30: 16 | EV30: 15 | EW30: 7 | EY30: 21 | EZ30: 14 | FA30: 8 | FC30: 16 | FD30: 12 | FE30: 7 | FG30: 19 | FH30: 10 | FI30: 7 | FK30: 20 | FL30: 15 | FM30: 9 | FO30: 18 | FP30: 13 | FQ30: 6 | FS30: 21 | FT30: 13 | FU30: 12 | FW30: 17 | FX30: 11 | FY30: 7 | GA30: 20 | GB30: 15 | GC30: 12 | GE30: 15 | GF30: 15 | GG30: 9 | GI30: 18 | GJ30: 13 | GK30: 0 | GM30: 20 | GN30: 10 | GO30: 2 | GQ30: 11 | GR30: 10 | GS30: 6 | GU30: 18 | GV30: 16 | GW30: 8 | GY30: 18 | GZ30: 15 | HA30: 10 | HC30: 17 | HD30: 12 | HE30: 6 | HG30: 19 | HH30: 18 | HI30: 8 | HK30: 21 | HL30: 12 | HM30: 13 | HO30: 18 | HP30: 15 | HQ30: 1 | HS30: 13 | HT30: 3 | HU30: 0 | HW30: 22 | HX30: 14 | HY30: 3 | IA30: 14 | IB30: 2 | IC30: 0 | IE30: 12 | IF30: 5 | IG30: 0 | II30: 14 | IJ30: 3 | IK30: 0 | IM30: 21 | IN30: 15 | IO30: 8 | IQ30: 17 | IR30: 7 | IS30: 0 | IU30: 19 | IV30: 16 | IW30: 12 | IY30: 19 | IZ30: 13 | JA30: 10 | JC30: 18 | JD30: 14 | JE30: 7 | JG30: 17 | JH30: 13 | JI30: 5 | JK30: 17 | JL30: 12 | JM30: 7
A31: 1 | C31: 18 | D31: 14 | E31: 12 | G31: 18 | H31: 13 | I31: 8 | K31: 19 | L31: 8 | M31: 2 | O31: 16 | P31: 16 | Q31: 6 | S31: 15 | T31: 16 | U31: 13 | W31: 13 | X31: 10 | Y31: 7 | AA31: 15 | AB31: 11 | AC31: 6 | AE31: 19 | AF31: 16 | AG31: 9 | AI31: 14 | AJ31: 13 | AK31: 8 | AM31: 16 | AN31: 15 | AO31: 8 | AQ31: 12 | AR31: 9 | AS31: 1 | AU31: 16 | AV31: 12 | AW31: 6 | AY31: 14 | AZ31: 12 | BA31: 6 | BC31: 16 | BD31: 11 | BE31: 8 | BG31: 17 | BH31: 16 | BI31: 14 | BK31: 21 | BL31: 14 | BM31: 10 | BO31: 19 | BP31: 14 | BQ31: 7 | BS31: 20 | BT31: 13 | BU31: 12 | BW31: 18 | BX31: 14 | BY31: 10 | CA31: 19 | CB31: 14 | CC31: 9 | CE31: 18 | CF31: 12 | CG31: 7 | CI31: 16 | CJ31: 11 | CK31: 6 | CM31: 17 | CN31: 14 | CO31: 8 | CQ31: 22 | CR31: 16 | CS31: 10 | CU31: 17 | CV31: 15 | CW31: 12 | CY31: 18 | CZ31: 17 | DA31: 7 | DC31: 16 | DD31: 11 | DE31: 7 | DG31: 18 | DH31: 13 | DI31: 14 | DK31: 16 | DL31: 12 | DM31: 9 | DO31: 16 | DP31: 13 | DQ31: 5 | DS31: 19 | DT31: 14 | DU31: 12 | DW31: 19 | DX31: 15 | DY31: 6 | EA31: 18 | EB31: 12 | EC31: 7 | EE31: 18 | EF31: 16 | EG31: 12 | EI31: 16 | EJ31: 16 | EK31: 6 | EM31: 15 | EN31: 14 | EO31: 8 | EQ31: 18 | ER31: 14 | ES31: 8 | EU31: 14 | EV31: 15 | EW31: 11 | EY31: 20 | EZ31: 16 | FA31: 10 | FC31: 14 | FD31: 14 | FE31: 9 | FG31: 16 | FH31: 15 | FI31: 8 | FK31: 17 | FL31: 16 | FM31: 10 | FO31: 20 | FP31: 15 | FQ31: 8 | FS31: 16 | FT31: 14 | FU31: 11 | FW31: 18 | FX31: 15 | FY31: 8 | GA31: 18 | GB31: 15 | GC31: 12 | GE31: 13 | GF31: 12 | GG31: 8 | GI31: 18 | GJ31: 15 | GK31: 0 | GM31: 16 | GN31: 16 | GO31: 5 | GQ31: 18 | GR31: 13 | GS31: 8 | GU31: 21 | GV31: 14 | GW31: 9 | GY31: 14 | GZ31: 14 | HA31: 11 | HC31: 17 | HD31: 16 | HE31: 6 | HG31: 19 | HH31: 13 | HI31: 10 | HK31: 17 | HL31: 13 | HM31: 12 | HO31: 14 | HP31: 17 | HQ31: 3 | HS31: 15 | HT31: 7 | HU31: 0 | HW31: 17 | HX31: 17 | HY31: 5 | IA31: 15 | IB31: 6 | IC31: 0 | IE31: 15 | IF31: 9 | IG31: 1 | II31: 15 | IJ31: 6 | IK31: 1 | IM31: 15 | IN31: 17 | IO31: 8 | IQ31: 21 | IR31: 12 | IS31: 2 | IU31: 17 | IV31: 15 | IW31: 11 | IY31: 19 | IZ31: 16 | JA31: 11 | JC31: 19 | JD31: 17 | JE31: 10 | JG31: 17 | JH31: 14 | JI31: 7 | JK31: 16 | JL31: 12 | JM31: 8
A32: 2 | C32: 15 | D32: 15 | E32: 13 | G32: 15 | H32: 14 | I32: 9 | K32: 18 | L32: 13 | M32: 3 | O32: 13 | P32: 16 | Q32: 10 | S32: 17 | T32: 14 | U32: 12 | W32: 16 | X32: 12 | Y32: 8 | AA32: 17 | AB32: 12 | AC32: 6 | AE32: 16 | AF32: 13 | AG32: 9 | AI32: 14 | AJ32: 10 | AK32: 12 | AM32: 16 | AN32: 15 | AO32: 8 | AQ32: 12 | AR32: 9 | AS32: 2 | AU32: 15 | AV32: 14 | AW32: 7 | AY32: 14 | AZ32: 12 | BA32: 8 | BC32: 14 | BD32: 13 | BE32: 7 | BG32: 17 | BH32: 16 | BI32: 16 | BK32: 18 | BL32: 13 | BM32: 10 | BO32: 19 | BP32: 13 | BQ32: 13 | BS32: 18 | BT32: 15 | BU32: 12 | BW32: 19 | BX32: 17 | BY32: 9 | CA32: 17 | CB32: 14 | CC32: 11 | CE32: 18 | CF32: 11 | CG32: 9 | CI32: 16 | CJ32: 14 | CK32: 7 | CM32: 15 | CN32: 16 | CO32: 9 | CQ32: 21 | CR32: 13 | CS32: 11 | CU32: 16 | CV32: 14 | CW32: 11 | CY32: 15 | CZ32: 14 | DA32: 8 | DC32: 18 | DD32: 13 | DE32: 8 | DG32: 16 | DH32: 15 | DI32: 14 | DK32: 18 | DL32: 15 | DM32: 9 | DO32: 15 | DP32: 13 | DQ32: 10 | DS32: 17 | DT32: 15 | DU32: 13 | DW32: 17 | DX32: 15 | DY32: 9 | EA32: 12 | EB32: 13 | EC32: 10 | EE32: 17 | EF32: 15 | EG32: 11 | EI32: 11 | EJ32: 15 | EK32: 10 | EM32: 16 | EN32: 14 | EO32: 9 | EQ32: 13 | ER32: 15 | ES32: 9 | EU32: 12 | EV32: 15 | EW32: 11 | EY32: 13 | EZ32: 17 | FA32: 10 | FC32: 13 | FD32: 14 | FE32: 11 | FG32: 16 | FH32: 18 | FI32: 9 | FK32: 16 | FL32: 15 | FM32: 13 | FO32: 16 | FP32: 13 | FQ32: 10 | FS32: 16 | FT32: 15 | FU32: 11 | FW32: 16 | FX32: 15 | FY32: 10 | GA32: 15 | GB32: 16 | GC32: 12 | GE32: 14 | GF32: 13 | GG32: 12 | GI32: 17 | GJ32: 14 | GK32: 0 | GM32: 17 | GN32: 18 | GO32: 7 | GQ32: 14 | GR32: 13 | GS32: 9 | GU32: 18 | GV32: 14 | GW32: 11 | GY32: 15 | GZ32: 14 | HA32: 10 | HC32: 19 | HD32: 13 | HE32: 7 | HG32: 14 | HH32: 16 | HI32: 16 | HK32: 17 | HL32: 16 | HM32: 15 | HO32: 13 | HP32: 12 | HQ32: 4 | HS32: 15 | HT32: 9 | HU32: 1 | HW32: 16 | HX32: 20 | HY32: 6 | IA32: 15 | IB32: 8 | IC32: 1 | IE32: 14 | IF32: 10 | IG32: 2 | II32: 16 | IJ32: 8 | IK32: 2 | IM32: 15 | IN32: 14 | IO32: 10 | IQ32: 15 | IR32: 13 | IS32: 2 | IU32: 16 | IV32: 16 | IW32: 13 | IY32: 17 | IZ32: 14 | JA32: 11 | JC32: 14 | JD32: 15 | JE32: 10 | JG32: 14 | JH32: 13 | JI32: 8 | JK32: 16 | JL32: 13 | JM32: 8
A33: 3 | C33: 15 | D33: 15 | E33: 11 | G33: 14 | H33: 17 | I33: 11 | K33: 17 | L33: 15 | M33: 6 | O33: 12 | P33: 13 | Q33: 8 | S33: 13 | T33: 14 | U33: 10 | W33: 16 | X33: 13 | Y33: 9 | AA33: 16 | AB33: 14 | AC33: 8 | AE33: 15 | AF33: 13 | AG33: 11 | AI33: 16 | AJ33: 12 | AK33: 12 | AM33: 12 | AN33: 16 | AO33: 8 | AQ33: 15 | AR33: 12 | AS33: 2 | AU33: 16 | AV33: 13 | AW33: 10 | AY33: 17 | AZ33: 13 | BA33: 8 | BC33: 17 | BD33: 14 | BE33: 8 | BG33: 18 | BH33: 16 | BI33: 15 | BK33: 16 | BL33: 15 | BM33: 12 | BO33: 18 | BP33: 16 | BQ33: 9 | BS33: 17 | BT33: 15 | BU33: 11 | BW33: 18 | BX33: 13 | BY33: 12 | CA33: 18 | CB33: 16 | CC33: 9 | CE33: 15 | CF33: 16 | CG33: 9 | CI33: 15 | CJ33: 13 | CK33: 8 | CM33: 18 | CN33: 15 | CO33: 11 | CQ33: 15 | CR33: 15 | CS33: 13 | CU33: 19 | CV33: 14 | CW33: 10 | CY33: 15 | CZ33: 16 | DA33: 11 | DC33: 18 | DD33: 15 | DE33: 9 | DG33: 17 | DH33: 15 | DI33: 11 | DK33: 14 | DL33: 11 | DM33: 12 | DO33: 14 | DP33: 13 | DQ33: 9 | DS33: 14 | DT33: 14 | DU33: 13 | DW33: 14 | DX33: 16 | DY33: 11 | EA33: 15 | EB33: 13 | EC33: 8 | EE33: 15 | EF33: 14 | EG33: 12 | EI33: 12 | EJ33: 13 | EK33: 12 | EM33: 15 | EN33: 14 | EO33: 9 | EQ33: 13 | ER33: 16 | ES33: 10 | EU33: 10 | EV33: 10 | EW33: 13 | EY33: 15 | EZ33: 15 | FA33: 12 | FC33: 12 | FD33: 12 | FE33: 11 | FG33: 16 | FH33: 14 | FI33: 12 | FK33: 13 | FL33: 15 | FM33: 11 | FO33: 15 | FP33: 15 | FQ33: 9 | FS33: 18 | FT33: 15 | FU33: 10 | FW33: 14 | FX33: 13 | FY33: 11 | GA33: 12 | GB33: 13 | GC33: 14 | GE33: 15 | GF33: 13 | GG33: 12 | GI33: 16 | GJ33: 14 | GK33: 0 | GM33: 17 | GN33: 14 | GO33: 9 | GQ33: 15 | GR33: 12 | GS33: 9 | GU33: 18 | GV33: 14 | GW33: 12 | GY33: 17 | GZ33: 13 | HA33: 10 | HC33: 19 | HD33: 15 | HE33: 10 | HG33: 14 | HH33: 15 | HI33: 14 | HK33: 13 | HL33: 11 | HM33: 12 | HO33: 14 | HP33: 16 | HQ33: 7 | HS33: 14 | HT33: 11 | HU33: 2 | HW33: 13 | HX33: 18 | HY33: 7 | IA33: 17 | IB33: 10 | IC33: 2 | IE33: 15 | IF33: 13 | IG33: 2 | II33: 14 | IJ33: 10 | IK33: 2 | IM33: 15 | IN33: 17 | IO33: 11 | IQ33: 15 | IR33: 15 | IS33: 3 | IU33: 19 | IV33: 16 | IW33: 14 | IY33: 15 | IZ33: 14 | JA33: 12 | JC33: 18 | JD33: 13 | JE33: 12 | JG33: 17 | JH33: 16 | JI33: 10 | JK33: 16 | JL33: 14 | JM33: 11
A34: 4 | C34: 16 | D34: 17 | E34: 12 | G34: 17 | H34: 13 | I34: 13 | K34: 16 | L34: 16 | M34: 7 | O34: 11 | P34: 11 | Q34: 10 | S34: 12 | T34: 13 | U34: 16 | W34: 15 | X34: 13 | Y34: 10 | AA34: 18 | AB34: 13 | AC34: 9 | AE34: 16 | AF34: 15 | AG34: 11 | AI34: 16 | AJ34: 15 | AK34: 9 | AM34: 12 | AN34: 13 | AO34: 9 | AQ34: 15 | AR34: 15 | AS34: 4 | AU34: 18 | AV34: 15 | AW34: 9 | AY34: 17 | AZ34: 13 | BA34: 8 | BC34: 18 | BD34: 15 | BE34: 11 | BG34: 16 | BH34: 15 | BI34: 12 | BK34: 16 | BL34: 16 | BM34: 12 | BO34: 14 | BP34: 16 | BQ34: 10 | BS34: 17 | BT34: 14 | BU34: 14 | BW34: 15 | BX34: 12 | BY34: 13 | CA34: 18 | CB34: 13 | CC34: 13 | CE34: 17 | CF34: 15 | CG34: 11 | CI34: 18 | CJ34: 14 | CK34: 9 | CM34: 13 | CN34: 13 | CO34: 13 | CQ34: 19 | CR34: 16 | CS34: 12 | CU34: 16 | CV34: 14 | CW34: 10 | CY34: 16 | CZ34: 16 | DA34: 14 | DC34: 14 | DD34: 17 | DE34: 10 | DG34: 16 | DH34: 14 | DI34: 11 | DK34: 14 | DL34: 14 | DM34: 12 | DO34: 14 | DP34: 10 | DQ34: 11 | DS34: 14 | DT34: 13 | DU34: 14 | DW34: 16 | DX34: 14 | DY34: 12 | EA34: 14 | EB34: 12 | EC34: 10 | EE34: 14 | EF34: 14 | EG34: 13 | EI34: 13 | EJ34: 11 | EK34: 11 | EM34: 14 | EN34: 12 | EO34: 11 | EQ34: 15 | ER34: 12 | ES34: 11 | EU34: 14 | EV34: 10 | EW34: 11 | EY34: 14 | EZ34: 11 | FA34: 14 | FC34: 14 | FD34: 10 | FE34: 12 | FG34: 16 | FH34: 13 | FI34: 13 | FK34: 14 | FL34: 14 | FM34: 12 | FO34: 14 | FP34: 14 | FQ34: 10 | FS34: 13 | FT34: 15 | FU34: 12 | FW34: 15 | FX34: 13 | FY34: 12 | GA34: 14 | GB34: 12 | GC34: 13 | GE34: 12 | GF34: 11 | GG34: 12 | GI34: 18 | GJ34: 14 | GK34: 0 | GM34: 15 | GN34: 16 | GO34: 10 | GQ34: 11 | GR34: 14 | GS34: 10 | GU34: 14 | GV34: 14 | GW34: 13 | GY34: 19 | GZ34: 14 | HA34: 14 | HC34: 18 | HD34: 15 | HE34: 11 | HG34: 15 | HH34: 12 | HI34: 13 | HK34: 18 | HL34: 10 | HM34: 13 | HO34: 16 | HP34: 14 | HQ34: 8 | HS34: 10 | HT34: 17 | HU34: 1 | HW34: 17 | HX34: 15 | HY34: 10 | IA34: 14 | IB34: 15 | IC34: 2 | IE34: 13 | IF34: 15 | IG34: 5 | II34: 14 | IJ34: 12 | IK34: 3 | IM34: 12 | IN34: 13 | IO34: 13 | IQ34: 13 | IR34: 16 | IS34: 6 | IU34: 15 | IV34: 15 | IW34: 14 | IY34: 16 | IZ34: 14 | JA34: 14 | JC34: 16 | JD34: 13 | JE34: 11 | JG34: 18 | JH34: 15 | JI34: 11 | JK34: 16 | JL34: 12 | JM34: 11
A35: 5 | C35: 18 | D35: 16 | E35: 13 | G35: 17 | H35: 12 | I35: 12 | K35: 17 | L35: 17 | M35: 11 | O35: 14 | P35: 15 | Q35: 10 | S35: 12 | T35: 11 | U35: 11 | W35: 13 | X35: 12 | Y35: 11 | AA35: 16 | AB35: 15 | AC35: 11 | AE35: 13 | AF35: 13 | AG35: 13 | AI35: 15 | AJ35: 14 | AK35: 10 | AM35: 16 | AN35: 12 | AO35: 12 | AQ35: 15 | AR35: 16 | AS35: 6 | AU35: 15 | AV35: 14 | AW35: 11 | AY35: 18 | AZ35: 16 | BA35: 12 | BC35: 18 | BD35: 15 | BE35: 12 | BG35: 20 | BH35: 15 | BI35: 13 | BK35: 17 | BL35: 12 | BM35: 11 | BO35: 20 | BP35: 14 | BQ35: 13 | BS35: 17 | BT35: 15 | BU35: 12 | BW35: 14 | BX35: 13 | BY35: 11 | CA35: 13 | CB35: 15 | CC35: 12 | CE35: 19 | CF35: 14 | CG35: 12 | CI35: 17 | CJ35: 15 | CK35: 13 | CM35: 19 | CN35: 12 | CO35: 11 | CQ35: 16 | CR35: 15 | CS35: 13 | CU35: 16 | CV35: 13 | CW35: 13 | CY35: 16 | CZ35: 12 | DA35: 12 | DC35: 16 | DD35: 14 | DE35: 15 | DG35: 18 | DH35: 14 | DI35: 11 | DK35: 13 | DL35: 14 | DM35: 9 | DO35: 15 | DP35: 13 | DQ35: 11 | DS35: 13 | DT35: 11 | DU35: 12 | DW35: 14 | DX35: 14 | DY35: 13 | EA35: 15 | EB35: 13 | EC35: 10 | EE35: 16 | EF35: 12 | EG35: 12 | EI35: 15 | EJ35: 13 | EK35: 9 | EM35: 14 | EN35: 12 | EO35: 12 | EQ35: 13 | ER35: 12 | ES35: 10 | EU35: 13 | EV35: 9 | EW35: 12 | EY35: 15 | EZ35: 13 | FA35: 13 | FC35: 12 | FD35: 12 | FE35: 12 | FG35: 11 | FH35: 13 | FI35: 13 | FK35: 13 | FL35: 15 | FM35: 11 | FO35: 15 | FP35: 14 | FQ35: 12 | FS35: 19 | FT35: 14 | FU35: 10 | FW35: 14 | FX35: 12 | FY35: 13 | GA35: 13 | GB35: 10 | GC35: 11 | GE35: 14 | GF35: 11 | GG35: 10 | GI35: 17 | GJ35: 14 | GK35: 0 | GM35: 15 | GN35: 13 | GO35: 12 | GQ35: 20 | GR35: 13 | GS35: 11 | GU35: 16 | GV35: 13 | GW35: 13 | GY35: 17 | GZ35: 13 | HA35: 13 | HC35: 16 | HD35: 14 | HE35: 12 | HG35: 16 | HH35: 14 | HI35: 12 | HK35: 17 | HL35: 13 | HM35: 9 | HO35: 16 | HP35: 12 | HQ35: 12 | HS35: 16 | HT35: 14 | HU35: 3 | HW35: 18 | HX35: 14 | HY35: 12 | IA35: 15 | IB35: 17 | IC35: 4 | IE35: 16 | IF35: 14 | IG35: 4 | II35: 17 | IJ35: 16 | IK35: 4 | IM35: 16 | IN35: 11 | IO35: 12 | IQ35: 15 | IR35: 17 | IS35: 5 | IU35: 22 | IV35: 14 | IW35: 13 | IY35: 14 | IZ35: 13 | JA35: 10 | JC35: 17 | JD35: 13 | JE35: 13 | JG35: 20 | JH35: 12 | JI35: 13 | JK35: 16 | JL35: 14 | JM35: 12
A36: 6 | C36: 18 | D36: 15 | E36: 14 | G36: 16 | H36: 14 | I36: 10 | K36: 16 | L36: 13 | M36: 11 | O36: 16 | P36: 12 | Q36: 13 | S36: 13 | T36: 13 | U36: 11 | W36: 14 | X36: 14 | Y36: 11 | AA36: 21 | AB36: 14 | AC36: 10 | AE36: 17 | AF36: 14 | AG36: 12 | AI36: 18 | AJ36: 16 | AK36: 9 | AM36: 16 | AN36: 11 | AO36: 11 | AQ36: 15 | AR36: 16 | AS36: 10 | AU36: 20 | AV36: 15 | AW36: 12 | AY36: 18 | AZ36: 14 | BA36: 11 | BC36: 20 | BD36: 15 | BE36: 13 | BG36: 19 | BH36: 16 | BI36: 14 | BK36: 17 | BL36: 17 | BM36: 12 | BO36: 15 | BP36: 15 | BQ36: 12 | BS36: 17 | BT36: 12 | BU36: 10 | BW36: 15 | BX36: 15 | BY36: 10 | CA36: 17 | CB36: 14 | CC36: 14 | CE36: 16 | CF36: 13 | CG36: 13 | CI36: 18 | CJ36: 13 | CK36: 11 | CM36: 15 | CN36: 13 | CO36: 11 | CQ36: 17 | CR36: 15 | CS36: 14 | CU36: 16 | CV36: 14 | CW36: 11 | CY36: 16 | CZ36: 12 | DA36: 11 | DC36: 18 | DD36: 15 | DE36: 11 | DG36: 15 | DH36: 11 | DI36: 13 | DK36: 19 | DL36: 13 | DM36: 11 | DO36: 16 | DP36: 9 | DQ36: 10 | DS36: 11 | DT36: 15 | DU36: 10 | DW36: 17 | DX36: 12 | DY36: 12 | EA36: 13 | EB36: 13 | EC36: 9 | EE36: 13 | EF36: 14 | EG36: 9 | EI36: 15 | EJ36: 14 | EK36: 11 | EM36: 16 | EN36: 14 | EO36: 11 | EQ36: 16 | ER36: 10 | ES36: 12 | EU36: 13 | EV36: 11 | EW36: 9 | EY36: 15 | EZ36: 11 | FA36: 12 | FC36: 13 | FD36: 11 | FE36: 11 | FG36: 17 | FH36: 13 | FI36: 11 | FK36: 13 | FL36: 15 | FM36: 11 | FO36: 17 | FP36: 14 | FQ36: 14 | FS36: 16 | FT36: 16 | FU36: 11 | FW36: 17 | FX36: 14 | FY36: 11 | GA36: 15 | GB36: 12 | GC36: 10 | GE36: 13 | GF36: 13 | GG36: 11 | GI36: 16 | GJ36: 16 | GK36: 0 | GM36: 16 | GN36: 16 | GO36: 11 | GQ36: 15 | GR36: 11 | GS36: 10 | GU36: 15 | GV36: 13 | GW36: 13 | GY36: 18 | GZ36: 14 | HA36: 12 | HC36: 15 | HD36: 14 | HE36: 11 | HG36: 13 | HH36: 15 | HI36: 15 | HK36: 19 | HL36: 13 | HM36: 10 | HO36: 11 | HP36: 14 | HQ36: 13 | HS36: 16 | HT36: 14 | HU36: 6 | HW36: 16 | HX36: 14 | HY36: 17 | IA36: 15 | IB36: 17 | IC36: 6 | IE36: 17 | IF36: 13 | IG36: 7 | II36: 18 | IJ36: 14 | IK36: 8 | IM36: 16 | IN36: 11 | IO36: 13 | IQ36: 14 | IR36: 16 | IS36: 10 | IU36: 19 | IV36: 17 | IW36: 16 | IY36: 17 | IZ36: 16 | JA36: 15 | JC36: 16 | JD36: 14 | JE36: 13 | JG36: 15 | JH36: 11 | JI36: 13 | JK36: 17 | JL36: 16 | JM36: 11
A37: 7 | C37: 16 | D37: 14 | E37: 13 | G37: 17 | H37: 15 | I37: 13 | K37: 14 | L37: 17 | M37: 14 | O37: 15 | P37: 11 | Q37: 11 | S37: 15 | T37: 13 | U37: 10 | W37: 14 | X37: 12 | Y37: 11 | AA37: 17 | AB37: 14 | AC37: 14 | AE37: 14 | AF37: 14 | AG37: 10 | AI37: 17 | AJ37: 14 | AK37: 11 | AM37: 15 | AN37: 13 | AO37: 12 | AQ37: 18 | AR37: 17 | AS37: 10 | AU37: 16 | AV37: 14 | AW37: 14 | AY37: 19 | AZ37: 13 | BA37: 13 | BC37: 20 | BD37: 14 | BE37: 13 | BG37: 20 | BH37: 16 | BI37: 14 | BK37: 13 | BL37: 13 | BM37: 9 | BO37: 18 | BP37: 13 | BQ37: 14 | BS37: 16 | BT37: 13 | BU37: 13 | BW37: 16 | BX37: 15 | BY37: 12 | CA37: 18 | CB37: 13 | CC37: 11 | CE37: 17 | CF37: 17 | CG37: 14 | CI37: 17 | CJ37: 14 | CK37: 11 | CM37: 16 | CN37: 15 | CO37: 12 | CQ37: 17 | CR37: 15 | CS37: 11 | CU37: 20 | CV37: 15 | CW37: 12 | CY37: 14 | CZ37: 15 | DA37: 13 | DC37: 17 | DD37: 14 | DE37: 15 | DG37: 10 | DH37: 14 | DI37: 11 | DK37: 18 | DL37: 15 | DM37: 11 | DO37: 17 | DP37: 10 | DQ37: 10 | DS37: 16 | DT37: 12 | DU37: 11 | DW37: 16 | DX37: 14 | DY37: 10 | EA37: 14 | EB37: 14 | EC37: 13 | EE37: 14 | EF37: 11 | EG37: 10 | EI37: 16 | EJ37: 10 | EK37: 10 | EM37: 15 | EN37: 11 | EO37: 10 | EQ37: 16 | ER37: 12 | ES37: 11 | EU37: 16 | EV37: 11 | EW37: 8 | EY37: 14 | EZ37: 11 | FA37: 10 | FC37: 14 | FD37: 12 | FE37: 11 | FG37: 15 | FH37: 13 | FI37: 12 | FK37: 14 | FL37: 14 | FM37: 11 | FO37: 12 | FP37: 12 | FQ37: 10 | FS37: 15 | FT37: 16 | FU37: 16 | FW37: 15 | FX37: 12 | FY37: 9 | GA37: 16 | GB37: 11 | GC37: 9 | GE37: 11 | GF37: 9 | GG37: 10 | GI37: 18 | GJ37: 16 | GK37: 0 | GM37: 19 | GN37: 13 | GO37: 13 | GQ37: 12 | GR37: 12 | GS37: 10 | GU37: 17 | GV37: 14 | GW37: 14 | GY37: 17 | GZ37: 16 | HA37: 10 | HC37: 17 | HD37: 17 | HE37: 13 | HG37: 15 | HH37: 14 | HI37: 11 | HK37: 16 | HL37: 11 | HM37: 10 | HO37: 14 | HP37: 13 | HQ37: 15 | HS37: 15 | HT37: 15 | HU37: 9 | HW37: 17 | HX37: 14 | HY37: 12 | IA37: 16 | IB37: 17 | IC37: 10 | IE37: 16 | IF37: 14 | IG37: 10 | II37: 19 | IJ37: 17 | IK37: 9 | IM37: 16 | IN37: 13 | IO37: 14 | IQ37: 14 | IR37: 13 | IS37: 14 | IU37: 18 | IV37: 17 | IW37: 14 | IY37: 16 | IZ37: 16 | JA37: 11 | JC37: 18 | JD37: 12 | JE37: 12 | JG37: 16 | JH37: 17 | JI37: 12 | JK37: 17 | JL37: 14 | JM37: 12
A38: 8 | C38: 16 | D38: 15 | E38: 12 | G38: 18 | H38: 14 | I38: 12 | K38: 15 | L38: 15 | M38: 13 | O38: 15 | P38: 12 | Q38: 11 | S38: 15 | T38: 13 | U38: 9 | W38: 14 | X38: 12 | Y38: 12 | AA38: 18 | AB38: 14 | AC38: 11 | AE38: 15 | AF38: 11 | AG38: 9 | AI38: 19 | AJ38: 16 | AK38: 15 | AM38: 17 | AN38: 11 | AO38: 12 | AQ38: 15 | AR38: 16 | AS38: 11 | AU38: 17 | AV38: 15 | AW38: 14 | AY38: 17 | AZ38: 17 | BA38: 15 | BC38: 20 | BD38: 14 | BE38: 12 | BG38: 19 | BH38: 18 | BI38: 14 | BK38: 16 | BL38: 12 | BM38: 11 | BO38: 17 | BP38: 14 | BQ38: 12 | BS38: 19 | BT38: 15 | BU38: 10 | BW38: 14 | BX38: 13 | BY38: 10 | CA38: 16 | CB38: 15 | CC38: 10 | CE38: 17 | CF38: 14 | CG38: 11 | CI38: 16 | CJ38: 13 | CK38: 12 | CM38: 17 | CN38: 14 | CO38: 11 | CQ38: 22 | CR38: 15 | CS38: 17 | CU38: 16 | CV38: 15 | CW38: 13 | CY38: 16 | CZ38: 13 | DA38: 9 | DC38: 15 | DD38: 16 | DE38: 15 | DG38: 10 | DH38: 17 | DI38: 12 | DK38: 16 | DL38: 14 | DM38: 13 | DO38: 14 | DP38: 13 | DQ38: 10 | DS38: 14 | DT38: 13 | DU38: 7 | DW38: 16 | DX38: 14 | DY38: 12 | EA38: 15 | EB38: 13 | EC38: 8 | EE38: 14 | EF38: 12 | EG38: 10 | EI38: 11 | EJ38: 10 | EK38: 11 | EM38: 16 | EN38: 11 | EO38: 9 | EQ38: 16 | ER38: 11 | ES38: 12 | EU38: 12 | EV38: 10 | EW38: 9 | EY38: 14 | EZ38: 12 | FA38: 10 | FC38: 15 | FD38: 9 | FE38: 8 | FG38: 14 | FH38: 13 | FI38: 9 | FK38: 17 | FL38: 14 | FM38: 12 | FO38: 15 | FP38: 13 | FQ38: 11 | FS38: 15 | FT38: 16 | FU38: 12 | FW38: 14 | FX38: 13 | FY38: 10 | GA38: 13 | GB38: 13 | GC38: 7 | GE38: 16 | GF38: 12 | GG38: 10 | GI38: 18 | GJ38: 15 | GK38: 0 | GM38: 16 | GN38: 14 | GO38: 13 | GQ38: 15 | GR38: 13 | GS38: 11 | GU38: 17 | GV38: 15 | GW38: 9 | GY38: 17 | GZ38: 17 | HA38: 12 | HC38: 15 | HD38: 15 | HE38: 13 | HG38: 19 | HH38: 12 | HI38: 12 | HK38: 15 | HL38: 15 | HM38: 11 | HO38: 14 | HP38: 11 | HQ38: 13 | HS38: 16 | HT38: 15 | HU38: 10 | HW38: 15 | HX38: 12 | HY38: 14 | IA38: 13 | IB38: 16 | IC38: 12 | IE38: 17 | IF38: 16 | IG38: 13 | II38: 16 | IJ38: 17 | IK38: 9 | IM38: 18 | IN38: 14 | IO38: 13 | IQ38: 14 | IR38: 14 | IS38: 14 | IU38: 18 | IV38: 18 | IW38: 13 | IY38: 14 | IZ38: 13 | JA38: 16 | JC38: 14 | JD38: 14 | JE38: 13 | JG38: 18 | JH38: 15 | JI38: 11 | JK38: 18 | JL38: 15 | JM38: 12
A39: 9 | C39: 15 | D39: 17 | E39: 13 | G39: 16 | H39: 15 | I39: 11 | K39: 16 | L39: 12 | M39: 14 | O39: 14 | P39: 10 | Q39: 10 | S39: 17 | T39: 14 | U39: 10 | W39: 13 | X39: 13 | Y39: 10 | AA39: 15 | AB39: 15 | AC39: 11 | AE39: 15 | AF39: 12 | AG39: 11 | AI39: 15 | AJ39: 15 | AK39: 13 | AM39: 14 | AN39: 13 | AO39: 12 | AQ39: 15 | AR39: 15 | AS39: 14 | AU39: 17 | AV39: 15 | AW39: 15 | AY39: 18 | AZ39: 13 | BA39: 12 | BC39: 20 | BD39: 18 | BE39: 15 | BG39: 20 | BH39: 18 | BI39: 15 | BK39: 17 | BL39: 14 | BM39: 12 | BO39: 15 | BP39: 15 | BQ39: 10 | BS39: 18 | BT39: 14 | BU39: 13 | BW39: 16 | BX39: 15 | BY39: 12 | CA39: 15 | CB39: 12 | CC39: 13 | CE39: 18 | CF39: 13 | CG39: 11 | CI39: 16 | CJ39: 16 | CK39: 11 | CM39: 15 | CN39: 13 | CO39: 12 | CQ39: 18 | CR39: 19 | CS39: 12 | CU39: 18 | CV39: 18 | CW39: 13 | CY39: 16 | CZ39: 14 | DA39: 10 | DC39: 17 | DD39: 15 | DE39: 12 | DG39: 6 | DH39: 16 | DI39: 11 | DK39: 16 | DL39: 15 | DM39: 14 | DO39: 15 | DP39: 13 | DQ39: 9 | DS39: 16 | DT39: 11 | DU39: 10 | DW39: 17 | DX39: 14 | DY39: 10 | EA39: 15 | EB39: 12 | EC39: 11 | EE39: 15 | EF39: 12 | EG39: 13 | EI39: 13 | EJ39: 12 | EK39: 12 | EM39: 16 | EN39: 13 | EO39: 10 | EQ39: 15 | ER39: 13 | ES39: 9 | EU39: 16 | EV39: 11 | EW39: 9 | EY39: 15 | EZ39: 13 | FA39: 7 | FC39: 14 | FD39: 11 | FE39: 9 | FG39: 15 | FH39: 11 | FI39: 11 | FK39: 18 | FL39: 12 | FM39: 11 | FO39: 16 | FP39: 12 | FQ39: 10 | FS39: 19 | FT39: 14 | FU39: 15 | FW39: 14 | FX39: 11 | FY39: 9 | GA39: 14 | GB39: 13 | GC39: 9 | GE39: 14 | GF39: 15 | GG39: 9 | GI39: 17 | GJ39: 17 | GK39: 0 | GM39: 15 | GN39: 16 | GO39: 15 | GQ39: 16 | GR39: 12 | GS39: 11 | GU39: 18 | GV39: 15 | GW39: 12 | GY39: 18 | GZ39: 17 | HA39: 12 | HC39: 16 | HD39: 13 | HE39: 13 | HG39: 18 | HH39: 12 | HI39: 10 | HK39: 14 | HL39: 15 | HM39: 10 | HO39: 16 | HP39: 14 | HQ39: 12 | HS39: 14 | HT39: 13 | HU39: 13 | HW39: 18 | HX39: 16 | HY39: 14 | IA39: 14 | IB39: 14 | IC39: 15 | IE39: 16 | IF39: 16 | IG39: 14 | II39: 16 | IJ39: 16 | IK39: 14 | IM39: 16 | IN39: 13 | IO39: 11 | IQ39: 15 | IR39: 13 | IS39: 14 | IU39: 18 | IV39: 18 | IW39: 14 | IY39: 15 | IZ39: 15 | JA39: 11 | JC39: 20 | JD39: 15 | JE39: 9 | JG39: 16 | JH39: 15 | JI39: 13 | JK39: 18 | JL39: 14 | JM39: 14
A40: 10 | C40: 11 | D40: 17 | E40: 15 | G40: 16 | H40: 13 | I40: 13 | K40: 15 | L40: 15 | M40: 13 | O40: 13 | P40: 11 | Q40: 11 | S40: 15 | T40: 11 | U40: 10 | W40: 17 | X40: 13 | Y40: 10 | AA40: 17 | AB40: 14 | AC40: 12 | AE40: 15 | AF40: 15 | AG40: 11 | AI40: 19 | AJ40: 17 | AK40: 14 | AM40: 18 | AN40: 12 | AO40: 10 | AQ40: 17 | AR40: 12 | AS40: 13 | AU40: 19 | AV40: 15 | AW40: 13 | AY40: 17 | AZ40: 17 | BA40: 12 | BC40: 18 | BD40: 13 | BE40: 12 | BG40: 15 | BH40: 17 | BI40: 13 | BK40: 15 | BL40: 13 | BM40: 10 | BO40: 18 | BP40: 12 | BQ40: 13 | BS40: 17 | BT40: 17 | BU40: 11 | BW40: 18 | BX40: 17 | BY40: 13 | CA40: 18 | CB40: 15 | CC40: 11 | CE40: 16 | CF40: 14 | CG40: 12 | CI40: 17 | CJ40: 15 | CK40: 12 | CM40: 16 | CN40: 13 | CO40: 13 | CQ40: 15 | CR40: 16 | CS40: 11 | CU40: 18 | CV40: 16 | CW40: 12 | CY40: 14 | CZ40: 14 | DA40: 12 | DC40: 18 | DD40: 14 | DE40: 14 | DG40: 2 | DH40: 19 | DI40: 13 | DK40: 20 | DL40: 15 | DM40: 14 | DO40: 19 | DP40: 11 | DQ40: 9 | DS40: 17 | DT40: 15 | DU40: 9 | DW40: 14 | DX40: 13 | DY40: 14 | EA40: 15 | EB40: 10 | EC40: 11 | EE40: 16 | EF40: 13 | EG40: 10 | EI40: 16 | EJ40: 11 | EK40: 9 | EM40: 16 | EN40: 12 | EO40: 9 | EQ40: 13 | ER40: 12 | ES40: 10 | EU40: 13 | EV40: 12 | EW40: 10 | EY40: 15 | EZ40: 13 | FA40: 10 | FC40: 14 | FD40: 11 | FE40: 7 | FG40: 14 | FH40: 11 | FI40: 11 | FK40: 18 | FL40: 14 | FM40: 13 | FO40: 13 | FP40: 12 | FQ40: 9 | FS40: 19 | FT40: 16 | FU40: 13 | FW40: 14 | FX40: 13 | FY40: 12 | GA40: 17 | GB40: 15 | GC40: 9 | GE40: 16 | GF40: 14 | GG40: 9 | GI40: 16 | GJ40: 16 | GK40: 0 | GM40: 18 | GN40: 14 | GO40: 13 | GQ40: 20 | GR40: 12 | GS40: 10 | GU40: 17 | GV40: 18 | GW40: 12 | GY40: 19 | GZ40: 16 | HA40: 13 | HC40: 15 | HD40: 15 | HE40: 14 | HG40: 17 | HH40: 13 | HI40: 12 | HK40: 9 | HL40: 16 | HM40: 10 | HO40: 19 | HP40: 14 | HQ40: 15 | HS40: 14 | HT40: 14 | HU40: 17 | HW40: 19 | HX40: 14 | HY40: 17 | IA40: 16 | IB40: 15 | IC40: 14 | IE40: 17 | IF40: 14 | IG40: 15 | II40: 14 | IJ40: 15 | IK40: 16 | IM40: 17 | IN40: 13 | IO40: 12 | IQ40: 17 | IR40: 11 | IS40: 15 | IU40: 19 | IV40: 18 | IW40: 15 | IY40: 18 | IZ40: 17 | JA40: 12 | JC40: 19 | JD40: 15 | JE40: 12 | JG40: 16 | JH40: 13 | JI40: 11 | JK40: 17 | JL40: 15 | JM40: 12
A41: 11 | C41: 6 | D41: 15 | E41: 16 | G41: 19 | H41: 13 | I41: 12 | K41: 12 | L41: 14 | M41: 14 | O41: 16 | P41: 14 | Q41: 10 | S41: 15 | T41: 13 | U41: 10 | W41: 15 | X41: 11 | Y41: 11 | AA41: 14 | AB41: 15 | AC41: 11 | AE41: 17 | AF41: 14 | AG41: 13 | AI41: 18 | AJ41: 18 | AK41: 12 | AM41: 17 | AN41: 18 | AO41: 10 | AQ41: 17 | AR41: 15 | AS41: 16 | AU41: 17 | AV41: 15 | AW41: 14 | AY41: 18 | AZ41: 11 | BA41: 12 | BC41: 21 | BD41: 17 | BE41: 11 | BG41: 14 | BH41: 18 | BI41: 15 | BK41: 18 | BL41: 16 | BM41: 14 | BO41: 18 | BP41: 14 | BQ41: 9 | BS41: 19 | BT41: 14 | BU41: 11 | BW41: 17 | BX41: 14 | BY41: 12 | CA41: 18 | CB41: 13 | CC41: 12 | CE41: 19 | CF41: 13 | CG41: 12 | CI41: 16 | CJ41: 14 | CK41: 11 | CM41: 19 | CN41: 15 | CO41: 13 | CQ41: 13 | CR41: 18 | CS41: 12 | CU41: 17 | CV41: 17 | CW41: 13 | CY41: 18 | CZ41: 13 | DA41: 14 | DC41: 17 | DD41: 13 | DE41: 13 | DG41: 2 | DH41: 15 | DI41: 11 | DK41: 16 | DL41: 18 | DM41: 13 | DO41: 18 | DP41: 13 | DQ41: 9 | DS41: 17 | DT41: 12 | DU41: 9 | DW41: 17 | DX41: 15 | DY41: 13 | EA41: 14 | EB41: 11 | EC41: 11 | EE41: 15 | EF41: 14 | EG41: 10 | EI41: 17 | EJ41: 16 | EK41: 9 | EM41: 13 | EN41: 13 | EO41: 11 | EQ41: 15 | ER41: 13 | ES41: 8 | EU41: 15 | EV41: 13 | EW41: 8 | EY41: 15 | EZ41: 15 | FA41: 10 | FC41: 16 | FD41: 12 | FE41: 11 | FG41: 15 | FH41: 12 | FI41: 11 | FK41: 19 | FL41: 14 | FM41: 11 | FO41: 15 | FP41: 13 | FQ41: 10 | FS41: 14 | FT41: 16 | FU41: 14 | FW41: 17 | FX41: 12 | FY41: 10 | GA41: 19 | GB41: 12 | GC41: 10 | GE41: 16 | GF41: 13 | GG41: 10 | GI41: 12 | GJ41: 18 | GK41: 0 | GM41: 22 | GN41: 14 | GO41: 13 | GQ41: 15 | GR41: 14 | GS41: 12 | GU41: 16 | GV41: 16 | GW41: 11 | GY41: 20 | GZ41: 17 | HA41: 13 | HC41: 19 | HD41: 15 | HE41: 11 | HG41: 18 | HH41: 14 | HI41: 11 | HK41: 5 | HL41: 18 | HM41: 12 | HO41: 17 | HP41: 14 | HQ41: 12 | HS41: 12 | HT41: 14 | HU41: 14 | HW41: 16 | HX41: 17 | HY41: 13 | IA41: 15 | IB41: 14 | IC41: 16 | IE41: 17 | IF41: 12 | IG41: 15 | II41: 18 | IJ41: 15 | IK41: 15 | IM41: 20 | IN41: 16 | IO41: 10 | IQ41: 14 | IR41: 13 | IS41: 11 | IU41: 14 | IV41: 17 | IW41: 17 | IY41: 18 | IZ41: 16 | JA41: 12 | JC41: 16 | JD41: 19 | JE41: 11 | JG41: 18 | JH41: 13 | JI41: 13 | JK41: 16 | JL41: 15 | JM41: 14
A42: 12 | C42: 3 | D42: 15 | E42: 16 | G42: 15 | H42: 17 | I42: 12 | K42: 15 | L42: 13 | M42: 13 | O42: 15 | P42: 13 | Q42: 10 | S42: 16 | T42: 13 | U42: 11 | W42: 14 | X42: 12 | Y42: 12 | AA42: 18 | AB42: 13 | AC42: 11 | AE42: 16 | AF42: 15 | AG42: 12 | AI42: 17 | AJ42: 16 | AK42: 15 | AM42: 20 | AN42: 13 | AO42: 9 | AQ42: 15 | AR42: 15 | AS42: 15 | AU42: 18 | AV42: 16 | AW42: 11 | AY42: 17 | AZ42: 16 | BA42: 11 | BC42: 19 | BD42: 18 | BE42: 11 | BG42: 12 | BH42: 15 | BI42: 15 | BK42: 15 | BL42: 17 | BM42: 12 | BO42: 16 | BP42: 16 | BQ42: 13 | BS42: 14 | BT42: 16 | BU42: 12 | BW42: 16 | BX42: 16 | BY42: 12 | CA42: 15 | CB42: 16 | CC42: 11 | CE42: 18 | CF42: 15 | CG42: 12 | CI42: 18 | CJ42: 13 | CK42: 14 | CM42: 19 | CN42: 16 | CO42: 12 | CQ42: 12 | CR42: 17 | CS42: 15 | CU42: 14 | CV42: 18 | CW42: 12 | CY42: 16 | CZ42: 13 | DA42: 12 | DC42: 15 | DD42: 14 | DE42: 11 | DG42: 0 | DH42: 15 | DI42: 15 | DK42: 19 | DL42: 17 | DM42: 11 | DO42: 20 | DP42: 14 | DQ42: 10 | DS42: 18 | DT42: 12 | DU42: 10 | DW42: 16 | DX42: 14 | DY42: 11 | EA42: 17 | EB42: 14 | EC42: 11 | EE42: 19 | EF42: 12 | EG42: 9 | EI42: 17 | EJ42: 13 | EK42: 9 | EM42: 15 | EN42: 14 | EO42: 10 | EQ42: 19 | ER42: 17 | ES42: 9 | EU42: 14 | EV42: 13 | EW42: 9 | EY42: 18 | EZ42: 13 | FA42: 9 | FC42: 18 | FD42: 15 | FE42: 9 | FG42: 16 | FH42: 13 | FI42: 9 | FK42: 15 | FL42: 15 | FM42: 13 | FO42: 17 | FP42: 15 | FQ42: 12 | FS42: 13 | FT42: 17 | FU42: 14 | FW42: 15 | FX42: 13 | FY42: 10 | GA42: 18 | GB42: 14 | GC42: 10 | GE42: 17 | GF42: 11 | GG42: 10 | GI42: 6 | GJ42: 16 | GK42: 0 | GM42: 17 | GN42: 15 | GO42: 12 | GQ42: 17 | GR42: 14 | GS42: 11 | GU42: 16 | GV42: 15 | GW42: 10 | GY42: 16 | GZ42: 17 | HA42: 15 | HC42: 16 | HD42: 16 | HE42: 13 | HG42: 20 | HH42: 15 | HI42: 12 | HK42: 2 | HL42: 14 | HM42: 10 | HO42: 20 | HP42: 15 | HQ42: 12 | HS42: 16 | HT42: 13 | HU42: 13 | HW42: 17 | HX42: 15 | HY42: 13 | IA42: 16 | IB42: 12 | IC42: 14 | IE42: 18 | IF42: 15 | IG42: 14 | II42: 17 | IJ42: 15 | IK42: 17 | IM42: 16 | IN42: 17 | IO42: 10 | IQ42: 15 | IR42: 14 | IS42: 15 | IU42: 13 | IV42: 16 | IW42: 16 | IY42: 16 | IZ42: 16 | JA42: 14 | JC42: 19 | JD42: 16 | JE42: 12 | JG42: 18 | JH42: 15 | JI42: 13 | JK42: 19 | JL42: 18 | JM42: 12
A43: 13 | C43: 0 | D43: 14 | E43: 15 | G43: 19 | H43: 17 | I43: 11 | K43: 17 | L43: 14 | M43: 13 | O43: 17 | P43: 16 | Q43: 11 | S43: 11 | T43: 15 | U43: 13 | W43: 15 | X43: 13 | Y43: 9 | AA43: 17 | AB43: 15 | AC43: 14 | AE43: 16 | AF43: 16 | AG43: 10 | AI43: 16 | AJ43: 16 | AK43: 17 | AM43: 18 | AN43: 13 | AO43: 12 | AQ43: 19 | AR43: 13 | AS43: 13 | AU43: 12 | AV43: 15 | AW43: 13 | AY43: 20 | AZ43: 16 | BA43: 14 | BC43: 17 | BD43: 17 | BE43: 12 | BG43: 9 | BH43: 16 | BI43: 17 | BK43: 15 | BL43: 16 | BM43: 10 | BO43: 14 | BP43: 16 | BQ43: 11 | BS43: 13 | BT43: 15 | BU43: 11 | BW43: 14 | BX43: 15 | BY43: 12 | CA43: 14 | CB43: 15 | CC43: 10 | CE43: 17 | CF43: 15 | CG43: 12 | CI43: 19 | CJ43: 15 | CK43: 11 | CM43: 15 | CN43: 16 | CO43: 9 | CQ43: 10 | CR43: 17 | CS43: 16 | CU43: 10 | CV43: 16 | CW43: 13 | CY43: 18 | CZ43: 16 | DA43: 13 | DC43: 21 | DD43: 16 | DE43: 13 | DG43: 0 | DH43: 17 | DI43: 14 | DK43: 18 | DL43: 17 | DM43: 14 | DO43: 18 | DP43: 15 | DQ43: 8 | DS43: 19 | DT43: 15 | DU43: 11 | DW43: 17 | DX43: 17 | DY43: 11 | EA43: 14 | EB43: 15 | EC43: 11 | EE43: 13 | EF43: 13 | EG43: 9 | EI43: 14 | EJ43: 14 | EK43: 10 | EM43: 18 | EN43: 13 | EO43: 9 | EQ43: 19 | ER43: 15 | ES43: 9 | EU43: 18 | EV43: 13 | EW43: 10 | EY43: 18 | EZ43: 15 | FA43: 10 | FC43: 15 | FD43: 14 | FE43: 11 | FG43: 18 | FH43: 14 | FI43: 10 | FK43: 12 | FL43: 17 | FM43: 12 | FO43: 19 | FP43: 15 | FQ43: 12 | FS43: 13 | FT43: 17 | FU43: 19 | FW43: 17 | FX43: 14 | FY43: 10 | GA43: 16 | GB43: 16 | GC43: 10 | GE43: 15 | GF43: 13 | GG43: 10 | GI43: 4 | GJ43: 15 | GK43: 0 | GM43: 19 | GN43: 13 | GO43: 11 | GQ43: 11 | GR43: 16 | GS43: 8 | GU43: 12 | GV43: 17 | GW43: 13 | GY43: 10 | GZ43: 15 | HA43: 14 | HC43: 16 | HD43: 16 | HE43: 13 | HG43: 16 | HH43: 17 | HI43: 9 | HK43: 0 | HL43: 16 | HM43: 14 | HO43: 20 | HP43: 16 | HQ43: 12 | HS43: 18 | HT43: 12 | HU43: 15 | HW43: 19 | HX43: 17 | HY43: 12 | IA43: 15 | IB43: 14 | IC43: 14 | IE43: 16 | IF43: 14 | IG43: 15 | II43: 18 | IJ43: 14 | IK43: 15 | IM43: 15 | IN43: 14 | IO43: 10 | IQ43: 18 | IR43: 14 | IS43: 13 | IU43: 8 | IV43: 18 | IW43: 18 | IY43: 14 | IZ43: 16 | JA43: 17 | JC43: 16 | JD43: 15 | JE43: 14 | JG43: 17 | JH43: 17 | JI43: 9 | JK43: 21 | JL43: 16 | JM43: 15
A44: 14 | C44: 0 | D44: 11 | E44: 12 | G44: 18 | H44: 16 | I44: 12 | K44: 20 | L44: 14 | M44: 11 | O44: 17 | P44: 13 | Q44: 11 | S44: 7 | T44: 17 | U44: 11 | W44: 16 | X44: 12 | Y44: 11 | AA44: 17 | AB44: 17 | AC44: 11 | AE44: 15 | AF44: 16 | AG44: 11 | AI44: 11 | AJ44: 16 | AK44: 13 | AM44: 18 | AN44: 15 | AO44: 13 | AQ44: 18 | AR44: 13 | AS44: 15 | AU44: 9 | AV44: 18 | AW44: 13 | AY44: 14 | AZ44: 15 | BA44: 12 | BC44: 16 | BD44: 16 | BE44: 14 | BG44: 5 | BH44: 13 | BI44: 13 | BK44: 12 | BL44: 15 | BM44: 12 | BO44: 11 | BP44: 16 | BQ44: 10 | BS44: 10 | BT44: 16 | BU44: 13 | BW44: 11 | BX44: 18 | BY44: 11 | CA44: 13 | CB44: 16 | CC44: 12 | CE44: 15 | CF44: 16 | CG44: 11 | CI44: 17 | CJ44: 19 | CK44: 13 | CM44: 13 | CN44: 16 | CO44: 12 | CQ44: 6 | CR44: 17 | CS44: 16 | CU44: 7 | CV44: 19 | CW44: 16 | CY44: 18 | CZ44: 18 | DA44: 10 | DC44: 17 | DD44: 14 | DE44: 13 | DG44: 0 | DH44: 12 | DI44: 12 | DK44: 13 | DL44: 15 | DM44: 15 | DO44: 11 | DP44: 17 | DQ44: 9 | DS44: 13 | DT44: 16 | DU44: 12 | DW44: 18 | DX44: 15 | DY44: 12 | EA44: 18 | EB44: 12 | EC44: 10 | EE44: 12 | EF44: 15 | EG44: 10 | EI44: 18 | EJ44: 13 | EK44: 10 | EM44: 14 | EN44: 13 | EO44: 9 | EQ44: 17 | ER44: 14 | ES44: 12 | EU44: 17 | EV44: 13 | EW44: 8 | EY44: 17 | EZ44: 14 | FA44: 10 | FC44: 17 | FD44: 14 | FE44: 9 | FG44: 17 | FH44: 15 | FI44: 8 | FK44: 8 | FL44: 16 | FM44: 14 | FO44: 16 | FP44: 15 | FQ44: 11 | FS44: 6 | FT44: 16 | FU44: 13 | FW44: 19 | FX44: 14 | FY44: 9 | GA44: 16 | GB44: 16 | GC44: 9 | GE44: 15 | GF44: 16 | GG44: 11 | GI44: 2 | GJ44: 13 | GK44: 0 | GM44: 19 | GN44: 17 | GO44: 14 | GQ44: 20 | GR44: 18 | GS44: 10 | GU44: 7 | GV44: 16 | GW44: 14 | GY44: 8 | GZ44: 17 | HA44: 16 | HC44: 15 | HD44: 15 | HE44: 13 | HG44: 12 | HH44: 17 | HI44: 13 | HK44: 0 | HL44: 13 | HM44: 13 | HO44: 17 | HP44: 14 | HQ44: 13 | HS44: 19 | HT44: 13 | HU44: 12 | HW44: 14 | HX44: 16 | HY44: 13 | IA44: 14 | IB44: 15 | IC44: 15 | IE44: 18 | IF44: 17 | IG44: 12 | II44: 18 | IJ44: 16 | IK44: 14 | IM44: 10 | IN44: 16 | IO44: 11 | IQ44: 16 | IR44: 14 | IS44: 14 | IU44: 8 | IV44: 14 | IW44: 16 | IY44: 10 | IZ44: 19 | JA44: 15 | JC44: 11 | JD44: 16 | JE44: 13 | JG44: 14 | JH44: 16 | JI44: 11 | JK44: 15 | JL44: 17 | JM44: 12
A45: 15 | C45: 0 | D45: 12 | E45: 15 | G45: 15 | H45: 16 | I45: 12 | K45: 18 | L45: 11 | M45: 14 | O45: 16 | P45: 14 | Q45: 8 | S45: 2 | T45: 15 | U45: 11 | W45: 17 | X45: 14 | Y45: 10 | AA45: 16 | AB45: 15 | AC45: 11 | AE45: 13 | AF45: 14 | AG45: 10 | AI45: 8 | AJ45: 17 | AK45: 17 | AM45: 11 | AN45: 17 | AO45: 11 | AQ45: 19 | AR45: 13 | AS45: 15 | AU45: 5 | AV45: 16 | AW45: 12 | AY45: 15 | AZ45: 17 | BA45: 11 | BC45: 14 | BD45: 17 | BE45: 13 | BG45: 6 | BH45: 11 | BI45: 13 | BK45: 8 | BL45: 17 | BM45: 11 | BO45: 9 | BP45: 15 | BQ45: 12 | BS45: 6 | BT45: 16 | BU45: 15 | BW45: 8 | BX45: 16 | BY45: 14 | CA45: 11 | CB45: 15 | CC45: 10 | CE45: 14 | CF45: 18 | CG45: 11 | CI45: 16 | CJ45: 18 | CK45: 13 | CM45: 13 | CN45: 16 | CO45: 12 | CQ45: 4 | CR45: 15 | CS45: 16 | CU45: 3 | CV45: 13 | CW45: 16 | CY45: 15 | CZ45: 15 | DA45: 10 | DC45: 19 | DD45: 16 | DE45: 10 | DG45: 0 | DH45: 9 | DI45: 16 | DK45: 13 | DL45: 17 | DM45: 18 | DO45: 10 | DP45: 16 | DQ45: 11 | DS45: 10 | DT45: 16 | DU45: 8 | DW45: 17 | DX45: 16 | DY45: 12 | EA45: 16 | EB45: 14 | EC45: 9 | EE45: 9 | EF45: 16 | EG45: 11 | EI45: 17 | EJ45: 12 | EK45: 8 | EM45: 14 | EN45: 11 | EO45: 12 | EQ45: 15 | ER45: 15 | ES45: 10 | EU45: 19 | EV45: 14 | EW45: 10 | EY45: 14 | EZ45: 14 | FA45: 10 | FC45: 11 | FD45: 16 | FE45: 11 | FG45: 17 | FH45: 12 | FI45: 10 | FK45: 4 | FL45: 15 | FM45: 15 | FO45: 16 | FP45: 14 | FQ45: 10 | FS45: 6 | FT45: 12 | FU45: 15 | FW45: 18 | FX45: 13 | FY45: 9 | GA45: 11 | GB45: 16 | GC45: 11 | GE45: 9 | GF45: 14 | GG45: 11 | GI45: 1 | GJ45: 13 | GK45: 0 | GM45: 14 | GN45: 18 | GO45: 12 | GQ45: 22 | GR45: 15 | GS45: 14 | GU45: 4 | GV45: 15 | GW45: 12 | GY45: 4 | GZ45: 17 | HA45: 17 | HC45: 12 | HD45: 18 | HE45: 13 | HG45: 7 | HH45: 17 | HI45: 13 | HK45: 0 | HL45: 15 | HM45: 13 | HO45: 19 | HP45: 16 | HQ45: 13 | HS45: 17 | HT45: 16 | HU45: 14 | HW45: 8 | HX45: 16 | HY45: 12 | IA45: 18 | IB45: 14 | IC45: 14 | IE45: 23 | IF45: 16 | IG45: 14 | II45: 16 | IJ45: 17 | IK45: 13 | IM45: 4 | IN45: 17 | IO45: 10 | IQ45: 19 | IR45: 16 | IS45: 12 | IU45: 5 | IV45: 13 | IW45: 15 | IY45: 5 | IZ45: 14 | JA45: 15 | JC45: 5 | JD45: 18 | JE45: 13 | JG45: 11 | JH45: 16 | JI45: 12 | JK45: 14 | JL45: 18 | JM45: 12
A46: 16 | C46: 0 | D46: 6 | E46: 13 | G46: 11 | H46: 16 | I46: 12 | K46: 20 | L46: 13 | M46: 12 | O46: 17 | P46: 14 | Q46: 11 | S46: 0 | T46: 14 | U46: 15 | W46: 18 | X46: 15 | Y46: 9 | AA46: 15 | AB46: 15 | AC46: 11 | AE46: 8 | AF46: 16 | AG46: 12 | AI46: 6 | AJ46: 12 | AK46: 15 | AM46: 8 | AN46: 17 | AO46: 12 | AQ46: 20 | AR46: 14 | AS46: 12 | AU46: 3 | AV46: 16 | AW46: 13 | AY46: 12 | AZ46: 15 | BA46: 11 | BC46: 9 | BD46: 20 | BE46: 12 | BG46: 3 | BH46: 9 | BI46: 16 | BK46: 4 | BL46: 16 | BM46: 12 | BO46: 7 | BP46: 15 | BQ46: 10 | BS46: 5 | BT46: 15 | BU46: 14 | BW46: 4 | BX46: 14 | BY46: 16 | CA46: 7 | CB46: 16 | CC46: 11 | CE46: 10 | CF46: 15 | CG46: 10 | CI46: 14 | CJ46: 16 | CK46: 12 | CM46: 8 | CN46: 16 | CO46: 12 | CQ46: 0 | CR46: 12 | CS46: 16 | CU46: 1 | CV46: 12 | CW46: 16 | CY46: 14 | CZ46: 17 | DA46: 13 | DC46: 17 | DD46: 17 | DE46: 11 | DG46: 0 | DH46: 5 | DI46: 16 | DK46: 9 | DL46: 17 | DM46: 15 | DO46: 5 | DP46: 19 | DQ46: 11 | DS46: 5 | DT46: 14 | DU46: 13 | DW46: 13 | DX46: 15 | DY46: 15 | EA46: 19 | EB46: 13 | EC46: 10 | EE46: 4 | EF46: 15 | EG46: 13 | EI46: 13 | EJ46: 14 | EK46: 11 | EM46: 12 | EN46: 13 | EO46: 7 | EQ46: 13 | ER46: 15 | ES46: 12 | EU46: 13 | EV46: 12 | EW46: 8 | EY46: 11 | EZ46: 19 | FA46: 11 | FC46: 8 | FD46: 14 | FE46: 9 | FG46: 16 | FH46: 15 | FI46: 11 | FK46: 1 | FL46: 15 | FM46: 16 | FO46: 12 | FP46: 16 | FQ46: 11 | FS46: 3 | FT46: 11 | FU46: 15 | FW46: 14 | FX46: 15 | FY46: 11 | GA46: 4 | GB46: 16 | GC46: 11 | GE46: 4 | GF46: 16 | GG46: 11 | GI46: 0 | GJ46: 9 | GK46: 0 | GM46: 12 | GN46: 17 | GO46: 14 | GQ46: 16 | GR46: 19 | GS46: 15 | GU46: 1 | GV46: 15 | GW46: 13 | GY46: 1 | GZ46: 12 | HA46: 15 | HC46: 7 | HD46: 15 | HE46: 12 | HG46: 3 | HH46: 16 | HI46: 15 | HK46: 0 | HL46: 12 | HM46: 13 | HO46: 12 | HP46: 15 | HQ46: 12 | HS46: 20 | HT46: 15 | HU46: 13 | HW46: 6 | HX46: 15 | HY46: 11 | IA46: 17 | IB46: 17 | IC46: 12 | IE46: 17 | IF46: 18 | IG46: 12 | II46: 17 | IJ46: 13 | IK46: 13 | IM46: 2 | IN46: 17 | IO46: 13 | IQ46: 17 | IR46: 15 | IS46: 12 | IU46: 3 | IV46: 11 | IW46: 15 | IY46: 3 | IZ46: 13 | JA46: 14 | JC46: 3 | JD46: 18 | JE46: 14 | JG46: 11 | JH46: 16 | JI46: 12 | JK46: 10 | JL46: 15 | JM46: 16
A47: 17 | C47: 0 | D47: 5 | E47: 15 | G47: 10 | H47: 17 | I47: 14 | K47: 17 | L47: 18 | M47: 10 | O47: 13 | P47: 14 | Q47: 11 | S47: 0 | T47: 13 | U47: 12 | W47: 16 | X47: 12 | Y47: 11 | AA47: 9 | AB47: 18 | AC47: 11 | AE47: 5 | AF47: 16 | AG47: 15 | AI47: 4 | AJ47: 11 | AK47: 14 | AM47: 2 | AN47: 14 | AO47: 12 | AQ47: 17 | AR47: 17 | AS47: 12 | AU47: 1 | AV47: 16 | AW47: 15 | AY47: 9 | AZ47: 18 | BA47: 11 | BC47: 5 | BD47: 16 | BE47: 11 | BG47: 1 | BH47: 8 | BI47: 14 | BK47: 2 | BL47: 13 | BM47: 16 | BO47: 4 | BP47: 16 | BQ47: 12 | BS47: 1 | BT47: 13 | BU47: 13 | BW47: 1 | BX47: 15 | BY47: 16 | CA47: 5 | CB47: 17 | CC47: 14 | CE47: 8 | CF47: 14 | CG47: 13 | CI47: 10 | CJ47: 16 | CK47: 10 | CM47: 5 | CN47: 15 | CO47: 15 | CQ47: 0 | CR47: 11 | CS47: 15 | CU47: 0 | CV47: 14 | CW47: 14 | CY47: 9 | CZ47: 15 | DA47: 14 | DC47: 13 | DD47: 18 | DE47: 16 | DG47: 0 | DH47: 1 | DI47: 14 | DK47: 6 | DL47: 14 | DM47: 16 | DO47: 2 | DP47: 16 | DQ47: 11 | DS47: 2 | DT47: 16 | DU47: 12 | DW47: 14 | DX47: 15 | DY47: 15 | EA47: 15 | EB47: 13 | EC47: 12 | EE47: 3 | EF47: 14 | EG47: 14 | EI47: 10 | EJ47: 17 | EK47: 10 | EM47: 8 | EN47: 14 | EO47: 10 | EQ47: 8 | ER47: 18 | ES47: 12 | EU47: 8 | EV47: 16 | EW47: 11 | EY47: 8 | EZ47: 15 | FA47: 13 | FC47: 3 | FD47: 14 | FE47: 9 | FG47: 14 | FH47: 16 | FI47: 10 | FK47: 1 | FL47: 14 | FM47: 13 | FO47: 8 | FP47: 16 | FQ47: 11 | FS47: 2 | FT47: 11 | FU47: 12 | FW47: 10 | FX47: 17 | FY47: 11 | GA47: 2 | GB47: 14 | GC47: 15 | GE47: 2 | GF47: 15 | GG47: 13 | GI47: 0 | GJ47: 6 | GK47: 0 | GM47: 6 | GN47: 18 | GO47: 13 | GQ47: 9 | GR47: 16 | GS47: 14 | GU47: 0 | GV47: 13 | GW47: 16 | GY47: 1 | GZ47: 12 | HA47: 13 | HC47: 4 | HD47: 17 | HE47: 13 | HG47: 1 | HH47: 17 | HI47: 14 | HK47: 0 | HL47: 9 | HM47: 12 | HO47: 5 | HP47: 18 | HQ47: 11 | HS47: 17 | HT47: 14 | HU47: 11 | HW47: 3 | HX47: 16 | HY47: 14 | IA47: 18 | IB47: 15 | IC47: 11 | IE47: 16 | IF47: 15 | IG47: 10 | II47: 17 | IJ47: 15 | IK47: 13 | IM47: 0 | IN47: 14 | IO47: 13 | IQ47: 18 | IR47: 13 | IS47: 11 | IU47: 2 | IV47: 8 | IW47: 13 | IY47: 1 | IZ47: 12 | JA47: 17 | JC47: 1 | JD47: 13 | JE47: 14 | JG47: 5 | JH47: 16 | JI47: 13 | JK47: 7 | JL47: 17 | JM47: 16
A48: 18 | C48: 0 | D48: 3 | E48: 11 | G48: 6 | H48: 16 | I48: 16 | K48: 18 | L48: 16 | M48: 13 | O48: 8 | P48: 17 | Q48: 13 | S48: 0 | T48: 12 | U48: 12 | W48: 15 | X48: 16 | Y48: 11 | AA48: 7 | AB48: 17 | AC48: 10 | AE48: 3 | AF48: 14 | AG48: 15 | AI48: 3 | AJ48: 10 | AK48: 15 | AM48: 1 | AN48: 15 | AO48: 13 | AQ48: 12 | AR48: 16 | AS48: 12 | AU48: 0 | AV48: 14 | AW48: 15 | AY48: 6 | AZ48: 16 | BA48: 13 | BC48: 3 | BD48: 17 | BE48: 15 | BG48: 2 | BH48: 4 | BI48: 11 | BK48: 0 | BL48: 14 | BM48: 15 | BO48: 2 | BP48: 15 | BQ48: 15 | BS48: 1 | BT48: 10 | BU48: 14 | BW48: 0 | BX48: 10 | BY48: 13 | CA48: 2 | CB48: 14 | CC48: 16 | CE48: 3 | CF48: 16 | CG48: 13 | CI48: 8 | CJ48: 17 | CK48: 14 | CM48: 2 | CN48: 15 | CO48: 13 | CQ48: 0 | CR48: 10 | CS48: 14 | CU48: 0 | CV48: 9 | CW48: 16 | CY48: 5 | CZ48: 17 | DA48: 15 | DC48: 11 | DD48: 15 | DE48: 12 | DG48: 0 | DH48: 0 | DI48: 13 | DK48: 4 | DL48: 12 | DM48: 14 | DO48: 1 | DP48: 16 | DQ48: 13 | DS48: 1 | DT48: 12 | DU48: 14 | DW48: 8 | DX48: 16 | DY48: 15 | EA48: 10 | EB48: 19 | EC48: 11 | EE48: 1 | EF48: 13 | EG48: 15 | EI48: 3 | EJ48: 15 | EK48: 13 | EM48: 4 | EN48: 16 | EO48: 11 | EQ48: 3 | ER48: 14 | ES48: 12 | EU48: 3 | EV48: 14 | EW48: 12 | EY48: 3 | EZ48: 14 | FA48: 14 | FC48: 1 | FD48: 15 | FE48: 13 | FG48: 10 | FH48: 17 | FI48: 14 | FK48: 0 | FL48: 10 | FM48: 14 | FO48: 6 | FP48: 15 | FQ48: 14 | FS48: 0 | FT48: 8 | FU48: 14 | FW48: 8 | FX48: 14 | FY48: 12 | GA48: 1 | GB48: 14 | GC48: 14 | GE48: 0 | GF48: 16 | GG48: 14 | GI48: 0 | GJ48: 5 | GK48: 0 | GM48: 3 | GN48: 17 | GO48: 13 | GQ48: 8 | GR48: 17 | GS48: 12 | GU48: 0 | GV48: 12 | GW48: 16 | GY48: 0 | GZ48: 9 | HA48: 14 | HC48: 1 | HD48: 15 | HE48: 16 | HG48: 0 | HH48: 13 | HI48: 13 | HK48: 0 | HL48: 5 | HM48: 14 | HO48: 3 | HP48: 14 | HQ48: 11 | HS48: 16 | HT48: 14 | HU48: 13 | HW48: 0 | HX48: 15 | HY48: 14 | IA48: 16 | IB48: 13 | IC48: 12 | IE48: 11 | IF48: 13 | IG48: 12 | II48: 13 | IJ48: 14 | IK48: 13 | IM48: 0 | IN48: 13 | IO48: 13 | IQ48: 12 | IR48: 16 | IS48: 12 | IU48: 1 | IV48: 6 | IW48: 14 | IY48: 0 | IZ48: 11 | JA48: 14 | JC48: 0 | JD48: 14 | JE48: 15 | JG48: 1 | JH48: 16 | JI48: 14 | JK48: 5 | JL48: 12 | JM48: 15
A49: 19 | C49: 0 | D49: 2 | E49: 13 | G49: 3 | H49: 10 | I49: 14 | K49: 12 | L49: 18 | M49: 13 | O49: 5 | P49: 15 | Q49: 12 | S49: 0 | T49: 9 | U49: 12 | W49: 13 | X49: 16 | Y49: 13 | AA49: 4 | AB49: 16 | AC49: 12 | AE49: 0 | AF49: 12 | AG49: 13 | AI49: 2 | AJ49: 9 | AK49: 16 | AM49: 0 | AN49: 16 | AO49: 14 | AQ49: 7 | AR49: 18 | AS49: 10 | AU49: 0 | AV49: 9 | AW49: 14 | AY49: 4 | AZ49: 16 | BA49: 15 | BC49: 2 | BD49: 14 | BE49: 16 | BG49: 0 | BH49: 5 | BI49: 9 | BK49: 0 | BL49: 11 | BM49: 13 | BO49: 0 | BP49: 14 | BQ49: 15 | BS49: 0 | BT49: 9 | BU49: 12 | BW49: 0 | BX49: 11 | BY49: 14 | CA49: 1 | CB49: 13 | CC49: 13 | CE49: 3 | CF49: 16 | CG49: 16 | CI49: 4 | CJ49: 16 | CK49: 16 | CM49: 0 | CN49: 14 | CO49: 15 | CQ49: 0 | CR49: 6 | CS49: 13 | CU49: 0 | CV49: 5 | CW49: 13 | CY49: 2 | CZ49: 13 | DA49: 15 | DC49: 7 | DD49: 17 | DE49: 14 | DG49: 0 | DH49: 0 | DI49: 12 | DK49: 2 | DL49: 10 | DM49: 15 | DO49: 0 | DP49: 15 | DQ49: 18 | DS49: 0 | DT49: 13 | DU49: 13 | DW49: 5 | DX49: 13 | DY49: 14 | EA49: 8 | EB49: 14 | EC49: 13 | EE49: 0 | EF49: 10 | EG49: 12 | EI49: 2 | EJ49: 16 | EK49: 12 | EM49: 2 | EN49: 14 | EO49: 14 | EQ49: 2 | ER49: 13 | ES49: 15 | EU49: 1 | EV49: 15 | EW49: 14 | EY49: 1 | EZ49: 12 | FA49: 13 | FC49: 0 | FD49: 15 | FE49: 14 | FG49: 6 | FH49: 14 | FI49: 12 | FK49: 0 | FL49: 6 | FM49: 14 | FO49: 2 | FP49: 13 | FQ49: 14 | FS49: 0 | FT49: 6 | FU49: 16 | FW49: 4 | FX49: 14 | FY49: 12 | GA49: 0 | GB49: 12 | GC49: 13 | GE49: 0 | GF49: 13 | GG49: 13 | GI49: 0 | GJ49: 2 | GK49: 0 | GM49: 0 | GN49: 18 | GO49: 12 | GQ49: 6 | GR49: 15 | GS49: 15 | GU49: 0 | GV49: 8 | GW49: 15 | GY49: 0 | GZ49: 7 | HA49: 15 | HC49: 1 | HD49: 13 | HE49: 13 | HG49: 0 | HH49: 11 | HI49: 15 | HK49: 0 | HL49: 3 | HM49: 13 | HO49: 1 | HP49: 17 | HQ49: 15 | HS49: 12 | HT49: 12 | HU49: 11 | HW49: 0 | HX49: 15 | HY49: 17 | IA49: 14 | IB49: 15 | IC49: 11 | IE49: 6 | IF49: 16 | IG49: 11 | II49: 8 | IJ49: 15 | IK49: 13 | IM49: 0 | IN49: 10 | IO49: 15 | IQ49: 9 | IR49: 16 | IS49: 10 | IU49: 0 | IV49: 5 | IW49: 12 | IY49: 0 | IZ49: 8 | JA49: 13 | JC49: 0 | JD49: 10 | JE49: 14 | JG49: 1 | JH49: 12 | JI49: 15 | JK49: 2 | JL49: 12 | JM49: 15
A50: 20 | C50: 0 | D50: 0 | E50: 8 | G50: 0 | H50: 12 | I50: 13 | K50: 8 | L50: 16 | M50: 12 | O50: 2 | P50: 15 | Q50: 14 | S50: 0 | T50: 4 | U50: 13 | W50: 13 | X50: 15 | Y50: 12 | AA50: 1 | AB50: 14 | AC50: 15 | AE50: 0 | AF50: 11 | AG50: 14 | AI50: 0 | AJ50: 6 | AK50: 13 | AM50: 0 | AN50: 12 | AO50: 14 | AQ50: 3 | AR50: 13 | AS50: 13 | AU50: 0 | AV50: 9 | AW50: 16 | AY50: 1 | AZ50: 14 | BA50: 14 | BC50: 0 | BD50: 10 | BE50: 13 | BG50: 0 | BH50: 4 | BI50: 9 | BK50: 0 | BL50: 10 | BM50: 12 | BO50: 0 | BP50: 11 | BQ50: 13 | BS50: 0 | BT50: 8 | BU50: 13 | BW50: 0 | BX50: 8 | BY50: 13 | CA50: 0 | CB50: 11 | CC50: 14 | CE50: 0 | CF50: 12 | CG50: 14 | CI50: 2 | CJ50: 12 | CK50: 17 | CM50: 0 | CN50: 11 | CO50: 14 | CQ50: 0 | CR50: 5 | CS50: 14 | CU50: 0 | CV50: 4 | CW50: 11 | CY50: 0 | CZ50: 13 | DA50: 14 | DC50: 4 | DD50: 15 | DE50: 16 | DG50: 0 | DH50: 0 | DI50: 11 | DK50: 2 | DL50: 9 | DM50: 15 | DO50: 0 | DP50: 14 | DQ50: 14 | DS50: 0 | DT50: 10 | DU50: 13 | DW50: 2 | DX50: 13 | DY50: 15 | EA50: 4 | EB50: 14 | EC50: 14 | EE50: 0 | EF50: 11 | EG50: 14 | EI50: 1 | EJ50: 14 | EK50: 13 | EM50: 1 | EN50: 14 | EO50: 11 | EQ50: 1 | ER50: 14 | ES50: 15 | EU50: 0 | EV50: 16 | EW50: 12 | EY50: 0 | EZ50: 13 | FA50: 14 | FC50: 0 | FD50: 13 | FE50: 15 | FG50: 2 | FH50: 13 | FI50: 14 | FK50: 0 | FL50: 4 | FM50: 14 | FO50: 1 | FP50: 13 | FQ50: 15 | FS50: 0 | FT50: 4 | FU50: 14 | FW50: 1 | FX50: 12 | FY50: 13 | GA50: 0 | GB50: 8 | GC50: 13 | GE50: 0 | GF50: 10 | GG50: 15 | GI50: 0 | GJ50: 1 | GK50: 0 | GM50: 0 | GN50: 16 | GO50: 14 | GQ50: 4 | GR50: 13 | GS50: 16 | GU50: 0 | GV50: 5 | GW50: 14 | GY50: 0 | GZ50: 5 | HA50: 11 | HC50: 0 | HD50: 9 | HE50: 14 | HG50: 0 | HH50: 10 | HI50: 16 | HK50: 0 | HL50: 0 | HM50: 12 | HO50: 0 | HP50: 16 | HQ50: 14 | HS50: 7 | HT50: 16 | HU50: 9 | HW50: 0 | HX50: 10 | HY50: 11 | IA50: 9 | IB50: 16 | IC50: 11 | IE50: 2 | IF50: 16 | IG50: 13 | II50: 6 | IJ50: 13 | IK50: 14 | IM50: 0 | IN50: 10 | IO50: 14 | IQ50: 3 | IR50: 13 | IS50: 15 | IU50: 0 | IV50: 4 | IW50: 10 | IY50: 0 | IZ50: 4 | JA50: 12 | JC50: 0 | JD50: 9 | JE50: 14 | JG50: 0 | JH50: 13 | JI50: 13 | JK50: 3 | JL50: 11 | JM50: 14
A51: 21 | C51: 0 | D51: 0 | E51: 9 | G51: 0 | H51: 10 | I51: 14 | K51: 5 | L51: 15 | M51: 13 | O51: 1 | P51: 13 | Q51: 14 | S51: 0 | T51: 3 | U51: 12 | W51: 6 | X51: 13 | Y51: 14 | AA51: 1 | AB51: 12 | AC51: 15 | AE51: 0 | AF51: 9 | AG51: 13 | AI51: 1 | AJ51: 6 | AK51: 11 | AM51: 0 | AN51: 12 | AO51: 15 | AQ51: 1 | AR51: 15 | AS51: 15 | AU51: 0 | AV51: 5 | AW51: 13 | AY51: 1 | AZ51: 12 | BA51: 15 | BC51: 0 | BD51: 8 | BE51: 16 | BG51: 0 | BH51: 2 | BI51: 7 | BK51: 0 | BL51: 9 | BM51: 15 | BO51: 0 | BP51: 8 | BQ51: 13 | BS51: 0 | BT51: 4 | BU51: 10 | BW51: 0 | BX51: 7 | BY51: 12 | CA51: 0 | CB51: 8 | CC51: 13 | CE51: 0 | CF51: 8 | CG51: 13 | CI51: 0 | CJ51: 11 | CK51: 13 | CM51: 0 | CN51: 9 | CO51: 15 | CQ51: 0 | CR51: 3 | CS51: 10 | CU51: 0 | CV51: 3 | CW51: 13 | CY51: 0 | CZ51: 11 | DA51: 13 | DC51: 4 | DD51: 11 | DE51: 14 | DG51: 0 | DH51: 0 | DI51: 12 | DK51: 0 | DL51: 6 | DM51: 11 | DO51: 0 | DP51: 13 | DQ51: 14 | DS51: 0 | DT51: 8 | DU51: 12 | DW51: 0 | DX51: 11 | DY51: 13 | EA51: 2 | EB51: 13 | EC51: 13 | EE51: 0 | EF51: 8 | EG51: 12 | EI51: 0 | EJ51: 14 | EK51: 16 | EM51: 1 | EN51: 14 | EO51: 13 | EQ51: 0 | ER51: 12 | ES51: 15 | EU51: 0 | EV51: 11 | EW51: 14 | EY51: 0 | EZ51: 9 | FA51: 13 | FC51: 0 | FD51: 10 | FE51: 15 | FG51: 1 | FH51: 12 | FI51: 15 | FK51: 0 | FL51: 3 | FM51: 12 | FO51: 0 | FP51: 9 | FQ51: 11 | FS51: 0 | FT51: 2 | FU51: 13 | FW51: 1 | FX51: 14 | FY51: 13 | GA51: 0 | GB51: 6 | GC51: 12 | GE51: 0 | GF51: 7 | GG51: 13 | GI51: 0 | GJ51: 0 | GK51: 0 | GM51: 0 | GN51: 11 | GO51: 15 | GQ51: 1 | GR51: 12 | GS51: 13 | GU51: 0 | GV51: 4 | GW51: 13 | GY51: 0 | GZ51: 4 | HA51: 12 | HC51: 0 | HD51: 8 | HE51: 14 | HG51: 0 | HH51: 4 | HI51: 13 | HK51: 0 | HL51: 0 | HM51: 12 | HO51: 0 | HP51: 14 | HQ51: 13 | HS51: 3 | HT51: 15 | HU51: 11 | HW51: 0 | HX51: 6 | HY51: 15 | IA51: 5 | IB51: 15 | IC51: 13 | IE51: 1 | IF51: 12 | IG51: 14 | II51: 3 | IJ51: 13 | IK51: 14 | IM51: 0 | IN51: 6 | IO51: 15 | IQ51: 3 | IR51: 15 | IS51: 14 | IU51: 0 | IV51: 2 | IW51: 9 | IY51: 0 | IZ51: 3 | JA51: 13 | JC51: 0 | JD51: 5 | JE51: 13 | JG51: 0 | JH51: 8 | JI51: 14 | JK51: 0 | JL51: 7 | JM51: 15
A52: 22 | C52: 0 | D52: 0 | E52: 10 | G52: 0 | H52: 7 | I52: 12 | K52: 2 | L52: 16 | M52: 14 | O52: 0 | P52: 12 | Q52: 14 | S52: 0 | T52: 1 | U52: 13 | W52: 4 | X52: 12 | Y52: 13 | AA52: 0 | AB52: 9 | AC52: 14 | AE52: 0 | AF52: 8 | AG52: 16 | AI52: 0 | AJ52: 4 | AK52: 10 | AM52: 0 | AN52: 8 | AO52: 14 | AQ52: 1 | AR52: 14 | AS52: 14 | AU52: 0 | AV52: 2 | AW52: 13 | AY52: 0 | AZ52: 8 | BA52: 14 | BC52: 0 | BD52: 6 | BE52: 14 | BG52: 0 | BH52: 1 | BI52: 8 | BK52: 0 | BL52: 4 | BM52: 14 | BO52: 0 | BP52: 7 | BQ52: 11 | BS52: 0 | BT52: 4 | BU52: 11 | BW52: 0 | BX52: 5 | BY52: 16 | CA52: 0 | CB52: 7 | CC52: 13 | CE52: 0 | CF52: 8 | CG52: 12 | CI52: 0 | CJ52: 9 | CK52: 15 | CM52: 0 | CN52: 6 | CO52: 13 | CQ52: 0 | CR52: 2 | CS52: 11 | CU52: 0 | CV52: 1 | CW52: 11 | CY52: 0 | CZ52: 7 | DA52: 14 | DC52: 1 | DD52: 11 | DE52: 14 | DG52: 0 | DH52: 0 | DI52: 8 | DK52: 0 | DL52: 4 | DM52: 12 | DO52: 0 | DP52: 9 | DQ52: 14 | DS52: 0 | DT52: 4 | DU52: 14 | DW52: 1 | DX52: 9 | DY52: 13 | EA52: 1 | EB52: 13 | EC52: 14 | EE52: 0 | EF52: 5 | EG52: 13 | EI52: 0 | EJ52: 10 | EK52: 15 | EM52: 0 | EN52: 12 | EO52: 11 | EQ52: 0 | ER52: 9 | ES52: 12 | EU52: 0 | EV52: 10 | EW52: 13 | EY52: 0 | EZ52: 8 | FA52: 14 | FC52: 0 | FD52: 6 | FE52: 12 | FG52: 0 | FH52: 10 | FI52: 12 | FK52: 0 | FL52: 1 | FM52: 11 | FO52: 0 | FP52: 10 | FQ52: 14 | FS52: 0 | FT52: 1 | FU52: 10 | FW52: 0 | FX52: 11 | FY52: 11 | GA52: 0 | GB52: 4 | GC52: 14 | GE52: 0 | GF52: 4 | GG52: 13 | GI52: 0 | GJ52: 0 | GK52: 0 | GM52: 0 | GN52: 7 | GO52: 17 | GQ52: 1 | GR52: 9 | GS52: 15 | GU52: 0 | GV52: 3 | GW52: 11 | GY52: 0 | GZ52: 2 | HA52: 9 | HC52: 0 | HD52: 4 | HE52: 13 | HG52: 0 | HH52: 3 | HI52: 13 | HK52: 0 | HL52: 0 | HM52: 12 | HO52: 0 | HP52: 7 | HQ52: 15 | HS52: 0 | HT52: 16 | HU52: 15 | HW52: 0 | HX52: 5 | HY52: 14 | IA52: 2 | IB52: 14 | IC52: 13 | IE52: 0 | IF52: 16 | IG52: 13 | II52: 3 | IJ52: 14 | IK52: 13 | IM52: 0 | IN52: 5 | IO52: 13 | IQ52: 0 | IR52: 15 | IS52: 14 | IU52: 0 | IV52: 1 | IW52: 7 | IY52: 0 | IZ52: 3 | JA52: 10 | JC52: 0 | JD52: 3 | JE52: 12 | JG52: 0 | JH52: 7 | JI52: 13 | JK52: 0 | JL52: 6 | JM52: 12
A53: 23 | C53: 0 | D53: 0 | E53: 5 | G53: 0 | H53: 5 | I53: 14 | K53: 0 | L53: 14 | M53: 15 | O53: 0 | P53: 7 | Q53: 15 | S53: 0 | T53: 0 | U53: 11 | W53: 2 | X53: 13 | Y53: 13 | AA53: 0 | AB53: 8 | AC53: 13 | AE53: 0 | AF53: 5 | AG53: 12 | AI53: 0 | AJ53: 2 | AK53: 11 | AM53: 0 | AN53: 4 | AO53: 13 | AQ53: 0 | AR53: 13 | AS53: 15 | AU53: 0 | AV53: 1 | AW53: 13 | AY53: 0 | AZ53: 7 | BA53: 13 | BC53: 0 | BD53: 5 | BE53: 14 | BG53: 0 | BH53: 1 | BI53: 4 | BK53: 0 | BL53: 4 | BM53: 13 | BO53: 0 | BP53: 5 | BQ53: 13 | BS53: 0 | BT53: 2 | BU53: 10 | BW53: 0 | BX53: 2 | BY53: 10 | CA53: 0 | CB53: 5 | CC53: 12 | CE53: 0 | CF53: 5 | CG53: 13 | CI53: 0 | CJ53: 6 | CK53: 12 | CM53: 0 | CN53: 5 | CO53: 13 | CQ53: 0 | CR53: 0 | CS53: 10 | CU53: 0 | CV53: 0 | CW53: 9 | CY53: 0 | CZ53: 5 | DA53: 13 | DC53: 0 | DD53: 8 | DE53: 15 | DG53: 0 | DH53: 0 | DI53: 8 | DK53: 0 | DL53: 5 | DM53: 10 | DO53: 0 | DP53: 6 | DQ53: 15 | DS53: 0 | DT53: 3 | DU53: 13 | DW53: 0 | DX53: 6 | DY53: 14 | EA53: 0 | EB53: 11 | EC53: 13 | EE53: 0 | EF53: 4 | EG53: 12 | EI53: 0 | EJ53: 7 | EK53: 16 | EM53: 0 | EN53: 8 | EO53: 14 | EQ53: 0 | ER53: 6 | ES53: 12 | EU53: 0 | EV53: 6 | EW53: 13 | EY53: 0 | EZ53: 5 | FA53: 15 | FC53: 0 | FD53: 5 | FE53: 14 | FG53: 0 | FH53: 10 | FI53: 13 | FK53: 0 | FL53: 1 | FM53: 11 | FO53: 0 | FP53: 6 | FQ53: 15 | FS53: 0 | FT53: 0 | FU53: 8 | FW53: 0 | FX53: 8 | FY53: 14 | GA53: 0 | GB53: 1 | GC53: 13 | GE53: 0 | GF53: 2 | GG53: 15 | GI53: 0 | GJ53: 0 | GK53: 0 | GM53: 0 | GN53: 5 | GO53: 13 | GQ53: 0 | GR53: 5 | GS53: 13 | GU53: 0 | GV53: 0 | GW53: 11 | GY53: 0 | GZ53: 0 | HA53: 10 | HC53: 0 | HD53: 5 | HE53: 14 | HG53: 0 | HH53: 1 | HI53: 11 | HK53: 0 | HL53: 0 | HM53: 10 | HO53: 0 | HP53: 5 | HQ53: 12 | HS53: 0 | HT53: 16 | HU53: 11 | HW53: 0 | HX53: 3 | HY53: 14 | IA53: 1 | IB53: 15 | IC53: 14 | IE53: 0 | IF53: 14 | IG53: 14 | II53: 1 | IJ53: 13 | IK53: 12 | IM53: 0 | IN53: 2 | IO53: 13 | IQ53: 0 | IR53: 13 | IS53: 12 | IU53: 0 | IV53: 0 | IW53: 5 | IY53: 0 | IZ53: 0 | JA53: 9 | JC53: 0 | JD53: 2 | JE53: 12 | JG53: 0 | JH53: 5 | JI53: 13 | JK53: 0 | JL53: 5 | JM53: 11
A54: 24 | C54: 0 | D54: 0 | E54: 5 | G54: 0 | H54: 3 | I54: 10 | K54: 0 | L54: 12 | M54: 16 | O54: 0 | P54: 6 | Q54: 16 | S54: 0 | T54: 0 | U54: 11 | W54: 1 | X54: 12 | Y54: 10 | AA54: 0 | AB54: 6 | AC54: 15 | AE54: 0 | AF54: 3 | AG54: 11 | AI54: 0 | AJ54: 1 | AK54: 6 | AM54: 0 | AN54: 2 | AO54: 13 | AQ54: 0 | AR54: 12 | AS54: 16 | AU54: 0 | AV54: 0 | AW54: 12 | AY54: 0 | AZ54: 5 | BA54: 14 | BC54: 0 | BD54: 3 | BE54: 13 | BG54: 0 | BH54: 0 | BI54: 4 | BK54: 0 | BL54: 2 | BM54: 9 | BO54: 0 | BP54: 4 | BQ54: 13 | BS54: 0 | BT54: 1 | BU54: 9 | BW54: 0 | BX54: 1 | BY54: 12 | CA54: 0 | CB54: 4 | CC54: 12 | CE54: 0 | CF54: 6 | CG54: 11 | CI54: 0 | CJ54: 6 | CK54: 14 | CM54: 0 | CN54: 2 | CO54: 10 | CQ54: 0 | CR54: 0 | CS54: 7 | CU54: 0 | CV54: 0 | CW54: 10 | CY54: 0 | CZ54: 4 | DA54: 11 | DC54: 0 | DD54: 4 | DE54: 12 | DG54: 0 | DH54: 0 | DI54: 6 | DK54: 0 | DL54: 2 | DM54: 10 | DO54: 0 | DP54: 3 | DQ54: 12 | DS54: 0 | DT54: 1 | DU54: 11 | DW54: 0 | DX54: 5 | DY54: 12 | EA54: 0 | EB54: 8 | EC54: 14 | EE54: 0 | EF54: 2 | EG54: 13 | EI54: 0 | EJ54: 4 | EK54: 13 | EM54: 0 | EN54: 5 | EO54: 14 | EQ54: 0 | ER54: 3 | ES54: 14 | EU54: 0 | EV54: 4 | EW54: 13 | EY54: 0 | EZ54: 2 | FA54: 15 | FC54: 0 | FD54: 2 | FE54: 13 | FG54: 0 | FH54: 5 | FI54: 13 | FK54: 0 | FL54: 0 | FM54: 9 | FO54: 0 | FP54: 4 | FQ54: 14 | FS54: 0 | FT54: 0 | FU54: 8 | FW54: 0 | FX54: 4 | FY54: 14 | GA54: 0 | GB54: 1 | GC54: 11 | GE54: 0 | GF54: 1 | GG54: 11 | GI54: 0 | GJ54: 0 | GK54: 0 | GM54: 0 | GN54: 1 | GO54: 12 | GQ54: 0 | GR54: 5 | GS54: 14 | GU54: 0 | GV54: 0 | GW54: 9 | GY54: 0 | GZ54: 0 | HA54: 8 | HC54: 0 | HD54: 2 | HE54: 12 | HG54: 0 | HH54: 0 | HI54: 10 | HK54: 0 | HL54: 0 | HM54: 8 | HO54: 0 | HP54: 4 | HQ54: 12 | HS54: 0 | HT54: 16 | HU54: 13 | HW54: 0 | HX54: 1 | HY54: 14 | IA54: 0 | IB54: 13 | IC54: 15 | IE54: 0 | IF54: 11 | IG54: 14 | II54: 0 | IJ54: 13 | IK54: 14 | IM54: 0 | IN54: 1 | IO54: 11 | IQ54: 0 | IR54: 10 | IS54: 15 | IU54: 0 | IV54: 0 | IW54: 5 | IY54: 0 | IZ54: 0 | JA54: 7 | JC54: 0 | JD54: 0 | JE54: 12 | JG54: 0 | JH54: 5 | JI54: 12 | JK54: 0 | JL54: 2 | JM54: 10
A55: 25 | C55: 0 | D55: 0 | E55: 4 | G55: 0 | H55: 2 | I55: 11 | K55: 0 | L55: 6 | M55: 13 | O55: 0 | P55: 3 | Q55: 13 | S55: 0 | T55: 0 | U55: 9 | W55: 0 | X55: 9 | Y55: 15 | AA55: 0 | AB55: 5 | AC55: 13 | AE55: 0 | AF55: 2 | AG55: 11 | AI55: 0 | AJ55: 1 | AK55: 7 | AM55: 0 | AN55: 0 | AO55: 10 | AQ55: 0 | AR55: 9 | AS55: 13 | AU55: 0 | AV55: 0 | AW55: 10 | AY55: 0 | AZ55: 4 | BA55: 14 | BC55: 0 | BD55: 2 | BE55: 10 | BG55: 0 | BH55: 0 | BI55: 2 | BK55: 0 | BL55: 0 | BM55: 9 | BO55: 0 | BP55: 1 | BQ55: 12 | BS55: 0 | BT55: 1 | BU55: 8 | BW55: 0 | BX55: 0 | BY55: 8 | CA55: 0 | CB55: 2 | CC55: 13 | CE55: 0 | CF55: 2 | CG55: 15 | CI55: 0 | CJ55: 3 | CK55: 13 | CM55: 0 | CN55: 1 | CO55: 11 | CQ55: 0 | CR55: 0 | CS55: 6 | CU55: 0 | CV55: 0 | CW55: 6 | CY55: 0 | CZ55: 3 | DA55: 12 | DC55: 0 | DD55: 5 | DE55: 11 | DG55: 0 | DH55: 0 | DI55: 3 | DK55: 0 | DL55: 1 | DM55: 6 | DO55: 0 | DP55: 2 | DQ55: 13 | DS55: 0 | DT55: 1 | DU55: 11 | DW55: 0 | DX55: 2 | DY55: 10 | EA55: 0 | EB55: 4 | EC55: 12 | EE55: 0 | EF55: 0 | EG55: 10 | EI55: 0 | EJ55: 3 | EK55: 14 | EM55: 0 | EN55: 3 | EO55: 13 | EQ55: 0 | ER55: 3 | ES55: 13 | EU55: 0 | EV55: 4 | EW55: 12 | EY55: 0 | EZ55: 2 | FA55: 10 | FC55: 0 | FD55: 0 | FE55: 12 | FG55: 0 | FH55: 4 | FI55: 14 | FK55: 0 | FL55: 0 | FM55: 9 | FO55: 0 | FP55: 2 | FQ55: 12 | FS55: 0 | FT55: 0 | FU55: 6 | FW55: 0 | FX55: 3 | FY55: 12 | GA55: 0 | GB55: 0 | GC55: 10 | GE55: 0 | GF55: 0 | GG55: 10 | GI55: 0 | GJ55: 0 | GK55: 0 | GM55: 0 | GN55: 0 | GO55: 14 | GQ55: 0 | GR55: 4 | GS55: 15 | GU55: 0 | GV55: 0 | GW55: 9 | GY55: 0 | GZ55: 0 | HA55: 9 | HC55: 0 | HD55: 1 | HE55: 12 | HG55: 0 | HH55: 0 | HI55: 11 | HK55: 0 | HL55: 0 | HM55: 9 | HO55: 0 | HP55: 1 | HQ55: 14 | HS55: 0 | HT55: 12 | HU55: 14 | HW55: 0 | HX55: 0 | HY55: 14 | IA55: 0 | IB55: 11 | IC55: 12 | IE55: 0 | IF55: 7 | IG55: 11 | II55: 0 | IJ55: 10 | IK55: 12 | IM55: 0 | IN55: 0 | IO55: 11 | IQ55: 0 | IR55: 6 | IS55: 11 | IU55: 0 | IV55: 0 | IW55: 2 | IY55: 0 | IZ55: 0 | JA55: 7 | JC55: 0 | JD55: 0 | JE55: 10 | JG55: 0 | JH55: 1 | JI55: 10 | JK55: 0 | JL55: 3 | JM55: 8
A56: 26 | C56: 0 | D56: 0 | E56: 2 | G56: 0 | H56: 1 | I56: 9 | K56: 0 | L56: 5 | M56: 14 | O56: 0 | P56: 3 | Q56: 12 | S56: 0 | T56: 0 | U56: 9 | W56: 0 | X56: 4 | Y56: 11 | AA56: 0 | AB56: 2 | AC56: 11 | AE56: 0 | AF56: 0 | AG56: 8 | AI56: 0 | AJ56: 0 | AK56: 5 | AM56: 0 | AN56: 0 | AO56: 12 | AQ56: 0 | AR56: 4 | AS56: 13 | AU56: 0 | AV56: 0 | AW56: 9 | AY56: 0 | AZ56: 2 | BA56: 11 | BC56: 0 | BD56: 1 | BE56: 9 | BG56: 0 | BH56: 0 | BI56: 3 | BK56: 0 | BL56: 0 | BM56: 9 | BO56: 0 | BP56: 1 | BQ56: 10 | BS56: 0 | BT56: 0 | BU56: 6 | BW56: 0 | BX56: 0 | BY56: 8 | CA56: 0 | CB56: 1 | CC56: 7 | CE56: 0 | CF56: 1 | CG56: 9 | CI56: 0 | CJ56: 2 | CK56: 10 | CM56: 0 | CN56: 0 | CO56: 9 | CQ56: 0 | CR56: 0 | CS56: 6 | CU56: 0 | CV56: 0 | CW56: 5 | CY56: 0 | CZ56: 0 | DA56: 10 | DC56: 0 | DD56: 3 | DE56: 11 | DG56: 0 | DH56: 0 | DI56: 1 | DK56: 0 | DL56: 0 | DM56: 6 | DO56: 0 | DP56: 0 | DQ56: 12 | DS56: 0 | DT56: 0 | DU56: 10 | DW56: 0 | DX56: 1 | DY56: 11 | EA56: 0 | EB56: 2 | EC56: 10 | EE56: 0 | EF56: 0 | EG56: 10 | EI56: 0 | EJ56: 1 | EK56: 12 | EM56: 0 | EN56: 2 | EO56: 13 | EQ56: 0 | ER56: 1 | ES56: 12 | EU56: 0 | EV56: 0 | EW56: 12 | EY56: 0 | EZ56: 0 | FA56: 10 | FC56: 0 | FD56: 0 | FE56: 11 | FG56: 0 | FH56: 2 | FI56: 12 | FK56: 0 | FL56: 0 | FM56: 7 | FO56: 0 | FP56: 1 | FQ56: 10 | FS56: 0 | FT56: 0 | FU56: 4 | FW56: 0 | FX56: 2 | FY56: 10 | GA56: 0 | GB56: 0 | GC56: 8 | GE56: 0 | GF56: 0 | GG56: 9 | GI56: 0 | GJ56: 0 | GK56: 0 | GM56: 0 | GN56: 0 | GO56: 12 | GQ56: 0 | GR56: 2 | GS56: 12 | GU56: 0 | GV56: 0 | GW56: 10 | GY56: 0 | GZ56: 0 | HA56: 6 | HC56: 0 | HD56: 0 | HE56: 10 | HG56: 0 | HH56: 0 | HI56: 9 | HK56: 0 | HL56: 0 | HM56: 8 | HO56: 0 | HP56: 0 | HQ56: 12 | HS56: 0 | HT56: 9 | HU56: 13 | HW56: 0 | HX56: 0 | HY56: 13 | IA56: 0 | IB56: 6 | IC56: 12 | IE56: 0 | IF56: 6 | IG56: 11 | II56: 0 | IJ56: 7 | IK56: 12 | IM56: 0 | IN56: 0 | IO56: 12 | IQ56: 0 | IR56: 5 | IS56: 12 | IU56: 0 | IV56: 0 | IW56: 2 | IY56: 0 | IZ56: 0 | JA56: 4 | JC56: 0 | JD56: 0 | JE56: 8 | JG56: 0 | JH56: 0 | JI56: 10 | JK56: 0 | JL56: 1 | JM56: 8
A57: 27 | C57: 0 | D57: 0 | E57: 1 | G57: 0 | H57: 0 | I57: 8 | K57: 0 | L57: 1 | M57: 14 | O57: 0 | P57: 0 | Q57: 11 | S57: 0 | T57: 0 | U57: 9 | W57: 0 | X57: 4 | Y57: 11 | AA57: 0 | AB57: 1 | AC57: 13 | AE57: 0 | AF57: 0 | AG57: 9 | AI57: 0 | AJ57: 0 | AK57: 4 | AM57: 0 | AN57: 0 | AO57: 12 | AQ57: 0 | AR57: 1 | AS57: 15 | AU57: 0 | AV57: 0 | AW57: 7 | AY57: 0 | AZ57: 1 | BA57: 10 | BC57: 0 | BD57: 0 | BE57: 9 | BG57: 0 | BH57: 0 | BI57: 2 | BK57: 0 | BL57: 0 | BM57: 8 | BO57: 0 | BP57: 0 | BQ57: 9 | BS57: 0 | BT57: 0 | BU57: 6 | BW57: 0 | BX57: 0 | BY57: 7 | CA57: 0 | CB57: 0 | CC57: 9 | CE57: 0 | CF57: 1 | CG57: 9 | CI57: 0 | CJ57: 1 | CK57: 10 | CM57: 0 | CN57: 0 | CO57: 9 | CQ57: 0 | CR57: 0 | CS57: 3 | CU57: 0 | CV57: 0 | CW57: 4 | CY57: 0 | CZ57: 0 | DA57: 8 | DC57: 0 | DD57: 0 | DE57: 8 | DG57: 0 | DH57: 0 | DI57: 0 | DK57: 0 | DL57: 0 | DM57: 5 | DO57: 0 | DP57: 0 | DQ57: 12 | DS57: 0 | DT57: 0 | DU57: 7 | DW57: 0 | DX57: 0 | DY57: 9 | EA57: 0 | EB57: 3 | EC57: 13 | EE57: 0 | EF57: 0 | EG57: 9 | EI57: 0 | EJ57: 0 | EK57: 11 | EM57: 0 | EN57: 1 | EO57: 11 | EQ57: 0 | ER57: 0 | ES57: 12 | EU57: 0 | EV57: 0 | EW57: 13 | EY57: 0 | EZ57: 0 | FA57: 9 | FC57: 0 | FD57: 0 | FE57: 11 | FG57: 0 | FH57: 1 | FI57: 10 | FK57: 0 | FL57: 0 | FM57: 4 | FO57: 0 | FP57: 0 | FQ57: 9 | FS57: 0 | FT57: 0 | FU57: 2 | FW57: 0 | FX57: 1 | FY57: 10 | GA57: 0 | GB57: 0 | GC57: 7 | GE57: 0 | GF57: 0 | GG57: 10 | GI57: 0 | GJ57: 0 | GK57: 0 | GM57: 0 | GN57: 0 | GO57: 13 | GQ57: 0 | GR57: 1 | GS57: 10 | GU57: 0 | GV57: 0 | GW57: 6 | GY57: 0 | GZ57: 0 | HA57: 5 | HC57: 0 | HD57: 0 | HE57: 9 | HG57: 0 | HH57: 0 | HI57: 7 | HK57: 0 | HL57: 0 | HM57: 4 | HO57: 0 | HP57: 0 | HQ57: 14 | HS57: 0 | HT57: 4 | HU57: 11 | HW57: 0 | HX57: 0 | HY57: 11 | IA57: 0 | IB57: 4 | IC57: 15 | IE57: 0 | IF57: 2 | IG57: 14 | II57: 0 | IJ57: 5 | IK57: 11 | IM57: 0 | IN57: 0 | IO57: 8 | IQ57: 0 | IR57: 3 | IS57: 13 | IU57: 0 | IV57: 0 | IW57: 1 | IY57: 0 | IZ57: 0 | JA57: 5 | JC57: 0 | JD57: 0 | JE57: 7 | JG57: 0 | JH57: 0 | JI57: 9 | JK57: 0 | JL57: 0 | JM57: 6
A58: 28 | C58: 0 | D58: 0 | E58: 0 | G58: 0 | H58: 0 | I58: 6 | K58: 0 | L58: 0 | M58: 14 | O58: 0 | P58: 0 | Q58: 12 | S58: 0 | T58: 0 | U58: 7 | W58: 0 | X58: 3 | Y58: 10 | AA58: 0 | AB58: 1 | AC58: 10 | AE58: 0 | AF58: 0 | AG58: 7 | AI58: 0 | AJ58: 0 | AK58: 3 | AM58: 0 | AN58: 0 | AO58: 9 | AQ58: 0 | AR58: 0 | AS58: 10 | AU58: 0 | AV58: 0 | AW58: 6 | AY58: 0 | AZ58: 0 | BA58: 8 | BC58: 0 | BD58: 0 | BE58: 6 | BG58: 0 | BH58: 0 | BI58: 1 | BK58: 0 | BL58: 0 | BM58: 7 | BO58: 0 | BP58: 0 | BQ58: 7 | BS58: 0 | BT58: 0 | BU58: 4 | BW58: 0 | BX58: 0 | BY58: 6 | CA58: 0 | CB58: 0 | CC58: 7 | CE58: 0 | CF58: 0 | CG58: 7 | CI58: 0 | CJ58: 0 | CK58: 8 | CM58: 0 | CN58: 0 | CO58: 8 | CQ58: 0 | CR58: 0 | CS58: 3 | CU58: 0 | CV58: 0 | CW58: 3 | CY58: 0 | CZ58: 0 | DA58: 8 | DC58: 0 | DD58: 0 | DE58: 9 | DG58: 0 | DH58: 0 | DI58: 0 | DK58: 0 | DL58: 0 | DM58: 4 | DO58: 0 | DP58: 0 | DQ58: 10 | DS58: 0 | DT58: 0 | DU58: 8 | DW58: 0 | DX58: 0 | DY58: 7 | EA58: 0 | EB58: 0 | EC58: 11 | EE58: 0 | EF58: 0 | EG58: 6 | EI58: 0 | EJ58: 0 | EK58: 12 | EM58: 0 | EN58: 0 | EO58: 12 | EQ58: 0 | ER58: 0 | ES58: 7 | EU58: 0 | EV58: 0 | EW58: 10 | EY58: 0 | EZ58: 0 | FA58: 8 | FC58: 0 | FD58: 0 | FE58: 10 | FG58: 0 | FH58: 0 | FI58: 9 | FK58: 0 | FL58: 0 | FM58: 4 | FO58: 0 | FP58: 0 | FQ58: 8 | FS58: 0 | FT58: 0 | FU58: 1 | FW58: 0 | FX58: 0 | FY58: 11 | GA58: 0 | GB58: 0 | GC58: 9 | GE58: 0 | GF58: 0 | GG58: 9 | GI58: 0 | GJ58: 0 | GK58: 0 | GM58: 0 | GN58: 0 | GO58: 11 | GQ58: 0 | GR58: 0 | GS58: 8 | GU58: 0 | GV58: 0 | GW58: 5 | GY58: 0 | GZ58: 0 | HA58: 4 | HC58: 0 | HD58: 0 | HE58: 6 | HG58: 0 | HH58: 0 | HI58: 4 | HK58: 0 | HL58: 0 | HM58: 2 | HO58: 0 | HP58: 0 | HQ58: 12 | HS58: 0 | HT58: 3 | HU58: 13 | HW58: 0 | HX58: 0 | HY58: 7 | IA58: 0 | IB58: 2 | IC58: 15 | IE58: 0 | IF58: 0 | IG58: 12 | II58: 0 | IJ58: 3 | IK58: 12 | IM58: 0 | IN58: 0 | IO58: 8 | IQ58: 0 | IR58: 1 | IS58: 13 | IU58: 0 | IV58: 0 | IW58: 0 | IY58: 0 | IZ58: 0 | JA58: 2 | JC58: 0 | JD58: 0 | JE58: 5 | JG58: 0 | JH58: 0 | JI58: 7 | JK58: 0 | JL58: 0 | JM58: 5
A59: 29 | C59: 0 | D59: 0 | E59: 0 | G59: 0 | H59: 0 | I59: 6 | K59: 0 | L59: 0 | M59: 13 | O59: 0 | P59: 0 | Q59: 10 | S59: 0 | T59: 0 | U59: 5 | W59: 0 | X59: 1 | Y59: 11 | AA59: 0 | AB59: 0 | AC59: 8 | AE59: 0 | AF59: 0 | AG59: 6 | AI59: 0 | AJ59: 0 | AK59: 1 | AM59: 0 | AN59: 0 | AO59: 8 | AQ59: 0 | AR59: 0 | AS59: 11 | AU59: 0 | AV59: 0 | AW59: 3 | AY59: 0 | AZ59: 0 | BA59: 6 | BC59: 0 | BD59: 0 | BE59: 6 | BG59: 0 | BH59: 0 | BI59: 0 | BK59: 0 | BL59: 0 | BM59: 5 | BO59: 0 | BP59: 0 | BQ59: 6 | BS59: 0 | BT59: 0 | BU59: 3 | BW59: 0 | BX59: 0 | BY59: 5 | CA59: 0 | CB59: 0 | CC59: 5 | CE59: 0 | CF59: 0 | CG59: 5 | CI59: 0 | CJ59: 0 | CK59: 5 | CM59: 0 | CN59: 0 | CO59: 5 | CQ59: 0 | CR59: 0 | CS59: 1 | CU59: 0 | CV59: 0 | CW59: 2 | CY59: 0 | CZ59: 0 | DA59: 6 | DC59: 0 | DD59: 0 | DE59: 5 | DG59: 0 | DH59: 0 | DI59: 0 | DK59: 0 | DL59: 0 | DM59: 2 | DO59: 0 | DP59: 0 | DQ59: 9 | DS59: 0 | DT59: 0 | DU59: 8 | DW59: 0 | DX59: 0 | DY59: 6 | EA59: 0 | EB59: 0 | EC59: 10 | EE59: 0 | EF59: 0 | EG59: 6 | EI59: 0 | EJ59: 0 | EK59: 8 | EM59: 0 | EN59: 0 | EO59: 10 | EQ59: 0 | ER59: 0 | ES59: 9 | EU59: 0 | EV59: 0 | EW59: 10 | EY59: 0 | EZ59: 0 | FA59: 7 | FC59: 0 | FD59: 0 | FE59: 10 | FG59: 0 | FH59: 0 | FI59: 8 | FK59: 0 | FL59: 0 | FM59: 2 | FO59: 0 | FP59: 0 | FQ59: 9 | FS59: 0 | FT59: 0 | FU59: 0 | FW59: 0 | FX59: 0 | FY59: 9 | GA59: 0 | GB59: 0 | GC59: 7 | GE59: 0 | GF59: 0 | GG59: 7 | GI59: 0 | GJ59: 0 | GK59: 0 | GM59: 0 | GN59: 0 | GO59: 6 | GQ59: 0 | GR59: 0 | GS59: 5 | GU59: 0 | GV59: 0 | GW59: 4 | GY59: 0 | GZ59: 0 | HA59: 2 | HC59: 0 | HD59: 0 | HE59: 5 | HG59: 0 | HH59: 0 | HI59: 3 | HK59: 0 | HL59: 0 | HM59: 1 | HO59: 0 | HP59: 0 | HQ59: 12 | HS59: 0 | HT59: 0 | HU59: 14 | HW59: 0 | HX59: 0 | HY59: 5 | IA59: 0 | IB59: 0 | IC59: 14 | IE59: 0 | IF59: 0 | IG59: 12 | II59: 0 | IJ59: 1 | IK59: 12 | IM59: 0 | IN59: 0 | IO59: 7 | IQ59: 0 | IR59: 0 | IS59: 12 | IU59: 0 | IV59: 0 | IW59: 0 | IY59: 0 | IZ59: 0 | JA59: 2 | JC59: 0 | JD59: 0 | JE59: 6 | JG59: 0 | JH59: 0 | JI59: 7 | JK59: 0 | JL59: 0 | JM59: 4
A60: 30 | C60: 0 | D60: 0 | E60: 0 | G60: 0 | H60: 0 | I60: 10 | K60: 0 | L60: 0 | M60: 19 | O60: 0 | P60: 0 | Q60: 18 | S60: 0 | T60: 0 | U60: 7 | W60: 0 | X60: 0 | Y60: 30 | AA60: 0 | AB60: 0 | AC60: 25 | AE60: 0 | AF60: 0 | AG60: 10 | AI60: 0 | AJ60: 0 | AK60: 1 | AM60: 0 | AN60: 0 | AO60: 12 | AQ60: 0 | AR60: 0 | AS60: 37 | AU60: 0 | AV60: 0 | AW60: 4 | AY60: 0 | AZ60: 0 | BA60: 17 | BC60: 0 | BD60: 0 | BE60: 14 | BG60: 0 | BH60: 0 | BI60: 0 | BK60: 0 | BL60: 0 | BM60: 10 | BO60: 0 | BP60: 0 | BQ60: 17 | BS60: 0 | BT60: 0 | BU60: 4 | BW60: 0 | BX60: 0 | BY60: 7 | CA60: 0 | CB60: 0 | CC60: 15 | CE60: 0 | CF60: 0 | CG60: 17 | CI60: 0 | CJ60: 0 | CK60: 18 | CM60: 0 | CN60: 0 | CO60: 10 | CQ60: 0 | CR60: 0 | CS60: 1 | CU60: 0 | CV60: 0 | CW60: 0 | CY60: 0 | CZ60: 0 | DA60: 12 | DC60: 0 | DD60: 0 | DE60: 11 | DG60: 0 | DH60: 0 | DI60: 0 | DK60: 0 | DL60: 0 | DM60: 1 | DO60: 0 | DP60: 0 | DQ60: 23 | DS60: 0 | DT60: 0 | DU60: 17 | DW60: 0 | DX60: 0 | DY60: 9 | EA60: 0 | EB60: 0 | EC60: 22 | EE60: 0 | EF60: 0 | EG60: 12 | EI60: 0 | EJ60: 0 | EK60: 21 | EM60: 0 | EN60: 0 | EO60: 26 | EQ60: 0 | ER60: 0 | ES60: 27 | EU60: 0 | EV60: 0 | EW60: 20 | EY60: 0 | EZ60: 0 | FA60: 17 | FC60: 0 | FD60: 0 | FE60: 18 | FG60: 0 | FH60: 0 | FI60: 17 | FK60: 0 | FL60: 0 | FM60: 3 | FO60: 0 | FP60: 0 | FQ60: 19 | FS60: 0 | FT60: 0 | FU60: 0 | FW60: 0 | FX60: 0 | FY60: 19 | GA60: 0 | GB60: 0 | GC60: 11 | GE60: 0 | GF60: 0 | GG60: 13 | GI60: 0 | GJ60: 0 | GK60: 0 | GM60: 0 | GN60: 0 | GO60: 12 | GQ60: 0 | GR60: 0 | GS60: 14 | GU60: 0 | GV60: 0 | GW60: 4 | GY60: 0 | GZ60: 0 | HA60: 1 | HC60: 0 | HD60: 0 | HE60: 11 | HG60: 0 | HH60: 0 | HI60: 2 | HK60: 0 | HL60: 0 | HM60: 0 | HO60: 0 | HP60: 0 | HQ60: 20 | HS60: 0 | HT60: 0 | HU60: 63 | HW60: 0 | HX60: 0 | HY60: 8 | IA60: 0 | IB60: 0 | IC60: 46 | IE60: 0 | IF60: 0 | IG60: 49 | II60: 0 | IJ60: 0 | IK60: 44 | IM60: 0 | IN60: 0 | IO60: 10 | IQ60: 0 | IR60: 0 | IS60: 39 | IU60: 0 | IV60: 0 | IW60: 0 | IY60: 0 | IZ60: 0 | JA60: 0 | JC60: 0 | JD60: 0 | JE60: 6 | JG60: 0 | JH60: 0 | JI60: 14 | JK60: 0 | JL60: 0 | JM60: 5

Sheet AT-Vergleichsdaten (hidden)
C1: Davos (CH) | G1: Zürich/Fluntern (CH) | K1: Locarno/Monti (CH) | O1: Graz Universität (AT) | S1: Tamsweg (AT) | W1: Wien innere Stadt (AT) | AA1: Karlsruhe/Rheinstetten (DE) | AE1: München Flughafen (DE) | AI1: Hohenpeißenberg (DE) | AM1: BRNIK LETALIŠČE (SI) | AQ1: BILJE (SI) | AU1: NOVA VAS, BLOKE (SI) | AY1: Frankfurt/Main Flughafen (DE) | BC1: Trier-Petrisberg (DE) | BG1: Kahler Asten (DE) | BK1: Augsburg (DE) | BO1: Bamberg (DE) | BS1: Hof (DE) | BW1: Kempten (DE) | CA1: Nürnberg (DE) | CE1: Würzburg (DE) | CI1: Basel-Binningen (CH) | CM1: Bern/Zollikofen (CH) | CQ1: La Chaux-de-Fonds (CH) | CU1: Engelberg (CH) | CY1: Luzern (CH) | DC1: Pully (CH) | DG1: Samedan (CH) | DK1: St. Gallen (CH) | DO1: Visp (CH) | DS1: Bad Aussee (AT) | DW1: Bregenz (AT) | EA1: Eisenstadt (AT) | EE1: Freistadt (AT) | EI1: Fürstenfeld (AT) | EM1: Hohenau/March (AT) | EQ1: Innsbruck Universität (AT) | EU1: Klagenfurt Flughafen (AT) | EY1: Kufstein (AT) | FC1: Lienz (AT) | FG1: Linz Stadt (AT) | FK1: Mariazell (AT) | FO1: Salzburg-Freisaal (AT) | FS1: Schröcken (AT) | FW1: St. Pölten (AT) | GA1: Zell am See (AT) | GE1: Zeltweg (AT) | GI1: Andermatt (CH) | GM1: Acquarossa/Comprovasco (CH) | GQ1: Bad Ragaz (CH) | GU1: Château-d'Oex (CH) | GY1: Disentis/Sedrun (CH) | HC1: Fribourg/Posieux (CH) | HG1: Piotta (CH) | HK1: Ulrichen (CH) | HO1: Barcis (IT) | HS1: Codroipo (IT) | HW1: Forni di Sopra (IT) | IA1: Gemona (IT) | IE1: San Pietro al Nasitone (IT) | II1: Sgonico (IT) | IM1: Tarvisio (IT) | IQ1: Tolmezzo (IT) | IU1: Bullet / La Fretaz (CH) | IY1: Einsiedeln (CH) | JC1: Langnau i.E. (CH) | JG1: Payerne (CH) | JK1: Rünenberg (CH)
D2: 1 | H2: 0 | L2: 0 | P2: 1 | T2: 0 | X2: 0 | AB2: 0 | AF2: 0 | AJ2: 0 | AN2: 0 | AR2: 0 | AV2: 0 | AZ2: 0 | BD2: 0 | BH2: 0 | BL2: 0 | BP2: 0 | BT2: 1 | BX2: 0 | CB2: 0 | CF2: 0 | CJ2: 0 | CN2: 0 | CR2: 0 | CV2: 0 | CZ2: 0 | DD2: 0 | DH2: 0 | DL2: 0 | DP2: 0 | DT2: 0 | DX2: 0 | EB2: 0 | EF2: 0 | EJ2: 0 | EN2: 0 | ER2: 0 | EV2: 0 | EZ2: 0 | FD2: 0 | FH2: 0 | FL2: 0 | FP2: 0 | FT2: 0 | FX2: 0 | GB2: 0 | GF2: 0 | GJ2: 0 | GN2: 0 | GR2: 0 | GV2: 0 | GZ2: 0 | HD2: 0 | HH2: 0 | HL2: 0 | HP2: 0 | HT2: 0 | HX2: 0 | IB2: 1 | IF2: 0 | IJ2: 0 | IN2: 0 | IR2: 0 | IV2: 0 | IZ2: 0 | JD2: 0 | JH2: 0 | JL2: 0
C3: =IF(D2=1,Klimadaten!C3,"") -> Davos (CH) | G3: =IF(H2=1,Klimadaten!G3,"") ->  | K3: =IF(L2=1,Klimadaten!K3,"") ->  | O3: =IF(P2=1,Klimadaten!O3,"") -> Graz Universität (AT) | S3: =IF(T2=1,Klimadaten!S3,"") ->  | W3: =IF(X2=1,Klimadaten!W3,"") ->  | AA3: =IF(AB2=1,Klimadaten!AA3,"") ->  | AE3: =IF(AF2=1,Klimadaten!AE3,"") ->  | AI3: =IF(AJ2=1,Klimadaten!AI3,"") ->  | AM3: =IF(AN2=1,Klimadaten!AM3,"") ->  | AQ3: =IF(AR2=1,Klimadaten!AQ3,"") ->  | AU3: =IF(AV2=1,Klimadaten!AU3,"") ->  | AY3: =IF(AZ2=1,Klimadaten!AY3,"") ->  | BC3: =IF(BD2=1,Klimadaten!BC3,"") ->  | BG3: =IF(BH2=1,Klimadaten!BG3,"") ->  | BK3: =IF(BL2=1,Klimadaten!BK3,"") ->  | BO3: =IF(BP2=1,Klimadaten!BO3,"") ->  | BS3: =IF(BT2=1,Klimadaten!BS3,"") -> Hof (DE) | BW3: =IF(BX2=1,Klimadaten!BW3,"") ->  | CA3: =IF(CB2=1,Klimadaten!CA3,"") ->  | CE3: =IF(CF2=1,Klimadaten!CE3,"") ->  | CI3: =IF(CJ2=1,Klimadaten!CI3,"") ->  | CM3: =IF(CN2=1,Klimadaten!CM3,"") ->  | CQ3: =IF(CR2=1,Klimadaten!CQ3,"") ->  | CU3: =IF(CV2=1,Klimadaten!CU3,"") ->  | CY3: =IF(CZ2=1,Klimadaten!CY3,"") ->  | DC3: =IF(DD2=1,Klimadaten!DC3,"") ->  | DG3: =IF(DH2=1,Klimadaten!DG3,"") ->  | DK3: =IF(DL2=1,Klimadaten!DK3,"") ->  | DO3: =IF(DP2=1,Klimadaten!DO3,"") ->  | DS3: =IF(DT2=1,Klimadaten!DS3,"") ->  | DW3: =IF(DX2=1,Klimadaten!DW3,"") ->  | EA3: =IF(EB2=1,Klimadaten!EA3,"") ->  | EE3: =IF(EF2=1,Klimadaten!EE3,"") ->  | EI3: =IF(EJ2=1,Klimadaten!EI3,"") ->  | EM3: =IF(EN2=1,Klimadaten!EM3,"") ->  | EQ3: =IF(ER2=1,Klimadaten!EQ3,"") ->  | EU3: =IF(EV2=1,Klimadaten!EU3,"") ->  | EY3: =IF(EZ2=1,Klimadaten!EY3,"") ->  | FC3: =IF(FD2=1,Klimadaten!FC3,"") ->  | FG3: =IF(FH2=1,Klimadaten!FG3,"") ->  | FK3: =IF(FL2=1,Klimadaten!FK3,"") ->  | FO3: =IF(FP2=1,Klimadaten!FO3,"") ->  | FS3: =IF(FT2=1,Klimadaten!FS3,"") ->  | FW3: =IF(FX2=1,Klimadaten!FW3,"") ->  | GA3: =IF(GB2=1,Klimadaten!GA3,"") ->  | GE3: =IF(GF2=1,Klimadaten!GE3,"") ->  | GI3: =IF(GJ2=1,Klimadaten!GI3,"") ->  | GM3: =IF(GN2=1,Klimadaten!GM3,"") ->  | GQ3: =IF(GR2=1,Klimadaten!GQ3,"") ->  | GU3: =IF(GV2=1,Klimadaten!GU3,"") ->  | GY3: =IF(GZ2=1,Klimadaten!GY3,"") ->  | HC3: =IF(HD2=1,Klimadaten!HC3,"") ->  | HG3: =IF(HH2=1,Klimadaten!HG3,"") ->  | HK3: =IF(HL2=1,Klimadaten!HK3,"") ->  | HO3: =IF(HP2=1,Klimadaten!HO3,"") ->  | HS3: =IF(HT2=1,Klimadaten!HS3,"") ->  | HW3: =IF(HX2=1,Klimadaten!HW3,"") ->  | IA3: =IF(IB2=1,Klimadaten!IA3,"") -> Gemona (IT) | IE3: =IF(IF2=1,Klimadaten!IE3,"") ->  | II3: =IF(IJ2=1,Klimadaten!II3,"") ->  | IM3: =IF(IN2=1,Klimadaten!IM3,"") ->  | IQ3: =IF(IR2=1,Klimadaten!IQ3,"") ->  | IU3: =IF(IV2=1,Klimadaten!IU3,"") ->  | IY3: =IF(IZ2=1,Klimadaten!IY3,"") ->  | JC3: =IF(JD2=1,Klimadaten!JC3,"") ->  | JG3: =IF(JH2=1,Klimadaten!JG3,"") ->  | JK3: =IF(JL2=1,Klimadaten!JK3,"") -> 
C6: Häufigkeit | G6: Häufigkeit | K6: Häufigkeit | O6: Häufigkeit | S6: Häufigkeit | W6: Häufigkeit | AA6: Häufigkeit | AE6: Häufigkeit | AI6: Häufigkeit | AM6: Häufigkeit | AQ6: Häufigkeit | AU6: Häufigkeit | AY6: Häufigkeit | BC6: Häufigkeit | BG6: Häufigkeit | BK6: Häufigkeit | BO6: Häufigkeit | BS6: Häufigkeit | BW6: Häufigkeit | CA6: Häufigkeit | CE6: Häufigkeit | CI6: Häufigkeit | CM6: Häufigkeit | CQ6: Häufigkeit | CU6: Häufigkeit | CY6: Häufigkeit | DC6: Häufigkeit | DG6: Häufigkeit | DK6: Häufigkeit | DO6: Häufigkeit | DS6: Häufigkeit | DW6: Häufigkeit | EA6: Häufigkeit | EE6: Häufigkeit | EI6: Häufigkeit | EM6: Häufigkeit | EQ6: Häufigkeit | EU6: Häufigkeit | EY6: Häufigkeit | FC6: Häufigkeit | FG6: Häufigkeit | FK6: Häufigkeit | FO6: Häufigkeit | FS6: Häufigkeit | FW6: Häufigkeit | GA6: Häufigkeit | GE6: Häufigkeit | GI6: Häufigkeit | GM6: Häufigkeit | GQ6: Häufigkeit | GU6: Häufigkeit | GY6: Häufigkeit | HC6: Häufigkeit | HG6: Häufigkeit | HK6: Häufigkeit | HO6: Häufigkeit | HS6: Häufigkeit | HW6: Häufigkeit | IA6: Häufigkeit | IE6: Häufigkeit | II6: Häufigkeit | IM6: Häufigkeit | IQ6: Häufigkeit | IU6: Häufigkeit | IY6: Häufigkeit | JC6: Häufigkeit | JG6: Häufigkeit | JK6: Häufigkeit
C7: Min. | D7: Mittel | E7: Max. | G7: Min. | H7: Mittel | I7: Max. | K7: Min. | L7: Mittel | M7: Max. | O7: Min. | P7: Mittel | Q7: Max. | S7: Min. | T7: Mittel | U7: Max. | W7: Min. | X7: Mittel | Y7: Max. | AA7: Min. | AB7: Mittel | AC7: Max. | AE7: Min. | AF7: Mittel | AG7: Max. | AI7: Min. | AJ7: Mittel | AK7: Max. | AM7: Min. | AN7: Mittel | AO7: Max. | AQ7: Min. | AR7: Mittel | AS7: Max. | AU7: Min. | AV7: Mittel | AW7: Max. | AY7: Min. | AZ7: Mittel | BA7: Max. | BC7: Min. | BD7: Mittel | BE7: Max. | BG7: Min. | BH7: Mittel | BI7: Max. | BK7: Min. | BL7: Mittel | BM7: Max. | BO7: Min. | BP7: Mittel | BQ7: Max. | BS7: Min. | BT7: Mittel | BU7: Max. | BW7: Min. | BX7: Mittel | BY7: Max. | CA7: Min. | CB7: Mittel | CC7: Max. | CE7: Min. | CF7: Mittel | CG7: Max. | CI7: Min. | CJ7: Mittel | CK7: Max. | CM7: Min. | CN7: Mittel | CO7: Max. | CQ7: Min. | CR7: Mittel | CS7: Max. | CU7: Min. | CV7: Mittel | CW7: Max. | CY7: Min. | CZ7: Mittel | DA7: Max. | DC7: Min. | DD7: Mittel | DE7: Max. | DG7: Min. | DH7: Mittel | DI7: Max. | DK7: Min. | DL7: Mittel | DM7: Max. | DO7: Min. | DP7: Mittel | DQ7: Max. | DS7: Min. | DT7: Mittel | DU7: Max. | DW7: Min. | DX7: Mittel | DY7: Max. | EA7: Min. | EB7: Mittel | EC7: Max. | EE7: Min. | EF7: Mittel | EG7: Max. | EI7: Min. | EJ7: Mittel | EK7: Max. | EM7: Min. | EN7: Mittel | EO7: Max. | EQ7: Min. | ER7: Mittel | ES7: Max. | EU7: Min. | EV7: Mittel | EY7: Min. | EZ7: Mittel | FA7: Max. | FC7: Min. | FD7: Mittel | FE7: Max. | FG7: Min. | FH7: Mittel | FI7: Max. | FK7: Min. | FL7: Mittel | FM7: Max. | FO7: Min. | FP7: Mittel | FQ7: Max. | FS7: Min. | FT7: Mittel | FU7: Max. | FW7: Min. | FX7: Mittel | FY7: Max. | GA7: Min. | GB7: Mittel | GC7: Max. | GE7: Min. | GF7: Mittel | GG7: Max. | GI7: Min. | GJ7: Mittel | GK7: Max. | GM7: Min. | GN7: Mittel | GO7: Max. | GQ7: Min. | GR7: Mittel | GS7: Max. | GU7: Min. | GV7: Mittel | GW7: Max. | GY7: Min. | GZ7: Mittel | HA7: Max. | HC7: Min. | HD7: Mittel | HE7: Max. | HG7: Min. | HH7: Mittel | HI7: Max. | HK7: Min. | HL7: Mittel | HM7: Max. | HO7: Min. | HP7: Mittel | HQ7: Max. | HS7: Min. | HT7: Mittel | HU7: Max. | HW7: Min. | HX7: Mittel | HY7: Max. | IA7: Min. | IB7: Mittel | IC7: Max. | IE7: Min. | IF7: Mittel | IG7: Max. | II7: Min. | IJ7: Mittel | IK7: Max. | IM7: Min. | IN7: Mittel | IO7: Max. | IQ7: Min. | IR7: Mittel | IS7: Max. | IU7: Min. | IV7: Mittel | IW7: Max. | IY7: Min. | IZ7: Mittel | JA7: Max. | JC7: Min. | JD7: Mittel | JE7: Max. | JG7: Min. | JH7: Mittel | JI7: Max. | JK7: Min. | JL7: Mittel | JM7: Max.
A10: -20 | D10: =IF(D$2=1,Klimadaten!D10,"") -> 0 | H10: =IF(H$2=1,Klimadaten!H10,"") ->  | L10: =IF(L$2=1,Klimadaten!L10,"") ->  | P10: =IF(P$2=1,Klimadaten!P10,"") -> 0 | T10: =IF(T$2=1,Klimadaten!T10,"") ->  | X10: =IF(X$2=1,Klimadaten!X10,"") ->  | AB10: =IF(AB$2=1,Klimadaten!AB10,"") ->  | AF10: =IF(AF$2=1,Klimadaten!AF10,"") ->  | AJ10: =IF(AJ$2=1,Klimadaten!AJ10,"") ->  | AN10: =IF(AN$2=1,Klimadaten!AN10,"") ->  | AR10: =IF(AR$2=1,Klimadaten!AR10,"") ->  | AV10: =IF(AV$2=1,Klimadaten!AV10,"") ->  | AZ10: =IF(AZ$2=1,Klimadaten!AZ10,"") ->  | BD10: =IF(BD$2=1,Klimadaten!BD10,"") ->  | BH10: =IF(BH$2=1,Klimadaten!BH10,"") ->  | BL10: =IF(BL$2=1,Klimadaten!BL10,"") ->  | BP10: =IF(BP$2=1,Klimadaten!BP10,"") ->  | BT10: =IF(BT$2=1,Klimadaten!BT10,"") -> 0 | BX10: =IF(BX$2=1,Klimadaten!BX10,"") ->  | CB10: =IF(CB$2=1,Klimadaten!CB10,"") ->  | CF10: =IF(CF$2=1,Klimadaten!CF10,"") ->  | CJ10: =IF(CJ$2=1,Klimadaten!CJ10,"") ->  | CN10: =IF(CN$2=1,Klimadaten!CN10,"") ->  | CR10: =IF(CR$2=1,Klimadaten!CR10,"") ->  | CV10: =IF(CV$2=1,Klimadaten!CV10,"") ->  | CZ10: =IF(CZ$2=1,Klimadaten!CZ10,"") ->  | DD10: =IF(DD$2=1,Klimadaten!DD10,"") ->  | DH10: =IF(DH$2=1,Klimadaten!DH10,"") ->  | DL10: =IF(DL$2=1,Klimadaten!DL10,"") ->  | DP10: =IF(DP$2=1,Klimadaten!DP10,"") ->  | DT10: =IF(DT$2=1,Klimadaten!DT10,"") ->  | DX10: =IF(DX$2=1,Klimadaten!DX10,"") ->  | EB10: =IF(EB$2=1,Klimadaten!EB10,"") ->  | EF10: =IF(EF$2=1,Klimadaten!EF10,"") ->  | EJ10: =IF(EJ$2=1,Klimadaten!EJ10,"") ->  | EN10: =IF(EN$2=1,Klimadaten!EN10,"") ->  | ER10: =IF(ER$2=1,Klimadaten!ER10,"") ->  | EV10: =IF(EV$2=1,Klimadaten!EV10,"") ->  | EZ10: =IF(EZ$2=1,Klimadaten!EZ10,"") ->  | FD10: =IF(FD$2=1,Klimadaten!FD10,"") ->  | FH10: =IF(FH$2=1,Klimadaten!FH10,"") ->  | FL10: =IF(FL$2=1,Klimadaten!FL10,"") ->  | FP10: =IF(FP$2=1,Klimadaten!FP10,"") ->  | FT10: =IF(FT$2=1,Klimadaten!FT10,"") ->  | FX10: =IF(FX$2=1,Klimadaten!FX10,"") ->  | GB10: =IF(GB$2=1,Klimadaten!GB10,"") ->  | GF10: =IF(GF$2=1,Klimadaten!GF10,"") ->  | GJ10: =IF(GJ$2=1,Klimadaten!GJ10,"") ->  | GN10: =IF(GN$2=1,Klimadaten!GN10,"") ->  | GR10: =IF(GR$2=1,Klimadaten!GR10,"") ->  | GV10: =IF(GV$2=1,Klimadaten!GV10,"") ->  | GZ10: =IF(GZ$2=1,Klimadaten!GZ10,"") ->  | HD10: =IF(HD$2=1,Klimadaten!HD10,"") ->  | HH10: =IF(HH$2=1,Klimadaten!HH10,"") ->  | HL10: =IF(HL$2=1,Klimadaten!HL10,"") ->  | HP10: =IF(HP$2=1,Klimadaten!HP10,"") ->  | HT10: =IF(HT$2=1,Klimadaten!HT10,"") ->  | HX10: =IF(HX$2=1,Klimadaten!HX10,"") ->  | IB10: =IF(IB$2=1,Klimadaten!IB10,"") -> 0 | IF10: =IF(IF$2=1,Klimadaten!IF10,"") ->  | IJ10: =IF(IJ$2=1,Klimadaten!IJ10,"") ->  | IN10: =IF(IN$2=1,Klimadaten!IN10,"") ->  | IR10: =IF(IR$2=1,Klimadaten!IR10,"") ->  | IV10: =IF(IV$2=1,Klimadaten!IV10,"") ->  | IZ10: =IF(IZ$2=1,Klimadaten!IZ10,"") ->  | JD10: =IF(JD$2=1,Klimadaten!JD10,"") ->  | JH10: =IF(JH$2=1,Klimadaten!JH10,"") ->  | JL10: =IF(JL$2=1,Klimadaten!JL10,"") -> 
A11: -19 | D11: =IF(D$2=1,Klimadaten!D11,"") -> 0 | H11: =IF(H$2=1,Klimadaten!H11,"") ->  | L11: =IF(L$2=1,Klimadaten!L11,"") ->  | P11: =IF(P$2=1,Klimadaten!P11,"") -> 0 | T11: =IF(T$2=1,Klimadaten!T11,"") ->  | X11: =IF(X$2=1,Klimadaten!X11,"") ->  | AB11: =IF(AB$2=1,Klimadaten!AB11,"") ->  | AF11: =IF(AF$2=1,Klimadaten!AF11,"") ->  | AJ11: =IF(AJ$2=1,Klimadaten!AJ11,"") ->  | AN11: =IF(AN$2=1,Klimadaten!AN11,"") ->  | AR11: =IF(AR$2=1,Klimadaten!AR11,"") ->  | AV11: =IF(AV$2=1,Klimadaten!AV11,"") ->  | AZ11: =IF(AZ$2=1,Klimadaten!AZ11,"") ->  | BD11: =IF(BD$2=1,Klimadaten!BD11,"") ->  | BH11: =IF(BH$2=1,Klimadaten!BH11,"") ->  | BL11: =IF(BL$2=1,Klimadaten!BL11,"") ->  | BP11: =IF(BP$2=1,Klimadaten!BP11,"") ->  | BT11: =IF(BT$2=1,Klimadaten!BT11,"") -> 0 | BX11: =IF(BX$2=1,Klimadaten!BX11,"") ->  | CB11: =IF(CB$2=1,Klimadaten!CB11,"") ->  | CF11: =IF(CF$2=1,Klimadaten!CF11,"") ->  | CJ11: =IF(CJ$2=1,Klimadaten!CJ11,"") ->  | CN11: =IF(CN$2=1,Klimadaten!CN11,"") ->  | CR11: =IF(CR$2=1,Klimadaten!CR11,"") ->  | CV11: =IF(CV$2=1,Klimadaten!CV11,"") ->  | CZ11: =IF(CZ$2=1,Klimadaten!CZ11,"") ->  | DD11: =IF(DD$2=1,Klimadaten!DD11,"") ->  | DH11: =IF(DH$2=1,Klimadaten!DH11,"") ->  | DL11: =IF(DL$2=1,Klimadaten!DL11,"") ->  | DP11: =IF(DP$2=1,Klimadaten!DP11,"") ->  | DT11: =IF(DT$2=1,Klimadaten!DT11,"") ->  | DX11: =IF(DX$2=1,Klimadaten!DX11,"") ->  | EB11: =IF(EB$2=1,Klimadaten!EB11,"") ->  | EF11: =IF(EF$2=1,Klimadaten!EF11,"") ->  | EJ11: =IF(EJ$2=1,Klimadaten!EJ11,"") ->  | EN11: =IF(EN$2=1,Klimadaten!EN11,"") ->  | ER11: =IF(ER$2=1,Klimadaten!ER11,"") ->  | EV11: =IF(EV$2=1,Klimadaten!EV11,"") ->  | EZ11: =IF(EZ$2=1,Klimadaten!EZ11,"") ->  | FD11: =IF(FD$2=1,Klimadaten!FD11,"") ->  | FH11: =IF(FH$2=1,Klimadaten!FH11,"") ->  | FL11: =IF(FL$2=1,Klimadaten!FL11,"") ->  | FP11: =IF(FP$2=1,Klimadaten!FP11,"") ->  | FT11: =IF(FT$2=1,Klimadaten!FT11,"") ->  | FX11: =IF(FX$2=1,Klimadaten!FX11,"") ->  | GB11: =IF(GB$2=1,Klimadaten!GB11,"") ->  | GF11: =IF(GF$2=1,Klimadaten!GF11,"") ->  | GJ11: =IF(GJ$2=1,Klimadaten!GJ11,"") ->  | GN11: =IF(GN$2=1,Klimadaten!GN11,"") ->  | GR11: =IF(GR$2=1,Klimadaten!GR11,"") ->  | GV11: =IF(GV$2=1,Klimadaten!GV11,"") ->  | GZ11: =IF(GZ$2=1,Klimadaten!GZ11,"") ->  | HD11: =IF(HD$2=1,Klimadaten!HD11,"") ->  | HH11: =IF(HH$2=1,Klimadaten!HH11,"") ->  | HL11: =IF(HL$2=1,Klimadaten!HL11,"") ->  | HP11: =IF(HP$2=1,Klimadaten!HP11,"") ->  | HT11: =IF(HT$2=1,Klimadaten!HT11,"") ->  | HX11: =IF(HX$2=1,Klimadaten!HX11,"") ->  | IB11: =IF(IB$2=1,Klimadaten!IB11,"") -> 0 | IF11: =IF(IF$2=1,Klimadaten!IF11,"") ->  | IJ11: =IF(IJ$2=1,Klimadaten!IJ11,"") ->  | IN11: =IF(IN$2=1,Klimadaten!IN11,"") ->  | IR11: =IF(IR$2=1,Klimadaten!IR11,"") ->  | IV11: =IF(IV$2=1,Klimadaten!IV11,"") ->  | IZ11: =IF(IZ$2=1,Klimadaten!IZ11,"") ->  | JD11: =IF(JD$2=1,Klimadaten!JD11,"") ->  | JH11: =IF(JH$2=1,Klimadaten!JH11,"") ->  | JL11: =IF(JL$2=1,Klimadaten!JL11,"") -> 
A12: -18 | D12: =IF(D$2=1,Klimadaten!D12,"") -> 0 | H12: =IF(H$2=1,Klimadaten!H12,"") ->  | L12: =IF(L$2=1,Klimadaten!L12,"") ->  | P12: =IF(P$2=1,Klimadaten!P12,"") -> 0 | T12: =IF(T$2=1,Klimadaten!T12,"") ->  | X12: =IF(X$2=1,Klimadaten!X12,"") ->  | AB12: =IF(AB$2=1,Klimadaten!AB12,"") ->  | AF12: =IF(AF$2=1,Klimadaten!AF12,"") ->  | AJ12: =IF(AJ$2=1,Klimadaten!AJ12,"") ->  | AN12: =IF(AN$2=1,Klimadaten!AN12,"") ->  | AR12: =IF(AR$2=1,Klimadaten!AR12,"") ->  | AV12: =IF(AV$2=1,Klimadaten!AV12,"") ->  | AZ12: =IF(AZ$2=1,Klimadaten!AZ12,"") ->  | BD12: =IF(BD$2=1,Klimadaten!BD12,"") ->  | BH12: =IF(BH$2=1,Klimadaten!BH12,"") ->  | BL12: =IF(BL$2=1,Klimadaten!BL12,"") ->  | BP12: =IF(BP$2=1,Klimadaten!BP12,"") ->  | BT12: =IF(BT$2=1,Klimadaten!BT12,"") -> 0 | BX12: =IF(BX$2=1,Klimadaten!BX12,"") ->  | CB12: =IF(CB$2=1,Klimadaten!CB12,"") ->  | CF12: =IF(CF$2=1,Klimadaten!CF12,"") ->  | CJ12: =IF(CJ$2=1,Klimadaten!CJ12,"") ->  | CN12: =IF(CN$2=1,Klimadaten!CN12,"") ->  | CR12: =IF(CR$2=1,Klimadaten!CR12,"") ->  | CV12: =IF(CV$2=1,Klimadaten!CV12,"") ->  | CZ12: =IF(CZ$2=1,Klimadaten!CZ12,"") ->  | DD12: =IF(DD$2=1,Klimadaten!DD12,"") ->  | DH12: =IF(DH$2=1,Klimadaten!DH12,"") ->  | DL12: =IF(DL$2=1,Klimadaten!DL12,"") ->  | DP12: =IF(DP$2=1,Klimadaten!DP12,"") ->  | DT12: =IF(DT$2=1,Klimadaten!DT12,"") ->  | DX12: =IF(DX$2=1,Klimadaten!DX12,"") ->  | EB12: =IF(EB$2=1,Klimadaten!EB12,"") ->  | EF12: =IF(EF$2=1,Klimadaten!EF12,"") ->  | EJ12: =IF(EJ$2=1,Klimadaten!EJ12,"") ->  | EN12: =IF(EN$2=1,Klimadaten!EN12,"") ->  | ER12: =IF(ER$2=1,Klimadaten!ER12,"") ->  | EV12: =IF(EV$2=1,Klimadaten!EV12,"") ->  | EZ12: =IF(EZ$2=1,Klimadaten!EZ12,"") ->  | FD12: =IF(FD$2=1,Klimadaten!FD12,"") ->  | FH12: =IF(FH$2=1,Klimadaten!FH12,"") ->  | FL12: =IF(FL$2=1,Klimadaten!FL12,"") ->  | FP12: =IF(FP$2=1,Klimadaten!FP12,"") ->  | FT12: =IF(FT$2=1,Klimadaten!FT12,"") ->  | FX12: =IF(FX$2=1,Klimadaten!FX12,"") ->  | GB12: =IF(GB$2=1,Klimadaten!GB12,"") ->  | GF12: =IF(GF$2=1,Klimadaten!GF12,"") ->  | GJ12: =IF(GJ$2=1,Klimadaten!GJ12,"") ->  | GN12: =IF(GN$2=1,Klimadaten!GN12,"") ->  | GR12: =IF(GR$2=1,Klimadaten!GR12,"") ->  | GV12: =IF(GV$2=1,Klimadaten!GV12,"") ->  | GZ12: =IF(GZ$2=1,Klimadaten!GZ12,"") ->  | HD12: =IF(HD$2=1,Klimadaten!HD12,"") ->  | HH12: =IF(HH$2=1,Klimadaten!HH12,"") ->  | HL12: =IF(HL$2=1,Klimadaten!HL12,"") ->  | HP12: =IF(HP$2=1,Klimadaten!HP12,"") ->  | HT12: =IF(HT$2=1,Klimadaten!HT12,"") ->  | HX12: =IF(HX$2=1,Klimadaten!HX12,"") ->  | IB12: =IF(IB$2=1,Klimadaten!IB12,"") -> 0 | IF12: =IF(IF$2=1,Klimadaten!IF12,"") ->  | IJ12: =IF(IJ$2=1,Klimadaten!IJ12,"") ->  | IN12: =IF(IN$2=1,Klimadaten!IN12,"") ->  | IR12: =IF(IR$2=1,Klimadaten!IR12,"") ->  | IV12: =IF(IV$2=1,Klimadaten!IV12,"") ->  | IZ12: =IF(IZ$2=1,Klimadaten!IZ12,"") ->  | JD12: =IF(JD$2=1,Klimadaten!JD12,"") ->  | JH12: =IF(JH$2=1,Klimadaten!JH12,"") ->  | JL12: =IF(JL$2=1,Klimadaten!JL12,"") -> 
A13: -17 | D13: =IF(D$2=1,Klimadaten!D13,"") -> 0 | H13: =IF(H$2=1,Klimadaten!H13,"") ->  | L13: =IF(L$2=1,Klimadaten!L13,"") ->  | P13: =IF(P$2=1,Klimadaten!P13,"") -> 0 | T13: =IF(T$2=1,Klimadaten!T13,"") ->  | X13: =IF(X$2=1,Klimadaten!X13,"") ->  | AB13: =IF(AB$2=1,Klimadaten!AB13,"") ->  | AF13: =IF(AF$2=1,Klimadaten!AF13,"") ->  | AJ13: =IF(AJ$2=1,Klimadaten!AJ13,"") ->  | AN13: =IF(AN$2=1,Klimadaten!AN13,"") ->  | AR13: =IF(AR$2=1,Klimadaten!AR13,"") ->  | AV13: =IF(AV$2=1,Klimadaten!AV13,"") ->  | AZ13: =IF(AZ$2=1,Klimadaten!AZ13,"") ->  | BD13: =IF(BD$2=1,Klimadaten!BD13,"") ->  | BH13: =IF(BH$2=1,Klimadaten!BH13,"") ->  | BL13: =IF(BL$2=1,Klimadaten!BL13,"") ->  | BP13: =IF(BP$2=1,Klimadaten!BP13,"") ->  | BT13: =IF(BT$2=1,Klimadaten!BT13,"") -> 0 | BX13: =IF(BX$2=1,Klimadaten!BX13,"") ->  | CB13: =IF(CB$2=1,Klimadaten!CB13,"") ->  | CF13: =IF(CF$2=1,Klimadaten!CF13,"") ->  | CJ13: =IF(CJ$2=1,Klimadaten!CJ13,"") ->  | CN13: =IF(CN$2=1,Klimadaten!CN13,"") ->  | CR13: =IF(CR$2=1,Klimadaten!CR13,"") ->  | CV13: =IF(CV$2=1,Klimadaten!CV13,"") ->  | CZ13: =IF(CZ$2=1,Klimadaten!CZ13,"") ->  | DD13: =IF(DD$2=1,Klimadaten!DD13,"") ->  | DH13: =IF(DH$2=1,Klimadaten!DH13,"") ->  | DL13: =IF(DL$2=1,Klimadaten!DL13,"") ->  | DP13: =IF(DP$2=1,Klimadaten!DP13,"") ->  | DT13: =IF(DT$2=1,Klimadaten!DT13,"") ->  | DX13: =IF(DX$2=1,Klimadaten!DX13,"") ->  | EB13: =IF(EB$2=1,Klimadaten!EB13,"") ->  | EF13: =IF(EF$2=1,Klimadaten!EF13,"") ->  | EJ13: =IF(EJ$2=1,Klimadaten!EJ13,"") ->  | EN13: =IF(EN$2=1,Klimadaten!EN13,"") ->  | ER13: =IF(ER$2=1,Klimadaten!ER13,"") ->  | EV13: =IF(EV$2=1,Klimadaten!EV13,"") ->  | EZ13: =IF(EZ$2=1,Klimadaten!EZ13,"") ->  | FD13: =IF(FD$2=1,Klimadaten!FD13,"") ->  | FH13: =IF(FH$2=1,Klimadaten!FH13,"") ->  | FL13: =IF(FL$2=1,Klimadaten!FL13,"") ->  | FP13: =IF(FP$2=1,Klimadaten!FP13,"") ->  | FT13: =IF(FT$2=1,Klimadaten!FT13,"") ->  | FX13: =IF(FX$2=1,Klimadaten!FX13,"") ->  | GB13: =IF(GB$2=1,Klimadaten!GB13,"") ->  | GF13: =IF(GF$2=1,Klimadaten!GF13,"") ->  | GJ13: =IF(GJ$2=1,Klimadaten!GJ13,"") ->  | GN13: =IF(GN$2=1,Klimadaten!GN13,"") ->  | GR13: =IF(GR$2=1,Klimadaten!GR13,"") ->  | GV13: =IF(GV$2=1,Klimadaten!GV13,"") ->  | GZ13: =IF(GZ$2=1,Klimadaten!GZ13,"") ->  | HD13: =IF(HD$2=1,Klimadaten!HD13,"") ->  | HH13: =IF(HH$2=1,Klimadaten!HH13,"") ->  | HL13: =IF(HL$2=1,Klimadaten!HL13,"") ->  | HP13: =IF(HP$2=1,Klimadaten!HP13,"") ->  | HT13: =IF(HT$2=1,Klimadaten!HT13,"") ->  | HX13: =IF(HX$2=1,Klimadaten!HX13,"") ->  | IB13: =IF(IB$2=1,Klimadaten!IB13,"") -> 0 | IF13: =IF(IF$2=1,Klimadaten!IF13,"") ->  | IJ13: =IF(IJ$2=1,Klimadaten!IJ13,"") ->  | IN13: =IF(IN$2=1,Klimadaten!IN13,"") ->  | IR13: =IF(IR$2=1,Klimadaten!IR13,"") ->  | IV13: =IF(IV$2=1,Klimadaten!IV13,"") ->  | IZ13: =IF(IZ$2=1,Klimadaten!IZ13,"") ->  | JD13: =IF(JD$2=1,Klimadaten!JD13,"") ->  | JH13: =IF(JH$2=1,Klimadaten!JH13,"") ->  | JL13: =IF(JL$2=1,Klimadaten!JL13,"") -> 
A14: -16 | D14: =IF(D$2=1,Klimadaten!D14,"") -> 0 | H14: =IF(H$2=1,Klimadaten!H14,"") ->  | L14: =IF(L$2=1,Klimadaten!L14,"") ->  | P14: =IF(P$2=1,Klimadaten!P14,"") -> 0 | T14: =IF(T$2=1,Klimadaten!T14,"") ->  | X14: =IF(X$2=1,Klimadaten!X14,"") ->  | AB14: =IF(AB$2=1,Klimadaten!AB14,"") ->  | AF14: =IF(AF$2=1,Klimadaten!AF14,"") ->  | AJ14: =IF(AJ$2=1,Klimadaten!AJ14,"") ->  | AN14: =IF(AN$2=1,Klimadaten!AN14,"") ->  | AR14: =IF(AR$2=1,Klimadaten!AR14,"") ->  | AV14: =IF(AV$2=1,Klimadaten!AV14,"") ->  | AZ14: =IF(AZ$2=1,Klimadaten!AZ14,"") ->  | BD14: =IF(BD$2=1,Klimadaten!BD14,"") ->  | BH14: =IF(BH$2=1,Klimadaten!BH14,"") ->  | BL14: =IF(BL$2=1,Klimadaten!BL14,"") ->  | BP14: =IF(BP$2=1,Klimadaten!BP14,"") ->  | BT14: =IF(BT$2=1,Klimadaten!BT14,"") -> 0 | BX14: =IF(BX$2=1,Klimadaten!BX14,"") ->  | CB14: =IF(CB$2=1,Klimadaten!CB14,"") ->  | CF14: =IF(CF$2=1,Klimadaten!CF14,"") ->  | CJ14: =IF(CJ$2=1,Klimadaten!CJ14,"") ->  | CN14: =IF(CN$2=1,Klimadaten!CN14,"") ->  | CR14: =IF(CR$2=1,Klimadaten!CR14,"") ->  | CV14: =IF(CV$2=1,Klimadaten!CV14,"") ->  | CZ14: =IF(CZ$2=1,Klimadaten!CZ14,"") ->  | DD14: =IF(DD$2=1,Klimadaten!DD14,"") ->  | DH14: =IF(DH$2=1,Klimadaten!DH14,"") ->  | DL14: =IF(DL$2=1,Klimadaten!DL14,"") ->  | DP14: =IF(DP$2=1,Klimadaten!DP14,"") ->  | DT14: =IF(DT$2=1,Klimadaten!DT14,"") ->  | DX14: =IF(DX$2=1,Klimadaten!DX14,"") ->  | EB14: =IF(EB$2=1,Klimadaten!EB14,"") ->  | EF14: =IF(EF$2=1,Klimadaten!EF14,"") ->  | EJ14: =IF(EJ$2=1,Klimadaten!EJ14,"") ->  | EN14: =IF(EN$2=1,Klimadaten!EN14,"") ->  | ER14: =IF(ER$2=1,Klimadaten!ER14,"") ->  | EV14: =IF(EV$2=1,Klimadaten!EV14,"") ->  | EZ14: =IF(EZ$2=1,Klimadaten!EZ14,"") ->  | FD14: =IF(FD$2=1,Klimadaten!FD14,"") ->  | FH14: =IF(FH$2=1,Klimadaten!FH14,"") ->  | FL14: =IF(FL$2=1,Klimadaten!FL14,"") ->  | FP14: =IF(FP$2=1,Klimadaten!FP14,"") ->  | FT14: =IF(FT$2=1,Klimadaten!FT14,"") ->  | FX14: =IF(FX$2=1,Klimadaten!FX14,"") ->  | GB14: =IF(GB$2=1,Klimadaten!GB14,"") ->  | GF14: =IF(GF$2=1,Klimadaten!GF14,"") ->  | GJ14: =IF(GJ$2=1,Klimadaten!GJ14,"") ->  | GN14: =IF(GN$2=1,Klimadaten!GN14,"") ->  | GR14: =IF(GR$2=1,Klimadaten!GR14,"") ->  | GV14: =IF(GV$2=1,Klimadaten!GV14,"") ->  | GZ14: =IF(GZ$2=1,Klimadaten!GZ14,"") ->  | HD14: =IF(HD$2=1,Klimadaten!HD14,"") ->  | HH14: =IF(HH$2=1,Klimadaten!HH14,"") ->  | HL14: =IF(HL$2=1,Klimadaten!HL14,"") ->  | HP14: =IF(HP$2=1,Klimadaten!HP14,"") ->  | HT14: =IF(HT$2=1,Klimadaten!HT14,"") ->  | HX14: =IF(HX$2=1,Klimadaten!HX14,"") ->  | IB14: =IF(IB$2=1,Klimadaten!IB14,"") -> 0 | IF14: =IF(IF$2=1,Klimadaten!IF14,"") ->  | IJ14: =IF(IJ$2=1,Klimadaten!IJ14,"") ->  | IN14: =IF(IN$2=1,Klimadaten!IN14,"") ->  | IR14: =IF(IR$2=1,Klimadaten!IR14,"") ->  | IV14: =IF(IV$2=1,Klimadaten!IV14,"") ->  | IZ14: =IF(IZ$2=1,Klimadaten!IZ14,"") ->  | JD14: =IF(JD$2=1,Klimadaten!JD14,"") ->  | JH14: =IF(JH$2=1,Klimadaten!JH14,"") ->  | JL14: =IF(JL$2=1,Klimadaten!JL14,"") -> 
